Workbook

Sheet coded NOLH for 12-16 factors (hidden)
A1: Cioppa's factor ID | B1: f1 | C1: f2 | D1: f3 | E1: f5 | F1: f6 | G1: f8 | H1: f11 | I1: f12 | J1: f13 | K1: f14 | L1: f15 | M1: f16 | N1: f4 | O1: f9 | P1: f7 | Q1: f10
A2: low level
A3: high level
A4: factor name
B5: 47 | C5: 4 | D5: 24 | E5: 22 | F5: 9 | G5: 50 | H5: 52 | I5: 32 | J5: 63 | K5: 47 | L5: 36 | M5: 61 | N5: 13 | O5: 41 | P5: 53 | Q5: 45
B6: 62 | C6: 47 | D6: 8 | E6: 28 | F6: 23 | G6: 17 | H6: 36 | I6: 49 | J6: 47 | K6: 60 | L6: 50 | M6: 32 | N6: 16 | O6: 23 | P6: 23 | Q6: 11
B7: 58 | C7: 24 | D7: 62 | E7: 15 | F7: 20 | G7: 56 | H7: 11 | I7: 30 | J7: 27 | K7: 38 | L7: 52 | M7: 57 | N7: 31 | O7: 34 | P7: 18 | Q7: 58
B8: 42 | C8: 58 | D8: 47 | E8: 30 | F8: 5 | G8: 28 | H8: 18 | I8: 18 | J8: 9 | K8: 64 | L8: 59 | M8: 41 | N8: 6 | O8: 14 | P8: 56 | Q8: 22
B9: 60 | C9: 31 | D9: 13 | E9: 2 | F9: 7 | G9: 11 | H9: 17 | I9: 40 | J9: 40 | K9: 32 | L9: 5 | M9: 55 | N9: 42 | O9: 39 | P9: 46 | Q9: 52
B10: 35 | C10: 60 | D10: 16 | E10: 32 | F10: 11 | G10: 43 | H10: 10 | I10: 56 | J10: 58 | K10: 8 | L10: 27 | M10: 51 | N10: 58 | O10: 5 | P10: 12 | Q10: 4
B11: 50 | C11: 13 | D11: 35 | E11: 3 | F11: 17 | G11: 22 | H11: 58 | I11: 28 | J11: 11 | K11: 29 | L11: 23 | M11: 59 | N11: 62 | O11: 48 | P11: 7 | Q11: 36
B12: 53 | C12: 50 | D12: 60 | E12: 21 | F12: 25 | G12: 60 | H12: 46 | I12: 2 | J12: 17 | K12: 21 | L12: 2 | M12: 42 | N12: 47 | O12: 3 | P12: 36 | Q12: 13
B13: 45 | C13: 3 | D13: 2 | E13: 53 | F13: 27 | G13: 40 | H13: 26 | I13: 7 | J13: 52 | K13: 20 | L13: 55 | M13: 26 | N13: 22 | O13: 16 | P13: 34 | Q13: 65
B14: 63 | C14: 45 | D14: 32 | E14: 50 | F14: 1 | G14: 19 | H14: 60 | I14: 25 | J14: 44 | K14: 1 | L14: 44 | M14: 3 | N14: 28 | O14: 55 | P14: 2 | Q14: 31
B15: 34 | C15: 2 | D15: 63 | E15: 35 | F15: 14 | G15: 29 | H15: 21 | I15: 45 | J15: 2 | K15: 16 | L15: 47 | M15: 13 | N15: 15 | O15: 4 | P15: 16 | Q15: 54
B16: 64 | C16: 34 | D16: 45 | E16: 60 | F16: 12 | G16: 5 | H16: 25 | I16: 53 | J16: 21 | K16: 25 | L16: 35 | M16: 17 | N16: 30 | O16: 38 | P16: 60 | Q16: 15
B17: 36 | C17: 15 | D17: 22 | E17: 42 | F17: 26 | G17: 32 | H17: 13 | I17: 19 | J17: 62 | K17: 62 | L17: 10 | M17: 4 | N17: 64 | O17: 12 | P17: 41 | Q17: 48
B18: 51 | C18: 36 | D18: 28 | E18: 58 | F18: 18 | G18: 63 | H18: 4 | I18: 1 | J18: 34 | K18: 35 | L18: 17 | M18: 20 | N18: 34 | O18: 44 | P18: 26 | Q18: 26
B19: 38 | C19: 22 | D19: 51 | E19: 62 | F19: 29 | G19: 15 | H19: 31 | I19: 61 | J19: 10 | K19: 54 | L19: 1 | M19: 29 | N19: 63 | O19: 20 | P19: 38 | Q19: 56
B20: 44 | C20: 38 | D20: 36 | E20: 47 | F20: 10 | G20: 62 | H20: 65 | I20: 37 | J20: 30 | K20: 53 | L20: 24 | M20: 8 | N20: 45 | O20: 64 | P20: 55 | Q20: 29
B21: 56 | C21: 29 | D21: 26 | E21: 9 | F21: 44 | G21: 65 | H21: 51 | I21: 63 | J21: 38 | K21: 39 | L21: 21 | M21: 19 | N21: 27 | O21: 42 | P21: 44 | Q21: 25
B22: 37 | C22: 56 | D22: 18 | E22: 23 | F22: 38 | G22: 30 | H22: 54 | I22: 52 | J22: 24 | K22: 48 | L22: 8 | M22: 1 | N22: 1 | O22: 6 | P22: 24 | Q22: 46
B23: 48 | C23: 26 | D23: 37 | E23: 20 | F23: 51 | G23: 58 | H23: 3 | I23: 27 | J23: 35 | K23: 52 | L23: 32 | M23: 6 | N23: 14 | O23: 57 | P23: 3 | Q23: 34
B24: 40 | C24: 48 | D24: 56 | E24: 5 | F24: 36 | G24: 12 | H24: 29 | I24: 12 | J24: 53 | K24: 57 | L24: 4 | M24: 28 | N24: 12 | O24: 17 | P24: 31 | Q24: 47
B25: 54 | C25: 14 | D25: 27 | E25: 7 | F25: 64 | G25: 25 | H25: 2 | I25: 46 | J25: 20 | K25: 7 | L25: 28 | M25: 12 | N25: 40 | O25: 53 | P25: 65 | Q25: 27
B26: 52 | C26: 54 | D26: 1 | E26: 11 | F26: 34 | G26: 46 | H26: 32 | I26: 58 | J26: 12 | K26: 23 | L26: 60 | M26: 21 | N26: 48 | O26: 10 | P26: 29 | Q26: 64
B27: 65 | C27: 27 | D27: 52 | E27: 17 | F27: 63 | G27: 9 | H27: 47 | I27: 9 | J27: 37 | K27: 22 | L27: 37 | M27: 18 | N27: 37 | O27: 36 | P27: 14 | Q27: 17
B28: 39 | C28: 65 | D28: 54 | E28: 25 | F28: 45 | G28: 35 | H28: 38 | I28: 15 | J28: 65 | K28: 5 | L28: 46 | M28: 14 | N28: 56 | O28: 15 | P28: 61 | Q28: 60
B29: 41 | C29: 17 | D29: 7 | E29: 39 | F29: 53 | G29: 48 | H29: 61 | I29: 11 | J29: 7 | K29: 11 | L29: 18 | M29: 43 | N29: 9 | O29: 1 | P29: 58 | Q29: 24
B30: 49 | C30: 41 | D30: 11 | E30: 65 | F30: 50 | G30: 13 | H30: 42 | I30: 24 | J30: 25 | K30: 30 | L30: 3 | M30: 56 | N30: 23 | O30: 37 | P30: 4 | Q30: 61
B31: 55 | C31: 7 | D31: 49 | E31: 52 | F31: 35 | G31: 59 | H31: 22 | I31: 62 | J31: 50 | K31: 17 | L31: 15 | M31: 39 | N31: 20 | O31: 8 | P31: 27 | Q31: 9
B32: 59 | C32: 55 | D32: 41 | E32: 54 | F32: 60 | G32: 21 | H32: 9 | I32: 43 | J32: 48 | K32: 24 | L32: 25 | M32: 64 | N32: 5 | O32: 47 | P32: 45 | Q32: 38
B33: 61 | C33: 20 | D33: 9 | E33: 40 | F33: 42 | G33: 14 | H33: 27 | I33: 6 | J33: 15 | K33: 56 | L33: 57 | M33: 36 | N33: 59 | O33: 21 | P33: 47 | Q33: 7
B34: 46 | C34: 61 | D34: 23 | E34: 48 | F34: 58 | G34: 64 | H34: 23 | I34: 35 | J34: 5 | K34: 51 | L34: 40 | M34: 44 | N34: 55 | O34: 40 | P34: 17 | Q34: 43
B35: 43 | C35: 9 | D35: 46 | E35: 37 | F35: 62 | G35: 27 | H35: 50 | I35: 50 | J35: 60 | K35: 63 | L35: 53 | M35: 35 | N35: 49 | O35: 7 | P35: 9 | Q35: 16
B36: 57 | C36: 43 | D36: 61 | E36: 56 | F36: 47 | G36: 42 | H36: 59 | I36: 44 | J36: 43 | K36: 40 | L36: 54 | M36: 50 | N36: 41 | O36: 35 | P36: 51 | Q36: 63
B37: 33 | C37: 33 | D37: 33 | E37: 33 | F37: 33 | G37: 33 | H37: 33 | I37: 33 | J37: 33 | K37: 33 | L37: 33 | M37: 33 | N37: 33 | O37: 33 | P37: 33 | Q37: 33
B38: 19 | C38: 62 | D38: 42 | E38: 44 | F38: 57 | G38: 16 | H38: 14 | I38: 34 | J38: 3 | K38: 19 | L38: 30 | M38: 5 | N38: 53 | O38: 25 | P38: 13 | Q38: 21
B39: 4 | C39: 19 | D39: 58 | E39: 38 | F39: 43 | G39: 49 | H39: 30 | I39: 17 | J39: 19 | K39: 6 | L39: 16 | M39: 34 | N39: 50 | O39: 43 | P39: 43 | Q39: 55
B40: 8 | C40: 42 | D40: 4 | E40: 51 | F40: 46 | G40: 10 | H40: 55 | I40: 36 | J40: 39 | K40: 28 | L40: 14 | M40: 9 | N40: 35 | O40: 32 | P40: 48 | Q40: 8
B41: 24 | C41: 8 | D41: 19 | E41: 36 | F41: 61 | G41: 38 | H41: 48 | I41: 48 | J41: 57 | K41: 2 | L41: 7 | M41: 25 | N41: 60 | O41: 52 | P41: 10 | Q41: 44
B42: 6 | C42: 35 | D42: 53 | E42: 64 | F42: 59 | G42: 55 | H42: 49 | I42: 26 | J42: 26 | K42: 34 | L42: 61 | M42: 11 | N42: 24 | O42: 27 | P42: 20 | Q42: 14
B43: 31 | C43: 6 | D43: 50 | E43: 34 | F43: 55 | G43: 23 | H43: 56 | I43: 10 | J43: 8 | K43: 58 | L43: 39 | M43: 15 | N43: 8 | O43: 61 | P43: 54 | Q43: 62
B44: 16 | C44: 53 | D44: 31 | E44: 63 | F44: 49 | G44: 44 | H44: 8 | I44: 38 | J44: 55 | K44: 37 | L44: 43 | M44: 7 | N44: 4 | O44: 18 | P44: 59 | Q44: 30
B45: 13 | C45: 16 | D45: 6 | E45: 45 | F45: 41 | G45: 6 | H45: 20 | I45: 64 | J45: 49 | K45: 45 | L45: 64 | M45: 24 | N45: 19 | O45: 63 | P45: 30 | Q45: 53
B46: 21 | C46: 63 | D46: 64 | E46: 13 | F46: 39 | G46: 26 | H46: 40 | I46: 59 | J46: 14 | K46: 46 | L46: 11 | M46: 40 | N46: 44 | O46: 50 | P46: 32 | Q46: 1
B47: 3 | C47: 21 | D47: 34 | E47: 16 | F47: 65 | G47: 47 | H47: 6 | I47: 41 | J47: 22 | K47: 65 | L47: 22 | M47: 63 | N47: 38 | O47: 11 | P47: 64 | Q47: 35
B48: 32 | C48: 64 | D48: 3 | E48: 31 | F48: 52 | G48: 37 | H48: 45 | I48: 21 | J48: 64 | K48: 50 | L48: 19 | M48: 53 | N48: 51 | O48: 62 | P48: 50 | Q48: 12
B49: 2 | C49: 32 | D49: 21 | E49: 6 | F49: 54 | G49: 61 | H49: 41 | I49: 13 | J49: 45 | K49: 41 | L49: 31 | M49: 49 | N49: 36 | O49: 28 | P49: 6 | Q49: 51
B50: 30 | C50: 51 | D50: 44 | E50: 24 | F50: 40 | G50: 34 | H50: 53 | I50: 47 | J50: 4 | K50: 4 | L50: 56 | M50: 62 | N50: 2 | O50: 54 | P50: 25 | Q50: 18
B51: 15 | C51: 30 | D51: 38 | E51: 8 | F51: 48 | G51: 3 | H51: 62 | I51: 65 | J51: 32 | K51: 31 | L51: 49 | M51: 46 | N51: 32 | O51: 22 | P51: 40 | Q51: 40
B52: 28 | C52: 44 | D52: 15 | E52: 4 | F52: 37 | G52: 51 | H52: 35 | I52: 5 | J52: 56 | K52: 12 | L52: 65 | M52: 37 | N52: 3 | O52: 46 | P52: 28 | Q52: 10
B53: 22 | C53: 28 | D53: 30 | E53: 19 | F53: 56 | G53: 4 | H53: 1 | I53: 29 | J53: 36 | K53: 13 | L53: 42 | M53: 58 | N53: 21 | O53: 2 | P53: 11 | Q53: 37
B54: 10 | C54: 37 | D54: 40 | E54: 57 | F54: 22 | G54: 1 | H54: 15 | I54: 3 | J54: 28 | K54: 27 | L54: 45 | M54: 47 | N54: 39 | O54: 24 | P54: 22 | Q54: 41
B55: 29 | C55: 10 | D55: 48 | E55: 43 | F55: 28 | G55: 36 | H55: 12 | I55: 14 | J55: 42 | K55: 18 | L55: 58 | M55: 65 | N55: 65 | O55: 60 | P55: 42 | Q55: 20
B56: 18 | C56: 40 | D56: 29 | E56: 46 | F56: 15 | G56: 8 | H56: 63 | I56: 39 | J56: 31 | K56: 14 | L56: 34 | M56: 60 | N56: 52 | O56: 9 | P56: 63 | Q56: 32
B57: 26 | C57: 18 | D57: 10 | E57: 61 | F57: 30 | G57: 54 | H57: 37 | I57: 54 | J57: 13 | K57: 9 | L57: 62 | M57: 38 | N57: 54 | O57: 49 | P57: 35 | Q57: 19
B58: 12 | C58: 52 | D58: 39 | E58: 59 | F58: 2 | G58: 41 | H58: 64 | I58: 20 | J58: 46 | K58: 59 | L58: 38 | M58: 54 | N58: 26 | O58: 13 | P58: 1 | Q58: 39
B59: 14 | C59: 12 | D59: 65 | E59: 55 | F59: 32 | G59: 20 | H59: 34 | I59: 8 | J59: 54 | K59: 43 | L59: 6 | M59: 45 | N59: 18 | O59: 56 | P59: 37 | Q59: 2
B60: 1 | C60: 39 | D60: 14 | E60: 49 | F60: 3 | G60: 57 | H60: 19 | I60: 57 | J60: 29 | K60: 44 | L60: 29 | M60: 48 | N60: 29 | O60: 30 | P60: 52 | Q60: 49
B61: 27 | C61: 1 | D61: 12 | E61: 41 | F61: 21 | G61: 31 | H61: 28 | I61: 51 | J61: 1 | K61: 61 | L61: 20 | M61: 52 | N61: 10 | O61: 51 | P61: 5 | Q61: 6
B62: 25 | C62: 49 | D62: 59 | E62: 27 | F62: 13 | G62: 18 | H62: 5 | I62: 55 | J62: 59 | K62: 55 | L62: 48 | M62: 23 | N62: 57 | O62: 65 | P62: 8 | Q62: 42
B63: 17 | C63: 25 | D63: 55 | E63: 1 | F63: 16 | G63: 53 | H63: 24 | I63: 42 | J63: 41 | K63: 36 | L63: 63 | M63: 10 | N63: 43 | O63: 29 | P63: 62 | Q63: 5
B64: 11 | C64: 59 | D64: 17 | E64: 14 | F64: 31 | G64: 7 | H64: 44 | I64: 4 | J64: 16 | K64: 49 | L64: 51 | M64: 27 | N64: 46 | O64: 58 | P64: 39 | Q64: 57
B65: 7 | C65: 11 | D65: 25 | E65: 12 | F65: 6 | G65: 45 | H65: 57 | I65: 23 | J65: 18 | K65: 42 | L65: 41 | M65: 2 | N65: 61 | O65: 19 | P65: 21 | Q65: 28
B66: 5 | C66: 46 | D66: 57 | E66: 26 | F66: 24 | G66: 52 | H66: 39 | I66: 60 | J66: 51 | K66: 10 | L66: 9 | M66: 30 | N66: 7 | O66: 45 | P66: 19 | Q66: 59
B67: 20 | C67: 5 | D67: 43 | E67: 18 | F67: 8 | G67: 2 | H67: 43 | I67: 31 | J67: 61 | K67: 15 | L67: 26 | M67: 22 | N67: 11 | O67: 26 | P67: 49 | Q67: 23
B68: 23 | C68: 57 | D68: 20 | E68: 29 | F68: 4 | G68: 39 | H68: 16 | I68: 16 | J68: 6 | K68: 3 | L68: 13 | M68: 31 | N68: 17 | O68: 59 | P68: 57 | Q68: 50
B69: 9 | C69: 23 | D69: 5 | E69: 10 | F69: 19 | G69: 24 | H69: 7 | I69: 22 | J69: 23 | K69: 26 | L69: 12 | M69: 16 | N69: 25 | O69: 31 | P69: 15 | Q69: 3

Sheet design (hidden)
A1: NOHLdesigns_v4.xls Sanchez[1311] | F1: design created with NOHLdesigns_v4 - dairyvip.xls in [designofexperiment] subfolder
A2: Swap variables in different columns, but use same NOHL grid --> this allows to NOHL grid for multiple of\ 65 runs!
B3: e.g swap p_heifer with p_cull with p_milk. Best is probably to swap all factors, e.g. one postion to the right, last one goes first.
A5: designgrid | B5: 1 | C5: 2 | D5: 3 | E5: 4 | F5: 5 | G5: 6 | H5: 7 | I5: 8 | J5: 9 | K5: 10 | L5: 11 | M5: 12 | N5: 13 | O5: 14 | P5: 15 | Q5: 16
B6: =AVERAGE(B7:B8) -> 1800 | C6: 40 | D6: 1.1 | E6: 300 | F6: 0.2 | G6: 0 | H6: 0 | I6: -0.1 | J6: 0
A7: low level | B7: 1300 | C7: 20 | D7: 0.7 | E7: 100 | F7: 0.1 | G7: -0.2 | H7: -0.2 | I7: -0.6 | J7: -0.5 | K7: 0 | L7: 0 | M7: 0 | N7: 0 | O7: 0 | P7: 0 | Q7: 0 | R7: 1
A8: high level | B8: 2300 | C8: 60 | D8: 1.5 | E8: 500 | F8: 0.3 | G8: 0.2 | H8: 0.2 | I8: 0.4 | J8: 0.5 | K8: 0 | L8: 0 | M8: 0 | N8: 0 | O8: 0 | P8: 0 | Q8: 0 | R8: 65
A9: decimals | B9: 0 | C9: 2 | D9: 2 | E9: 0 | F9: 2 | G9: 2 | H9: 2 | I9: 2 | J9: 2 | K9: 0 | L9: 0 | M9: 0 | N9: 0 | O9: 0 | P9: 0 | Q9: 0 | R9: 0
A10: factor name | B10: [pheifer1] | C10: [pmilk1] | D10: [_pbw] | E10: [p_calf] | F10: [p_tmrdmlact] | G10: [concabs] | H10: [heatabs] | I10: [cullpct] | J10: [pct]
A11: 1 | B11: =ROUND( B$7+(('coded NOLH for 12-16 factors'!B5-1)*(B$8-B$7)/64), B$9) -> 2019 | C11: =ROUND( C$7+(('coded NOLH for 12-16 factors'!C5-1)*(C$8-C$7)/64), C$9) -> 21.88 | D11: =ROUND( D$7+(('coded NOLH for 12-16 factors'!D5-1)*(D$8-D$7)/64), D$9) -> 0.99 | E11: =ROUND( E$7+(('coded NOLH for 12-16 factors'!E5-1)*(E$8-E$7)/64), E$9) -> 231 | F11: =ROUND( F$7+(('coded NOLH for 12-16 factors'!F5-1)*(F$8-F$7)/64), F$9) -> 0.13 | G11: =ROUND( G$7+(('coded NOLH for 12-16 factors'!G5-1)*(G$8-G$7)/64), G$9) -> 0.11 | H11: =ROUND( H$7+(('coded NOLH for 12-16 factors'!H5-1)*(H$8-H$7)/64), H$9) -> 0.12 | I11: =ROUND( I$7+(('coded NOLH for 12-16 factors'!I5-1)*(I$8-I$7)/64), I$9) -> -0.12 | J11: =ROUND( J$7+(('coded NOLH for 12-16 factors'!J5-1)*(J$8-J$7)/64), J$9) -> 0.47 | K11: =ROUND( K$7+(('coded NOLH for 12-16 factors'!K5-1)*(K$8-K$7)/64), K$9) -> 0 | L11: =ROUND( L$7+(('coded NOLH for 12-16 factors'!L5-1)*(L$8-L$7)/64), L$9) -> 0 | M11: =ROUND( M$7+(('coded NOLH for 12-16 factors'!M5-1)*(M$8-M$7)/64), M$9) -> 0 | N11: =ROUND( N$7+(('coded NOLH for 12-16 factors'!N5-1)*(N$8-N$7)/64), N$9) -> 0 | O11: =ROUND( O$7+(('coded NOLH for 12-16 factors'!O5-1)*(O$8-O$7)/64), O$9) -> 0 | P11: =ROUND( P$7+(('coded NOLH for 12-16 factors'!P5-1)*(P$8-P$7)/64), P$9) -> 0 | Q11: =ROUND( Q$7+(('coded NOLH for 12-16 factors'!Q5-1)*(Q$8-Q$7)/64), Q$9) -> 0
A12: 2 | B12: =ROUND( B$7+(('coded NOLH for 12-16 factors'!B6-1)*(B$8-B$7)/64), B$9) -> 2253 | C12: =ROUND( C$7+(('coded NOLH for 12-16 factors'!C6-1)*(C$8-C$7)/64), C$9) -> 48.75 | D12: =ROUND( D$7+(('coded NOLH for 12-16 factors'!D6-1)*(D$8-D$7)/64), D$9) -> 0.79 | E12: =ROUND( E$7+(('coded NOLH for 12-16 factors'!E6-1)*(E$8-E$7)/64), E$9) -> 269 | F12: =ROUND( F$7+(('coded NOLH for 12-16 factors'!F6-1)*(F$8-F$7)/64), F$9) -> 0.17 | G12: =ROUND( G$7+(('coded NOLH for 12-16 factors'!G6-1)*(G$8-G$7)/64), G$9) -> -0.1 | H12: =ROUND( H$7+(('coded NOLH for 12-16 factors'!H6-1)*(H$8-H$7)/64), H$9) -> 0.02 | I12: =ROUND( I$7+(('coded NOLH for 12-16 factors'!I6-1)*(I$8-I$7)/64), I$9) -> 0.15 | J12: =ROUND( J$7+(('coded NOLH for 12-16 factors'!J6-1)*(J$8-J$7)/64), J$9) -> 0.22 | K12: =ROUND( K$7+(('coded NOLH for 12-16 factors'!K6-1)*(K$8-K$7)/64), K$9) -> 0 | L12: =ROUND( L$7+(('coded NOLH for 12-16 factors'!L6-1)*(L$8-L$7)/64), L$9) -> 0 | M12: =ROUND( M$7+(('coded NOLH for 12-16 factors'!M6-1)*(M$8-M$7)/64), M$9) -> 0 | N12: =ROUND( N$7+(('coded NOLH for 12-16 factors'!N6-1)*(N$8-N$7)/64), N$9) -> 0 | O12: =ROUND( O$7+(('coded NOLH for 12-16 factors'!O6-1)*(O$8-O$7)/64), O$9) -> 0 | P12: =ROUND( P$7+(('coded NOLH for 12-16 factors'!P6-1)*(P$8-P$7)/64), P$9) -> 0 | Q12: =ROUND( Q$7+(('coded NOLH for 12-16 factors'!Q6-1)*(Q$8-Q$7)/64), Q$9) -> 0
A13: 3 | B13: =ROUND( B$7+(('coded NOLH for 12-16 factors'!B7-1)*(B$8-B$7)/64), B$9) -> 2191 | C13: =ROUND( C$7+(('coded NOLH for 12-16 factors'!C7-1)*(C$8-C$7)/64), C$9) -> 34.38 | D13: =ROUND( D$7+(('coded NOLH for 12-16 factors'!D7-1)*(D$8-D$7)/64), D$9) -> 1.46 | E13: =ROUND( E$7+(('coded NOLH for 12-16 factors'!E7-1)*(E$8-E$7)/64), E$9) -> 188 | F13: =ROUND( F$7+(('coded NOLH for 12-16 factors'!F7-1)*(F$8-F$7)/64), F$9) -> 0.16 | G13: =ROUND( G$7+(('coded NOLH for 12-16 factors'!G7-1)*(G$8-G$7)/64), G$9) -> 0.14 | H13: =ROUND( H$7+(('coded NOLH for 12-16 factors'!H7-1)*(H$8-H$7)/64), H$9) -> -0.14 | I13: =ROUND( I$7+(('coded NOLH for 12-16 factors'!I7-1)*(I$8-I$7)/64), I$9) -> -0.15 | J13: =ROUND( J$7+(('coded NOLH for 12-16 factors'!J7-1)*(J$8-J$7)/64), J$9) -> -0.09 | K13: =ROUND( K$7+(('coded NOLH for 12-16 factors'!K7-1)*(K$8-K$7)/64), K$9) -> 0 | L13: =ROUND( L$7+(('coded NOLH for 12-16 factors'!L7-1)*(L$8-L$7)/64), L$9) -> 0 | M13: =ROUND( M$7+(('coded NOLH for 12-16 factors'!M7-1)*(M$8-M$7)/64), M$9) -> 0 | N13: =ROUND( N$7+(('coded NOLH for 12-16 factors'!N7-1)*(N$8-N$7)/64), N$9) -> 0 | O13: =ROUND( O$7+(('coded NOLH for 12-16 factors'!O7-1)*(O$8-O$7)/64), O$9) -> 0 | P13: =ROUND( P$7+(('coded NOLH for 12-16 factors'!P7-1)*(P$8-P$7)/64), P$9) -> 0 | Q13: =ROUND( Q$7+(('coded NOLH for 12-16 factors'!Q7-1)*(Q$8-Q$7)/64), Q$9) -> 0
A14: 4 | B14: =ROUND( B$7+(('coded NOLH for 12-16 factors'!B8-1)*(B$8-B$7)/64), B$9) -> 1941 | C14: =ROUND( C$7+(('coded NOLH for 12-16 factors'!C8-1)*(C$8-C$7)/64), C$9) -> 55.63 | D14: =ROUND( D$7+(('coded NOLH for 12-16 factors'!D8-1)*(D$8-D$7)/64), D$9) -> 1.28 | E14: =ROUND( E$7+(('coded NOLH for 12-16 factors'!E8-1)*(E$8-E$7)/64), E$9) -> 281 | F14: =ROUND( F$7+(('coded NOLH for 12-16 factors'!F8-1)*(F$8-F$7)/64), F$9) -> 0.11 | G14: =ROUND( G$7+(('coded NOLH for 12-16 factors'!G8-1)*(G$8-G$7)/64), G$9) -> -0.03 | H14: =ROUND( H$7+(('coded NOLH for 12-16 factors'!H8-1)*(H$8-H$7)/64), H$9) -> -0.09 | I14: =ROUND( I$7+(('coded NOLH for 12-16 factors'!I8-1)*(I$8-I$7)/64), I$9) -> -0.33 | J14: =ROUND( J$7+(('coded NOLH for 12-16 factors'!J8-1)*(J$8-J$7)/64), J$9) -> -0.38 | K14: =ROUND( K$7+(('coded NOLH for 12-16 factors'!K8-1)*(K$8-K$7)/64), K$9) -> 0 | L14: =ROUND( L$7+(('coded NOLH for 12-16 factors'!L8-1)*(L$8-L$7)/64), L$9) -> 0 | M14: =ROUND( M$7+(('coded NOLH for 12-16 factors'!M8-1)*(M$8-M$7)/64), M$9) -> 0 | N14: =ROUND( N$7+(('coded NOLH for 12-16 factors'!N8-1)*(N$8-N$7)/64), N$9) -> 0 | O14: =ROUND( O$7+(('coded NOLH for 12-16 factors'!O8-1)*(O$8-O$7)/64), O$9) -> 0 | P14: =ROUND( P$7+(('coded NOLH for 12-16 factors'!P8-1)*(P$8-P$7)/64), P$9) -> 0 | Q14: =ROUND( Q$7+(('coded NOLH for 12-16 factors'!Q8-1)*(Q$8-Q$7)/64), Q$9) -> 0
A15: 5 | B15: =ROUND( B$7+(('coded NOLH for 12-16 factors'!B9-1)*(B$8-B$7)/64), B$9) -> 2222 | C15: =ROUND( C$7+(('coded NOLH for 12-16 factors'!C9-1)*(C$8-C$7)/64), C$9) -> 38.75 | D15: =ROUND( D$7+(('coded NOLH for 12-16 factors'!D9-1)*(D$8-D$7)/64), D$9) -> 0.85 | E15: =ROUND( E$7+(('coded NOLH for 12-16 factors'!E9-1)*(E$8-E$7)/64), E$9) -> 106 | F15: =ROUND( F$7+(('coded NOLH for 12-16 factors'!F9-1)*(F$8-F$7)/64), F$9) -> 0.12 | G15: =ROUND( G$7+(('coded NOLH for 12-16 factors'!G9-1)*(G$8-G$7)/64), G$9) -> -0.14 | H15: =ROUND( H$7+(('coded NOLH for 12-16 factors'!H9-1)*(H$8-H$7)/64), H$9) -> -0.1 | I15: =ROUND( I$7+(('coded NOLH for 12-16 factors'!I9-1)*(I$8-I$7)/64), I$9) -> 0.01 | J15: =ROUND( J$7+(('coded NOLH for 12-16 factors'!J9-1)*(J$8-J$7)/64), J$9) -> 0.11 | K15: =ROUND( K$7+(('coded NOLH for 12-16 factors'!K9-1)*(K$8-K$7)/64), K$9) -> 0 | L15: =ROUND( L$7+(('coded NOLH for 12-16 factors'!L9-1)*(L$8-L$7)/64), L$9) -> 0 | M15: =ROUND( M$7+(('coded NOLH for 12-16 factors'!M9-1)*(M$8-M$7)/64), M$9) -> 0 | N15: =ROUND( N$7+(('coded NOLH for 12-16 factors'!N9-1)*(N$8-N$7)/64), N$9) -> 0 | O15: =ROUND( O$7+(('coded NOLH for 12-16 factors'!O9-1)*(O$8-O$7)/64), O$9) -> 0 | P15: =ROUND( P$7+(('coded NOLH for 12-16 factors'!P9-1)*(P$8-P$7)/64), P$9) -> 0 | Q15: =ROUND( Q$7+(('coded NOLH for 12-16 factors'!Q9-1)*(Q$8-Q$7)/64), Q$9) -> 0
A16: 6 | B16: =ROUND( B$7+(('coded NOLH for 12-16 factors'!B10-1)*(B$8-B$7)/64), B$9) -> 1831 | C16: =ROUND( C$7+(('coded NOLH for 12-16 factors'!C10-1)*(C$8-C$7)/64), C$9) -> 56.88 | D16: =ROUND( D$7+(('coded NOLH for 12-16 factors'!D10-1)*(D$8-D$7)/64), D$9) -> 0.89 | E16: =ROUND( E$7+(('coded NOLH for 12-16 factors'!E10-1)*(E$8-E$7)/64), E$9) -> 294 | F16: =ROUND( F$7+(('coded NOLH for 12-16 factors'!F10-1)*(F$8-F$7)/64), F$9) -> 0.13 | G16: =ROUND( G$7+(('coded NOLH for 12-16 factors'!G10-1)*(G$8-G$7)/64), G$9) -> 0.06 | H16: =ROUND( H$7+(('coded NOLH for 12-16 factors'!H10-1)*(H$8-H$7)/64), H$9) -> -0.14 | I16: =ROUND( I$7+(('coded NOLH for 12-16 factors'!I10-1)*(I$8-I$7)/64), I$9) -> 0.26 | J16: =ROUND( J$7+(('coded NOLH for 12-16 factors'!J10-1)*(J$8-J$7)/64), J$9) -> 0.39 | K16: =ROUND( K$7+(('coded NOLH for 12-16 factors'!K10-1)*(K$8-K$7)/64), K$9) -> 0 | L16: =ROUND( L$7+(('coded NOLH for 12-16 factors'!L10-1)*(L$8-L$7)/64), L$9) -> 0 | M16: =ROUND( M$7+(('coded NOLH for 12-16 factors'!M10-1)*(M$8-M$7)/64), M$9) -> 0 | N16: =ROUND( N$7+(('coded NOLH for 12-16 factors'!N10-1)*(N$8-N$7)/64), N$9) -> 0 | O16: =ROUND( O$7+(('coded NOLH for 12-16 factors'!O10-1)*(O$8-O$7)/64), O$9) -> 0 | P16: =ROUND( P$7+(('coded NOLH for 12-16 factors'!P10-1)*(P$8-P$7)/64), P$9) -> 0 | Q16: =ROUND( Q$7+(('coded NOLH for 12-16 factors'!Q10-1)*(Q$8-Q$7)/64), Q$9) -> 0
A17: 7 | B17: =ROUND( B$7+(('coded NOLH for 12-16 factors'!B11-1)*(B$8-B$7)/64), B$9) -> 2066 | C17: =ROUND( C$7+(('coded NOLH for 12-16 factors'!C11-1)*(C$8-C$7)/64), C$9) -> 27.5 | D17: =ROUND( D$7+(('coded NOLH for 12-16 factors'!D11-1)*(D$8-D$7)/64), D$9) -> 1.13 | E17: =ROUND( E$7+(('coded NOLH for 12-16 factors'!E11-1)*(E$8-E$7)/64), E$9) -> 113 | F17: =ROUND( F$7+(('coded NOLH for 12-16 factors'!F11-1)*(F$8-F$7)/64), F$9) -> 0.15 | G17: =ROUND( G$7+(('coded NOLH for 12-16 factors'!G11-1)*(G$8-G$7)/64), G$9) -> -0.07 | H17: =ROUND( H$7+(('coded NOLH for 12-16 factors'!H11-1)*(H$8-H$7)/64), H$9) -> 0.16 | I17: =ROUND( I$7+(('coded NOLH for 12-16 factors'!I11-1)*(I$8-I$7)/64), I$9) -> -0.18 | J17: =ROUND( J$7+(('coded NOLH for 12-16 factors'!J11-1)*(J$8-J$7)/64), J$9) -> -0.34 | K17: =ROUND( K$7+(('coded NOLH for 12-16 factors'!K11-1)*(K$8-K$7)/64), K$9) -> 0 | L17: =ROUND( L$7+(('coded NOLH for 12-16 factors'!L11-1)*(L$8-L$7)/64), L$9) -> 0 | M17: =ROUND( M$7+(('coded NOLH for 12-16 factors'!M11-1)*(M$8-M$7)/64), M$9) -> 0 | N17: =ROUND( N$7+(('coded NOLH for 12-16 factors'!N11-1)*(N$8-N$7)/64), N$9) -> 0 | O17: =ROUND( O$7+(('coded NOLH for 12-16 factors'!O11-1)*(O$8-O$7)/64), O$9) -> 0 | P17: =ROUND( P$7+(('coded NOLH for 12-16 factors'!P11-1)*(P$8-P$7)/64), P$9) -> 0 | Q17: =ROUND( Q$7+(('coded NOLH for 12-16 factors'!Q11-1)*(Q$8-Q$7)/64), Q$9) -> 0
A18: 8 | B18: =ROUND( B$7+(('coded NOLH for 12-16 factors'!B12-1)*(B$8-B$7)/64), B$9) -> 2113 | C18: =ROUND( C$7+(('coded NOLH for 12-16 factors'!C12-1)*(C$8-C$7)/64), C$9) -> 50.63 | D18: =ROUND( D$7+(('coded NOLH for 12-16 factors'!D12-1)*(D$8-D$7)/64), D$9) -> 1.44 | E18: =ROUND( E$7+(('coded NOLH for 12-16 factors'!E12-1)*(E$8-E$7)/64), E$9) -> 225 | F18: =ROUND( F$7+(('coded NOLH for 12-16 factors'!F12-1)*(F$8-F$7)/64), F$9) -> 0.18 | G18: =ROUND( G$7+(('coded NOLH for 12-16 factors'!G12-1)*(G$8-G$7)/64), G$9) -> 0.17 | H18: =ROUND( H$7+(('coded NOLH for 12-16 factors'!H12-1)*(H$8-H$7)/64), H$9) -> 0.08 | I18: =ROUND( I$7+(('coded NOLH for 12-16 factors'!I12-1)*(I$8-I$7)/64), I$9) -> -0.58 | J18: =ROUND( J$7+(('coded NOLH for 12-16 factors'!J12-1)*(J$8-J$7)/64), J$9) -> -0.25 | K18: =ROUND( K$7+(('coded NOLH for 12-16 factors'!K12-1)*(K$8-K$7)/64), K$9) -> 0 | L18: =ROUND( L$7+(('coded NOLH for 12-16 factors'!L12-1)*(L$8-L$7)/64), L$9) -> 0 | M18: =ROUND( M$7+(('coded NOLH for 12-16 factors'!M12-1)*(M$8-M$7)/64), M$9) -> 0 | N18: =ROUND( N$7+(('coded NOLH for 12-16 factors'!N12-1)*(N$8-N$7)/64), N$9) -> 0 | O18: =ROUND( O$7+(('coded NOLH for 12-16 factors'!O12-1)*(O$8-O$7)/64), O$9) -> 0 | P18: =ROUND( P$7+(('coded NOLH for 12-16 factors'!P12-1)*(P$8-P$7)/64), P$9) -> 0 | Q18: =ROUND( Q$7+(('coded NOLH for 12-16 factors'!Q12-1)*(Q$8-Q$7)/64), Q$9) -> 0
A19: 9 | B19: =ROUND( B$7+(('coded NOLH for 12-16 factors'!B13-1)*(B$8-B$7)/64), B$9) -> 1988 | C19: =ROUND( C$7+(('coded NOLH for 12-16 factors'!C13-1)*(C$8-C$7)/64), C$9) -> 21.25 | D19: =ROUND( D$7+(('coded NOLH for 12-16 factors'!D13-1)*(D$8-D$7)/64), D$9) -> 0.71 | E19: =ROUND( E$7+(('coded NOLH for 12-16 factors'!E13-1)*(E$8-E$7)/64), E$9) -> 425 | F19: =ROUND( F$7+(('coded NOLH for 12-16 factors'!F13-1)*(F$8-F$7)/64), F$9) -> 0.18 | G19: =ROUND( G$7+(('coded NOLH for 12-16 factors'!G13-1)*(G$8-G$7)/64), G$9) -> 0.04 | H19: =ROUND( H$7+(('coded NOLH for 12-16 factors'!H13-1)*(H$8-H$7)/64), H$9) -> -0.04 | I19: =ROUND( I$7+(('coded NOLH for 12-16 factors'!I13-1)*(I$8-I$7)/64), I$9) -> -0.51 | J19: =ROUND( J$7+(('coded NOLH for 12-16 factors'!J13-1)*(J$8-J$7)/64), J$9) -> 0.3 | K19: =ROUND( K$7+(('coded NOLH for 12-16 factors'!K13-1)*(K$8-K$7)/64), K$9) -> 0 | L19: =ROUND( L$7+(('coded NOLH for 12-16 factors'!L13-1)*(L$8-L$7)/64), L$9) -> 0 | M19: =ROUND( M$7+(('coded NOLH for 12-16 factors'!M13-1)*(M$8-M$7)/64), M$9) -> 0 | N19: =ROUND( N$7+(('coded NOLH for 12-16 factors'!N13-1)*(N$8-N$7)/64), N$9) -> 0 | O19: =ROUND( O$7+(('coded NOLH for 12-16 factors'!O13-1)*(O$8-O$7)/64), O$9) -> 0 | P19: =ROUND( P$7+(('coded NOLH for 12-16 factors'!P13-1)*(P$8-P$7)/64), P$9) -> 0 | Q19: =ROUND( Q$7+(('coded NOLH for 12-16 factors'!Q13-1)*(Q$8-Q$7)/64), Q$9) -> 0
A20: 10 | B20: =ROUND( B$7+(('coded NOLH for 12-16 factors'!B14-1)*(B$8-B$7)/64), B$9) -> 2269 | C20: =ROUND( C$7+(('coded NOLH for 12-16 factors'!C14-1)*(C$8-C$7)/64), C$9) -> 47.5 | D20: =ROUND( D$7+(('coded NOLH for 12-16 factors'!D14-1)*(D$8-D$7)/64), D$9) -> 1.09 | E20: =ROUND( E$7+(('coded NOLH for 12-16 factors'!E14-1)*(E$8-E$7)/64), E$9) -> 406 | F20: =ROUND( F$7+(('coded NOLH for 12-16 factors'!F14-1)*(F$8-F$7)/64), F$9) -> 0.1 | G20: =ROUND( G$7+(('coded NOLH for 12-16 factors'!G14-1)*(G$8-G$7)/64), G$9) -> -0.09 | H20: =ROUND( H$7+(('coded NOLH for 12-16 factors'!H14-1)*(H$8-H$7)/64), H$9) -> 0.17 | I20: =ROUND( I$7+(('coded NOLH for 12-16 factors'!I14-1)*(I$8-I$7)/64), I$9) -> -0.23 | J20: =ROUND( J$7+(('coded NOLH for 12-16 factors'!J14-1)*(J$8-J$7)/64), J$9) -> 0.17 | K20: =ROUND( K$7+(('coded NOLH for 12-16 factors'!K14-1)*(K$8-K$7)/64), K$9) -> 0 | L20: =ROUND( L$7+(('coded NOLH for 12-16 factors'!L14-1)*(L$8-L$7)/64), L$9) -> 0 | M20: =ROUND( M$7+(('coded NOLH for 12-16 factors'!M14-1)*(M$8-M$7)/64), M$9) -> 0 | N20: =ROUND( N$7+(('coded NOLH for 12-16 factors'!N14-1)*(N$8-N$7)/64), N$9) -> 0 | O20: =ROUND( O$7+(('coded NOLH for 12-16 factors'!O14-1)*(O$8-O$7)/64), O$9) -> 0 | P20: =ROUND( P$7+(('coded NOLH for 12-16 factors'!P14-1)*(P$8-P$7)/64), P$9) -> 0 | Q20: =ROUND( Q$7+(('coded NOLH for 12-16 factors'!Q14-1)*(Q$8-Q$7)/64), Q$9) -> 0
A21: 11 | B21: =ROUND( B$7+(('coded NOLH for 12-16 factors'!B15-1)*(B$8-B$7)/64), B$9) -> 1816 | C21: =ROUND( C$7+(('coded NOLH for 12-16 factors'!C15-1)*(C$8-C$7)/64), C$9) -> 20.63 | D21: =ROUND( D$7+(('coded NOLH for 12-16 factors'!D15-1)*(D$8-D$7)/64), D$9) -> 1.48 | E21: =ROUND( E$7+(('coded NOLH for 12-16 factors'!E15-1)*(E$8-E$7)/64), E$9) -> 313 | F21: =ROUND( F$7+(('coded NOLH for 12-16 factors'!F15-1)*(F$8-F$7)/64), F$9) -> 0.14 | G21: =ROUND( G$7+(('coded NOLH for 12-16 factors'!G15-1)*(G$8-G$7)/64), G$9) -> -0.03 | H21: =ROUND( H$7+(('coded NOLH for 12-16 factors'!H15-1)*(H$8-H$7)/64), H$9) -> -0.08 | I21: =ROUND( I$7+(('coded NOLH for 12-16 factors'!I15-1)*(I$8-I$7)/64), I$9) -> 0.09 | J21: =ROUND( J$7+(('coded NOLH for 12-16 factors'!J15-1)*(J$8-J$7)/64), J$9) -> -0.48 | K21: =ROUND( K$7+(('coded NOLH for 12-16 factors'!K15-1)*(K$8-K$7)/64), K$9) -> 0 | L21: =ROUND( L$7+(('coded NOLH for 12-16 factors'!L15-1)*(L$8-L$7)/64), L$9) -> 0 | M21: =ROUND( M$7+(('coded NOLH for 12-16 factors'!M15-1)*(M$8-M$7)/64), M$9) -> 0 | N21: =ROUND( N$7+(('coded NOLH for 12-16 factors'!N15-1)*(N$8-N$7)/64), N$9) -> 0 | O21: =ROUND( O$7+(('coded NOLH for 12-16 factors'!O15-1)*(O$8-O$7)/64), O$9) -> 0 | P21: =ROUND( P$7+(('coded NOLH for 12-16 factors'!P15-1)*(P$8-P$7)/64), P$9) -> 0 | Q21: =ROUND( Q$7+(('coded NOLH for 12-16 factors'!Q15-1)*(Q$8-Q$7)/64), Q$9) -> 0
A22: 12 | B22: =ROUND( B$7+(('coded NOLH for 12-16 factors'!B16-1)*(B$8-B$7)/64), B$9) -> 2284 | C22: =ROUND( C$7+(('coded NOLH for 12-16 factors'!C16-1)*(C$8-C$7)/64), C$9) -> 40.63 | D22: =ROUND( D$7+(('coded NOLH for 12-16 factors'!D16-1)*(D$8-D$7)/64), D$9) -> 1.25 | E22: =ROUND( E$7+(('coded NOLH for 12-16 factors'!E16-1)*(E$8-E$7)/64), E$9) -> 469 | F22: =ROUND( F$7+(('coded NOLH for 12-16 factors'!F16-1)*(F$8-F$7)/64), F$9) -> 0.13 | G22: =ROUND( G$7+(('coded NOLH for 12-16 factors'!G16-1)*(G$8-G$7)/64), G$9) -> -0.18 | H22: =ROUND( H$7+(('coded NOLH for 12-16 factors'!H16-1)*(H$8-H$7)/64), H$9) -> -0.05 | I22: =ROUND( I$7+(('coded NOLH for 12-16 factors'!I16-1)*(I$8-I$7)/64), I$9) -> 0.21 | J22: =ROUND( J$7+(('coded NOLH for 12-16 factors'!J16-1)*(J$8-J$7)/64), J$9) -> -0.19 | K22: =ROUND( K$7+(('coded NOLH for 12-16 factors'!K16-1)*(K$8-K$7)/64), K$9) -> 0 | L22: =ROUND( L$7+(('coded NOLH for 12-16 factors'!L16-1)*(L$8-L$7)/64), L$9) -> 0 | M22: =ROUND( M$7+(('coded NOLH for 12-16 factors'!M16-1)*(M$8-M$7)/64), M$9) -> 0 | N22: =ROUND( N$7+(('coded NOLH for 12-16 factors'!N16-1)*(N$8-N$7)/64), N$9) -> 0 | O22: =ROUND( O$7+(('coded NOLH for 12-16 factors'!O16-1)*(O$8-O$7)/64), O$9) -> 0 | P22: =ROUND( P$7+(('coded NOLH for 12-16 factors'!P16-1)*(P$8-P$7)/64), P$9) -> 0 | Q22: =ROUND( Q$7+(('coded NOLH for 12-16 factors'!Q16-1)*(Q$8-Q$7)/64), Q$9) -> 0
A23: 13 | B23: =ROUND( B$7+(('coded NOLH for 12-16 factors'!B17-1)*(B$8-B$7)/64), B$9) -> 1847 | C23: =ROUND( C$7+(('coded NOLH for 12-16 factors'!C17-1)*(C$8-C$7)/64), C$9) -> 28.75 | D23: =ROUND( D$7+(('coded NOLH for 12-16 factors'!D17-1)*(D$8-D$7)/64), D$9) -> 0.96 | E23: =ROUND( E$7+(('coded NOLH for 12-16 factors'!E17-1)*(E$8-E$7)/64), E$9) -> 356 | F23: =ROUND( F$7+(('coded NOLH for 12-16 factors'!F17-1)*(F$8-F$7)/64), F$9) -> 0.18 | G23: =ROUND( G$7+(('coded NOLH for 12-16 factors'!G17-1)*(G$8-G$7)/64), G$9) -> -0.01 | H23: =ROUND( H$7+(('coded NOLH for 12-16 factors'!H17-1)*(H$8-H$7)/64), H$9) -> -0.13 | I23: =ROUND( I$7+(('coded NOLH for 12-16 factors'!I17-1)*(I$8-I$7)/64), I$9) -> -0.32 | J23: =ROUND( J$7+(('coded NOLH for 12-16 factors'!J17-1)*(J$8-J$7)/64), J$9) -> 0.45 | K23: =ROUND( K$7+(('coded NOLH for 12-16 factors'!K17-1)*(K$8-K$7)/64), K$9) -> 0 | L23: =ROUND( L$7+(('coded NOLH for 12-16 factors'!L17-1)*(L$8-L$7)/64), L$9) -> 0 | M23: =ROUND( M$7+(('coded NOLH for 12-16 factors'!M17-1)*(M$8-M$7)/64), M$9) -> 0 | N23: =ROUND( N$7+(('coded NOLH for 12-16 factors'!N17-1)*(N$8-N$7)/64), N$9) -> 0 | O23: =ROUND( O$7+(('coded NOLH for 12-16 factors'!O17-1)*(O$8-O$7)/64), O$9) -> 0 | P23: =ROUND( P$7+(('coded NOLH for 12-16 factors'!P17-1)*(P$8-P$7)/64), P$9) -> 0 | Q23: =ROUND( Q$7+(('coded NOLH for 12-16 factors'!Q17-1)*(Q$8-Q$7)/64), Q$9) -> 0
A24: 14 | B24: =ROUND( B$7+(('coded NOLH for 12-16 factors'!B18-1)*(B$8-B$7)/64), B$9) -> 2081 | C24: =ROUND( C$7+(('coded NOLH for 12-16 factors'!C18-1)*(C$8-C$7)/64), C$9) -> 41.88 | D24: =ROUND( D$7+(('coded NOLH for 12-16 factors'!D18-1)*(D$8-D$7)/64), D$9) -> 1.04 | E24: =ROUND( E$7+(('coded NOLH for 12-16 factors'!E18-1)*(E$8-E$7)/64), E$9) -> 456 | F24: =ROUND( F$7+(('coded NOLH for 12-16 factors'!F18-1)*(F$8-F$7)/64), F$9) -> 0.15 | G24: =ROUND( G$7+(('coded NOLH for 12-16 factors'!G18-1)*(G$8-G$7)/64), G$9) -> 0.19 | H24: =ROUND( H$7+(('coded NOLH for 12-16 factors'!H18-1)*(H$8-H$7)/64), H$9) -> -0.18 | I24: =ROUND( I$7+(('coded NOLH for 12-16 factors'!I18-1)*(I$8-I$7)/64), I$9) -> -0.6 | J24: =ROUND( J$7+(('coded NOLH for 12-16 factors'!J18-1)*(J$8-J$7)/64), J$9) -> 0.02 | K24: =ROUND( K$7+(('coded NOLH for 12-16 factors'!K18-1)*(K$8-K$7)/64), K$9) -> 0 | L24: =ROUND( L$7+(('coded NOLH for 12-16 factors'!L18-1)*(L$8-L$7)/64), L$9) -> 0 | M24: =ROUND( M$7+(('coded NOLH for 12-16 factors'!M18-1)*(M$8-M$7)/64), M$9) -> 0 | N24: =ROUND( N$7+(('coded NOLH for 12-16 factors'!N18-1)*(N$8-N$7)/64), N$9) -> 0 | O24: =ROUND( O$7+(('coded NOLH for 12-16 factors'!O18-1)*(O$8-O$7)/64), O$9) -> 0 | P24: =ROUND( P$7+(('coded NOLH for 12-16 factors'!P18-1)*(P$8-P$7)/64), P$9) -> 0 | Q24: =ROUND( Q$7+(('coded NOLH for 12-16 factors'!Q18-1)*(Q$8-Q$7)/64), Q$9) -> 0
A25: 15 | B25: =ROUND( B$7+(('coded NOLH for 12-16 factors'!B19-1)*(B$8-B$7)/64), B$9) -> 1878 | C25: =ROUND( C$7+(('coded NOLH for 12-16 factors'!C19-1)*(C$8-C$7)/64), C$9) -> 33.13 | D25: =ROUND( D$7+(('coded NOLH for 12-16 factors'!D19-1)*(D$8-D$7)/64), D$9) -> 1.33 | E25: =ROUND( E$7+(('coded NOLH for 12-16 factors'!E19-1)*(E$8-E$7)/64), E$9) -> 481 | F25: =ROUND( F$7+(('coded NOLH for 12-16 factors'!F19-1)*(F$8-F$7)/64), F$9) -> 0.19 | G25: =ROUND( G$7+(('coded NOLH for 12-16 factors'!G19-1)*(G$8-G$7)/64), G$9) -> -0.11 | H25: =ROUND( H$7+(('coded NOLH for 12-16 factors'!H19-1)*(H$8-H$7)/64), H$9) -> -0.01 | I25: =ROUND( I$7+(('coded NOLH for 12-16 factors'!I19-1)*(I$8-I$7)/64), I$9) -> 0.34 | J25: =ROUND( J$7+(('coded NOLH for 12-16 factors'!J19-1)*(J$8-J$7)/64), J$9) -> -0.36 | K25: =ROUND( K$7+(('coded NOLH for 12-16 factors'!K19-1)*(K$8-K$7)/64), K$9) -> 0 | L25: =ROUND( L$7+(('coded NOLH for 12-16 factors'!L19-1)*(L$8-L$7)/64), L$9) -> 0 | M25: =ROUND( M$7+(('coded NOLH for 12-16 factors'!M19-1)*(M$8-M$7)/64), M$9) -> 0 | N25: =ROUND( N$7+(('coded NOLH for 12-16 factors'!N19-1)*(N$8-N$7)/64), N$9) -> 0 | O25: =ROUND( O$7+(('coded NOLH for 12-16 factors'!O19-1)*(O$8-O$7)/64), O$9) -> 0 | P25: =ROUND( P$7+(('coded NOLH for 12-16 factors'!P19-1)*(P$8-P$7)/64), P$9) -> 0 | Q25: =ROUND( Q$7+(('coded NOLH for 12-16 factors'!Q19-1)*(Q$8-Q$7)/64), Q$9) -> 0
A26: 16 | B26: =ROUND( B$7+(('coded NOLH for 12-16 factors'!B20-1)*(B$8-B$7)/64), B$9) -> 1972 | C26: =ROUND( C$7+(('coded NOLH for 12-16 factors'!C20-1)*(C$8-C$7)/64), C$9) -> 43.13 | D26: =ROUND( D$7+(('coded NOLH for 12-16 factors'!D20-1)*(D$8-D$7)/64), D$9) -> 1.14 | E26: =ROUND( E$7+(('coded NOLH for 12-16 factors'!E20-1)*(E$8-E$7)/64), E$9) -> 388 | F26: =ROUND( F$7+(('coded NOLH for 12-16 factors'!F20-1)*(F$8-F$7)/64), F$9) -> 0.13 | G26: =ROUND( G$7+(('coded NOLH for 12-16 factors'!G20-1)*(G$8-G$7)/64), G$9) -> 0.18 | H26: =ROUND( H$7+(('coded NOLH for 12-16 factors'!H20-1)*(H$8-H$7)/64), H$9) -> 0.2 | I26: =ROUND( I$7+(('coded NOLH for 12-16 factors'!I20-1)*(I$8-I$7)/64), I$9) -> -0.04 | J26: =ROUND( J$7+(('coded NOLH for 12-16 factors'!J20-1)*(J$8-J$7)/64), J$9) -> -0.05 | K26: =ROUND( K$7+(('coded NOLH for 12-16 factors'!K20-1)*(K$8-K$7)/64), K$9) -> 0 | L26: =ROUND( L$7+(('coded NOLH for 12-16 factors'!L20-1)*(L$8-L$7)/64), L$9) -> 0 | M26: =ROUND( M$7+(('coded NOLH for 12-16 factors'!M20-1)*(M$8-M$7)/64), M$9) -> 0 | N26: =ROUND( N$7+(('coded NOLH for 12-16 factors'!N20-1)*(N$8-N$7)/64), N$9) -> 0 | O26: =ROUND( O$7+(('coded NOLH for 12-16 factors'!O20-1)*(O$8-O$7)/64), O$9) -> 0 | P26: =ROUND( P$7+(('coded NOLH for 12-16 factors'!P20-1)*(P$8-P$7)/64), P$9) -> 0 | Q26: =ROUND( Q$7+(('coded NOLH for 12-16 factors'!Q20-1)*(Q$8-Q$7)/64), Q$9) -> 0
A27: 17 | B27: =ROUND( B$7+(('coded NOLH for 12-16 factors'!B21-1)*(B$8-B$7)/64), B$9) -> 2159 | C27: =ROUND( C$7+(('coded NOLH for 12-16 factors'!C21-1)*(C$8-C$7)/64), C$9) -> 37.5 | D27: =ROUND( D$7+(('coded NOLH for 12-16 factors'!D21-1)*(D$8-D$7)/64), D$9) -> 1.01 | E27: =ROUND( E$7+(('coded NOLH for 12-16 factors'!E21-1)*(E$8-E$7)/64), E$9) -> 150 | F27: =ROUND( F$7+(('coded NOLH for 12-16 factors'!F21-1)*(F$8-F$7)/64), F$9) -> 0.23 | G27: =ROUND( G$7+(('coded NOLH for 12-16 factors'!G21-1)*(G$8-G$7)/64), G$9) -> 0.2 | H27: =ROUND( H$7+(('coded NOLH for 12-16 factors'!H21-1)*(H$8-H$7)/64), H$9) -> 0.11 | I27: =ROUND( I$7+(('coded NOLH for 12-16 factors'!I21-1)*(I$8-I$7)/64), I$9) -> 0.37 | J27: =ROUND( J$7+(('coded NOLH for 12-16 factors'!J21-1)*(J$8-J$7)/64), J$9) -> 0.08 | K27: =ROUND( K$7+(('coded NOLH for 12-16 factors'!K21-1)*(K$8-K$7)/64), K$9) -> 0 | L27: =ROUND( L$7+(('coded NOLH for 12-16 factors'!L21-1)*(L$8-L$7)/64), L$9) -> 0 | M27: =ROUND( M$7+(('coded NOLH for 12-16 factors'!M21-1)*(M$8-M$7)/64), M$9) -> 0 | N27: =ROUND( N$7+(('coded NOLH for 12-16 factors'!N21-1)*(N$8-N$7)/64), N$9) -> 0 | O27: =ROUND( O$7+(('coded NOLH for 12-16 factors'!O21-1)*(O$8-O$7)/64), O$9) -> 0 | P27: =ROUND( P$7+(('coded NOLH for 12-16 factors'!P21-1)*(P$8-P$7)/64), P$9) -> 0 | Q27: =ROUND( Q$7+(('coded NOLH for 12-16 factors'!Q21-1)*(Q$8-Q$7)/64), Q$9) -> 0
A28: 18 | B28: =ROUND( B$7+(('coded NOLH for 12-16 factors'!B22-1)*(B$8-B$7)/64), B$9) -> 1863 | C28: =ROUND( C$7+(('coded NOLH for 12-16 factors'!C22-1)*(C$8-C$7)/64), C$9) -> 54.38 | D28: =ROUND( D$7+(('coded NOLH for 12-16 factors'!D22-1)*(D$8-D$7)/64), D$9) -> 0.91 | E28: =ROUND( E$7+(('coded NOLH for 12-16 factors'!E22-1)*(E$8-E$7)/64), E$9) -> 238 | F28: =ROUND( F$7+(('coded NOLH for 12-16 factors'!F22-1)*(F$8-F$7)/64), F$9) -> 0.22 | G28: =ROUND( G$7+(('coded NOLH for 12-16 factors'!G22-1)*(G$8-G$7)/64), G$9) -> -0.02 | H28: =ROUND( H$7+(('coded NOLH for 12-16 factors'!H22-1)*(H$8-H$7)/64), H$9) -> 0.13 | I28: =ROUND( I$7+(('coded NOLH for 12-16 factors'!I22-1)*(I$8-I$7)/64), I$9) -> 0.2 | J28: =ROUND( J$7+(('coded NOLH for 12-16 factors'!J22-1)*(J$8-J$7)/64), J$9) -> -0.14 | K28: =ROUND( K$7+(('coded NOLH for 12-16 factors'!K22-1)*(K$8-K$7)/64), K$9) -> 0 | L28: =ROUND( L$7+(('coded NOLH for 12-16 factors'!L22-1)*(L$8-L$7)/64), L$9) -> 0 | M28: =ROUND( M$7+(('coded NOLH for 12-16 factors'!M22-1)*(M$8-M$7)/64), M$9) -> 0 | N28: =ROUND( N$7+(('coded NOLH for 12-16 factors'!N22-1)*(N$8-N$7)/64), N$9) -> 0 | O28: =ROUND( O$7+(('coded NOLH for 12-16 factors'!O22-1)*(O$8-O$7)/64), O$9) -> 0 | P28: =ROUND( P$7+(('coded NOLH for 12-16 factors'!P22-1)*(P$8-P$7)/64), P$9) -> 0 | Q28: =ROUND( Q$7+(('coded NOLH for 12-16 factors'!Q22-1)*(Q$8-Q$7)/64), Q$9) -> 0
A29: 19 | B29: =ROUND( B$7+(('coded NOLH for 12-16 factors'!B23-1)*(B$8-B$7)/64), B$9) -> 2034 | C29: =ROUND( C$7+(('coded NOLH for 12-16 factors'!C23-1)*(C$8-C$7)/64), C$9) -> 35.63 | D29: =ROUND( D$7+(('coded NOLH for 12-16 factors'!D23-1)*(D$8-D$7)/64), D$9) -> 1.15 | E29: =ROUND( E$7+(('coded NOLH for 12-16 factors'!E23-1)*(E$8-E$7)/64), E$9) -> 219 | F29: =ROUND( F$7+(('coded NOLH for 12-16 factors'!F23-1)*(F$8-F$7)/64), F$9) -> 0.26 | G29: =ROUND( G$7+(('coded NOLH for 12-16 factors'!G23-1)*(G$8-G$7)/64), G$9) -> 0.16 | H29: =ROUND( H$7+(('coded NOLH for 12-16 factors'!H23-1)*(H$8-H$7)/64), H$9) -> -0.19 | I29: =ROUND( I$7+(('coded NOLH for 12-16 factors'!I23-1)*(I$8-I$7)/64), I$9) -> -0.19 | J29: =ROUND( J$7+(('coded NOLH for 12-16 factors'!J23-1)*(J$8-J$7)/64), J$9) -> 0.03 | K29: =ROUND( K$7+(('coded NOLH for 12-16 factors'!K23-1)*(K$8-K$7)/64), K$9) -> 0 | L29: =ROUND( L$7+(('coded NOLH for 12-16 factors'!L23-1)*(L$8-L$7)/64), L$9) -> 0 | M29: =ROUND( M$7+(('coded NOLH for 12-16 factors'!M23-1)*(M$8-M$7)/64), M$9) -> 0 | N29: =ROUND( N$7+(('coded NOLH for 12-16 factors'!N23-1)*(N$8-N$7)/64), N$9) -> 0 | O29: =ROUND( O$7+(('coded NOLH for 12-16 factors'!O23-1)*(O$8-O$7)/64), O$9) -> 0 | P29: =ROUND( P$7+(('coded NOLH for 12-16 factors'!P23-1)*(P$8-P$7)/64), P$9) -> 0 | Q29: =ROUND( Q$7+(('coded NOLH for 12-16 factors'!Q23-1)*(Q$8-Q$7)/64), Q$9) -> 0
A30: 20 | B30: =ROUND( B$7+(('coded NOLH for 12-16 factors'!B24-1)*(B$8-B$7)/64), B$9) -> 1909 | C30: =ROUND( C$7+(('coded NOLH for 12-16 factors'!C24-1)*(C$8-C$7)/64), C$9) -> 49.38 | D30: =ROUND( D$7+(('coded NOLH for 12-16 factors'!D24-1)*(D$8-D$7)/64), D$9) -> 1.39 | E30: =ROUND( E$7+(('coded NOLH for 12-16 factors'!E24-1)*(E$8-E$7)/64), E$9) -> 125 | F30: =ROUND( F$7+(('coded NOLH for 12-16 factors'!F24-1)*(F$8-F$7)/64), F$9) -> 0.21 | G30: =ROUND( G$7+(('coded NOLH for 12-16 factors'!G24-1)*(G$8-G$7)/64), G$9) -> -0.13 | H30: =ROUND( H$7+(('coded NOLH for 12-16 factors'!H24-1)*(H$8-H$7)/64), H$9) -> -0.03 | I30: =ROUND( I$7+(('coded NOLH for 12-16 factors'!I24-1)*(I$8-I$7)/64), I$9) -> -0.43 | J30: =ROUND( J$7+(('coded NOLH for 12-16 factors'!J24-1)*(J$8-J$7)/64), J$9) -> 0.31 | K30: =ROUND( K$7+(('coded NOLH for 12-16 factors'!K24-1)*(K$8-K$7)/64), K$9) -> 0 | L30: =ROUND( L$7+(('coded NOLH for 12-16 factors'!L24-1)*(L$8-L$7)/64), L$9) -> 0 | M30: =ROUND( M$7+(('coded NOLH for 12-16 factors'!M24-1)*(M$8-M$7)/64), M$9) -> 0 | N30: =ROUND( N$7+(('coded NOLH for 12-16 factors'!N24-1)*(N$8-N$7)/64), N$9) -> 0 | O30: =ROUND( O$7+(('coded NOLH for 12-16 factors'!O24-1)*(O$8-O$7)/64), O$9) -> 0 | P30: =ROUND( P$7+(('coded NOLH for 12-16 factors'!P24-1)*(P$8-P$7)/64), P$9) -> 0 | Q30: =ROUND( Q$7+(('coded NOLH for 12-16 factors'!Q24-1)*(Q$8-Q$7)/64), Q$9) -> 0
A31: 21 | B31: =ROUND( B$7+(('coded NOLH for 12-16 factors'!B25-1)*(B$8-B$7)/64), B$9) -> 2128 | C31: =ROUND( C$7+(('coded NOLH for 12-16 factors'!C25-1)*(C$8-C$7)/64), C$9) -> 28.13 | D31: =ROUND( D$7+(('coded NOLH for 12-16 factors'!D25-1)*(D$8-D$7)/64), D$9) -> 1.03 | E31: =ROUND( E$7+(('coded NOLH for 12-16 factors'!E25-1)*(E$8-E$7)/64), E$9) -> 138 | F31: =ROUND( F$7+(('coded NOLH for 12-16 factors'!F25-1)*(F$8-F$7)/64), F$9) -> 0.3 | G31: =ROUND( G$7+(('coded NOLH for 12-16 factors'!G25-1)*(G$8-G$7)/64), G$9) -> -0.05 | H31: =ROUND( H$7+(('coded NOLH for 12-16 factors'!H25-1)*(H$8-H$7)/64), H$9) -> -0.19 | I31: =ROUND( I$7+(('coded NOLH for 12-16 factors'!I25-1)*(I$8-I$7)/64), I$9) -> 0.1 | J31: =ROUND( J$7+(('coded NOLH for 12-16 factors'!J25-1)*(J$8-J$7)/64), J$9) -> -0.2 | K31: =ROUND( K$7+(('coded NOLH for 12-16 factors'!K25-1)*(K$8-K$7)/64), K$9) -> 0 | L31: =ROUND( L$7+(('coded NOLH for 12-16 factors'!L25-1)*(L$8-L$7)/64), L$9) -> 0 | M31: =ROUND( M$7+(('coded NOLH for 12-16 factors'!M25-1)*(M$8-M$7)/64), M$9) -> 0 | N31: =ROUND( N$7+(('coded NOLH for 12-16 factors'!N25-1)*(N$8-N$7)/64), N$9) -> 0 | O31: =ROUND( O$7+(('coded NOLH for 12-16 factors'!O25-1)*(O$8-O$7)/64), O$9) -> 0 | P31: =ROUND( P$7+(('coded NOLH for 12-16 factors'!P25-1)*(P$8-P$7)/64), P$9) -> 0 | Q31: =ROUND( Q$7+(('coded NOLH for 12-16 factors'!Q25-1)*(Q$8-Q$7)/64), Q$9) -> 0
A32: 22 | B32: =ROUND( B$7+(('coded NOLH for 12-16 factors'!B26-1)*(B$8-B$7)/64), B$9) -> 2097 | C32: =ROUND( C$7+(('coded NOLH for 12-16 factors'!C26-1)*(C$8-C$7)/64), C$9) -> 53.13 | D32: =ROUND( D$7+(('coded NOLH for 12-16 factors'!D26-1)*(D$8-D$7)/64), D$9) -> 0.7 | E32: =ROUND( E$7+(('coded NOLH for 12-16 factors'!E26-1)*(E$8-E$7)/64), E$9) -> 163 | F32: =ROUND( F$7+(('coded NOLH for 12-16 factors'!F26-1)*(F$8-F$7)/64), F$9) -> 0.2 | G32: =ROUND( G$7+(('coded NOLH for 12-16 factors'!G26-1)*(G$8-G$7)/64), G$9) -> 0.08 | H32: =ROUND( H$7+(('coded NOLH for 12-16 factors'!H26-1)*(H$8-H$7)/64), H$9) -> -0.01 | I32: =ROUND( I$7+(('coded NOLH for 12-16 factors'!I26-1)*(I$8-I$7)/64), I$9) -> 0.29 | J32: =ROUND( J$7+(('coded NOLH for 12-16 factors'!J26-1)*(J$8-J$7)/64), J$9) -> -0.33 | K32: =ROUND( K$7+(('coded NOLH for 12-16 factors'!K26-1)*(K$8-K$7)/64), K$9) -> 0 | L32: =ROUND( L$7+(('coded NOLH for 12-16 factors'!L26-1)*(L$8-L$7)/64), L$9) -> 0 | M32: =ROUND( M$7+(('coded NOLH for 12-16 factors'!M26-1)*(M$8-M$7)/64), M$9) -> 0 | N32: =ROUND( N$7+(('coded NOLH for 12-16 factors'!N26-1)*(N$8-N$7)/64), N$9) -> 0 | O32: =ROUND( O$7+(('coded NOLH for 12-16 factors'!O26-1)*(O$8-O$7)/64), O$9) -> 0 | P32: =ROUND( P$7+(('coded NOLH for 12-16 factors'!P26-1)*(P$8-P$7)/64), P$9) -> 0 | Q32: =ROUND( Q$7+(('coded NOLH for 12-16 factors'!Q26-1)*(Q$8-Q$7)/64), Q$9) -> 0
A33: 23 | B33: =ROUND( B$7+(('coded NOLH for 12-16 factors'!B27-1)*(B$8-B$7)/64), B$9) -> 2300 | C33: =ROUND( C$7+(('coded NOLH for 12-16 factors'!C27-1)*(C$8-C$7)/64), C$9) -> 36.25 | D33: =ROUND( D$7+(('coded NOLH for 12-16 factors'!D27-1)*(D$8-D$7)/64), D$9) -> 1.34 | E33: =ROUND( E$7+(('coded NOLH for 12-16 factors'!E27-1)*(E$8-E$7)/64), E$9) -> 200 | F33: =ROUND( F$7+(('coded NOLH for 12-16 factors'!F27-1)*(F$8-F$7)/64), F$9) -> 0.29 | G33: =ROUND( G$7+(('coded NOLH for 12-16 factors'!G27-1)*(G$8-G$7)/64), G$9) -> -0.15 | H33: =ROUND( H$7+(('coded NOLH for 12-16 factors'!H27-1)*(H$8-H$7)/64), H$9) -> 0.09 | I33: =ROUND( I$7+(('coded NOLH for 12-16 factors'!I27-1)*(I$8-I$7)/64), I$9) -> -0.48 | J33: =ROUND( J$7+(('coded NOLH for 12-16 factors'!J27-1)*(J$8-J$7)/64), J$9) -> 0.06 | K33: =ROUND( K$7+(('coded NOLH for 12-16 factors'!K27-1)*(K$8-K$7)/64), K$9) -> 0 | L33: =ROUND( L$7+(('coded NOLH for 12-16 factors'!L27-1)*(L$8-L$7)/64), L$9) -> 0 | M33: =ROUND( M$7+(('coded NOLH for 12-16 factors'!M27-1)*(M$8-M$7)/64), M$9) -> 0 | N33: =ROUND( N$7+(('coded NOLH for 12-16 factors'!N27-1)*(N$8-N$7)/64), N$9) -> 0 | O33: =ROUND( O$7+(('coded NOLH for 12-16 factors'!O27-1)*(O$8-O$7)/64), O$9) -> 0 | P33: =ROUND( P$7+(('coded NOLH for 12-16 factors'!P27-1)*(P$8-P$7)/64), P$9) -> 0 | Q33: =ROUND( Q$7+(('coded NOLH for 12-16 factors'!Q27-1)*(Q$8-Q$7)/64), Q$9) -> 0
A34: 24 | B34: =ROUND( B$7+(('coded NOLH for 12-16 factors'!B28-1)*(B$8-B$7)/64), B$9) -> 1894 | C34: =ROUND( C$7+(('coded NOLH for 12-16 factors'!C28-1)*(C$8-C$7)/64), C$9) -> 60 | D34: =ROUND( D$7+(('coded NOLH for 12-16 factors'!D28-1)*(D$8-D$7)/64), D$9) -> 1.36 | E34: =ROUND( E$7+(('coded NOLH for 12-16 factors'!E28-1)*(E$8-E$7)/64), E$9) -> 250 | F34: =ROUND( F$7+(('coded NOLH for 12-16 factors'!F28-1)*(F$8-F$7)/64), F$9) -> 0.24 | G34: =ROUND( G$7+(('coded NOLH for 12-16 factors'!G28-1)*(G$8-G$7)/64), G$9) -> 0.01 | H34: =ROUND( H$7+(('coded NOLH for 12-16 factors'!H28-1)*(H$8-H$7)/64), H$9) -> 0.03 | I34: =ROUND( I$7+(('coded NOLH for 12-16 factors'!I28-1)*(I$8-I$7)/64), I$9) -> -0.38 | J34: =ROUND( J$7+(('coded NOLH for 12-16 factors'!J28-1)*(J$8-J$7)/64), J$9) -> 0.5 | K34: =ROUND( K$7+(('coded NOLH for 12-16 factors'!K28-1)*(K$8-K$7)/64), K$9) -> 0 | L34: =ROUND( L$7+(('coded NOLH for 12-16 factors'!L28-1)*(L$8-L$7)/64), L$9) -> 0 | M34: =ROUND( M$7+(('coded NOLH for 12-16 factors'!M28-1)*(M$8-M$7)/64), M$9) -> 0 | N34: =ROUND( N$7+(('coded NOLH for 12-16 factors'!N28-1)*(N$8-N$7)/64), N$9) -> 0 | O34: =ROUND( O$7+(('coded NOLH for 12-16 factors'!O28-1)*(O$8-O$7)/64), O$9) -> 0 | P34: =ROUND( P$7+(('coded NOLH for 12-16 factors'!P28-1)*(P$8-P$7)/64), P$9) -> 0 | Q34: =ROUND( Q$7+(('coded NOLH for 12-16 factors'!Q28-1)*(Q$8-Q$7)/64), Q$9) -> 0
A35: 25 | B35: =ROUND( B$7+(('coded NOLH for 12-16 factors'!B29-1)*(B$8-B$7)/64), B$9) -> 1925 | C35: =ROUND( C$7+(('coded NOLH for 12-16 factors'!C29-1)*(C$8-C$7)/64), C$9) -> 30 | D35: =ROUND( D$7+(('coded NOLH for 12-16 factors'!D29-1)*(D$8-D$7)/64), D$9) -> 0.78 | E35: =ROUND( E$7+(('coded NOLH for 12-16 factors'!E29-1)*(E$8-E$7)/64), E$9) -> 338 | F35: =ROUND( F$7+(('coded NOLH for 12-16 factors'!F29-1)*(F$8-F$7)/64), F$9) -> 0.26 | G35: =ROUND( G$7+(('coded NOLH for 12-16 factors'!G29-1)*(G$8-G$7)/64), G$9) -> 0.09 | H35: =ROUND( H$7+(('coded NOLH for 12-16 factors'!H29-1)*(H$8-H$7)/64), H$9) -> 0.18 | I35: =ROUND( I$7+(('coded NOLH for 12-16 factors'!I29-1)*(I$8-I$7)/64), I$9) -> -0.44 | J35: =ROUND( J$7+(('coded NOLH for 12-16 factors'!J29-1)*(J$8-J$7)/64), J$9) -> -0.41 | K35: =ROUND( K$7+(('coded NOLH for 12-16 factors'!K29-1)*(K$8-K$7)/64), K$9) -> 0 | L35: =ROUND( L$7+(('coded NOLH for 12-16 factors'!L29-1)*(L$8-L$7)/64), L$9) -> 0 | M35: =ROUND( M$7+(('coded NOLH for 12-16 factors'!M29-1)*(M$8-M$7)/64), M$9) -> 0 | N35: =ROUND( N$7+(('coded NOLH for 12-16 factors'!N29-1)*(N$8-N$7)/64), N$9) -> 0 | O35: =ROUND( O$7+(('coded NOLH for 12-16 factors'!O29-1)*(O$8-O$7)/64), O$9) -> 0 | P35: =ROUND( P$7+(('coded NOLH for 12-16 factors'!P29-1)*(P$8-P$7)/64), P$9) -> 0 | Q35: =ROUND( Q$7+(('coded NOLH for 12-16 factors'!Q29-1)*(Q$8-Q$7)/64), Q$9) -> 0
A36: 26 | B36: =ROUND( B$7+(('coded NOLH for 12-16 factors'!B30-1)*(B$8-B$7)/64), B$9) -> 2050 | C36: =ROUND( C$7+(('coded NOLH for 12-16 factors'!C30-1)*(C$8-C$7)/64), C$9) -> 45 | D36: =ROUND( D$7+(('coded NOLH for 12-16 factors'!D30-1)*(D$8-D$7)/64), D$9) -> 0.83 | E36: =ROUND( E$7+(('coded NOLH for 12-16 factors'!E30-1)*(E$8-E$7)/64), E$9) -> 500 | F36: =ROUND( F$7+(('coded NOLH for 12-16 factors'!F30-1)*(F$8-F$7)/64), F$9) -> 0.25 | G36: =ROUND( G$7+(('coded NOLH for 12-16 factors'!G30-1)*(G$8-G$7)/64), G$9) -> -0.13 | H36: =ROUND( H$7+(('coded NOLH for 12-16 factors'!H30-1)*(H$8-H$7)/64), H$9) -> 0.06 | I36: =ROUND( I$7+(('coded NOLH for 12-16 factors'!I30-1)*(I$8-I$7)/64), I$9) -> -0.24 | J36: =ROUND( J$7+(('coded NOLH for 12-16 factors'!J30-1)*(J$8-J$7)/64), J$9) -> -0.13 | K36: =ROUND( K$7+(('coded NOLH for 12-16 factors'!K30-1)*(K$8-K$7)/64), K$9) -> 0 | L36: =ROUND( L$7+(('coded NOLH for 12-16 factors'!L30-1)*(L$8-L$7)/64), L$9) -> 0 | M36: =ROUND( M$7+(('coded NOLH for 12-16 factors'!M30-1)*(M$8-M$7)/64), M$9) -> 0 | N36: =ROUND( N$7+(('coded NOLH for 12-16 factors'!N30-1)*(N$8-N$7)/64), N$9) -> 0 | O36: =ROUND( O$7+(('coded NOLH for 12-16 factors'!O30-1)*(O$8-O$7)/64), O$9) -> 0 | P36: =ROUND( P$7+(('coded NOLH for 12-16 factors'!P30-1)*(P$8-P$7)/64), P$9) -> 0 | Q36: =ROUND( Q$7+(('coded NOLH for 12-16 factors'!Q30-1)*(Q$8-Q$7)/64), Q$9) -> 0
A37: 27 | B37: =ROUND( B$7+(('coded NOLH for 12-16 factors'!B31-1)*(B$8-B$7)/64), B$9) -> 2144 | C37: =ROUND( C$7+(('coded NOLH for 12-16 factors'!C31-1)*(C$8-C$7)/64), C$9) -> 23.75 | D37: =ROUND( D$7+(('coded NOLH for 12-16 factors'!D31-1)*(D$8-D$7)/64), D$9) -> 1.3 | E37: =ROUND( E$7+(('coded NOLH for 12-16 factors'!E31-1)*(E$8-E$7)/64), E$9) -> 419 | F37: =ROUND( F$7+(('coded NOLH for 12-16 factors'!F31-1)*(F$8-F$7)/64), F$9) -> 0.21 | G37: =ROUND( G$7+(('coded NOLH for 12-16 factors'!G31-1)*(G$8-G$7)/64), G$9) -> 0.16 | H37: =ROUND( H$7+(('coded NOLH for 12-16 factors'!H31-1)*(H$8-H$7)/64), H$9) -> -0.07 | I37: =ROUND( I$7+(('coded NOLH for 12-16 factors'!I31-1)*(I$8-I$7)/64), I$9) -> 0.35 | J37: =ROUND( J$7+(('coded NOLH for 12-16 factors'!J31-1)*(J$8-J$7)/64), J$9) -> 0.27 | K37: =ROUND( K$7+(('coded NOLH for 12-16 factors'!K31-1)*(K$8-K$7)/64), K$9) -> 0 | L37: =ROUND( L$7+(('coded NOLH for 12-16 factors'!L31-1)*(L$8-L$7)/64), L$9) -> 0 | M37: =ROUND( M$7+(('coded NOLH for 12-16 factors'!M31-1)*(M$8-M$7)/64), M$9) -> 0 | N37: =ROUND( N$7+(('coded NOLH for 12-16 factors'!N31-1)*(N$8-N$7)/64), N$9) -> 0 | O37: =ROUND( O$7+(('coded NOLH for 12-16 factors'!O31-1)*(O$8-O$7)/64), O$9) -> 0 | P37: =ROUND( P$7+(('coded NOLH for 12-16 factors'!P31-1)*(P$8-P$7)/64), P$9) -> 0 | Q37: =ROUND( Q$7+(('coded NOLH for 12-16 factors'!Q31-1)*(Q$8-Q$7)/64), Q$9) -> 0
A38: 28 | B38: =ROUND( B$7+(('coded NOLH for 12-16 factors'!B32-1)*(B$8-B$7)/64), B$9) -> 2206 | C38: =ROUND( C$7+(('coded NOLH for 12-16 factors'!C32-1)*(C$8-C$7)/64), C$9) -> 53.75 | D38: =ROUND( D$7+(('coded NOLH for 12-16 factors'!D32-1)*(D$8-D$7)/64), D$9) -> 1.2 | E38: =ROUND( E$7+(('coded NOLH for 12-16 factors'!E32-1)*(E$8-E$7)/64), E$9) -> 431 | F38: =ROUND( F$7+(('coded NOLH for 12-16 factors'!F32-1)*(F$8-F$7)/64), F$9) -> 0.28 | G38: =ROUND( G$7+(('coded NOLH for 12-16 factors'!G32-1)*(G$8-G$7)/64), G$9) -> -0.08 | H38: =ROUND( H$7+(('coded NOLH for 12-16 factors'!H32-1)*(H$8-H$7)/64), H$9) -> -0.15 | I38: =ROUND( I$7+(('coded NOLH for 12-16 factors'!I32-1)*(I$8-I$7)/64), I$9) -> 0.06 | J38: =ROUND( J$7+(('coded NOLH for 12-16 factors'!J32-1)*(J$8-J$7)/64), J$9) -> 0.23 | K38: =ROUND( K$7+(('coded NOLH for 12-16 factors'!K32-1)*(K$8-K$7)/64), K$9) -> 0 | L38: =ROUND( L$7+(('coded NOLH for 12-16 factors'!L32-1)*(L$8-L$7)/64), L$9) -> 0 | M38: =ROUND( M$7+(('coded NOLH for 12-16 factors'!M32-1)*(M$8-M$7)/64), M$9) -> 0 | N38: =ROUND( N$7+(('coded NOLH for 12-16 factors'!N32-1)*(N$8-N$7)/64), N$9) -> 0 | O38: =ROUND( O$7+(('coded NOLH for 12-16 factors'!O32-1)*(O$8-O$7)/64), O$9) -> 0 | P38: =ROUND( P$7+(('coded NOLH for 12-16 factors'!P32-1)*(P$8-P$7)/64), P$9) -> 0 | Q38: =ROUND( Q$7+(('coded NOLH for 12-16 factors'!Q32-1)*(Q$8-Q$7)/64), Q$9) -> 0
A39: 29 | B39: =ROUND( B$7+(('coded NOLH for 12-16 factors'!B33-1)*(B$8-B$7)/64), B$9) -> 2238 | C39: =ROUND( C$7+(('coded NOLH for 12-16 factors'!C33-1)*(C$8-C$7)/64), C$9) -> 31.88 | D39: =ROUND( D$7+(('coded NOLH for 12-16 factors'!D33-1)*(D$8-D$7)/64), D$9) -> 0.8 | E39: =ROUND( E$7+(('coded NOLH for 12-16 factors'!E33-1)*(E$8-E$7)/64), E$9) -> 344 | F39: =ROUND( F$7+(('coded NOLH for 12-16 factors'!F33-1)*(F$8-F$7)/64), F$9) -> 0.23 | G39: =ROUND( G$7+(('coded NOLH for 12-16 factors'!G33-1)*(G$8-G$7)/64), G$9) -> -0.12 | H39: =ROUND( H$7+(('coded NOLH for 12-16 factors'!H33-1)*(H$8-H$7)/64), H$9) -> -0.04 | I39: =ROUND( I$7+(('coded NOLH for 12-16 factors'!I33-1)*(I$8-I$7)/64), I$9) -> -0.52 | J39: =ROUND( J$7+(('coded NOLH for 12-16 factors'!J33-1)*(J$8-J$7)/64), J$9) -> -0.28 | K39: =ROUND( K$7+(('coded NOLH for 12-16 factors'!K33-1)*(K$8-K$7)/64), K$9) -> 0 | L39: =ROUND( L$7+(('coded NOLH for 12-16 factors'!L33-1)*(L$8-L$7)/64), L$9) -> 0 | M39: =ROUND( M$7+(('coded NOLH for 12-16 factors'!M33-1)*(M$8-M$7)/64), M$9) -> 0 | N39: =ROUND( N$7+(('coded NOLH for 12-16 factors'!N33-1)*(N$8-N$7)/64), N$9) -> 0 | O39: =ROUND( O$7+(('coded NOLH for 12-16 factors'!O33-1)*(O$8-O$7)/64), O$9) -> 0 | P39: =ROUND( P$7+(('coded NOLH for 12-16 factors'!P33-1)*(P$8-P$7)/64), P$9) -> 0 | Q39: =ROUND( Q$7+(('coded NOLH for 12-16 factors'!Q33-1)*(Q$8-Q$7)/64), Q$9) -> 0
A40: 30 | B40: =ROUND( B$7+(('coded NOLH for 12-16 factors'!B34-1)*(B$8-B$7)/64), B$9) -> 2003 | C40: =ROUND( C$7+(('coded NOLH for 12-16 factors'!C34-1)*(C$8-C$7)/64), C$9) -> 57.5 | D40: =ROUND( D$7+(('coded NOLH for 12-16 factors'!D34-1)*(D$8-D$7)/64), D$9) -> 0.98 | E40: =ROUND( E$7+(('coded NOLH for 12-16 factors'!E34-1)*(E$8-E$7)/64), E$9) -> 394 | F40: =ROUND( F$7+(('coded NOLH for 12-16 factors'!F34-1)*(F$8-F$7)/64), F$9) -> 0.28 | G40: =ROUND( G$7+(('coded NOLH for 12-16 factors'!G34-1)*(G$8-G$7)/64), G$9) -> 0.19 | H40: =ROUND( H$7+(('coded NOLH for 12-16 factors'!H34-1)*(H$8-H$7)/64), H$9) -> -0.06 | I40: =ROUND( I$7+(('coded NOLH for 12-16 factors'!I34-1)*(I$8-I$7)/64), I$9) -> -0.07 | J40: =ROUND( J$7+(('coded NOLH for 12-16 factors'!J34-1)*(J$8-J$7)/64), J$9) -> -0.44 | K40: =ROUND( K$7+(('coded NOLH for 12-16 factors'!K34-1)*(K$8-K$7)/64), K$9) -> 0 | L40: =ROUND( L$7+(('coded NOLH for 12-16 factors'!L34-1)*(L$8-L$7)/64), L$9) -> 0 | M40: =ROUND( M$7+(('coded NOLH for 12-16 factors'!M34-1)*(M$8-M$7)/64), M$9) -> 0 | N40: =ROUND( N$7+(('coded NOLH for 12-16 factors'!N34-1)*(N$8-N$7)/64), N$9) -> 0 | O40: =ROUND( O$7+(('coded NOLH for 12-16 factors'!O34-1)*(O$8-O$7)/64), O$9) -> 0 | P40: =ROUND( P$7+(('coded NOLH for 12-16 factors'!P34-1)*(P$8-P$7)/64), P$9) -> 0 | Q40: =ROUND( Q$7+(('coded NOLH for 12-16 factors'!Q34-1)*(Q$8-Q$7)/64), Q$9) -> 0
A41: 31 | B41: =ROUND( B$7+(('coded NOLH for 12-16 factors'!B35-1)*(B$8-B$7)/64), B$9) -> 1956 | C41: =ROUND( C$7+(('coded NOLH for 12-16 factors'!C35-1)*(C$8-C$7)/64), C$9) -> 25 | D41: =ROUND( D$7+(('coded NOLH for 12-16 factors'!D35-1)*(D$8-D$7)/64), D$9) -> 1.26 | E41: =ROUND( E$7+(('coded NOLH for 12-16 factors'!E35-1)*(E$8-E$7)/64), E$9) -> 325 | F41: =ROUND( F$7+(('coded NOLH for 12-16 factors'!F35-1)*(F$8-F$7)/64), F$9) -> 0.29 | G41: =ROUND( G$7+(('coded NOLH for 12-16 factors'!G35-1)*(G$8-G$7)/64), G$9) -> -0.04 | H41: =ROUND( H$7+(('coded NOLH for 12-16 factors'!H35-1)*(H$8-H$7)/64), H$9) -> 0.11 | I41: =ROUND( I$7+(('coded NOLH for 12-16 factors'!I35-1)*(I$8-I$7)/64), I$9) -> 0.17 | J41: =ROUND( J$7+(('coded NOLH for 12-16 factors'!J35-1)*(J$8-J$7)/64), J$9) -> 0.42 | K41: =ROUND( K$7+(('coded NOLH for 12-16 factors'!K35-1)*(K$8-K$7)/64), K$9) -> 0 | L41: =ROUND( L$7+(('coded NOLH for 12-16 factors'!L35-1)*(L$8-L$7)/64), L$9) -> 0 | M41: =ROUND( M$7+(('coded NOLH for 12-16 factors'!M35-1)*(M$8-M$7)/64), M$9) -> 0 | N41: =ROUND( N$7+(('coded NOLH for 12-16 factors'!N35-1)*(N$8-N$7)/64), N$9) -> 0 | O41: =ROUND( O$7+(('coded NOLH for 12-16 factors'!O35-1)*(O$8-O$7)/64), O$9) -> 0 | P41: =ROUND( P$7+(('coded NOLH for 12-16 factors'!P35-1)*(P$8-P$7)/64), P$9) -> 0 | Q41: =ROUND( Q$7+(('coded NOLH for 12-16 factors'!Q35-1)*(Q$8-Q$7)/64), Q$9) -> 0
A42: 32 | B42: =ROUND( B$7+(('coded NOLH for 12-16 factors'!B36-1)*(B$8-B$7)/64), B$9) -> 2175 | C42: =ROUND( C$7+(('coded NOLH for 12-16 factors'!C36-1)*(C$8-C$7)/64), C$9) -> 46.25 | D42: =ROUND( D$7+(('coded NOLH for 12-16 factors'!D36-1)*(D$8-D$7)/64), D$9) -> 1.45 | E42: =ROUND( E$7+(('coded NOLH for 12-16 factors'!E36-1)*(E$8-E$7)/64), E$9) -> 444 | F42: =ROUND( F$7+(('coded NOLH for 12-16 factors'!F36-1)*(F$8-F$7)/64), F$9) -> 0.24 | G42: =ROUND( G$7+(('coded NOLH for 12-16 factors'!G36-1)*(G$8-G$7)/64), G$9) -> 0.06 | H42: =ROUND( H$7+(('coded NOLH for 12-16 factors'!H36-1)*(H$8-H$7)/64), H$9) -> 0.16 | I42: =ROUND( I$7+(('coded NOLH for 12-16 factors'!I36-1)*(I$8-I$7)/64), I$9) -> 0.07 | J42: =ROUND( J$7+(('coded NOLH for 12-16 factors'!J36-1)*(J$8-J$7)/64), J$9) -> 0.16 | K42: =ROUND( K$7+(('coded NOLH for 12-16 factors'!K36-1)*(K$8-K$7)/64), K$9) -> 0 | L42: =ROUND( L$7+(('coded NOLH for 12-16 factors'!L36-1)*(L$8-L$7)/64), L$9) -> 0 | M42: =ROUND( M$7+(('coded NOLH for 12-16 factors'!M36-1)*(M$8-M$7)/64), M$9) -> 0 | N42: =ROUND( N$7+(('coded NOLH for 12-16 factors'!N36-1)*(N$8-N$7)/64), N$9) -> 0 | O42: =ROUND( O$7+(('coded NOLH for 12-16 factors'!O36-1)*(O$8-O$7)/64), O$9) -> 0 | P42: =ROUND( P$7+(('coded NOLH for 12-16 factors'!P36-1)*(P$8-P$7)/64), P$9) -> 0 | Q42: =ROUND( Q$7+(('coded NOLH for 12-16 factors'!Q36-1)*(Q$8-Q$7)/64), Q$9) -> 0
A43: 33 | B43: =ROUND( B$7+(('coded NOLH for 12-16 factors'!B37-1)*(B$8-B$7)/64), B$9) -> 1800 | C43: =ROUND( C$7+(('coded NOLH for 12-16 factors'!C37-1)*(C$8-C$7)/64), C$9) -> 40 | D43: =ROUND( D$7+(('coded NOLH for 12-16 factors'!D37-1)*(D$8-D$7)/64), D$9) -> 1.1 | E43: =ROUND( E$7+(('coded NOLH for 12-16 factors'!E37-1)*(E$8-E$7)/64), E$9) -> 300 | F43: =ROUND( F$7+(('coded NOLH for 12-16 factors'!F37-1)*(F$8-F$7)/64), F$9) -> 0.2 | G43: =ROUND( G$7+(('coded NOLH for 12-16 factors'!G37-1)*(G$8-G$7)/64), G$9) -> 0 | H43: =ROUND( H$7+(('coded NOLH for 12-16 factors'!H37-1)*(H$8-H$7)/64), H$9) -> 0 | I43: =ROUND( I$7+(('coded NOLH for 12-16 factors'!I37-1)*(I$8-I$7)/64), I$9) -> -0.1 | J43: =ROUND( J$7+(('coded NOLH for 12-16 factors'!J37-1)*(J$8-J$7)/64), J$9) -> 0 | K43: =ROUND( K$7+(('coded NOLH for 12-16 factors'!K37-1)*(K$8-K$7)/64), K$9) -> 0 | L43: =ROUND( L$7+(('coded NOLH for 12-16 factors'!L37-1)*(L$8-L$7)/64), L$9) -> 0 | M43: =ROUND( M$7+(('coded NOLH for 12-16 factors'!M37-1)*(M$8-M$7)/64), M$9) -> 0 | N43: =ROUND( N$7+(('coded NOLH for 12-16 factors'!N37-1)*(N$8-N$7)/64), N$9) -> 0 | O43: =ROUND( O$7+(('coded NOLH for 12-16 factors'!O37-1)*(O$8-O$7)/64), O$9) -> 0 | P43: =ROUND( P$7+(('coded NOLH for 12-16 factors'!P37-1)*(P$8-P$7)/64), P$9) -> 0 | Q43: =ROUND( Q$7+(('coded NOLH for 12-16 factors'!Q37-1)*(Q$8-Q$7)/64), Q$9) -> 0
A44: 34 | B44: =ROUND( B$7+(('coded NOLH for 12-16 factors'!B38-1)*(B$8-B$7)/64), B$9) -> 1581 | C44: =ROUND( C$7+(('coded NOLH for 12-16 factors'!C38-1)*(C$8-C$7)/64), C$9) -> 58.13 | D44: =ROUND( D$7+(('coded NOLH for 12-16 factors'!D38-1)*(D$8-D$7)/64), D$9) -> 1.21 | E44: =ROUND( E$7+(('coded NOLH for 12-16 factors'!E38-1)*(E$8-E$7)/64), E$9) -> 369 | F44: =ROUND( F$7+(('coded NOLH for 12-16 factors'!F38-1)*(F$8-F$7)/64), F$9) -> 0.28 | G44: =ROUND( G$7+(('coded NOLH for 12-16 factors'!G38-1)*(G$8-G$7)/64), G$9) -> -0.11 | H44: =ROUND( H$7+(('coded NOLH for 12-16 factors'!H38-1)*(H$8-H$7)/64), H$9) -> -0.12 | I44: =ROUND( I$7+(('coded NOLH for 12-16 factors'!I38-1)*(I$8-I$7)/64), I$9) -> -0.08 | J44: =ROUND( J$7+(('coded NOLH for 12-16 factors'!J38-1)*(J$8-J$7)/64), J$9) -> -0.47 | K44: =ROUND( K$7+(('coded NOLH for 12-16 factors'!K38-1)*(K$8-K$7)/64), K$9) -> 0 | L44: =ROUND( L$7+(('coded NOLH for 12-16 factors'!L38-1)*(L$8-L$7)/64), L$9) -> 0 | M44: =ROUND( M$7+(('coded NOLH for 12-16 factors'!M38-1)*(M$8-M$7)/64), M$9) -> 0 | N44: =ROUND( N$7+(('coded NOLH for 12-16 factors'!N38-1)*(N$8-N$7)/64), N$9) -> 0 | O44: =ROUND( O$7+(('coded NOLH for 12-16 factors'!O38-1)*(O$8-O$7)/64), O$9) -> 0 | P44: =ROUND( P$7+(('coded NOLH for 12-16 factors'!P38-1)*(P$8-P$7)/64), P$9) -> 0 | Q44: =ROUND( Q$7+(('coded NOLH for 12-16 factors'!Q38-1)*(Q$8-Q$7)/64), Q$9) -> 0
A45: 35 | B45: =ROUND( B$7+(('coded NOLH for 12-16 factors'!B39-1)*(B$8-B$7)/64), B$9) -> 1347 | C45: =ROUND( C$7+(('coded NOLH for 12-16 factors'!C39-1)*(C$8-C$7)/64), C$9) -> 31.25 | D45: =ROUND( D$7+(('coded NOLH for 12-16 factors'!D39-1)*(D$8-D$7)/64), D$9) -> 1.41 | E45: =ROUND( E$7+(('coded NOLH for 12-16 factors'!E39-1)*(E$8-E$7)/64), E$9) -> 331 | F45: =ROUND( F$7+(('coded NOLH for 12-16 factors'!F39-1)*(F$8-F$7)/64), F$9) -> 0.23 | G45: =ROUND( G$7+(('coded NOLH for 12-16 factors'!G39-1)*(G$8-G$7)/64), G$9) -> 0.1 | H45: =ROUND( H$7+(('coded NOLH for 12-16 factors'!H39-1)*(H$8-H$7)/64), H$9) -> -0.02 | I45: =ROUND( I$7+(('coded NOLH for 12-16 factors'!I39-1)*(I$8-I$7)/64), I$9) -> -0.35 | J45: =ROUND( J$7+(('coded NOLH for 12-16 factors'!J39-1)*(J$8-J$7)/64), J$9) -> -0.22 | K45: =ROUND( K$7+(('coded NOLH for 12-16 factors'!K39-1)*(K$8-K$7)/64), K$9) -> 0 | L45: =ROUND( L$7+(('coded NOLH for 12-16 factors'!L39-1)*(L$8-L$7)/64), L$9) -> 0 | M45: =ROUND( M$7+(('coded NOLH for 12-16 factors'!M39-1)*(M$8-M$7)/64), M$9) -> 0 | N45: =ROUND( N$7+(('coded NOLH for 12-16 factors'!N39-1)*(N$8-N$7)/64), N$9) -> 0 | O45: =ROUND( O$7+(('coded NOLH for 12-16 factors'!O39-1)*(O$8-O$7)/64), O$9) -> 0 | P45: =ROUND( P$7+(('coded NOLH for 12-16 factors'!P39-1)*(P$8-P$7)/64), P$9) -> 0 | Q45: =ROUND( Q$7+(('coded NOLH for 12-16 factors'!Q39-1)*(Q$8-Q$7)/64), Q$9) -> 0
A46: 36 | B46: =ROUND( B$7+(('coded NOLH for 12-16 factors'!B40-1)*(B$8-B$7)/64), B$9) -> 1409 | C46: =ROUND( C$7+(('coded NOLH for 12-16 factors'!C40-1)*(C$8-C$7)/64), C$9) -> 45.63 | D46: =ROUND( D$7+(('coded NOLH for 12-16 factors'!D40-1)*(D$8-D$7)/64), D$9) -> 0.74 | E46: =ROUND( E$7+(('coded NOLH for 12-16 factors'!E40-1)*(E$8-E$7)/64), E$9) -> 413 | F46: =ROUND( F$7+(('coded NOLH for 12-16 factors'!F40-1)*(F$8-F$7)/64), F$9) -> 0.24 | G46: =ROUND( G$7+(('coded NOLH for 12-16 factors'!G40-1)*(G$8-G$7)/64), G$9) -> -0.14 | H46: =ROUND( H$7+(('coded NOLH for 12-16 factors'!H40-1)*(H$8-H$7)/64), H$9) -> 0.14 | I46: =ROUND( I$7+(('coded NOLH for 12-16 factors'!I40-1)*(I$8-I$7)/64), I$9) -> -0.05 | J46: =ROUND( J$7+(('coded NOLH for 12-16 factors'!J40-1)*(J$8-J$7)/64), J$9) -> 0.09 | K46: =ROUND( K$7+(('coded NOLH for 12-16 factors'!K40-1)*(K$8-K$7)/64), K$9) -> 0 | L46: =ROUND( L$7+(('coded NOLH for 12-16 factors'!L40-1)*(L$8-L$7)/64), L$9) -> 0 | M46: =ROUND( M$7+(('coded NOLH for 12-16 factors'!M40-1)*(M$8-M$7)/64), M$9) -> 0 | N46: =ROUND( N$7+(('coded NOLH for 12-16 factors'!N40-1)*(N$8-N$7)/64), N$9) -> 0 | O46: =ROUND( O$7+(('coded NOLH for 12-16 factors'!O40-1)*(O$8-O$7)/64), O$9) -> 0 | P46: =ROUND( P$7+(('coded NOLH for 12-16 factors'!P40-1)*(P$8-P$7)/64), P$9) -> 0 | Q46: =ROUND( Q$7+(('coded NOLH for 12-16 factors'!Q40-1)*(Q$8-Q$7)/64), Q$9) -> 0
A47: 37 | B47: =ROUND( B$7+(('coded NOLH for 12-16 factors'!B41-1)*(B$8-B$7)/64), B$9) -> 1659 | C47: =ROUND( C$7+(('coded NOLH for 12-16 factors'!C41-1)*(C$8-C$7)/64), C$9) -> 24.38 | D47: =ROUND( D$7+(('coded NOLH for 12-16 factors'!D41-1)*(D$8-D$7)/64), D$9) -> 0.93 | E47: =ROUND( E$7+(('coded NOLH for 12-16 factors'!E41-1)*(E$8-E$7)/64), E$9) -> 319 | F47: =ROUND( F$7+(('coded NOLH for 12-16 factors'!F41-1)*(F$8-F$7)/64), F$9) -> 0.29 | G47: =ROUND( G$7+(('coded NOLH for 12-16 factors'!G41-1)*(G$8-G$7)/64), G$9) -> 0.03 | H47: =ROUND( H$7+(('coded NOLH for 12-16 factors'!H41-1)*(H$8-H$7)/64), H$9) -> 0.09 | I47: =ROUND( I$7+(('coded NOLH for 12-16 factors'!I41-1)*(I$8-I$7)/64), I$9) -> 0.13 | J47: =ROUND( J$7+(('coded NOLH for 12-16 factors'!J41-1)*(J$8-J$7)/64), J$9) -> 0.38 | K47: =ROUND( K$7+(('coded NOLH for 12-16 factors'!K41-1)*(K$8-K$7)/64), K$9) -> 0 | L47: =ROUND( L$7+(('coded NOLH for 12-16 factors'!L41-1)*(L$8-L$7)/64), L$9) -> 0 | M47: =ROUND( M$7+(('coded NOLH for 12-16 factors'!M41-1)*(M$8-M$7)/64), M$9) -> 0 | N47: =ROUND( N$7+(('coded NOLH for 12-16 factors'!N41-1)*(N$8-N$7)/64), N$9) -> 0 | O47: =ROUND( O$7+(('coded NOLH for 12-16 factors'!O41-1)*(O$8-O$7)/64), O$9) -> 0 | P47: =ROUND( P$7+(('coded NOLH for 12-16 factors'!P41-1)*(P$8-P$7)/64), P$9) -> 0 | Q47: =ROUND( Q$7+(('coded NOLH for 12-16 factors'!Q41-1)*(Q$8-Q$7)/64), Q$9) -> 0
A48: 38 | B48: =ROUND( B$7+(('coded NOLH for 12-16 factors'!B42-1)*(B$8-B$7)/64), B$9) -> 1378 | C48: =ROUND( C$7+(('coded NOLH for 12-16 factors'!C42-1)*(C$8-C$7)/64), C$9) -> 41.25 | D48: =ROUND( D$7+(('coded NOLH for 12-16 factors'!D42-1)*(D$8-D$7)/64), D$9) -> 1.35 | E48: =ROUND( E$7+(('coded NOLH for 12-16 factors'!E42-1)*(E$8-E$7)/64), E$9) -> 494 | F48: =ROUND( F$7+(('coded NOLH for 12-16 factors'!F42-1)*(F$8-F$7)/64), F$9) -> 0.28 | G48: =ROUND( G$7+(('coded NOLH for 12-16 factors'!G42-1)*(G$8-G$7)/64), G$9) -> 0.14 | H48: =ROUND( H$7+(('coded NOLH for 12-16 factors'!H42-1)*(H$8-H$7)/64), H$9) -> 0.1 | I48: =ROUND( I$7+(('coded NOLH for 12-16 factors'!I42-1)*(I$8-I$7)/64), I$9) -> -0.21 | J48: =ROUND( J$7+(('coded NOLH for 12-16 factors'!J42-1)*(J$8-J$7)/64), J$9) -> -0.11 | K48: =ROUND( K$7+(('coded NOLH for 12-16 factors'!K42-1)*(K$8-K$7)/64), K$9) -> 0 | L48: =ROUND( L$7+(('coded NOLH for 12-16 factors'!L42-1)*(L$8-L$7)/64), L$9) -> 0 | M48: =ROUND( M$7+(('coded NOLH for 12-16 factors'!M42-1)*(M$8-M$7)/64), M$9) -> 0 | N48: =ROUND( N$7+(('coded NOLH for 12-16 factors'!N42-1)*(N$8-N$7)/64), N$9) -> 0 | O48: =ROUND( O$7+(('coded NOLH for 12-16 factors'!O42-1)*(O$8-O$7)/64), O$9) -> 0 | P48: =ROUND( P$7+(('coded NOLH for 12-16 factors'!P42-1)*(P$8-P$7)/64), P$9) -> 0 | Q48: =ROUND( Q$7+(('coded NOLH for 12-16 factors'!Q42-1)*(Q$8-Q$7)/64), Q$9) -> 0
A49: 39 | B49: =ROUND( B$7+(('coded NOLH for 12-16 factors'!B43-1)*(B$8-B$7)/64), B$9) -> 1769 | C49: =ROUND( C$7+(('coded NOLH for 12-16 factors'!C43-1)*(C$8-C$7)/64), C$9) -> 23.13 | D49: =ROUND( D$7+(('coded NOLH for 12-16 factors'!D43-1)*(D$8-D$7)/64), D$9) -> 1.31 | E49: =ROUND( E$7+(('coded NOLH for 12-16 factors'!E43-1)*(E$8-E$7)/64), E$9) -> 306 | F49: =ROUND( F$7+(('coded NOLH for 12-16 factors'!F43-1)*(F$8-F$7)/64), F$9) -> 0.27 | G49: =ROUND( G$7+(('coded NOLH for 12-16 factors'!G43-1)*(G$8-G$7)/64), G$9) -> -0.06 | H49: =ROUND( H$7+(('coded NOLH for 12-16 factors'!H43-1)*(H$8-H$7)/64), H$9) -> 0.14 | I49: =ROUND( I$7+(('coded NOLH for 12-16 factors'!I43-1)*(I$8-I$7)/64), I$9) -> -0.46 | J49: =ROUND( J$7+(('coded NOLH for 12-16 factors'!J43-1)*(J$8-J$7)/64), J$9) -> -0.39 | K49: =ROUND( K$7+(('coded NOLH for 12-16 factors'!K43-1)*(K$8-K$7)/64), K$9) -> 0 | L49: =ROUND( L$7+(('coded NOLH for 12-16 factors'!L43-1)*(L$8-L$7)/64), L$9) -> 0 | M49: =ROUND( M$7+(('coded NOLH for 12-16 factors'!M43-1)*(M$8-M$7)/64), M$9) -> 0 | N49: =ROUND( N$7+(('coded NOLH for 12-16 factors'!N43-1)*(N$8-N$7)/64), N$9) -> 0 | O49: =ROUND( O$7+(('coded NOLH for 12-16 factors'!O43-1)*(O$8-O$7)/64), O$9) -> 0 | P49: =ROUND( P$7+(('coded NOLH for 12-16 factors'!P43-1)*(P$8-P$7)/64), P$9) -> 0 | Q49: =ROUND( Q$7+(('coded NOLH for 12-16 factors'!Q43-1)*(Q$8-Q$7)/64), Q$9) -> 0
A50: 40 | B50: =ROUND( B$7+(('coded NOLH for 12-16 factors'!B44-1)*(B$8-B$7)/64), B$9) -> 1534 | C50: =ROUND( C$7+(('coded NOLH for 12-16 factors'!C44-1)*(C$8-C$7)/64), C$9) -> 52.5 | D50: =ROUND( D$7+(('coded NOLH for 12-16 factors'!D44-1)*(D$8-D$7)/64), D$9) -> 1.08 | E50: =ROUND( E$7+(('coded NOLH for 12-16 factors'!E44-1)*(E$8-E$7)/64), E$9) -> 488 | F50: =ROUND( F$7+(('coded NOLH for 12-16 factors'!F44-1)*(F$8-F$7)/64), F$9) -> 0.25 | G50: =ROUND( G$7+(('coded NOLH for 12-16 factors'!G44-1)*(G$8-G$7)/64), G$9) -> 0.07 | H50: =ROUND( H$7+(('coded NOLH for 12-16 factors'!H44-1)*(H$8-H$7)/64), H$9) -> -0.16 | I50: =ROUND( I$7+(('coded NOLH for 12-16 factors'!I44-1)*(I$8-I$7)/64), I$9) -> -0.02 | J50: =ROUND( J$7+(('coded NOLH for 12-16 factors'!J44-1)*(J$8-J$7)/64), J$9) -> 0.34 | K50: =ROUND( K$7+(('coded NOLH for 12-16 factors'!K44-1)*(K$8-K$7)/64), K$9) -> 0 | L50: =ROUND( L$7+(('coded NOLH for 12-16 factors'!L44-1)*(L$8-L$7)/64), L$9) -> 0 | M50: =ROUND( M$7+(('coded NOLH for 12-16 factors'!M44-1)*(M$8-M$7)/64), M$9) -> 0 | N50: =ROUND( N$7+(('coded NOLH for 12-16 factors'!N44-1)*(N$8-N$7)/64), N$9) -> 0 | O50: =ROUND( O$7+(('coded NOLH for 12-16 factors'!O44-1)*(O$8-O$7)/64), O$9) -> 0 | P50: =ROUND( P$7+(('coded NOLH for 12-16 factors'!P44-1)*(P$8-P$7)/64), P$9) -> 0 | Q50: =ROUND( Q$7+(('coded NOLH for 12-16 factors'!Q44-1)*(Q$8-Q$7)/64), Q$9) -> 0
A51: 41 | B51: =ROUND( B$7+(('coded NOLH for 12-16 factors'!B45-1)*(B$8-B$7)/64), B$9) -> 1488 | C51: =ROUND( C$7+(('coded NOLH for 12-16 factors'!C45-1)*(C$8-C$7)/64), C$9) -> 29.38 | D51: =ROUND( D$7+(('coded NOLH for 12-16 factors'!D45-1)*(D$8-D$7)/64), D$9) -> 0.76 | E51: =ROUND( E$7+(('coded NOLH for 12-16 factors'!E45-1)*(E$8-E$7)/64), E$9) -> 375 | F51: =ROUND( F$7+(('coded NOLH for 12-16 factors'!F45-1)*(F$8-F$7)/64), F$9) -> 0.23 | G51: =ROUND( G$7+(('coded NOLH for 12-16 factors'!G45-1)*(G$8-G$7)/64), G$9) -> -0.17 | H51: =ROUND( H$7+(('coded NOLH for 12-16 factors'!H45-1)*(H$8-H$7)/64), H$9) -> -0.08 | I51: =ROUND( I$7+(('coded NOLH for 12-16 factors'!I45-1)*(I$8-I$7)/64), I$9) -> 0.38 | J51: =ROUND( J$7+(('coded NOLH for 12-16 factors'!J45-1)*(J$8-J$7)/64), J$9) -> 0.25 | K51: =ROUND( K$7+(('coded NOLH for 12-16 factors'!K45-1)*(K$8-K$7)/64), K$9) -> 0 | L51: =ROUND( L$7+(('coded NOLH for 12-16 factors'!L45-1)*(L$8-L$7)/64), L$9) -> 0 | M51: =ROUND( M$7+(('coded NOLH for 12-16 factors'!M45-1)*(M$8-M$7)/64), M$9) -> 0 | N51: =ROUND( N$7+(('coded NOLH for 12-16 factors'!N45-1)*(N$8-N$7)/64), N$9) -> 0 | O51: =ROUND( O$7+(('coded NOLH for 12-16 factors'!O45-1)*(O$8-O$7)/64), O$9) -> 0 | P51: =ROUND( P$7+(('coded NOLH for 12-16 factors'!P45-1)*(P$8-P$7)/64), P$9) -> 0 | Q51: =ROUND( Q$7+(('coded NOLH for 12-16 factors'!Q45-1)*(Q$8-Q$7)/64), Q$9) -> 0
A52: 42 | B52: =ROUND( B$7+(('coded NOLH for 12-16 factors'!B46-1)*(B$8-B$7)/64), B$9) -> 1613 | C52: =ROUND( C$7+(('coded NOLH for 12-16 factors'!C46-1)*(C$8-C$7)/64), C$9) -> 58.75 | D52: =ROUND( D$7+(('coded NOLH for 12-16 factors'!D46-1)*(D$8-D$7)/64), D$9) -> 1.49 | E52: =ROUND( E$7+(('coded NOLH for 12-16 factors'!E46-1)*(E$8-E$7)/64), E$9) -> 175 | F52: =ROUND( F$7+(('coded NOLH for 12-16 factors'!F46-1)*(F$8-F$7)/64), F$9) -> 0.22 | G52: =ROUND( G$7+(('coded NOLH for 12-16 factors'!G46-1)*(G$8-G$7)/64), G$9) -> -0.04 | H52: =ROUND( H$7+(('coded NOLH for 12-16 factors'!H46-1)*(H$8-H$7)/64), H$9) -> 0.04 | I52: =ROUND( I$7+(('coded NOLH for 12-16 factors'!I46-1)*(I$8-I$7)/64), I$9) -> 0.31 | J52: =ROUND( J$7+(('coded NOLH for 12-16 factors'!J46-1)*(J$8-J$7)/64), J$9) -> -0.3 | K52: =ROUND( K$7+(('coded NOLH for 12-16 factors'!K46-1)*(K$8-K$7)/64), K$9) -> 0 | L52: =ROUND( L$7+(('coded NOLH for 12-16 factors'!L46-1)*(L$8-L$7)/64), L$9) -> 0 | M52: =ROUND( M$7+(('coded NOLH for 12-16 factors'!M46-1)*(M$8-M$7)/64), M$9) -> 0 | N52: =ROUND( N$7+(('coded NOLH for 12-16 factors'!N46-1)*(N$8-N$7)/64), N$9) -> 0 | O52: =ROUND( O$7+(('coded NOLH for 12-16 factors'!O46-1)*(O$8-O$7)/64), O$9) -> 0 | P52: =ROUND( P$7+(('coded NOLH for 12-16 factors'!P46-1)*(P$8-P$7)/64), P$9) -> 0 | Q52: =ROUND( Q$7+(('coded NOLH for 12-16 factors'!Q46-1)*(Q$8-Q$7)/64), Q$9) -> 0
A53: 43 | B53: =ROUND( B$7+(('coded NOLH for 12-16 factors'!B47-1)*(B$8-B$7)/64), B$9) -> 1331 | C53: =ROUND( C$7+(('coded NOLH for 12-16 factors'!C47-1)*(C$8-C$7)/64), C$9) -> 32.5 | D53: =ROUND( D$7+(('coded NOLH for 12-16 factors'!D47-1)*(D$8-D$7)/64), D$9) -> 1.11 | E53: =ROUND( E$7+(('coded NOLH for 12-16 factors'!E47-1)*(E$8-E$7)/64), E$9) -> 194 | F53: =ROUND( F$7+(('coded NOLH for 12-16 factors'!F47-1)*(F$8-F$7)/64), F$9) -> 0.3 | G53: =ROUND( G$7+(('coded NOLH for 12-16 factors'!G47-1)*(G$8-G$7)/64), G$9) -> 0.09 | H53: =ROUND( H$7+(('coded NOLH for 12-16 factors'!H47-1)*(H$8-H$7)/64), H$9) -> -0.17 | I53: =ROUND( I$7+(('coded NOLH for 12-16 factors'!I47-1)*(I$8-I$7)/64), I$9) -> 0.03 | J53: =ROUND( J$7+(('coded NOLH for 12-16 factors'!J47-1)*(J$8-J$7)/64), J$9) -> -0.17 | K53: =ROUND( K$7+(('coded NOLH for 12-16 factors'!K47-1)*(K$8-K$7)/64), K$9) -> 0 | L53: =ROUND( L$7+(('coded NOLH for 12-16 factors'!L47-1)*(L$8-L$7)/64), L$9) -> 0 | M53: =ROUND( M$7+(('coded NOLH for 12-16 factors'!M47-1)*(M$8-M$7)/64), M$9) -> 0 | N53: =ROUND( N$7+(('coded NOLH for 12-16 factors'!N47-1)*(N$8-N$7)/64), N$9) -> 0 | O53: =ROUND( O$7+(('coded NOLH for 12-16 factors'!O47-1)*(O$8-O$7)/64), O$9) -> 0 | P53: =ROUND( P$7+(('coded NOLH for 12-16 factors'!P47-1)*(P$8-P$7)/64), P$9) -> 0 | Q53: =ROUND( Q$7+(('coded NOLH for 12-16 factors'!Q47-1)*(Q$8-Q$7)/64), Q$9) -> 0
A54: 44 | B54: =ROUND( B$7+(('coded NOLH for 12-16 factors'!B48-1)*(B$8-B$7)/64), B$9) -> 1784 | C54: =ROUND( C$7+(('coded NOLH for 12-16 factors'!C48-1)*(C$8-C$7)/64), C$9) -> 59.38 | D54: =ROUND( D$7+(('coded NOLH for 12-16 factors'!D48-1)*(D$8-D$7)/64), D$9) -> 0.73 | E54: =ROUND( E$7+(('coded NOLH for 12-16 factors'!E48-1)*(E$8-E$7)/64), E$9) -> 288 | F54: =ROUND( F$7+(('coded NOLH for 12-16 factors'!F48-1)*(F$8-F$7)/64), F$9) -> 0.26 | G54: =ROUND( G$7+(('coded NOLH for 12-16 factors'!G48-1)*(G$8-G$7)/64), G$9) -> 0.03 | H54: =ROUND( H$7+(('coded NOLH for 12-16 factors'!H48-1)*(H$8-H$7)/64), H$9) -> 0.08 | I54: =ROUND( I$7+(('coded NOLH for 12-16 factors'!I48-1)*(I$8-I$7)/64), I$9) -> -0.29 | J54: =ROUND( J$7+(('coded NOLH for 12-16 factors'!J48-1)*(J$8-J$7)/64), J$9) -> 0.48 | K54: =ROUND( K$7+(('coded NOLH for 12-16 factors'!K48-1)*(K$8-K$7)/64), K$9) -> 0 | L54: =ROUND( L$7+(('coded NOLH for 12-16 factors'!L48-1)*(L$8-L$7)/64), L$9) -> 0 | M54: =ROUND( M$7+(('coded NOLH for 12-16 factors'!M48-1)*(M$8-M$7)/64), M$9) -> 0 | N54: =ROUND( N$7+(('coded NOLH for 12-16 factors'!N48-1)*(N$8-N$7)/64), N$9) -> 0 | O54: =ROUND( O$7+(('coded NOLH for 12-16 factors'!O48-1)*(O$8-O$7)/64), O$9) -> 0 | P54: =ROUND( P$7+(('coded NOLH for 12-16 factors'!P48-1)*(P$8-P$7)/64), P$9) -> 0 | Q54: =ROUND( Q$7+(('coded NOLH for 12-16 factors'!Q48-1)*(Q$8-Q$7)/64), Q$9) -> 0
A55: 45 | B55: =ROUND( B$7+(('coded NOLH for 12-16 factors'!B49-1)*(B$8-B$7)/64), B$9) -> 1316 | C55: =ROUND( C$7+(('coded NOLH for 12-16 factors'!C49-1)*(C$8-C$7)/64), C$9) -> 39.38 | D55: =ROUND( D$7+(('coded NOLH for 12-16 factors'!D49-1)*(D$8-D$7)/64), D$9) -> 0.95 | E55: =ROUND( E$7+(('coded NOLH for 12-16 factors'!E49-1)*(E$8-E$7)/64), E$9) -> 131 | F55: =ROUND( F$7+(('coded NOLH for 12-16 factors'!F49-1)*(F$8-F$7)/64), F$9) -> 0.27 | G55: =ROUND( G$7+(('coded NOLH for 12-16 factors'!G49-1)*(G$8-G$7)/64), G$9) -> 0.18 | H55: =ROUND( H$7+(('coded NOLH for 12-16 factors'!H49-1)*(H$8-H$7)/64), H$9) -> 0.05 | I55: =ROUND( I$7+(('coded NOLH for 12-16 factors'!I49-1)*(I$8-I$7)/64), I$9) -> -0.41 | J55: =ROUND( J$7+(('coded NOLH for 12-16 factors'!J49-1)*(J$8-J$7)/64), J$9) -> 0.19 | K55: =ROUND( K$7+(('coded NOLH for 12-16 factors'!K49-1)*(K$8-K$7)/64), K$9) -> 0 | L55: =ROUND( L$7+(('coded NOLH for 12-16 factors'!L49-1)*(L$8-L$7)/64), L$9) -> 0 | M55: =ROUND( M$7+(('coded NOLH for 12-16 factors'!M49-1)*(M$8-M$7)/64), M$9) -> 0 | N55: =ROUND( N$7+(('coded NOLH for 12-16 factors'!N49-1)*(N$8-N$7)/64), N$9) -> 0 | O55: =ROUND( O$7+(('coded NOLH for 12-16 factors'!O49-1)*(O$8-O$7)/64), O$9) -> 0 | P55: =ROUND( P$7+(('coded NOLH for 12-16 factors'!P49-1)*(P$8-P$7)/64), P$9) -> 0 | Q55: =ROUND( Q$7+(('coded NOLH for 12-16 factors'!Q49-1)*(Q$8-Q$7)/64), Q$9) -> 0
A56: 46 | B56: =ROUND( B$7+(('coded NOLH for 12-16 factors'!B50-1)*(B$8-B$7)/64), B$9) -> 1753 | C56: =ROUND( C$7+(('coded NOLH for 12-16 factors'!C50-1)*(C$8-C$7)/64), C$9) -> 51.25 | D56: =ROUND( D$7+(('coded NOLH for 12-16 factors'!D50-1)*(D$8-D$7)/64), D$9) -> 1.24 | E56: =ROUND( E$7+(('coded NOLH for 12-16 factors'!E50-1)*(E$8-E$7)/64), E$9) -> 244 | F56: =ROUND( F$7+(('coded NOLH for 12-16 factors'!F50-1)*(F$8-F$7)/64), F$9) -> 0.22 | G56: =ROUND( G$7+(('coded NOLH for 12-16 factors'!G50-1)*(G$8-G$7)/64), G$9) -> 0.01 | H56: =ROUND( H$7+(('coded NOLH for 12-16 factors'!H50-1)*(H$8-H$7)/64), H$9) -> 0.13 | I56: =ROUND( I$7+(('coded NOLH for 12-16 factors'!I50-1)*(I$8-I$7)/64), I$9) -> 0.12 | J56: =ROUND( J$7+(('coded NOLH for 12-16 factors'!J50-1)*(J$8-J$7)/64), J$9) -> -0.45 | K56: =ROUND( K$7+(('coded NOLH for 12-16 factors'!K50-1)*(K$8-K$7)/64), K$9) -> 0 | L56: =ROUND( L$7+(('coded NOLH for 12-16 factors'!L50-1)*(L$8-L$7)/64), L$9) -> 0 | M56: =ROUND( M$7+(('coded NOLH for 12-16 factors'!M50-1)*(M$8-M$7)/64), M$9) -> 0 | N56: =ROUND( N$7+(('coded NOLH for 12-16 factors'!N50-1)*(N$8-N$7)/64), N$9) -> 0 | O56: =ROUND( O$7+(('coded NOLH for 12-16 factors'!O50-1)*(O$8-O$7)/64), O$9) -> 0 | P56: =ROUND( P$7+(('coded NOLH for 12-16 factors'!P50-1)*(P$8-P$7)/64), P$9) -> 0 | Q56: =ROUND( Q$7+(('coded NOLH for 12-16 factors'!Q50-1)*(Q$8-Q$7)/64), Q$9) -> 0
A57: 47 | B57: =ROUND( B$7+(('coded NOLH for 12-16 factors'!B51-1)*(B$8-B$7)/64), B$9) -> 1519 | C57: =ROUND( C$7+(('coded NOLH for 12-16 factors'!C51-1)*(C$8-C$7)/64), C$9) -> 38.13 | D57: =ROUND( D$7+(('coded NOLH for 12-16 factors'!D51-1)*(D$8-D$7)/64), D$9) -> 1.16 | E57: =ROUND( E$7+(('coded NOLH for 12-16 factors'!E51-1)*(E$8-E$7)/64), E$9) -> 144 | F57: =ROUND( F$7+(('coded NOLH for 12-16 factors'!F51-1)*(F$8-F$7)/64), F$9) -> 0.25 | G57: =ROUND( G$7+(('coded NOLH for 12-16 factors'!G51-1)*(G$8-G$7)/64), G$9) -> -0.19 | H57: =ROUND( H$7+(('coded NOLH for 12-16 factors'!H51-1)*(H$8-H$7)/64), H$9) -> 0.18 | I57: =ROUND( I$7+(('coded NOLH for 12-16 factors'!I51-1)*(I$8-I$7)/64), I$9) -> 0.4 | J57: =ROUND( J$7+(('coded NOLH for 12-16 factors'!J51-1)*(J$8-J$7)/64), J$9) -> -0.02 | K57: =ROUND( K$7+(('coded NOLH for 12-16 factors'!K51-1)*(K$8-K$7)/64), K$9) -> 0 | L57: =ROUND( L$7+(('coded NOLH for 12-16 factors'!L51-1)*(L$8-L$7)/64), L$9) -> 0 | M57: =ROUND( M$7+(('coded NOLH for 12-16 factors'!M51-1)*(M$8-M$7)/64), M$9) -> 0 | N57: =ROUND( N$7+(('coded NOLH for 12-16 factors'!N51-1)*(N$8-N$7)/64), N$9) -> 0 | O57: =ROUND( O$7+(('coded NOLH for 12-16 factors'!O51-1)*(O$8-O$7)/64), O$9) -> 0 | P57: =ROUND( P$7+(('coded NOLH for 12-16 factors'!P51-1)*(P$8-P$7)/64), P$9) -> 0 | Q57: =ROUND( Q$7+(('coded NOLH for 12-16 factors'!Q51-1)*(Q$8-Q$7)/64), Q$9) -> 0
A58: 48 | B58: =ROUND( B$7+(('coded NOLH for 12-16 factors'!B52-1)*(B$8-B$7)/64), B$9) -> 1722 | C58: =ROUND( C$7+(('coded NOLH for 12-16 factors'!C52-1)*(C$8-C$7)/64), C$9) -> 46.88 | D58: =ROUND( D$7+(('coded NOLH for 12-16 factors'!D52-1)*(D$8-D$7)/64), D$9) -> 0.88 | E58: =ROUND( E$7+(('coded NOLH for 12-16 factors'!E52-1)*(E$8-E$7)/64), E$9) -> 119 | F58: =ROUND( F$7+(('coded NOLH for 12-16 factors'!F52-1)*(F$8-F$7)/64), F$9) -> 0.21 | G58: =ROUND( G$7+(('coded NOLH for 12-16 factors'!G52-1)*(G$8-G$7)/64), G$9) -> 0.11 | H58: =ROUND( H$7+(('coded NOLH for 12-16 factors'!H52-1)*(H$8-H$7)/64), H$9) -> 0.01 | I58: =ROUND( I$7+(('coded NOLH for 12-16 factors'!I52-1)*(I$8-I$7)/64), I$9) -> -0.54 | J58: =ROUND( J$7+(('coded NOLH for 12-16 factors'!J52-1)*(J$8-J$7)/64), J$9) -> 0.36 | K58: =ROUND( K$7+(('coded NOLH for 12-16 factors'!K52-1)*(K$8-K$7)/64), K$9) -> 0 | L58: =ROUND( L$7+(('coded NOLH for 12-16 factors'!L52-1)*(L$8-L$7)/64), L$9) -> 0 | M58: =ROUND( M$7+(('coded NOLH for 12-16 factors'!M52-1)*(M$8-M$7)/64), M$9) -> 0 | N58: =ROUND( N$7+(('coded NOLH for 12-16 factors'!N52-1)*(N$8-N$7)/64), N$9) -> 0 | O58: =ROUND( O$7+(('coded NOLH for 12-16 factors'!O52-1)*(O$8-O$7)/64), O$9) -> 0 | P58: =ROUND( P$7+(('coded NOLH for 12-16 factors'!P52-1)*(P$8-P$7)/64), P$9) -> 0 | Q58: =ROUND( Q$7+(('coded NOLH for 12-16 factors'!Q52-1)*(Q$8-Q$7)/64), Q$9) -> 0
A59: 49 | B59: =ROUND( B$7+(('coded NOLH for 12-16 factors'!B53-1)*(B$8-B$7)/64), B$9) -> 1628 | C59: =ROUND( C$7+(('coded NOLH for 12-16 factors'!C53-1)*(C$8-C$7)/64), C$9) -> 36.88 | D59: =ROUND( D$7+(('coded NOLH for 12-16 factors'!D53-1)*(D$8-D$7)/64), D$9) -> 1.06 | E59: =ROUND( E$7+(('coded NOLH for 12-16 factors'!E53-1)*(E$8-E$7)/64), E$9) -> 213 | F59: =ROUND( F$7+(('coded NOLH for 12-16 factors'!F53-1)*(F$8-F$7)/64), F$9) -> 0.27 | G59: =ROUND( G$7+(('coded NOLH for 12-16 factors'!G53-1)*(G$8-G$7)/64), G$9) -> -0.18 | H59: =ROUND( H$7+(('coded NOLH for 12-16 factors'!H53-1)*(H$8-H$7)/64), H$9) -> -0.2 | I59: =ROUND( I$7+(('coded NOLH for 12-16 factors'!I53-1)*(I$8-I$7)/64), I$9) -> -0.16 | J59: =ROUND( J$7+(('coded NOLH for 12-16 factors'!J53-1)*(J$8-J$7)/64), J$9) -> 0.05 | K59: =ROUND( K$7+(('coded NOLH for 12-16 factors'!K53-1)*(K$8-K$7)/64), K$9) -> 0 | L59: =ROUND( L$7+(('coded NOLH for 12-16 factors'!L53-1)*(L$8-L$7)/64), L$9) -> 0 | M59: =ROUND( M$7+(('coded NOLH for 12-16 factors'!M53-1)*(M$8-M$7)/64), M$9) -> 0 | N59: =ROUND( N$7+(('coded NOLH for 12-16 factors'!N53-1)*(N$8-N$7)/64), N$9) -> 0 | O59: =ROUND( O$7+(('coded NOLH for 12-16 factors'!O53-1)*(O$8-O$7)/64), O$9) -> 0 | P59: =ROUND( P$7+(('coded NOLH for 12-16 factors'!P53-1)*(P$8-P$7)/64), P$9) -> 0 | Q59: =ROUND( Q$7+(('coded NOLH for 12-16 factors'!Q53-1)*(Q$8-Q$7)/64), Q$9) -> 0
A60: 50 | B60: =ROUND( B$7+(('coded NOLH for 12-16 factors'!B54-1)*(B$8-B$7)/64), B$9) -> 1441 | C60: =ROUND( C$7+(('coded NOLH for 12-16 factors'!C54-1)*(C$8-C$7)/64), C$9) -> 42.5 | D60: =ROUND( D$7+(('coded NOLH for 12-16 factors'!D54-1)*(D$8-D$7)/64), D$9) -> 1.19 | E60: =ROUND( E$7+(('coded NOLH for 12-16 factors'!E54-1)*(E$8-E$7)/64), E$9) -> 450 | F60: =ROUND( F$7+(('coded NOLH for 12-16 factors'!F54-1)*(F$8-F$7)/64), F$9) -> 0.17 | G60: =ROUND( G$7+(('coded NOLH for 12-16 factors'!G54-1)*(G$8-G$7)/64), G$9) -> -0.2 | H60: =ROUND( H$7+(('coded NOLH for 12-16 factors'!H54-1)*(H$8-H$7)/64), H$9) -> -0.11 | I60: =ROUND( I$7+(('coded NOLH for 12-16 factors'!I54-1)*(I$8-I$7)/64), I$9) -> -0.57 | J60: =ROUND( J$7+(('coded NOLH for 12-16 factors'!J54-1)*(J$8-J$7)/64), J$9) -> -0.08 | K60: =ROUND( K$7+(('coded NOLH for 12-16 factors'!K54-1)*(K$8-K$7)/64), K$9) -> 0 | L60: =ROUND( L$7+(('coded NOLH for 12-16 factors'!L54-1)*(L$8-L$7)/64), L$9) -> 0 | M60: =ROUND( M$7+(('coded NOLH for 12-16 factors'!M54-1)*(M$8-M$7)/64), M$9) -> 0 | N60: =ROUND( N$7+(('coded NOLH for 12-16 factors'!N54-1)*(N$8-N$7)/64), N$9) -> 0 | O60: =ROUND( O$7+(('coded NOLH for 12-16 factors'!O54-1)*(O$8-O$7)/64), O$9) -> 0 | P60: =ROUND( P$7+(('coded NOLH for 12-16 factors'!P54-1)*(P$8-P$7)/64), P$9) -> 0 | Q60: =ROUND( Q$7+(('coded NOLH for 12-16 factors'!Q54-1)*(Q$8-Q$7)/64), Q$9) -> 0
A61: 51 | B61: =ROUND( B$7+(('coded NOLH for 12-16 factors'!B55-1)*(B$8-B$7)/64), B$9) -> 1738 | C61: =ROUND( C$7+(('coded NOLH for 12-16 factors'!C55-1)*(C$8-C$7)/64), C$9) -> 25.63 | D61: =ROUND( D$7+(('coded NOLH for 12-16 factors'!D55-1)*(D$8-D$7)/64), D$9) -> 1.29 | E61: =ROUND( E$7+(('coded NOLH for 12-16 factors'!E55-1)*(E$8-E$7)/64), E$9) -> 363 | F61: =ROUND( F$7+(('coded NOLH for 12-16 factors'!F55-1)*(F$8-F$7)/64), F$9) -> 0.18 | G61: =ROUND( G$7+(('coded NOLH for 12-16 factors'!G55-1)*(G$8-G$7)/64), G$9) -> 0.02 | H61: =ROUND( H$7+(('coded NOLH for 12-16 factors'!H55-1)*(H$8-H$7)/64), H$9) -> -0.13 | I61: =ROUND( I$7+(('coded NOLH for 12-16 factors'!I55-1)*(I$8-I$7)/64), I$9) -> -0.4 | J61: =ROUND( J$7+(('coded NOLH for 12-16 factors'!J55-1)*(J$8-J$7)/64), J$9) -> 0.14 | K61: =ROUND( K$7+(('coded NOLH for 12-16 factors'!K55-1)*(K$8-K$7)/64), K$9) -> 0 | L61: =ROUND( L$7+(('coded NOLH for 12-16 factors'!L55-1)*(L$8-L$7)/64), L$9) -> 0 | M61: =ROUND( M$7+(('coded NOLH for 12-16 factors'!M55-1)*(M$8-M$7)/64), M$9) -> 0 | N61: =ROUND( N$7+(('coded NOLH for 12-16 factors'!N55-1)*(N$8-N$7)/64), N$9) -> 0 | O61: =ROUND( O$7+(('coded NOLH for 12-16 factors'!O55-1)*(O$8-O$7)/64), O$9) -> 0 | P61: =ROUND( P$7+(('coded NOLH for 12-16 factors'!P55-1)*(P$8-P$7)/64), P$9) -> 0 | Q61: =ROUND( Q$7+(('coded NOLH for 12-16 factors'!Q55-1)*(Q$8-Q$7)/64), Q$9) -> 0
A62: 52 | B62: =ROUND( B$7+(('coded NOLH for 12-16 factors'!B56-1)*(B$8-B$7)/64), B$9) -> 1566 | C62: =ROUND( C$7+(('coded NOLH for 12-16 factors'!C56-1)*(C$8-C$7)/64), C$9) -> 44.38 | D62: =ROUND( D$7+(('coded NOLH for 12-16 factors'!D56-1)*(D$8-D$7)/64), D$9) -> 1.05 | E62: =ROUND( E$7+(('coded NOLH for 12-16 factors'!E56-1)*(E$8-E$7)/64), E$9) -> 381 | F62: =ROUND( F$7+(('coded NOLH for 12-16 factors'!F56-1)*(F$8-F$7)/64), F$9) -> 0.14 | G62: =ROUND( G$7+(('coded NOLH for 12-16 factors'!G56-1)*(G$8-G$7)/64), G$9) -> -0.16 | H62: =ROUND( H$7+(('coded NOLH for 12-16 factors'!H56-1)*(H$8-H$7)/64), H$9) -> 0.19 | I62: =ROUND( I$7+(('coded NOLH for 12-16 factors'!I56-1)*(I$8-I$7)/64), I$9) -> -0.01 | J62: =ROUND( J$7+(('coded NOLH for 12-16 factors'!J56-1)*(J$8-J$7)/64), J$9) -> -0.03 | K62: =ROUND( K$7+(('coded NOLH for 12-16 factors'!K56-1)*(K$8-K$7)/64), K$9) -> 0 | L62: =ROUND( L$7+(('coded NOLH for 12-16 factors'!L56-1)*(L$8-L$7)/64), L$9) -> 0 | M62: =ROUND( M$7+(('coded NOLH for 12-16 factors'!M56-1)*(M$8-M$7)/64), M$9) -> 0 | N62: =ROUND( N$7+(('coded NOLH for 12-16 factors'!N56-1)*(N$8-N$7)/64), N$9) -> 0 | O62: =ROUND( O$7+(('coded NOLH for 12-16 factors'!O56-1)*(O$8-O$7)/64), O$9) -> 0 | P62: =ROUND( P$7+(('coded NOLH for 12-16 factors'!P56-1)*(P$8-P$7)/64), P$9) -> 0 | Q62: =ROUND( Q$7+(('coded NOLH for 12-16 factors'!Q56-1)*(Q$8-Q$7)/64), Q$9) -> 0
A63: 53 | B63: =ROUND( B$7+(('coded NOLH for 12-16 factors'!B57-1)*(B$8-B$7)/64), B$9) -> 1691 | C63: =ROUND( C$7+(('coded NOLH for 12-16 factors'!C57-1)*(C$8-C$7)/64), C$9) -> 30.63 | D63: =ROUND( D$7+(('coded NOLH for 12-16 factors'!D57-1)*(D$8-D$7)/64), D$9) -> 0.81 | E63: =ROUND( E$7+(('coded NOLH for 12-16 factors'!E57-1)*(E$8-E$7)/64), E$9) -> 475 | F63: =ROUND( F$7+(('coded NOLH for 12-16 factors'!F57-1)*(F$8-F$7)/64), F$9) -> 0.19 | G63: =ROUND( G$7+(('coded NOLH for 12-16 factors'!G57-1)*(G$8-G$7)/64), G$9) -> 0.13 | H63: =ROUND( H$7+(('coded NOLH for 12-16 factors'!H57-1)*(H$8-H$7)/64), H$9) -> 0.03 | I63: =ROUND( I$7+(('coded NOLH for 12-16 factors'!I57-1)*(I$8-I$7)/64), I$9) -> 0.23 | J63: =ROUND( J$7+(('coded NOLH for 12-16 factors'!J57-1)*(J$8-J$7)/64), J$9) -> -0.31 | K63: =ROUND( K$7+(('coded NOLH for 12-16 factors'!K57-1)*(K$8-K$7)/64), K$9) -> 0 | L63: =ROUND( L$7+(('coded NOLH for 12-16 factors'!L57-1)*(L$8-L$7)/64), L$9) -> 0 | M63: =ROUND( M$7+(('coded NOLH for 12-16 factors'!M57-1)*(M$8-M$7)/64), M$9) -> 0 | N63: =ROUND( N$7+(('coded NOLH for 12-16 factors'!N57-1)*(N$8-N$7)/64), N$9) -> 0 | O63: =ROUND( O$7+(('coded NOLH for 12-16 factors'!O57-1)*(O$8-O$7)/64), O$9) -> 0 | P63: =ROUND( P$7+(('coded NOLH for 12-16 factors'!P57-1)*(P$8-P$7)/64), P$9) -> 0 | Q63: =ROUND( Q$7+(('coded NOLH for 12-16 factors'!Q57-1)*(Q$8-Q$7)/64), Q$9) -> 0
A64: 54 | B64: =ROUND( B$7+(('coded NOLH for 12-16 factors'!B58-1)*(B$8-B$7)/64), B$9) -> 1472 | C64: =ROUND( C$7+(('coded NOLH for 12-16 factors'!C58-1)*(C$8-C$7)/64), C$9) -> 51.88 | D64: =ROUND( D$7+(('coded NOLH for 12-16 factors'!D58-1)*(D$8-D$7)/64), D$9) -> 1.18 | E64: =ROUND( E$7+(('coded NOLH for 12-16 factors'!E58-1)*(E$8-E$7)/64), E$9) -> 463 | F64: =ROUND( F$7+(('coded NOLH for 12-16 factors'!F58-1)*(F$8-F$7)/64), F$9) -> 0.1 | G64: =ROUND( G$7+(('coded NOLH for 12-16 factors'!G58-1)*(G$8-G$7)/64), G$9) -> 0.05 | H64: =ROUND( H$7+(('coded NOLH for 12-16 factors'!H58-1)*(H$8-H$7)/64), H$9) -> 0.19 | I64: =ROUND( I$7+(('coded NOLH for 12-16 factors'!I58-1)*(I$8-I$7)/64), I$9) -> -0.3 | J64: =ROUND( J$7+(('coded NOLH for 12-16 factors'!J58-1)*(J$8-J$7)/64), J$9) -> 0.2 | K64: =ROUND( K$7+(('coded NOLH for 12-16 factors'!K58-1)*(K$8-K$7)/64), K$9) -> 0 | L64: =ROUND( L$7+(('coded NOLH for 12-16 factors'!L58-1)*(L$8-L$7)/64), L$9) -> 0 | M64: =ROUND( M$7+(('coded NOLH for 12-16 factors'!M58-1)*(M$8-M$7)/64), M$9) -> 0 | N64: =ROUND( N$7+(('coded NOLH for 12-16 factors'!N58-1)*(N$8-N$7)/64), N$9) -> 0 | O64: =ROUND( O$7+(('coded NOLH for 12-16 factors'!O58-1)*(O$8-O$7)/64), O$9) -> 0 | P64: =ROUND( P$7+(('coded NOLH for 12-16 factors'!P58-1)*(P$8-P$7)/64), P$9) -> 0 | Q64: =ROUND( Q$7+(('coded NOLH for 12-16 factors'!Q58-1)*(Q$8-Q$7)/64), Q$9) -> 0
A65: 55 | B65: =ROUND( B$7+(('coded NOLH for 12-16 factors'!B59-1)*(B$8-B$7)/64), B$9) -> 1503 | C65: =ROUND( C$7+(('coded NOLH for 12-16 factors'!C59-1)*(C$8-C$7)/64), C$9) -> 26.88 | D65: =ROUND( D$7+(('coded NOLH for 12-16 factors'!D59-1)*(D$8-D$7)/64), D$9) -> 1.5 | E65: =ROUND( E$7+(('coded NOLH for 12-16 factors'!E59-1)*(E$8-E$7)/64), E$9) -> 438 | F65: =ROUND( F$7+(('coded NOLH for 12-16 factors'!F59-1)*(F$8-F$7)/64), F$9) -> 0.2 | G65: =ROUND( G$7+(('coded NOLH for 12-16 factors'!G59-1)*(G$8-G$7)/64), G$9) -> -0.08 | H65: =ROUND( H$7+(('coded NOLH for 12-16 factors'!H59-1)*(H$8-H$7)/64), H$9) -> 0.01 | I65: =ROUND( I$7+(('coded NOLH for 12-16 factors'!I59-1)*(I$8-I$7)/64), I$9) -> -0.49 | J65: =ROUND( J$7+(('coded NOLH for 12-16 factors'!J59-1)*(J$8-J$7)/64), J$9) -> 0.33 | K65: =ROUND( K$7+(('coded NOLH for 12-16 factors'!K59-1)*(K$8-K$7)/64), K$9) -> 0 | L65: =ROUND( L$7+(('coded NOLH for 12-16 factors'!L59-1)*(L$8-L$7)/64), L$9) -> 0 | M65: =ROUND( M$7+(('coded NOLH for 12-16 factors'!M59-1)*(M$8-M$7)/64), M$9) -> 0 | N65: =ROUND( N$7+(('coded NOLH for 12-16 factors'!N59-1)*(N$8-N$7)/64), N$9) -> 0 | O65: =ROUND( O$7+(('coded NOLH for 12-16 factors'!O59-1)*(O$8-O$7)/64), O$9) -> 0 | P65: =ROUND( P$7+(('coded NOLH for 12-16 factors'!P59-1)*(P$8-P$7)/64), P$9) -> 0 | Q65: =ROUND( Q$7+(('coded NOLH for 12-16 factors'!Q59-1)*(Q$8-Q$7)/64), Q$9) -> 0
A66: 56 | B66: =ROUND( B$7+(('coded NOLH for 12-16 factors'!B60-1)*(B$8-B$7)/64), B$9) -> 1300 | C66: =ROUND( C$7+(('coded NOLH for 12-16 factors'!C60-1)*(C$8-C$7)/64), C$9) -> 43.75 | D66: =ROUND( D$7+(('coded NOLH for 12-16 factors'!D60-1)*(D$8-D$7)/64), D$9) -> 0.86 | E66: =ROUND( E$7+(('coded NOLH for 12-16 factors'!E60-1)*(E$8-E$7)/64), E$9) -> 400 | F66: =ROUND( F$7+(('coded NOLH for 12-16 factors'!F60-1)*(F$8-F$7)/64), F$9) -> 0.11 | G66: =ROUND( G$7+(('coded NOLH for 12-16 factors'!G60-1)*(G$8-G$7)/64), G$9) -> 0.15 | H66: =ROUND( H$7+(('coded NOLH for 12-16 factors'!H60-1)*(H$8-H$7)/64), H$9) -> -0.09 | I66: =ROUND( I$7+(('coded NOLH for 12-16 factors'!I60-1)*(I$8-I$7)/64), I$9) -> 0.28 | J66: =ROUND( J$7+(('coded NOLH for 12-16 factors'!J60-1)*(J$8-J$7)/64), J$9) -> -0.06 | K66: =ROUND( K$7+(('coded NOLH for 12-16 factors'!K60-1)*(K$8-K$7)/64), K$9) -> 0 | L66: =ROUND( L$7+(('coded NOLH for 12-16 factors'!L60-1)*(L$8-L$7)/64), L$9) -> 0 | M66: =ROUND( M$7+(('coded NOLH for 12-16 factors'!M60-1)*(M$8-M$7)/64), M$9) -> 0 | N66: =ROUND( N$7+(('coded NOLH for 12-16 factors'!N60-1)*(N$8-N$7)/64), N$9) -> 0 | O66: =ROUND( O$7+(('coded NOLH for 12-16 factors'!O60-1)*(O$8-O$7)/64), O$9) -> 0 | P66: =ROUND( P$7+(('coded NOLH for 12-16 factors'!P60-1)*(P$8-P$7)/64), P$9) -> 0 | Q66: =ROUND( Q$7+(('coded NOLH for 12-16 factors'!Q60-1)*(Q$8-Q$7)/64), Q$9) -> 0
A67: 57 | B67: =ROUND( B$7+(('coded NOLH for 12-16 factors'!B61-1)*(B$8-B$7)/64), B$9) -> 1706 | C67: =ROUND( C$7+(('coded NOLH for 12-16 factors'!C61-1)*(C$8-C$7)/64), C$9) -> 20 | D67: =ROUND( D$7+(('coded NOLH for 12-16 factors'!D61-1)*(D$8-D$7)/64), D$9) -> 0.84 | E67: =ROUND( E$7+(('coded NOLH for 12-16 factors'!E61-1)*(E$8-E$7)/64), E$9) -> 350 | F67: =ROUND( F$7+(('coded NOLH for 12-16 factors'!F61-1)*(F$8-F$7)/64), F$9) -> 0.16 | G67: =ROUND( G$7+(('coded NOLH for 12-16 factors'!G61-1)*(G$8-G$7)/64), G$9) -> -0.01 | H67: =ROUND( H$7+(('coded NOLH for 12-16 factors'!H61-1)*(H$8-H$7)/64), H$9) -> -0.03 | I67: =ROUND( I$7+(('coded NOLH for 12-16 factors'!I61-1)*(I$8-I$7)/64), I$9) -> 0.18 | J67: =ROUND( J$7+(('coded NOLH for 12-16 factors'!J61-1)*(J$8-J$7)/64), J$9) -> -0.5 | K67: =ROUND( K$7+(('coded NOLH for 12-16 factors'!K61-1)*(K$8-K$7)/64), K$9) -> 0 | L67: =ROUND( L$7+(('coded NOLH for 12-16 factors'!L61-1)*(L$8-L$7)/64), L$9) -> 0 | M67: =ROUND( M$7+(('coded NOLH for 12-16 factors'!M61-1)*(M$8-M$7)/64), M$9) -> 0 | N67: =ROUND( N$7+(('coded NOLH for 12-16 factors'!N61-1)*(N$8-N$7)/64), N$9) -> 0 | O67: =ROUND( O$7+(('coded NOLH for 12-16 factors'!O61-1)*(O$8-O$7)/64), O$9) -> 0 | P67: =ROUND( P$7+(('coded NOLH for 12-16 factors'!P61-1)*(P$8-P$7)/64), P$9) -> 0 | Q67: =ROUND( Q$7+(('coded NOLH for 12-16 factors'!Q61-1)*(Q$8-Q$7)/64), Q$9) -> 0
A68: 58 | B68: =ROUND( B$7+(('coded NOLH for 12-16 factors'!B62-1)*(B$8-B$7)/64), B$9) -> 1675 | C68: =ROUND( C$7+(('coded NOLH for 12-16 factors'!C62-1)*(C$8-C$7)/64), C$9) -> 50 | D68: =ROUND( D$7+(('coded NOLH for 12-16 factors'!D62-1)*(D$8-D$7)/64), D$9) -> 1.43 | E68: =ROUND( E$7+(('coded NOLH for 12-16 factors'!E62-1)*(E$8-E$7)/64), E$9) -> 263 | F68: =ROUND( F$7+(('coded NOLH for 12-16 factors'!F62-1)*(F$8-F$7)/64), F$9) -> 0.14 | G68: =ROUND( G$7+(('coded NOLH for 12-16 factors'!G62-1)*(G$8-G$7)/64), G$9) -> -0.09 | H68: =ROUND( H$7+(('coded NOLH for 12-16 factors'!H62-1)*(H$8-H$7)/64), H$9) -> -0.18 | I68: =ROUND( I$7+(('coded NOLH for 12-16 factors'!I62-1)*(I$8-I$7)/64), I$9) -> 0.24 | J68: =ROUND( J$7+(('coded NOLH for 12-16 factors'!J62-1)*(J$8-J$7)/64), J$9) -> 0.41 | K68: =ROUND( K$7+(('coded NOLH for 12-16 factors'!K62-1)*(K$8-K$7)/64), K$9) -> 0 | L68: =ROUND( L$7+(('coded NOLH for 12-16 factors'!L62-1)*(L$8-L$7)/64), L$9) -> 0 | M68: =ROUND( M$7+(('coded NOLH for 12-16 factors'!M62-1)*(M$8-M$7)/64), M$9) -> 0 | N68: =ROUND( N$7+(('coded NOLH for 12-16 factors'!N62-1)*(N$8-N$7)/64), N$9) -> 0 | O68: =ROUND( O$7+(('coded NOLH for 12-16 factors'!O62-1)*(O$8-O$7)/64), O$9) -> 0 | P68: =ROUND( P$7+(('coded NOLH for 12-16 factors'!P62-1)*(P$8-P$7)/64), P$9) -> 0 | Q68: =ROUND( Q$7+(('coded NOLH for 12-16 factors'!Q62-1)*(Q$8-Q$7)/64), Q$9) -> 0
A69: 59 | B69: =ROUND( B$7+(('coded NOLH for 12-16 factors'!B63-1)*(B$8-B$7)/64), B$9) -> 1550 | C69: =ROUND( C$7+(('coded NOLH for 12-16 factors'!C63-1)*(C$8-C$7)/64), C$9) -> 35 | D69: =ROUND( D$7+(('coded NOLH for 12-16 factors'!D63-1)*(D$8-D$7)/64), D$9) -> 1.38 | E69: =ROUND( E$7+(('coded NOLH for 12-16 factors'!E63-1)*(E$8-E$7)/64), E$9) -> 100 | F69: =ROUND( F$7+(('coded NOLH for 12-16 factors'!F63-1)*(F$8-F$7)/64), F$9) -> 0.15 | G69: =ROUND( G$7+(('coded NOLH for 12-16 factors'!G63-1)*(G$8-G$7)/64), G$9) -> 0.13 | H69: =ROUND( H$7+(('coded NOLH for 12-16 factors'!H63-1)*(H$8-H$7)/64), H$9) -> -0.06 | I69: =ROUND( I$7+(('coded NOLH for 12-16 factors'!I63-1)*(I$8-I$7)/64), I$9) -> 0.04 | J69: =ROUND( J$7+(('coded NOLH for 12-16 factors'!J63-1)*(J$8-J$7)/64), J$9) -> 0.13 | K69: =ROUND( K$7+(('coded NOLH for 12-16 factors'!K63-1)*(K$8-K$7)/64), K$9) -> 0 | L69: =ROUND( L$7+(('coded NOLH for 12-16 factors'!L63-1)*(L$8-L$7)/64), L$9) -> 0 | M69: =ROUND( M$7+(('coded NOLH for 12-16 factors'!M63-1)*(M$8-M$7)/64), M$9) -> 0 | N69: =ROUND( N$7+(('coded NOLH for 12-16 factors'!N63-1)*(N$8-N$7)/64), N$9) -> 0 | O69: =ROUND( O$7+(('coded NOLH for 12-16 factors'!O63-1)*(O$8-O$7)/64), O$9) -> 0 | P69: =ROUND( P$7+(('coded NOLH for 12-16 factors'!P63-1)*(P$8-P$7)/64), P$9) -> 0 | Q69: =ROUND( Q$7+(('coded NOLH for 12-16 factors'!Q63-1)*(Q$8-Q$7)/64), Q$9) -> 0
A70: 60 | B70: =ROUND( B$7+(('coded NOLH for 12-16 factors'!B64-1)*(B$8-B$7)/64), B$9) -> 1456 | C70: =ROUND( C$7+(('coded NOLH for 12-16 factors'!C64-1)*(C$8-C$7)/64), C$9) -> 56.25 | D70: =ROUND( D$7+(('coded NOLH for 12-16 factors'!D64-1)*(D$8-D$7)/64), D$9) -> 0.9 | E70: =ROUND( E$7+(('coded NOLH for 12-16 factors'!E64-1)*(E$8-E$7)/64), E$9) -> 181 | F70: =ROUND( F$7+(('coded NOLH for 12-16 factors'!F64-1)*(F$8-F$7)/64), F$9) -> 0.19 | G70: =ROUND( G$7+(('coded NOLH for 12-16 factors'!G64-1)*(G$8-G$7)/64), G$9) -> -0.16 | H70: =ROUND( H$7+(('coded NOLH for 12-16 factors'!H64-1)*(H$8-H$7)/64), H$9) -> 0.07 | I70: =ROUND( I$7+(('coded NOLH for 12-16 factors'!I64-1)*(I$8-I$7)/64), I$9) -> -0.55 | J70: =ROUND( J$7+(('coded NOLH for 12-16 factors'!J64-1)*(J$8-J$7)/64), J$9) -> -0.27 | K70: =ROUND( K$7+(('coded NOLH for 12-16 factors'!K64-1)*(K$8-K$7)/64), K$9) -> 0 | L70: =ROUND( L$7+(('coded NOLH for 12-16 factors'!L64-1)*(L$8-L$7)/64), L$9) -> 0 | M70: =ROUND( M$7+(('coded NOLH for 12-16 factors'!M64-1)*(M$8-M$7)/64), M$9) -> 0 | N70: =ROUND( N$7+(('coded NOLH for 12-16 factors'!N64-1)*(N$8-N$7)/64), N$9) -> 0 | O70: =ROUND( O$7+(('coded NOLH for 12-16 factors'!O64-1)*(O$8-O$7)/64), O$9) -> 0 | P70: =ROUND( P$7+(('coded NOLH for 12-16 factors'!P64-1)*(P$8-P$7)/64), P$9) -> 0 | Q70: =ROUND( Q$7+(('coded NOLH for 12-16 factors'!Q64-1)*(Q$8-Q$7)/64), Q$9) -> 0
A71: 61 | B71: =ROUND( B$7+(('coded NOLH for 12-16 factors'!B65-1)*(B$8-B$7)/64), B$9) -> 1394 | C71: =ROUND( C$7+(('coded NOLH for 12-16 factors'!C65-1)*(C$8-C$7)/64), C$9) -> 26.25 | D71: =ROUND( D$7+(('coded NOLH for 12-16 factors'!D65-1)*(D$8-D$7)/64), D$9) -> 1 | E71: =ROUND( E$7+(('coded NOLH for 12-16 factors'!E65-1)*(E$8-E$7)/64), E$9) -> 169 | F71: =ROUND( F$7+(('coded NOLH for 12-16 factors'!F65-1)*(F$8-F$7)/64), F$9) -> 0.12 | G71: =ROUND( G$7+(('coded NOLH for 12-16 factors'!G65-1)*(G$8-G$7)/64), G$9) -> 0.08 | H71: =ROUND( H$7+(('coded NOLH for 12-16 factors'!H65-1)*(H$8-H$7)/64), H$9) -> 0.15 | I71: =ROUND( I$7+(('coded NOLH for 12-16 factors'!I65-1)*(I$8-I$7)/64), I$9) -> -0.26 | J71: =ROUND( J$7+(('coded NOLH for 12-16 factors'!J65-1)*(J$8-J$7)/64), J$9) -> -0.23 | K71: =ROUND( K$7+(('coded NOLH for 12-16 factors'!K65-1)*(K$8-K$7)/64), K$9) -> 0 | L71: =ROUND( L$7+(('coded NOLH for 12-16 factors'!L65-1)*(L$8-L$7)/64), L$9) -> 0 | M71: =ROUND( M$7+(('coded NOLH for 12-16 factors'!M65-1)*(M$8-M$7)/64), M$9) -> 0 | N71: =ROUND( N$7+(('coded NOLH for 12-16 factors'!N65-1)*(N$8-N$7)/64), N$9) -> 0 | O71: =ROUND( O$7+(('coded NOLH for 12-16 factors'!O65-1)*(O$8-O$7)/64), O$9) -> 0 | P71: =ROUND( P$7+(('coded NOLH for 12-16 factors'!P65-1)*(P$8-P$7)/64), P$9) -> 0 | Q71: =ROUND( Q$7+(('coded NOLH for 12-16 factors'!Q65-1)*(Q$8-Q$7)/64), Q$9) -> 0 | S71: used fixed random numbers to keep the same design, otherwise an automatic refresh of the sheet will update/change the design
A72: 62 | B72: =ROUND( B$7+(('coded NOLH for 12-16 factors'!B66-1)*(B$8-B$7)/64), B$9) -> 1363 | C72: =ROUND( C$7+(('coded NOLH for 12-16 factors'!C66-1)*(C$8-C$7)/64), C$9) -> 48.13 | D72: =ROUND( D$7+(('coded NOLH for 12-16 factors'!D66-1)*(D$8-D$7)/64), D$9) -> 1.4 | E72: =ROUND( E$7+(('coded NOLH for 12-16 factors'!E66-1)*(E$8-E$7)/64), E$9) -> 256 | F72: =ROUND( F$7+(('coded NOLH for 12-16 factors'!F66-1)*(F$8-F$7)/64), F$9) -> 0.17 | G72: =ROUND( G$7+(('coded NOLH for 12-16 factors'!G66-1)*(G$8-G$7)/64), G$9) -> 0.12 | H72: =ROUND( H$7+(('coded NOLH for 12-16 factors'!H66-1)*(H$8-H$7)/64), H$9) -> 0.04 | I72: =ROUND( I$7+(('coded NOLH for 12-16 factors'!I66-1)*(I$8-I$7)/64), I$9) -> 0.32 | J72: =ROUND( J$7+(('coded NOLH for 12-16 factors'!J66-1)*(J$8-J$7)/64), J$9) -> 0.28 | K72: =ROUND( K$7+(('coded NOLH for 12-16 factors'!K66-1)*(K$8-K$7)/64), K$9) -> 0 | L72: =ROUND( L$7+(('coded NOLH for 12-16 factors'!L66-1)*(L$8-L$7)/64), L$9) -> 0 | M72: =ROUND( M$7+(('coded NOLH for 12-16 factors'!M66-1)*(M$8-M$7)/64), M$9) -> 0 | N72: =ROUND( N$7+(('coded NOLH for 12-16 factors'!N66-1)*(N$8-N$7)/64), N$9) -> 0 | O72: =ROUND( O$7+(('coded NOLH for 12-16 factors'!O66-1)*(O$8-O$7)/64), O$9) -> 0 | P72: =ROUND( P$7+(('coded NOLH for 12-16 factors'!P66-1)*(P$8-P$7)/64), P$9) -> 0 | Q72: =ROUND( Q$7+(('coded NOLH for 12-16 factors'!Q66-1)*(Q$8-Q$7)/64), Q$9) -> 0 | S72: keeping the same design is useful when trying to find which set of inputs leads to extreme dairyvip results
A73: 63 | B73: =ROUND( B$7+(('coded NOLH for 12-16 factors'!B67-1)*(B$8-B$7)/64), B$9) -> 1597 | C73: =ROUND( C$7+(('coded NOLH for 12-16 factors'!C67-1)*(C$8-C$7)/64), C$9) -> 22.5 | D73: =ROUND( D$7+(('coded NOLH for 12-16 factors'!D67-1)*(D$8-D$7)/64), D$9) -> 1.23 | E73: =ROUND( E$7+(('coded NOLH for 12-16 factors'!E67-1)*(E$8-E$7)/64), E$9) -> 206 | F73: =ROUND( F$7+(('coded NOLH for 12-16 factors'!F67-1)*(F$8-F$7)/64), F$9) -> 0.12 | G73: =ROUND( G$7+(('coded NOLH for 12-16 factors'!G67-1)*(G$8-G$7)/64), G$9) -> -0.19 | H73: =ROUND( H$7+(('coded NOLH for 12-16 factors'!H67-1)*(H$8-H$7)/64), H$9) -> 0.06 | I73: =ROUND( I$7+(('coded NOLH for 12-16 factors'!I67-1)*(I$8-I$7)/64), I$9) -> -0.13 | J73: =ROUND( J$7+(('coded NOLH for 12-16 factors'!J67-1)*(J$8-J$7)/64), J$9) -> 0.44 | K73: =ROUND( K$7+(('coded NOLH for 12-16 factors'!K67-1)*(K$8-K$7)/64), K$9) -> 0 | L73: =ROUND( L$7+(('coded NOLH for 12-16 factors'!L67-1)*(L$8-L$7)/64), L$9) -> 0 | M73: =ROUND( M$7+(('coded NOLH for 12-16 factors'!M67-1)*(M$8-M$7)/64), M$9) -> 0 | N73: =ROUND( N$7+(('coded NOLH for 12-16 factors'!N67-1)*(N$8-N$7)/64), N$9) -> 0 | O73: =ROUND( O$7+(('coded NOLH for 12-16 factors'!O67-1)*(O$8-O$7)/64), O$9) -> 0 | P73: =ROUND( P$7+(('coded NOLH for 12-16 factors'!P67-1)*(P$8-P$7)/64), P$9) -> 0 | Q73: =ROUND( Q$7+(('coded NOLH for 12-16 factors'!Q67-1)*(Q$8-Q$7)/64), Q$9) -> 0 | S73: to refresh random numbers, enter the rand() function
A74: 64 | B74: =ROUND( B$7+(('coded NOLH for 12-16 factors'!B68-1)*(B$8-B$7)/64), B$9) -> 1644 | C74: =ROUND( C$7+(('coded NOLH for 12-16 factors'!C68-1)*(C$8-C$7)/64), C$9) -> 55 | D74: =ROUND( D$7+(('coded NOLH for 12-16 factors'!D68-1)*(D$8-D$7)/64), D$9) -> 0.94 | E74: =ROUND( E$7+(('coded NOLH for 12-16 factors'!E68-1)*(E$8-E$7)/64), E$9) -> 275 | F74: =ROUND( F$7+(('coded NOLH for 12-16 factors'!F68-1)*(F$8-F$7)/64), F$9) -> 0.11 | G74: =ROUND( G$7+(('coded NOLH for 12-16 factors'!G68-1)*(G$8-G$7)/64), G$9) -> 0.04 | H74: =ROUND( H$7+(('coded NOLH for 12-16 factors'!H68-1)*(H$8-H$7)/64), H$9) -> -0.11 | I74: =ROUND( I$7+(('coded NOLH for 12-16 factors'!I68-1)*(I$8-I$7)/64), I$9) -> -0.37 | J74: =ROUND( J$7+(('coded NOLH for 12-16 factors'!J68-1)*(J$8-J$7)/64), J$9) -> -0.42 | K74: =ROUND( K$7+(('coded NOLH for 12-16 factors'!K68-1)*(K$8-K$7)/64), K$9) -> 0 | L74: =ROUND( L$7+(('coded NOLH for 12-16 factors'!L68-1)*(L$8-L$7)/64), L$9) -> 0 | M74: =ROUND( M$7+(('coded NOLH for 12-16 factors'!M68-1)*(M$8-M$7)/64), M$9) -> 0 | N74: =ROUND( N$7+(('coded NOLH for 12-16 factors'!N68-1)*(N$8-N$7)/64), N$9) -> 0 | O74: =ROUND( O$7+(('coded NOLH for 12-16 factors'!O68-1)*(O$8-O$7)/64), O$9) -> 0 | P74: =ROUND( P$7+(('coded NOLH for 12-16 factors'!P68-1)*(P$8-P$7)/64), P$9) -> 0 | Q74: =ROUND( Q$7+(('coded NOLH for 12-16 factors'!Q68-1)*(Q$8-Q$7)/64), Q$9) -> 0 | T74: =rand()
A75: 65 | B75: =ROUND( B$7+(('coded NOLH for 12-16 factors'!B69-1)*(B$8-B$7)/64), B$9) -> 1425 | C75: =ROUND( C$7+(('coded NOLH for 12-16 factors'!C69-1)*(C$8-C$7)/64), C$9) -> 33.75 | D75: =ROUND( D$7+(('coded NOLH for 12-16 factors'!D69-1)*(D$8-D$7)/64), D$9) -> 0.75 | E75: =ROUND( E$7+(('coded NOLH for 12-16 factors'!E69-1)*(E$8-E$7)/64), E$9) -> 156 | F75: =ROUND( F$7+(('coded NOLH for 12-16 factors'!F69-1)*(F$8-F$7)/64), F$9) -> 0.16 | G75: =ROUND( G$7+(('coded NOLH for 12-16 factors'!G69-1)*(G$8-G$7)/64), G$9) -> -0.06 | H75: =ROUND( H$7+(('coded NOLH for 12-16 factors'!H69-1)*(H$8-H$7)/64), H$9) -> -0.16 | I75: =ROUND( I$7+(('coded NOLH for 12-16 factors'!I69-1)*(I$8-I$7)/64), I$9) -> -0.27 | J75: =ROUND( J$7+(('coded NOLH for 12-16 factors'!J69-1)*(J$8-J$7)/64), J$9) -> -0.16 | K75: =ROUND( K$7+(('coded NOLH for 12-16 factors'!K69-1)*(K$8-K$7)/64), K$9) -> 0 | L75: =ROUND( L$7+(('coded NOLH for 12-16 factors'!L69-1)*(L$8-L$7)/64), L$9) -> 0 | M75: =ROUND( M$7+(('coded NOLH for 12-16 factors'!M69-1)*(M$8-M$7)/64), M$9) -> 0 | N75: =ROUND( N$7+(('coded NOLH for 12-16 factors'!N69-1)*(N$8-N$7)/64), N$9) -> 0 | O75: =ROUND( O$7+(('coded NOLH for 12-16 factors'!O69-1)*(O$8-O$7)/64), O$9) -> 0 | P75: =ROUND( P$7+(('coded NOLH for 12-16 factors'!P69-1)*(P$8-P$7)/64), P$9) -> 0 | Q75: =ROUND( Q$7+(('coded NOLH for 12-16 factors'!Q69-1)*(Q$8-Q$7)/64), Q$9) -> 0 | R75: 1 | S75: 2 | T75: 3 | U75: 4 | V75: 5 | W75: 6 | X75: 7 | Y75: 8 | Z75: 9 | AA75: 10 | AB75: 11 | AC75: 12 | AD75: 13 | AE75: 14 | AF75: 15 | AG75: 16
A76: 66 | B76: =ROUND(B$7+R76*(B$8-B$7),3) -> 2215.063 | C76: =ROUND(C$7+S76*(C$8-C$7),3) -> 23.497 | D76: 0.803 | E76: 463.52 | F76: 0.268 | G76: 0.178 | H76: 0.123 | I76: 0.373 | J76: -0.078 | K76: 0 | L76: 0 | M76: 0 | N76: 0 | O76: 0 | P76: 0 | Q76: 0 | R76: 0.9150629979 | S76: 0.08742952694 | T76: 0.1288502758 | U76: 0.9087996926 | V76: 0.8424613773 | W76: 0.9454686212 | X76: 0.8078581902 | Y76: 0.9730949524 | Z76: 0.42178759 | AA76: 0.5592291724 | AB76: 0.4674994394 | AC76: 0.1128526118 | AD76: 0.5027812572 | AE76: 0.4345127633 | AF76: 0.01813855152 | AG76: 0.5320257881
A77: 67 | B77: =ROUND(B$7+R77*(B$8-B$7),3) -> 1817.538 | C77: =ROUND(C$7+S77*(C$8-C$7),3) -> 30.729 | D77: 1.449 | E77: 175.489 | F77: 0.222 | G77: 0.06 | H77: 0.104 | I77: -0.487 | J77: -0.106 | K77: =ROUND(K$7+AA77*(K$8-K$7),3) -> 0 | L77: =ROUND(L$7+AB77*(L$8-L$7),3) -> 0 | M77: =ROUND(M$7+AC77*(M$8-M$7),3) -> 0 | N77: =ROUND(N$7+AD77*(N$8-N$7),3) -> 0 | O77: =ROUND(O$7+AE77*(O$8-O$7),3) -> 0 | P77: =ROUND(P$7+AF77*(P$8-P$7),3) -> 0 | Q77: =ROUND(Q$7+AG77*(Q$8-Q$7),3) -> 0 | R77: 0.5175381791 | S77: 0.2682282594 | T77: 0.9364017681 | U77: 0.1887228795 | V77: 0.6116232244 | W77: 0.6499278986 | X77: 0.7591723311 | Y77: 0.1134944505 | Z77: 0.3938139183 | AA77: 0.5095220739 | AB77: 0.6308957132 | AC77: 0.8167154406 | AD77: 0.3813425313 | AE77: 0.5240046921 | AF77: 0.1184092528 | AG77: 0.7905277983
A78: 68 | B78: =ROUND(B$7+R78*(B$8-B$7),3) -> 2264.864 | C78: =ROUND(C$7+S78*(C$8-C$7),3) -> 44.44 | D78: =ROUND(D$7+T78*(D$8-D$7),3) -> 1.014 | E78: =ROUND(E$7+U78*(E$8-E$7),3) -> 301.011 | F78: =ROUND(F$7+V78*(F$8-F$7),3) -> 0.19 | G78: =ROUND(G$7+W78*(G$8-G$7),3) -> 0.156 | H78: =ROUND(H$7+X78*(H$8-H$7),3) -> 0.054 | I78: =ROUND(I$7+Y78*(I$8-I$7),3) -> -0.238 | J78: =ROUND(J$7+Z78*(J$8-J$7),3) -> -0.132 | K78: 0 | L78: 0 | M78: 0 | N78: 0 | O78: 0 | P78: 0 | Q78: 0 | R78: 0.9648644449 | S78: 0.6109937177 | T78: 0.392647805 | U78: 0.5025264192 | V78: 0.4504820973 | W78: 0.8889756151 | X78: 0.6343205976 | Y78: 0.3623522099 | Z78: 0.3676261959 | AA78: 0.9440388335 | AB78: 0.2367929299 | AC78: 0.9528822292 | AD78: 0.1442766718 | AE78: 0.842492696 | AF78: 0.9820227751 | AG78: 0.7487489496
A79: 69 | B79: 1567.861 | C79: 46.212 | D79: =ROUND(D$7+T79*(D$8-D$7),3) -> 1.463 | E79: 404.092 | F79: 0.203 | G79: -0.071 | H79: -0.075 | I79: -0.439 | J79: -0.454 | K79: 0 | L79: 0 | M79: 0 | N79: 0 | O79: 0 | P79: 0 | Q79: 0 | R79: 0.2678606484 | S79: 0.6552984486 | T79: 0.9532133887 | U79: 0.7602306901 | V79: 0.5135799368 | W79: 0.3231396933 | X79: 0.3123882665 | Y79: 0.1611375772 | Z79: 0.04649520646 | AA79: 0.6340844386 | AB79: 0.05240295146 | AC79: 0.982365115 | AD79: 0.1749908424 | AE79: 0.9023643633 | AF79: 0.3969288412 | AG79: 0.7902496391
A80: 70 | B80: 1371.47 | C80: 36.461 | D80: 0.944 | E80: 154.117 | F80: 0.224 | G80: 0.007 | H80: 0.013 | I80: 0.387 | J80: -0.346 | K80: 0 | L80: 0 | M80: 0 | N80: 0 | O80: 0 | P80: 0 | Q80: 0 | R80: 0.07146999752 | S80: 0.4115180591 | T80: 0.3048333414 | U80: 0.1352934386 | V80: 0.6178812766 | W80: 0.5185963443 | X80: 0.5317880438 | Y80: 0.9865857428 | Z80: 0.153822287 | AA80: 0.7498524189 | AB80: 0.9616625043 | AC80: 0.677708972 | AD80: 0.1184417254 | AE80: 0.7577712228 | AF80: 0.09334419695 | AG80: 0.5858148655
A81: 71 | B81: 1783.207 | C81: 34.165 | D81: 1.287 | E81: 483.171 | F81: 0.176 | G81: -0.071 | H81: 0.118 | I81: -0.356 | J81: 0.165 | K81: 0 | L81: 0 | M81: 0 | N81: 0 | O81: 0 | P81: 0 | Q81: 0 | R81: 0.483207289 | S81: 0.3541296098 | T81: 0.7343568273 | U81: 0.957928301 | V81: 0.3812584148 | W81: 0.3231528661 | X81: 0.7941777479 | Y81: 0.2436767827 | Z81: 0.6646967141 | AA81: 0.517125062 | AB81: 0.8091010225 | AC81: 0.810762854 | AD81: 0.5600842149 | AE81: 0.05123479327 | AF81: 0.1973195891 | AG81: 0.4823223693
A82: 72 | B82: 1827.483 | C82: 25.49 | D82: 1.427 | E82: 141.544 | F82: 0.296 | G82: 0.151 | H82: -0.101 | I82: 0.284 | J82: 0.102 | K82: 0 | L82: 0 | M82: 0 | N82: 0 | O82: 0 | P82: 0 | Q82: 0 | R82: 0.5274825101 | S82: 0.1372420911 | T82: 0.909315585 | U82: 0.1038609397 | V82: 0.9793137775 | W82: 0.8784315199 | X82: 0.2482583779 | Y82: 0.8835273587 | Z82: 0.6018787033 | AA82: 0.2785956739 | AB82: 0.06204504356 | AC82: 0.5111352818 | AD82: 0.2229301867 | AE82: 0.8835800823 | AF82: 0.1921820855 | AG82: 0.6472589337
A83: 73 | B83: 2121.766 | C83: 35.014 | D83: 1.022 | E83: 278.124 | F83: 0.199 | G83: 0.171 | H83: -0.078 | I83: 0.048 | J83: -0.114 | K83: 0 | L83: 0 | M83: 0 | N83: 0 | O83: 0 | P83: 0 | Q83: 0 | R83: 0.8217660206 | S83: 0.3753434411 | T83: 0.4026407043 | U83: 0.4453108338 | V83: 0.493526276 | W83: 0.9273084054 | X83: 0.3046897753 | Y83: 0.647854453 | Z83: 0.3864421352 | AA83: 0.2758968851 | AB83: 0.2409155931 | AC83: 0.5529329558 | AD83: 0.7376171802 | AE83: 0.004048928412 | AF83: 0.0872964467 | AG83: 0.2896730178
A84: 74 | B84: 1870.505 | C84: 39.291 | D84: 0.877 | E84: 332.142 | F84: 0.166 | G84: 0.037 | H84: 0.157 | I84: 0.103 | J84: -0.039 | K84: 0 | L84: 0 | M84: 0 | N84: 0 | O84: 0 | P84: 0 | Q84: 0 | R84: 0.5705045326 | S84: 0.4822721685 | T84: 0.2212308078 | U84: 0.5803555029 | V84: 0.3320364586 | W84: 0.591262595 | X84: 0.8923462116 | Y84: 0.7027419538 | Z84: 0.4605460756 | AA84: 0.9253243085 | AB84: 0.6234657769 | AC84: 0.2536089438 | AD84: 0.857750031 | AE84: 0.3498761319 | AF84: 0.01682267489 | AG84: 0.5221447886
A85: 75 | B85: 2073.477 | C85: 51.841 | D85: 1.326 | E85: 441.35 | F85: 0.18 | G85: 0.124 | H85: -0.087 | I85: -0.38 | J85: -0.235 | K85: 0 | L85: 0 | M85: 0 | N85: 0 | O85: 0 | P85: 0 | Q85: 0 | R85: 0.773476729 | S85: 0.7960176553 | T85: 0.7829418621 | U85: 0.853374751 | V85: 0.3981200215 | W85: 0.8100842838 | X85: 0.281451153 | Y85: 0.2199406111 | Z85: 0.2647278593 | AA85: 0.3656982378 | AB85: 0.6871056374 | AC85: 0.9145997838 | AD85: 0.07730520903 | AE85: 0.784948217 | AF85: 0.3027529726 | AG85: 0.1464796218
A86: 76 | B86: 2073.769 | C86: 21.875 | D86: 1.432 | E86: 126.295 | F86: 0.206 | G86: -0.054 | H86: -0.035 | I86: -0.53 | J86: 0.39 | K86: 0 | L86: 0 | M86: 0 | N86: 0 | O86: 0 | P86: 0 | Q86: 0 | R86: 0.7737692288 | S86: 0.04686380428 | T86: 0.9144620955 | U86: 0.06573730464 | V86: 0.5281312895 | W86: 0.3655221817 | X86: 0.4113363785 | Y86: 0.07002075645 | Z86: 0.8901054811 | AA86: 0.3002471949 | AB86: 0.9737658977 | AC86: 0.6334437145 | AD86: 0.2609292587 | AE86: 0.4541254718 | AF86: 0.8775219462 | AG86: 0.6128444899
A87: 77 | B87: 1634.877 | C87: 40.655 | D87: 1.03 | E87: 496.214 | F87: 0.205 | G87: 0.054 | H87: -0.099 | I87: 0.157 | J87: -0.168 | K87: 0 | L87: 0 | M87: 0 | N87: 0 | O87: 0 | P87: 0 | Q87: 0 | R87: 0.3348768745 | S87: 0.516378071 | T87: 0.4121931147 | U87: 0.9905358954 | V87: 0.5225652234 | W87: 0.6344662021 | X87: 0.2534417303 | Y87: 0.7570474249 | Z87: 0.3320764674 | AA87: 0.0242409688 | AB87: 0.01729672346 | AC87: 0.3274982861 | AD87: 0.7579402695 | AE87: 0.5282022509 | AF87: 0.09345029212 | AG87: 0.3487787936
A88: 78 | B88: 2026.578 | C88: 32.298 | D88: 1.051 | E88: 375.796 | F88: 0.14 | G88: -0.15 | H88: 0.091 | I88: -0.404 | J88: 0.032 | K88: 0 | L88: 0 | M88: 0 | N88: 0 | O88: 0 | P88: 0 | Q88: 0 | R88: 0.726577585 | S88: 0.3074482202 | T88: 0.4389239533 | U88: 0.6894888617 | V88: 0.1987575355 | W88: 0.1255952459 | X88: 0.7277269028 | Y88: 0.1957410974 | Z88: 0.5324041803 | AA88: 0.245851679 | AB88: 0.5587995687 | AC88: 0.835627209 | AD88: 0.03448948846 | AE88: 0.0889148839 | AF88: 0.4957809812 | AG88: 0.1856005104
A89: 79 | B89: 2229.414 | C89: 45.174 | D89: 0.832 | E89: 351.035 | F89: 0.169 | G89: -0.177 | H89: 0.105 | I89: -0.004 | J89: 0.276 | K89: 0 | L89: 0 | M89: 0 | N89: 0 | O89: 0 | P89: 0 | Q89: 0 | R89: 0.9294143205 | S89: 0.6293589029 | T89: 0.1654613743 | U89: 0.6275880786 | V89: 0.3455262385 | W89: 0.05704025511 | X89: 0.7621067227 | Y89: 0.5957956052 | Z89: 0.776120893 | AA89: 0.6710501135 | AB89: 0.9497947327 | AC89: 0.4828313453 | AD89: 0.3398888335 | AE89: 0.2812181408 | AF89: 0.1088007643 | AG89: 0.7484656514
A90: 80 | B90: 1981.903 | C90: 35.376 | D90: 0.972 | E90: 466.547 | F90: 0.171 | G90: -0.151 | H90: -0.176 | I90: -0.353 | J90: 0.43 | K90: 0 | L90: 0 | M90: 0 | N90: 0 | O90: 0 | P90: 0 | Q90: 0 | R90: 0.6819027734 | S90: 0.3843953724 | T90: 0.3400800288 | U90: 0.9163678604 | V90: 0.3536757499 | W90: 0.1234128339 | X90: 0.0598779631 | Y90: 0.2471248601 | Z90: 0.9302510883 | AA90: 0.3009295666 | AB90: 0.4986826851 | AC90: 0.5593672517 | AD90: 0.6553860095 | AE90: 0.7321170288 | AF90: 0.272027442 | AG90: 0.5049234895
A91: 81 | B91: 2228.702 | C91: 47.061 | D91: 1.292 | E91: 239.457 | F91: 0.246 | G91: -0.182 | H91: -0.023 | I91: -0.039 | J91: -0.479 | K91: 0 | L91: 0 | M91: 0 | N91: 0 | O91: 0 | P91: 0 | Q91: 0 | R91: 0.9287016809 | S91: 0.6765213352 | T91: 0.7397798927 | U91: 0.3486434481 | V91: 0.7293884441 | W91: 0.04532583483 | X91: 0.442627256 | Y91: 0.5607712201 | Z91: 0.02073352716 | AA91: 0.4576077945 | AB91: 0.360056881 | AC91: 0.3114568771 | AD91: 0.008009555846 | AE91: 0.8476712851 | AF91: 0.8121276929 | AG91: 0.6632312529
A92: 82 | B92: 2239.508 | C92: 54.059 | D92: 0.858 | E92: 242.729 | F92: 0.255 | G92: -0.094 | H92: 0.197 | I92: -0.064 | J92: 0.151 | K92: 0 | L92: 0 | M92: 0 | N92: 0 | O92: 0 | P92: 0 | Q92: 0 | R92: 0.9395075331 | S92: 0.8514770665 | T92: 0.1977885445 | U92: 0.3568231065 | V92: 0.776505369 | W92: 0.2646669487 | X92: 0.991841999 | Y92: 0.5363362311 | Z92: 0.6505837835 | AA92: 0.9542684261 | AB92: 0.8586938024 | AC92: 0.8129511783 | AD92: 0.2423045875 | AE92: 0.687612588 | AF92: 0.382369981 | AG92: 0.6955567784
A93: 83 | B93: 1985.992 | C93: 39.897 | D93: 1.194 | E93: 352.701 | F93: 0.168 | G93: 0.144 | H93: 0.067 | I93: 0.218 | J93: -0.271 | K93: 0 | L93: 0 | M93: 0 | N93: 0 | O93: 0 | P93: 0 | Q93: 0 | R93: 0.6859922693 | S93: 0.4974267218 | T93: 0.6170795102 | U93: 0.6317532024 | V93: 0.3422932504 | W93: 0.8611815697 | X93: 0.6680543244 | Y93: 0.8178608541 | Z93: 0.2285988764 | AA93: 0.09209371444 | AB93: 0.4441680078 | AC93: 0.4649691006 | AD93: 0.7570331444 | AE93: 0.7755383906 | AF93: 0.6237956205 | AG93: 0.1135679703
A94: 84 | B94: 2135.381 | C94: 34.462 | D94: 0.999 | E94: 118.62 | F94: 0.208 | G94: 0.122 | H94: 0.07 | I94: 0.102 | J94: -0.04 | K94: 0 | L94: 0 | M94: 0 | N94: 0 | O94: 0 | P94: 0 | Q94: 0 | R94: 0.835381476 | S94: 0.3615559621 | T94: 0.3732820841 | U94: 0.04655111772 | V94: 0.5379765462 | W94: 0.8059113916 | X94: 0.6747598753 | Y94: 0.7018815145 | Z94: 0.4596425738 | AA94: 0.3915559471 | AB94: 0.1348272052 | AC94: 0.5917041222 | AD94: 0.3423407379 | AE94: 0.6234217725 | AF94: 0.3228045969 | AG94: 0.4819960707
A95: 85 | B95: 2081.116 | C95: 52.844 | D95: 1.331 | E95: 293.405 | F95: 0.208 | G95: -0.052 | H95: -0.135 | I95: 0.344 | J95: 0.332 | K95: 0 | L95: 0 | M95: 0 | N95: 0 | O95: 0 | P95: 0 | Q95: 0 | R95: 0.781116011 | S95: 0.8210979037 | T95: 0.7892370518 | U95: 0.4835122018 | V95: 0.5375765951 | W95: 0.370071581 | X95: 0.1624950257 | Y95: 0.9437630526 | Z95: 0.8316457193 | AA95: 0.242764778 | AB95: 0.912589011 | AC95: 0.8351530881 | AD95: 0.7202122267 | AE95: 0.796306197 | AF95: 0.2115157136 | AG95: 0.2203095447
A96: 86 | B96: 1866.076 | C96: 23.244 | D96: 0.985 | E96: 344.367 | F96: 0.218 | G96: -0.16 | H96: 0.065 | I96: 0.114 | J96: 0.141 | K96: 0 | L96: 0 | M96: 0 | N96: 0 | O96: 0 | P96: 0 | Q96: 0 | R96: 0.5660755516 | S96: 0.08109747369 | T96: 0.3563434119 | U96: 0.6109184226 | V96: 0.5906708573 | W96: 0.1011433037 | X96: 0.6637253477 | Y96: 0.7143950976 | Z96: 0.6406959602 | AA96: 0.9017029892 | AB96: 0.589621896 | AC96: 0.1236862853 | AD96: 0.2335880412 | AE96: 0.8345195242 | AF96: 0.9313665442 | AG96: 0.5146452779
A97: 87 | B97: 1622.479 | C97: 32.214 | D97: 1.047 | E97: 135.528 | F97: 0.215 | G97: -0.011 | H97: 0.147 | I97: -0.15 | J97: 0.211 | K97: 0 | L97: 0 | M97: 0 | N97: 0 | O97: 0 | P97: 0 | Q97: 0 | R97: 0.3224785452 | S97: 0.3053468602 | T97: 0.4335558739 | U97: 0.08881976317 | V97: 0.5727350541 | W97: 0.4730854265 | X97: 0.8686470652 | Y97: 0.449926604 | Z97: 0.711042099 | AA97: 0.2952647303 | AB97: 0.9379537404 | AC97: 0.8264095883 | AD97: 0.262701136 | AE97: 0.2678782317 | AF97: 0.1965593043 | AG97: 0.3418647474
A98: 88 | B98: 2274.333 | C98: 47.623 | D98: 0.81 | E98: 340.23 | F98: 0.218 | G98: -0.056 | H98: -0.13 | I98: 0.371 | J98: -0.043 | K98: 0 | L98: 0 | M98: 0 | N98: 0 | O98: 0 | P98: 0 | Q98: 0 | R98: 0.9743329733 | S98: 0.6905732168 | T98: 0.1368965848 | U98: 0.6005755981 | V98: 0.5906118372 | W98: 0.3598929845 | X98: 0.1751824497 | Y98: 0.9713711422 | Z98: 0.4567055667 | AA98: 0.9807911599 | AB98: 0.5383156084 | AC98: 0.4644499075 | AD98: 0.9007789622 | AE98: 0.7690175273 | AF98: 0.4017009492 | AG98: 0.423906858
A99: 89 | B99: 1713.885 | C99: 43.11 | D99: 1.087 | E99: 321.965 | F99: 0.206 | G99: 0.042 | H99: -0.181 | I99: 0.291 | J99: -0.379 | K99: 0 | L99: 0 | M99: 0 | N99: 0 | O99: 0 | P99: 0 | Q99: 0 | R99: 0.4138847645 | S99: 0.5777426463 | T99: 0.4834413495 | U99: 0.5549123688 | V99: 0.528794137 | W99: 0.6045442011 | X99: 0.0470489305 | Y99: 0.8909531501 | Z99: 0.1210010744 | AA99: 0.5469974796 | AB99: 0.5660545456 | AC99: 0.5155963443 | AD99: 0.5806214364 | AE99: 0.08564547156 | AF99: 0.6323470891 | AG99: 0.2469315035
A100: 90 | B100: 1854.375 | C100: 34.145 | D100: 1.18 | E100: 329.272 | F100: 0.126 | G100: 0.154 | H100: -0.126 | I100: -0.228 | J100: -0.166 | K100: 0 | L100: 0 | M100: 0 | N100: 0 | O100: 0 | P100: 0 | Q100: 0 | R100: 0.5543750843 | S100: 0.3536308631 | T100: 0.5994555636 | U100: 0.5731795193 | V100: 0.1297825749 | W100: 0.8843923179 | X100: 0.1838707735 | Y100: 0.3716270067 | Z100: 0.3339196365 | AA100: 0.5813918014 | AB100: 0.2288032259 | AC100: 0.3881266905 | AD100: 0.2103405556 | AE100: 0.8230857906 | AF100: 0.4387898028 | AG100: 0.5472261744
A101: 91 | B101: 2013.178 | C101: 51.522 | D101: 0.736 | E101: 103.983 | F101: 0.117 | G101: 0.002 | H101: 0.016 | I101: 0.195 | J101: -0.493 | K101: 0 | L101: 0 | M101: 0 | N101: 0 | O101: 0 | P101: 0 | Q101: 0 | R101: 0.7131784698 | S101: 0.7880383797 | T101: 0.04540902414 | U101: 0.009957795471 | V101: 0.08461883544 | W101: 0.5046893842 | X101: 0.5391481521 | Y101: 0.7948621042 | Z101: 0.006907138039 | AA101: 0.8367718779 | AB101: 0.7953656855 | AC101: 0.4155775709 | AD101: 0.7255460245 | AE101: 0.4246808924 | AF101: 0.6302009887 | AG101: 0.747914016
A102: 92 | B102: 1729.607 | C102: 48.305 | D102: 0.901 | E102: 242.903 | F102: 0.203 | G102: -0.119 | H102: -0.051 | I102: 0.051 | J102: -0.285 | K102: 0 | L102: 0 | M102: 0 | N102: 0 | O102: 0 | P102: 0 | Q102: 0 | R102: 0.4296067948 | S102: 0.7076190283 | T102: 0.2510241546 | U102: 0.3572584057 | V102: 0.5145977014 | W102: 0.2026600056 | X102: 0.3722562458 | Y102: 0.6508168046 | Z102: 0.214583704 | AA102: 0.6593228481 | AB102: 0.8699693251 | AC102: 0.6761358358 | AD102: 0.04728302616 | AE102: 0.3031669853 | AF102: 0.1996472503 | AG102: 0.09657812211
A103: 93 | B103: 1520.676 | C103: 26.229 | D103: 1.385 | E103: 135.711 | F103: 0.239 | G103: 0.028 | H103: -0.197 | I103: -0.063 | J103: -0.331 | K103: 0 | L103: 0 | M103: 0 | N103: 0 | O103: 0 | P103: 0 | Q103: 0 | R103: 0.2206757701 | S103: 0.1557235839 | T103: 0.8561787494 | U103: 0.08927860257 | V103: 0.6948877503 | W103: 0.569832807 | X103: 0.007881311149 | Y103: 0.536625206 | Z103: 0.1687746458 | AA103: 0.1369805981 | AB103: 0.3529237085 | AC103: 0.03108217139 | AD103: 0.4556416407 | AE103: 0.1372271381 | AF103: 0.1747901628 | AG103: 0.8303177486
A104: 94 | B104: 1627.065 | C104: 27.413 | D104: 0.863 | E104: 342.093 | F104: 0.108 | G104: 0.041 | H104: 0.139 | I104: 0.259 | J104: -0.457 | K104: 0 | L104: 0 | M104: 0 | N104: 0 | O104: 0 | P104: 0 | Q104: 0 | R104: 0.3270654791 | S104: 0.1853286197 | T104: 0.2036689608 | U104: 0.6052316443 | V104: 0.04135220104 | W104: 0.6012789666 | X104: 0.8486472112 | Y104: 0.8591778731 | Z104: 0.04279891807 | AA104: 0.1407666288 | AB104: 0.8013210607 | AC104: 0.1486649765 | AD104: 0.05046796168 | AE104: 0.1467785811 | AF104: 0.23980689 | AG104: 0.7820603129
A105: 95 | B105: 2204.937 | C105: 21.501 | D105: 1.238 | E105: 466.198 | F105: 0.167 | G105: -0.148 | H105: -0.142 | I105: -0.36 | J105: -0.288 | K105: 0 | L105: 0 | M105: 0 | N105: 0 | O105: 0 | P105: 0 | Q105: 0 | R105: 0.9049372564 | S105: 0.0375215672 | T105: 0.6731058245 | U105: 0.9154950328 | V105: 0.337106226 | W105: 0.1291853642 | X105: 0.1457834506 | Y105: 0.2401698205 | Z105: 0.21232716 | AA105: 0.882403903 | AB105: 0.2860686936 | AC105: 0.769336147 | AD105: 0.0647769502 | AE105: 0.02772120141 | AF105: 0.4212839926 | AG105: 0.9198639701
A106: 96 | B106: 1784.563 | C106: 23.554 | D106: 0.811 | E106: 365.565 | F106: 0.108 | G106: 0.132 | H106: -0.155 | I106: -0.207 | J106: 0.066 | K106: 0 | L106: 0 | M106: 0 | N106: 0 | O106: 0 | P106: 0 | Q106: 0 | R106: 0.484563204 | S106: 0.08886120358 | T106: 0.1392379839 | U106: 0.6639127274 | V106: 0.03944336158 | W106: 0.8309363254 | X106: 0.1116439023 | Y106: 0.3927153034 | Z106: 0.5656095862 | AA106: 0.7787957916 | AB106: 0.7359273207 | AC106: 0.4995133577 | AD106: 0.2725851734 | AE106: 0.2922863593 | AF106: 0.2766933782 | AG106: 0.8811112876
A107: 97 | B107: 1472.435 | C107: 47.117 | D107: 1.113 | E107: 414.811 | F107: 0.273 | G107: -0.11 | H107: -0.038 | I107: -0.512 | J107: -0.215 | K107: 0 | L107: 0 | M107: 0 | N107: 0 | O107: 0 | P107: 0 | Q107: 0 | R107: 0.172435323 | S107: 0.6779126852 | T107: 0.5166705974 | U107: 0.7870274572 | V107: 0.867374648 | W107: 0.225494685 | X107: 0.4042266278 | Y107: 0.08771276877 | Z107: 0.2853731695 | AA107: 0.2213402108 | AB107: 0.9545257857 | AC107: 0.1218653763 | AD107: 0.2300014522 | AE107: 0.8477080476 | AF107: 0.06312550557 | AG107: 0.7328931444
A108: 98 | B108: 1840.459 | C108: 32.63 | D108: 1.022 | E108: 286.464 | F108: 0.184 | G108: -0.116 | H108: -0.165 | I108: 0.07 | J108: -0.455 | K108: 0 | L108: 0 | M108: 0 | N108: 0 | O108: 0 | P108: 0 | Q108: 0 | R108: 0.5404593755 | S108: 0.315747277 | T108: 0.4025344731 | U108: 0.4661587768 | V108: 0.418327301 | W108: 0.2104552171 | X108: 0.08865270616 | Y108: 0.6699766798 | Z108: 0.04471259009 | AA108: 0.893133277 | AB108: 0.0143714241 | AC108: 0.9886072771 | AD108: 0.1198951756 | AE108: 0.5563884 | AF108: 0.4222693017 | AG108: 0.7385031462
A109: 99 | B109: 1659.536 | C109: 22.835 | D109: 1.448 | E109: 175.553 | F109: 0.265 | G109: -0.053 | H109: -0.049 | I109: -0.293 | J109: -0.416 | K109: 0 | L109: 0 | M109: 0 | N109: 0 | O109: 0 | P109: 0 | Q109: 0 | R109: 0.3595357642 | S109: 0.07087074065 | T109: 0.9352303336 | U109: 0.1888818032 | V109: 0.8242036371 | W109: 0.3686918371 | X109: 0.3765704536 | Y109: 0.3074227812 | Z109: 0.08424918413 | AA109: 0.1455651479 | AB109: 0.8023011098 | AC109: 0.371751138 | AD109: 0.02365820724 | AE109: 0.3672230917 | AF109: 0.5209654806 | AG109: 0.5556777016
A110: 100 | B110: 1477.669 | C110: 59.398 | D110: 1.266 | E110: 206.472 | F110: 0.236 | G110: -0.057 | H110: 0.169 | I110: -0.496 | J110: -0.039 | K110: 0 | L110: 0 | M110: 0 | N110: 0 | O110: 0 | P110: 0 | Q110: 0 | R110: 0.177669244 | S110: 0.9849457908 | T110: 0.7079087031 | U110: 0.2661790711 | V110: 0.6791174715 | W110: 0.3574999203 | X110: 0.9219688057 | Y110: 0.1037248546 | Z110: 0.4609072135 | AA110: 0.5061927431 | AB110: 0.2562245711 | AC110: 0.1776773089 | AD110: 0.9946227384 | AE110: 0.5261573567 | AF110: 0.1531321134 | AG110: 0.2685685758
A111: 101 | B111: 1497.864 | C111: 40.604 | D111: 1.465 | E111: 302.56 | F111: 0.279 | G111: -0.116 | H111: 0.169 | I111: 0.132 | J111: -0.239 | K111: 0 | L111: 0 | M111: 0 | N111: 0 | O111: 0 | P111: 0 | Q111: 0 | R111: 0.1978640841 | S111: 0.5151006706 | T111: 0.9562057464 | U111: 0.5064003068 | V111: 0.8956965451 | W111: 0.2097450745 | X111: 0.9236126184 | Y111: 0.731884102 | Z111: 0.2605960823 | AA111: 0.2554670989 | AB111: 0.4428117688 | AC111: 0.9759662723 | AD111: 0.9971565255 | AE111: 0.7122286799 | AF111: 0.4398903256 | AG111: 0.5073526367
A112: 102 | B112: 2152.008 | C112: 47.427 | D112: 1.386 | E112: 383.402 | F112: 0.256 | G112: 0.16 | H112: -0.079 | I112: -0.061 | J112: 0.323 | K112: 0 | L112: 0 | M112: 0 | N112: 0 | O112: 0 | P112: 0 | Q112: 0 | R112: 0.8520075163 | S112: 0.6856835524 | T112: 0.8569179162 | U112: 0.7085051928 | V112: 0.7817817093 | W112: 0.9005350867 | X112: 0.3015141694 | Y112: 0.5388782184 | Z112: 0.8225801152 | AA112: 0.3189762622 | AB112: 0.02498183562 | AC112: 0.4554919657 | AD112: 0.4922556551 | AE112: 0.8855556251 | AF112: 0.8303811344 | AG112: 0.2904162106
A113: 103 | B113: 1557.935 | C113: 33.642 | D113: 1.434 | E113: 170.89 | F113: 0.162 | G113: -0.106 | H113: -0.133 | I113: -0.104 | J113: -0.397 | K113: 0 | L113: 0 | M113: 0 | N113: 0 | O113: 0 | P113: 0 | Q113: 0 | R113: 0.2579353905 | S113: 0.3410565167 | T113: 0.9178832431 | U113: 0.1772246049 | V113: 0.3084973404 | W113: 0.2350377406 | X113: 0.1674179424 | Y113: 0.4963291173 | Z113: 0.1027293424 | AA113: 0.8668083105 | AB113: 0.7123558926 | AC113: 0.7602835509 | AD113: 0.1784489653 | AE113: 0.1073855756 | AF113: 0.04202471638 | AG113: 0.4182713479
A114: 104 | B114: 1926.17 | C114: 38.002 | D114: 0.81 | E114: 252.997 | F114: 0.203 | G114: 0.092 | H114: 0.029 | I114: -0.244 | J114: 0.132 | K114: 0 | L114: 0 | M114: 0 | N114: 0 | O114: 0 | P114: 0 | Q114: 0 | R114: 0.6261700558 | S114: 0.4500557423 | T114: 0.1372215756 | U114: 0.3824932853 | V114: 0.5135501678 | W114: 0.7303139871 | X114: 0.5719843071 | Y114: 0.3560613895 | Z114: 0.6319961725 | AA114: 0.643368811 | AB114: 0.3419982123 | AC114: 0.4515904138 | AD114: 0.4866195243 | AE114: 0.8779164711 | AF114: 0.3702035163 | AG114: 0.7919206244
A115: 105 | B115: 1512.102 | C115: 23.619 | D115: 0.776 | E115: 307.951 | F115: 0.223 | G115: 0.063 | H115: -0.014 | I115: 0.3 | J115: 0.137 | K115: 0 | L115: 0 | M115: 0 | N115: 0 | O115: 0 | P115: 0 | Q115: 0 | R115: 0.2121017209 | S115: 0.09046275976 | T115: 0.09451150013 | U115: 0.5198782256 | V115: 0.6145568894 | W115: 0.656905457 | X115: 0.4659730144 | Y115: 0.8998877739 | Z115: 0.6366117552 | AA115: 0.4237620543 | AB115: 0.1783270936 | AC115: 0.6471630866 | AD115: 0.3733551135 | AE115: 0.4260830191 | AF115: 0.1803697508 | AG115: 0.4558995417
A116: 106 | B116: 1755.64 | C116: 34.149 | D116: 1.286 | E116: 272.334 | F116: 0.155 | G116: 0.113 | H116: -0.072 | I116: -0.058 | J116: 0.08 | K116: 0 | L116: 0 | M116: 0 | N116: 0 | O116: 0 | P116: 0 | Q116: 0 | R116: 0.4556400632 | S116: 0.3537249326 | T116: 0.7329305319 | U116: 0.4308337608 | V116: 0.2751545395 | W116: 0.7830636282 | X116: 0.3194553918 | Y116: 0.5421276913 | Z116: 0.5802646263 | AA116: 0.164259255 | AB116: 0.9291190736 | AC116: 0.4029035176 | AD116: 0.9915018647 | AE116: 0.8830995253 | AF116: 0.3084916063 | AG116: 0.9249981492
A117: 107 | B117: 1429.858 | C117: 38.394 | D117: 0.886 | E117: 167.999 | F117: 0.255 | G117: 0.07 | H117: -0.02 | I117: -0.332 | J117: 0.022 | K117: 0 | L117: 0 | M117: 0 | N117: 0 | O117: 0 | P117: 0 | Q117: 0 | R117: 0.1298576667 | S117: 0.4598426572 | T117: 0.2323425445 | U117: 0.1699972668 | V117: 0.7737747134 | W117: 0.6740527512 | X117: 0.450702556 | Y117: 0.2679451192 | Z117: 0.5224176724 | AA117: 0.2548860052 | AB117: 0.7790342363 | AC117: 0.7608864483 | AD117: 0.5875259228 | AE117: 0.8725774142 | AF117: 0.3638941108 | AG117: 0.202953554
A118: 108 | B118: 2260.676 | C118: 26.282 | D118: 1.202 | E118: 190.508 | F118: 0.211 | G118: -0.086 | H118: -0.065 | I118: -0.169 | J118: -0.166 | K118: 0 | L118: 0 | M118: 0 | N118: 0 | O118: 0 | P118: 0 | Q118: 0 | R118: 0.960675663 | S118: 0.1570423708 | T118: 0.6277847825 | U118: 0.2262688289 | V118: 0.5539081869 | W118: 0.284145788 | X118: 0.3383369732 | Y118: 0.4306119041 | Z118: 0.3343551321 | AA118: 0.3036610539 | AB118: 0.430515632 | AC118: 0.4953900352 | AD118: 0.1660294811 | AE118: 0.7305049455 | AF118: 0.2107885863 | AG118: 0.2447667884
A119: 109 | B119: 2044.34 | C119: 23.952 | D119: 0.72 | E119: 356.071 | F119: 0.147 | G119: 0.055 | H119: 0.014 | I119: -0.129 | J119: 0.498 | K119: 0 | L119: 0 | M119: 0 | N119: 0 | O119: 0 | P119: 0 | Q119: 0 | R119: 0.7443395844 | S119: 0.09879816151 | T119: 0.02544679306 | U119: 0.6401777534 | V119: 0.2370509553 | W119: 0.6372750362 | X119: 0.5353457816 | Y119: 0.470819771 | Z119: 0.9981856826 | AA119: 0.8128633714 | AB119: 0.4517171761 | AC119: 0.3541926943 | AD119: 0.4642061693 | AE119: 0.2243957106 | AF119: 0.9091859882 | AG119: 0.2071770759
A120: 110 | B120: 1887.348 | C120: 55.038 | D120: 1.282 | E120: 135.694 | F120: 0.283 | G120: 0.185 | H120: -0.06 | I120: 0.23 | J120: -0.036 | K120: 0 | L120: 0 | M120: 0 | N120: 0 | O120: 0 | P120: 0 | Q120: 0 | R120: 0.587348321 | S120: 0.8759571991 | T120: 0.7269814302 | U120: 0.08923492702 | V120: 0.9149653329 | W120: 0.9623333784 | X120: 0.3508018521 | Y120: 0.8301639181 | Z120: 0.4640800944 | AA120: 0.9033037611 | AB120: 0.6981079908 | AC120: 0.2561031578 | AD120: 0.40996605 | AE120: 0.8038859366 | AF120: 0.09899471803 | AG120: 0.06438719836
A121: 111 | B121: 1866.88 | C121: 55.53 | D121: 0.918 | E121: 185.496 | F121: 0.248 | G121: 0.02 | H121: 0.108 | I121: -0.3 | J121: -0.251 | K121: 0 | L121: 0 | M121: 0 | N121: 0 | O121: 0 | P121: 0 | Q121: 0 | R121: 0.5668801633 | S121: 0.8882529649 | T121: 0.2725017492 | U121: 0.2137406228 | V121: 0.7375074392 | W121: 0.5505452689 | X121: 0.7689708971 | Y121: 0.2995455188 | Z121: 0.2491009194 | AA121: 0.4429182675 | AB121: 0.4017094296 | AC121: 0.6854998542 | AD121: 0.5095963581 | AE121: 0.2234740582 | AF121: 0.9377039568 | AG121: 0.7643185094
A122: 112 | B122: 1364.769 | C122: 32.426 | D122: 1 | E122: 232.057 | F122: 0.109 | G122: -0.146 | H122: 0.004 | I122: 0.082 | J122: -0.395 | K122: 0 | L122: 0 | M122: 0 | N122: 0 | O122: 0 | P122: 0 | Q122: 0 | R122: 0.06476881122 | S122: 0.3106416932 | T122: 0.3747867547 | U122: 0.330141263 | V122: 0.04377498777 | W122: 0.1346028335 | X122: 0.5112356169 | Y122: 0.6818879846 | Z122: 0.1051383346 | AA122: 0.2992189172 | AB122: 0.08379861776 | AC122: 0.903041293 | AD122: 0.006992460989 | AE122: 0.2970004716 | AF122: 0.8020695044 | AG122: 0.8861838962
A123: 113 | B123: 1947.378 | C123: 31.023 | D123: 0.904 | E123: 182.411 | F123: 0.115 | G123: -0.148 | H123: -0.091 | I123: 0.072 | J123: -0.421 | K123: 0 | L123: 0 | M123: 0 | N123: 0 | O123: 0 | P123: 0 | Q123: 0 | R123: 0.6473776653 | S123: 0.2755765434 | T123: 0.2550040523 | U123: 0.206026637 | V123: 0.0738788985 | W123: 0.1302418253 | X123: 0.2713742727 | Y123: 0.6723785828 | Z123: 0.07891066055 | AA123: 0.3584337536 | AB123: 0.2762887321 | AC123: 0.06183876239 | AD123: 0.26076744 | AE123: 0.01868061107 | AF123: 0.9304922313 | AG123: 0.09613120823
A124: 114 | B124: 1595.679 | C124: 58.549 | D124: 0.958 | E124: 161.071 | F124: 0.283 | G124: -0.178 | H124: -0.151 | I124: -0.512 | J124: 0.428 | K124: 0 | L124: 0 | M124: 0 | N124: 0 | O124: 0 | P124: 0 | Q124: 0 | R124: 0.295678801 | S124: 0.9637364491 | T124: 0.3220668996 | U124: 0.1526775901 | V124: 0.9140970268 | W124: 0.05612673838 | X124: 0.1237290066 | Y124: 0.08756235547 | Z124: 0.928264499 | AA124: 0.4343874995 | AB124: 0.9135567986 | AC124: 0.9199764815 | AD124: 0.4494430078 | AE124: 0.2014912393 | AF124: 0.8016884882 | AG124: 0.6518368852
A125: 115 | B125: 1322.033 | C125: 32.976 | D125: 0.854 | E125: 210.222 | F125: 0.14 | G125: 0.041 | H125: 0.134 | I125: -0.527 | J125: -0.443 | K125: 0 | L125: 0 | M125: 0 | N125: 0 | O125: 0 | P125: 0 | Q125: 0 | R125: 0.02203349102 | S125: 0.3243981428 | T125: 0.192445541 | U125: 0.2755552586 | V125: 0.1987986865 | W125: 0.6023853174 | X125: 0.8352213083 | Y125: 0.07302360399 | Z125: 0.05677995491 | AA125: 0.6373063739 | AB125: 0.8958156456 | AC125: 0.4469350438 | AD125: 0.9292894197 | AE125: 0.5645200091 | AF125: 0.8036350334 | AG125: 0.8579163812
A126: 116 | B126: 1440.327 | C126: 40.541 | D126: 1.227 | E126: 245.425 | F126: 0.138 | G126: 0.19 | H126: 0.195 | I126: -0.22 | J126: 0.075 | K126: 0 | L126: 0 | M126: 0 | N126: 0 | O126: 0 | P126: 0 | Q126: 0 | R126: 0.1403274565 | S126: 0.5135158035 | T126: 0.6586739591 | U126: 0.3635635621 | V126: 0.1909183123 | W126: 0.9757121494 | X126: 0.9867779197 | Y126: 0.3799027845 | Z126: 0.5747262034 | AA126: 0.8868842292 | AB126: 0.8161808274 | AC126: 0.5739898002 | AD126: 0.6006601253 | AE126: 0.1704013318 | AF126: 0.7939095226 | AG126: 0.07928630027
A127: 117 | B127: 2075.721 | C127: 46.931 | D127: 1.081 | E127: 265.779 | F127: 0.13 | G127: -0.074 | H127: 0.127 | I127: 0.042 | J127: -0.087 | K127: 0 | L127: 0 | M127: 0 | N127: 0 | O127: 0 | P127: 0 | Q127: 0 | R127: 0.7757206569 | S127: 0.6732819354 | T127: 0.4758962963 | U127: 0.4144471904 | V127: 0.1501572463 | W127: 0.3141376 | X127: 0.8175943812 | Y127: 0.6418109101 | Z127: 0.4126320294 | AA127: 0.4294195162 | AB127: 0.3292663838 | AC127: 0.2932758032 | AD127: 0.1595371021 | AE127: 0.5582838862 | AF127: 0.6453321086 | AG127: 0.3139587106
A128: 118 | B128: 1497.616 | C128: 30.045 | D128: 0.997 | E128: 183.497 | F128: 0.188 | G128: -0.121 | H128: -0.031 | I128: -0.592 | J128: 0.415 | K128: 0 | L128: 0 | M128: 0 | N128: 0 | O128: 0 | P128: 0 | Q128: 0 | R128: 0.1976160387 | S128: 0.2511305941 | T128: 0.371641765 | U128: 0.2087418512 | V128: 0.4398240999 | W128: 0.198237784 | X128: 0.4237457843 | Y128: 0.008373744508 | Z128: 0.9149104582 | AA128: 0.175718164 | AB128: 0.949279001 | AC128: 0.0107293605 | AD128: 0.867058438 | AE128: 0.2896959098 | AF128: 0.2172449175 | AG128: 0.2383279461
A129: 119 | B129: 1730.227 | C129: 35.078 | D129: 0.874 | E129: 138.671 | F129: 0.229 | G129: 0.077 | H129: -0.06 | I129: -0.015 | J129: 0.007 | K129: 0 | L129: 0 | M129: 0 | N129: 0 | O129: 0 | P129: 0 | Q129: 0 | R129: 0.4302265349 | S129: 0.3769444102 | T129: 0.2172761858 | U129: 0.09667687412 | V129: 0.6426215683 | W129: 0.6917476726 | X129: 0.3511957277 | Y129: 0.5850378241 | Z129: 0.5068133176 | AA129: 0.09473448623 | AB129: 0.91260629 | AC129: 0.7288214093 | AD129: 0.4565735177 | AE129: 0.1027338263 | AF129: 0.8192225406 | AG129: 0.4045765272
A130: 120 | B130: 1436.629 | C130: 50.16 | D130: 0.799 | E130: 455.28 | F130: 0.238 | G130: -0.153 | H130: 0.196 | I130: -0.006 | J130: -0.468 | K130: 0 | L130: 0 | M130: 0 | N130: 0 | O130: 0 | P130: 0 | Q130: 0 | R130: 0.1366288111 | S130: 0.7540024952 | T130: 0.1238327664 | U130: 0.8881995276 | V130: 0.6880041982 | W130: 0.1183298972 | X130: 0.9887787188 | Y130: 0.5936199438 | Z130: 0.03219789052 | AA130: 0.4680846713 | AB130: 0.6749375981 | AC130: 0.1617840334 | AD130: 0.9665507963 | AE130: 0.01646354739 | AF130: 0.01015431013 | AG130: 0.2914154706
A131: 121 | B131: 1476.332 | C131: 20.716 | D131: 1.304 | E131: 184.755 | F131: 0.188 | G131: 0.036 | H131: 0.17 | I131: -0.574 | J131: -0.423 | K131: 0 | L131: 0 | M131: 0 | N131: 0 | O131: 0 | P131: 0 | Q131: 0 | R131: 0.1763320244 | S131: 0.01790234418 | T131: 0.7555249759 | U131: 0.2118870688 | V131: 0.438400129 | W131: 0.5891829888 | X131: 0.9244623287 | Y131: 0.02629642697 | Z131: 0.07708082161 | AA131: 0.3246689681 | AB131: 0.06911241923 | AC131: 0.8823009573 | AD131: 0.9072803075 | AE131: 0.783434207 | AF131: 0.9551370468 | AG131: 0.5043369062
A132: 122 | B132: 1556.209 | C132: 45.829 | D132: 1.053 | E132: 164.318 | F132: 0.3 | G132: -0.104 | H132: 0.036 | I132: -0.215 | J132: -0.434 | K132: 0 | L132: 0 | M132: 0 | N132: 0 | O132: 0 | P132: 0 | Q132: 0 | R132: 0.2562085133 | S132: 0.6457214978 | T132: 0.4408798104 | U132: 0.1607951363 | V132: 0.9989443243 | W132: 0.2403368338 | X132: 0.5891291153 | Y132: 0.385328158 | Z132: 0.06616553916 | AA132: 0.8430982076 | AB132: 0.1815093785 | AC132: 0.3815595015 | AD132: 0.831227089 | AE132: 0.8308806156 | AF132: 0.5114332435 | AG132: 0.3223454657
A133: 123 | B133: 2105.089 | C133: 23.839 | D133: 1.105 | E133: 380.736 | F133: 0.178 | G133: 0.2 | H133: 0.028 | I133: -0.381 | J133: -0.11 | K133: 0 | L133: 0 | M133: 0 | N133: 0 | O133: 0 | P133: 0 | Q133: 0 | R133: 0.8050888852 | S133: 0.09597202016 | T133: 0.506733621 | U133: 0.7018393959 | V133: 0.3919876393 | W133: 0.9997791324 | X133: 0.5700447492 | Y133: 0.2189749708 | Z133: 0.3895974562 | AA133: 0.02684267744 | AB133: 0.6448966609 | AC133: 0.5484633207 | AD133: 0.3015028489 | AE133: 0.2608519279 | AF133: 0.6959064201 | AG133: 0.8925069427
A134: 124 | B134: 2198.437 | C134: 30.073 | D134: 1.25 | E134: 256.236 | F134: 0.272 | G134: 0.031 | H134: -0.151 | I134: -0.206 | J134: 0.126 | K134: 0 | L134: 0 | M134: 0 | N134: 0 | O134: 0 | P134: 0 | Q134: 0 | R134: 0.8984368353 | S134: 0.251829981 | T134: 0.6872280611 | U134: 0.3905898746 | V134: 0.8592899088 | W134: 0.5782240848 | X134: 0.1222383289 | Y134: 0.3944176386 | Z134: 0.6263391044 | AA134: 0.6583348024 | AB134: 0.5490555302 | AC134: 0.6914349434 | AD134: 0.1786081688 | AE134: 0.0250900512 | AF134: 0.4810735574 | AG134: 0.3100738144
A135: 125 | B135: 2131.911 | C135: 52.967 | D135: 1.307 | E135: 265.542 | F135: 0.295 | G135: -0.111 | H135: 0.151 | I135: -0.283 | J135: -0.429 | K135: 0 | L135: 0 | M135: 0 | N135: 0 | O135: 0 | P135: 0 | Q135: 0 | R135: 0.8319111524 | S135: 0.824173823 | T135: 0.7584861838 | U135: 0.4138545101 | V135: 0.9765602243 | W135: 0.221634349 | X135: 0.876453586 | Y135: 0.3174938212 | Z135: 0.07077232903 | AA135: 0.216737324 | AB135: 0.3015589669 | AC135: 0.158251838 | AD135: 0.9415307189 | AE135: 0.6762276877 | AF135: 0.03117195033 | AG135: 0.02704782702
A136: 126 | B136: 1509.067 | C136: 29.459 | D136: 0.827 | E136: 295.411 | F136: 0.178 | G136: 0.182 | H136: 0.162 | I136: -0.126 | J136: -0.111 | K136: 0 | L136: 0 | M136: 0 | N136: 0 | O136: 0 | P136: 0 | Q136: 0 | R136: 0.2090665064 | S136: 0.2364738726 | T136: 0.1584004491 | U136: 0.488526847 | V136: 0.3879489964 | W136: 0.9540206334 | X136: 0.9040062668 | Y136: 0.474147974 | Z136: 0.3886846314 | AA136: 0.7822875449 | AB136: 0.9721275734 | AC136: 0.7056404676 | AD136: 0.89642258 | AE136: 0.3426425459 | AF136: 0.9989800038 | AG136: 0.5328988446
A137: 127 | B137: 1643.719 | C137: 38.145 | D137: 1.034 | E137: 326.578 | F137: 0.245 | G137: -0.006 | H137: -0.005 | I137: -0.24 | J137: 0.014 | K137: 0 | L137: 0 | M137: 0 | N137: 0 | O137: 0 | P137: 0 | Q137: 0 | R137: 0.3437189965 | S137: 0.4536319595 | T137: 0.4174495116 | U137: 0.5664457911 | V137: 0.7254425973 | W137: 0.4838013408 | X137: 0.4886234868 | Y137: 0.3596162732 | Z137: 0.5136046486 | AA137: 0.9258415044 | AB137: 0.8362040875 | AC137: 0.802999569 | AD137: 0.4023754498 | AE137: 0.07444111779 | AF137: 0.5339388365 | AG137: 0.6442437338
A138: 128 | B138: 1869.652 | C138: 57.16 | D138: 1.255 | E138: 279.033 | F138: 0.241 | G138: 0.162 | H138: -0.175 | I138: 0.243 | J138: 0.359 | K138: 0 | L138: 0 | M138: 0 | N138: 0 | O138: 0 | P138: 0 | Q138: 0 | R138: 0.5696518888 | S138: 0.9290019631 | T138: 0.6932265913 | U138: 0.4475835005 | V138: 0.7035059303 | W138: 0.9059047984 | X138: 0.06287549414 | Y138: 0.8427153968 | Z138: 0.8593140216 | AA138: 0.01318405395 | AB138: 0.6149394428 | AC138: 0.08691983987 | AD138: 0.3409143793 | AE138: 0.5974019552 | AF138: 0.535923203 | AG138: 0.7654672999
A139: 129 | B139: 1828.555 | C139: 38.916 | D139: 0.93 | E139: 407.24 | F139: 0.267 | G139: -0.159 | H139: 0.016 | I139: -0.061 | J139: 0.376 | K139: 0 | L139: 0 | M139: 0 | N139: 0 | O139: 0 | P139: 0 | Q139: 0 | R139: 0.5285545512 | S139: 0.472901726 | T139: 0.288055939 | U139: 0.7681010148 | V139: 0.8340962381 | W139: 0.1014921785 | X139: 0.5399577956 | Y139: 0.5393707234 | Z139: 0.8758712919 | AA139: 0.5656391076 | AB139: 0.6631900349 | AC139: 0.8585048966 | AD139: 0.1407051745 | AE139: 0.04914535559 | AF139: 0.5526048481 | AG139: 0.7337752514
A140: 130 | B140: 2218.631 | C140: 23.901 | D140: 0.845 | E140: 404.752 | F140: 0.207 | G140: -0.094 | H140: 0.019 | I140: -0.453 | J140: -0.443 | K140: 0 | L140: 0 | M140: 0 | N140: 0 | O140: 0 | P140: 0 | Q140: 0 | R140: 0.9186311367 | S140: 0.09753139823 | T140: 0.1815711482 | U140: 0.7618803551 | V140: 0.5371443021 | W140: 0.2640203275 | X140: 0.5477956643 | Y140: 0.1468562733 | Z140: 0.05726278792 | AA140: 0.3012313135 | AB140: 0.2319025804 | AC140: 0.3185201886 | AD140: 0.6227936254 | AE140: 0.6132384226 | AF140: 0.6541278161 | AG140: 0.485713861
A141: 131 | B141: 1728.746 | C141: 22.115 | D141: 0.985 | E141: 467.614 | F141: 0.291 | G141: 0.03 | H141: 0.09 | I141: -0.526 | J141: -0.18 | K141: =ROUND(K$7+AA141*(K$8-K$7),3) -> 0 | L141: =ROUND(L$7+AB141*(L$8-L$7),3) -> 0 | M141: =ROUND(M$7+AC141*(M$8-M$7),3) -> 0 | N141: =ROUND(N$7+AD141*(N$8-N$7),3) -> 0 | O141: =ROUND(O$7+AE141*(O$8-O$7),3) -> 0 | P141: =ROUND(P$7+AF141*(P$8-P$7),3) -> 0 | Q141: =ROUND(Q$7+AG141*(Q$8-Q$7),3) -> 0 | R141: 0.4287456941 | S141: 0.05288089422 | T141: 0.3560297868 | U141: 0.9190357038 | V141: 0.9562703451 | W141: 0.5756459273 | X141: 0.7243560639 | Y141: 0.07410938679 | Z141: 0.3197559215 | AA141: 0.7210125271 | AB141: 0.6776850669 | AC141: 0.9470939987 | AD141: 0.1724775147 | AE141: 0.1513847787 | AF141: 0.8933875035 | AG141: 0.4891982031
A142: 132 | B142: =ROUND(B$7+R142*(B$8-B$7),3) -> 1350.649 | C142: =ROUND(C$7+S142*(C$8-C$7),3) -> 34.803 | D142: =ROUND(D$7+T142*(D$8-D$7),3) -> 0.869 | E142: =ROUND(E$7+U142*(E$8-E$7),3) -> 184.639 | F142: =ROUND(F$7+V142*(F$8-F$7),3) -> 0.213 | G142: =ROUND(G$7+W142*(G$8-G$7),3) -> -0.166 | H142: =ROUND(H$7+X142*(H$8-H$7),3) -> 0.129 | I142: =ROUND(I$7+Y142*(I$8-I$7),3) -> -0.538 | J142: =ROUND(J$7+Z142*(J$8-J$7),3) -> -0.39 | K142: 0 | L142: 0 | M142: 0 | N142: 0 | O142: 0 | P142: 0 | Q142: 0 | R142: 0.05064938338 | S142: 0.3700857987 | T142: 0.2114814233 | U142: 0.2115982991 | V142: 0.5647566592 | W142: 0.08620691328 | X142: 0.82179061 | Y142: 0.06248075045 | Z142: 0.1102048476 | AA142: 0.6017324669 | AB142: 0.4991359123 | AC142: 0.4302337312 | AD142: 0.02952455655 | AE142: 0.04710424711 | AF142: 0.8855846556 | AG142: 0.5361533728
A143: 133 | B143: 1596.642 | C143: 50.682 | D143: 1.387 | E143: 203.497 | F143: 0.202 | G143: -0.124 | H143: -0.173 | I143: 0.383 | J143: 0.263 | K143: 0 | L143: 0 | M143: 0 | N143: 0 | O143: 0 | P143: 0 | Q143: 0 | R143: 0.2966418424 | S143: 0.7670527526 | T143: 0.8582585834 | U143: 0.258741344 | V143: 0.5077946157 | W143: 0.1897176718 | X143: 0.06637413162 | Y143: 0.9827219314 | Z143: 0.7629691803 | AA143: 0.6780032046 | AB143: 0.975749761 | AC143: 0.9650643867 | AD143: 0.4841272741 | AE143: 0.1504000029 | AF143: 0.3456979465 | AG143: 0.5177375045
A144: 134 | B144: 2021.363 | C144: 36.898 | D144: 0.705 | E144: 460.61 | F144: 0.125 | G144: -0.017 | H144: 0.16 | I144: -0.131 | J144: -0.017 | K144: 0 | L144: 0 | M144: 0 | N144: 0 | O144: 0 | P144: 0 | Q144: 0 | R144: 0.7213630243 | S144: 0.4224503989 | T144: 0.006273746929 | U144: 0.9015237988 | V144: 0.1261332446 | W144: 0.4584730828 | X144: 0.9002554002 | Y144: 0.4685362621 | Z144: 0.4829293588 | AA144: 0.8604142301 | AB144: 0.1806858771 | AC144: 0.2164353113 | AD144: 0.8832976334 | AE144: 0.3171451013 | AF144: 0.8687435733 | AG144: 0.4425726537
A145: 135 | B145: 2064.704 | C145: 51.248 | D145: 1.387 | E145: 200.221 | F145: 0.258 | G145: -0.052 | H145: 0.194 | I145: -0.392 | J145: 0.471 | K145: 0 | L145: 0 | M145: 0 | N145: 0 | O145: 0 | P145: 0 | Q145: 0 | R145: 0.7647039793 | S145: 0.781207118 | T145: 0.8590440017 | U145: 0.2505514258 | V145: 0.7891023949 | W145: 0.3695209736 | X145: 0.9859637331 | Y145: 0.2083417108 | Z145: 0.9713853479 | AA145: 0.6683330234 | AB145: 0.8531263504 | AC145: 0.07100898381 | AD145: 0.906351655 | AE145: 0.748377365 | AF145: 0.2385214088 | AG145: 0.9045964775
A146: 136 | B146: 2079.879 | C146: 49.047 | D146: 1.374 | E146: 318.33 | F146: 0.273 | G146: 0.048 | H146: -0.039 | I146: -0.302 | J146: 0.343 | K146: 0 | L146: 0 | M146: 0 | N146: 0 | O146: 0 | P146: 0 | Q146: 0 | R146: 0.7798794035 | S146: 0.7261685409 | T146: 0.8421804426 | U146: 0.5458250747 | V146: 0.8653062713 | W146: 0.6192273709 | X146: 0.4034098411 | Y146: 0.2982888322 | Z146: 0.8432349865 | AA146: 0.7004015178 | AB146: 0.1521337152 | AC146: 0.4341164085 | AD146: 0.7306624557 | AE146: 0.7115444746 | AF146: 0.630588449 | AG146: 0.5951323851
A147: 137 | B147: 1742.159 | C147: 21.437 | D147: 1.286 | E147: 186.509 | F147: 0.134 | G147: 0.064 | H147: 0.052 | I147: -0.119 | J147: -0.047 | K147: 0 | L147: 0 | M147: 0 | N147: 0 | O147: 0 | P147: 0 | Q147: 0 | R147: 0.4421588689 | S147: 0.03593461008 | T147: 0.7325102426 | U147: 0.2162731461 | V147: 0.1702594542 | W147: 0.6592949284 | X147: 0.630046718 | Y147: 0.4810911554 | Z147: 0.4529999726 | AA147: 0.4445729462 | AB147: 0.4268764199 | AC147: 0.2732895209 | AD147: 0.6157209886 | AE147: 0.0558799708 | AF147: 0.3296532654 | AG147: 0.6086744891
A148: 138 | B148: 1555.932 | C148: 29.085 | D148: 1.133 | E148: 385.865 | F148: 0.144 | G148: -0.174 | H148: -0.177 | I148: -0.333 | J148: 0.346 | K148: 0 | L148: 0 | M148: 0 | N148: 0 | O148: 0 | P148: 0 | Q148: 0 | R148: 0.2559324248 | S148: 0.2271206669 | T148: 0.5407542289 | U148: 0.7146632186 | V148: 0.2194920665 | W148: 0.0652487157 | X148: 0.05758368173 | Y148: 0.2667482791 | Z148: 0.8464419882 | AA148: 0.6033304297 | AB148: 0.8363081295 | AC148: 0.4796746248 | AD148: 0.8322325522 | AE148: 0.8672198323 | AF148: 0.2114642608 | AG148: 0.8332266131
A149: 139 | B149: 1967.712 | C149: 48.567 | D149: 1.172 | E149: 216.712 | F149: 0.192 | G149: 0.075 | H149: -0.16 | I149: -0.522 | J149: 0.186 | K149: 0 | L149: 0 | M149: 0 | N149: 0 | O149: 0 | P149: 0 | Q149: 0 | R149: 0.6677122323 | S149: 0.7141801964 | T149: 0.5894548797 | U149: 0.2917790683 | V149: 0.4612768282 | W149: 0.6863706681 | X149: 0.09989928266 | Y149: 0.07806284938 | Z149: 0.6855109186 | AA149: 0.2604362844 | AB149: 0.5089289114 | AC149: 0.8268227763 | AD149: 0.9874823996 | AE149: 0.4475174586 | AF149: 0.6908781835 | AG149: 0.572564585
A150: 140 | B150: 1470.289 | C150: 22.961 | D150: 1.452 | E150: 485.639 | F150: 0.244 | G150: 0.115 | H150: -0.008 | I150: -0.164 | J150: 0.126 | K150: 0 | L150: 0 | M150: 0 | N150: 0 | O150: 0 | P150: 0 | Q150: 0 | R150: 0.1702886575 | S150: 0.0740127953 | T150: 0.9397932575 | U150: 0.9640972901 | V150: 0.7194533174 | W150: 0.7864600426 | X150: 0.4789842328 | Y150: 0.4359205895 | Z150: 0.6261590025 | AA150: 0.2786004652 | AB150: 0.6586983105 | AC150: 0.9825872616 | AD150: 0.5301933544 | AE150: 0.3962638671 | AF150: 0.02340883004 | AG150: 0.7716074625
A151: 141 | B151: 2011.824 | C151: 39.15 | D151: 0.719 | E151: 317.254 | F151: 0.157 | G151: 0.124 | H151: 0.167 | I151: -0.517 | J151: 0.032 | K151: 0 | L151: 0 | M151: 0 | N151: 0 | O151: 0 | P151: 0 | Q151: 0 | R151: 0.711824105 | S151: 0.4787563122 | T151: 0.02330866416 | U151: 0.5431347938 | V151: 0.2833085224 | W151: 0.8095566 | X151: 0.9183357139 | Y151: 0.08298883759 | Z151: 0.5317975859 | AA151: 0.5469211626 | AB151: 0.6314385591 | AC151: 0.3839115187 | AD151: 0.630106288 | AE151: 0.7817567707 | AF151: 0.7151622397 | AG151: 0.1972551384
A152: 142 | B152: 2285.719 | C152: 38.223 | D152: 1.212 | E152: 245.693 | F152: 0.113 | G152: -0.051 | H152: 0.124 | I152: -0.374 | J152: -0.391 | K152: 0 | L152: 0 | M152: 0 | N152: 0 | O152: 0 | P152: 0 | Q152: 0 | R152: 0.9857192522 | S152: 0.4555840041 | T152: 0.6397838858 | U152: 0.3642321328 | V152: 0.06694797291 | W152: 0.3726887813 | X152: 0.8095996433 | Y152: 0.2260654164 | Z152: 0.1088957237 | AA152: 0.3107999934 | AB152: 0.1461229082 | AC152: 0.07558215446 | AD152: 0.5440198892 | AE152: 0.5789821927 | AF152: 0.8744659327 | AG152: 0.7190164472
A153: 143 | B153: 1764.519 | C153: 32.228 | D153: 0.715 | E153: 495.393 | F153: 0.281 | G153: 0.176 | H153: 0.059 | I153: 0.166 | J153: 0.388 | K153: 0 | L153: 0 | M153: 0 | N153: 0 | O153: 0 | P153: 0 | Q153: 0 | R153: 0.4645190015 | S153: 0.3057110313 | T153: 0.01929588452 | U153: 0.9884819467 | V153: 0.9035062688 | W153: 0.940067356 | X153: 0.6483070281 | Y153: 0.7659365709 | Z153: 0.8883959608 | AA153: 0.1147708967 | AB153: 0.3272620702 | AC153: 0.2869089764 | AD153: 0.1742348305 | AE153: 0.8807511491 | AF153: 0.610603505 | AG153: 0.05517373701
A154: 144 | B154: 2255.439 | C154: 55.303 | D154: 1.279 | E154: 250.865 | F154: 0.28 | G154: 0.026 | H154: -0.17 | I154: -0.363 | J154: -0.268 | K154: 0 | L154: 0 | M154: 0 | N154: 0 | O154: 0 | P154: 0 | Q154: 0 | R154: 0.9554385666 | S154: 0.8825725385 | T154: 0.7232736933 | U154: 0.3771619494 | V154: 0.9020297134 | W154: 0.5644820562 | X154: 0.07519650297 | Y154: 0.2367532973 | Z154: 0.2323593658 | AA154: 0.242185902 | AB154: 0.6982816104 | AC154: 0.3556939446 | AD154: 0.2802612508 | AE154: 0.3080866344 | AF154: 0.1768961542 | AG154: 0.3471054762
A155: 145 | B155: 1524.827 | C155: 40.6 | D155: 0.737 | E155: 389.349 | F155: 0.133 | G155: -0.167 | H155: -0.092 | I155: -0.054 | J155: 0.009 | K155: 0 | L155: 0 | M155: 0 | N155: 0 | O155: 0 | P155: 0 | Q155: 0 | R155: 0.224827397 | S155: 0.5150097635 | T155: 0.04582740648 | U155: 0.7233725245 | V155: 0.1663562365 | W155: 0.0819148225 | X155: 0.2689179431 | Y155: 0.5455827339 | Z155: 0.5089020329 | AA155: 0.6244219604 | AB155: 0.9207417604 | AC155: 0.1161075357 | AD155: 0.8141302815 | AE155: 0.512685133 | AF155: 0.8416973669 | AG155: 0.5402638496
A156: 146 | B156: 1304.447 | C156: 42.821 | D156: 1.361 | E156: 271.897 | F156: 0.285 | G156: -0.048 | H156: 0.031 | I156: -0.025 | J156: 0.225 | K156: 0 | L156: 0 | M156: 0 | N156: 0 | O156: 0 | P156: 0 | Q156: 0 | R156: 0.004446879942 | S156: 0.5705220865 | T156: 0.8265804136 | U156: 0.4297413744 | V156: 0.9274279579 | W156: 0.3788212198 | X156: 0.5766165931 | Y156: 0.5750922392 | Z156: 0.724923802 | AA156: 0.9555737666 | AB156: 0.8945281866 | AC156: 0.5485838182 | AD156: 0.3303169243 | AE156: 0.3195022723 | AF156: 0.6964740767 | AG156: 0.8525587935
A157: 147 | B157: 1416.736 | C157: 40.348 | D157: 1.34 | E157: 373.363 | F157: 0.239 | G157: -0.106 | H157: 0.096 | I157: 0.107 | J157: 0.068 | K157: 0 | L157: 0 | M157: 0 | N157: 0 | O157: 0 | P157: 0 | Q157: 0 | R157: 0.1167360437 | S157: 0.508691956 | T157: 0.8002338381 | U157: 0.6834079103 | V157: 0.6972261362 | W157: 0.2346370545 | X157: 0.7402123771 | Y157: 0.7069858379 | Z157: 0.5681934202 | AA157: 0.9719550767 | AB157: 0.4565692685 | AC157: 0.06791163897 | AD157: 0.3414089525 | AE157: 0.1225080962 | AF157: 0.06802653709 | AG157: 0.1667616652
A158: 148 | B158: 1397.113 | C158: 59.513 | D158: 1.377 | E158: 177.669 | F158: 0.168 | G158: -0.027 | H158: 0.041 | I158: 0.069 | J158: 0.357 | K158: 0 | L158: 0 | M158: 0 | N158: 0 | O158: 0 | P158: 0 | Q158: 0 | R158: 0.09711289305 | S158: 0.9878236523 | T158: 0.8465771156 | U158: 0.1941736491 | V158: 0.3375220891 | W158: 0.4335154896 | X158: 0.6033606668 | Y158: 0.6687276547 | Z158: 0.8570688549 | AA158: 0.8431792484 | AB158: 0.3071078535 | AC158: 0.3796983631 | AD158: 0.9519194293 | AE158: 0.5328085084 | AF158: 0.5663457787 | AG158: 0.005848929489
A159: 149 | B159: 1624.512 | C159: 58.375 | D159: 0.866 | E159: 368.809 | F159: 0.144 | G159: -0.014 | H159: -0.089 | I159: -0.432 | J159: -0.021 | K159: 0 | L159: 0 | M159: 0 | N159: 0 | O159: 0 | P159: 0 | Q159: 0 | R159: 0.3245123206 | S159: 0.9593869165 | T159: 0.2068794067 | U159: 0.6720217489 | V159: 0.2206793959 | W159: 0.4653720078 | X159: 0.2765936291 | Y159: 0.1675196716 | Z159: 0.4786395033 | AA159: 0.5803867902 | AB159: 0.5480493834 | AC159: 0.3355722299 | AD159: 0.06820694988 | AE159: 0.4284236051 | AF159: 0.1847836683 | AG159: 0.3010778902
A160: 150 | B160: 1341.91 | C160: 29.128 | D160: 0.981 | E160: 155.458 | F160: 0.167 | G160: 0.04 | H160: 0.146 | I160: -0.425 | J160: -0.026 | K160: 0 | L160: 0 | M160: 0 | N160: 0 | O160: 0 | P160: 0 | Q160: 0 | R160: 0.04191030494 | S160: 0.2281941727 | T160: 0.3518412168 | U160: 0.1386456852 | V160: 0.3348236565 | W160: 0.5998313365 | X160: 0.8657574397 | Y160: 0.1751949502 | Z160: 0.4739547267 | AA160: 0.5907791837 | AB160: 0.2097272728 | AC160: 0.001925953184 | AD160: 0.9480418513 | AE160: 0.3052145845 | AF160: 0.4250529179 | AG160: 0.03540599845
A161: 151 | B161: 1402.853 | C161: 55.24 | D161: 0.916 | E161: 151.606 | F161: 0.165 | G161: -0.002 | H161: 0.099 | I161: -0.143 | J161: 0.028 | K161: 0 | L161: 0 | M161: 0 | N161: 0 | O161: 0 | P161: 0 | Q161: 0 | R161: 0.1028528236 | S161: 0.8809887769 | T161: 0.2699757486 | U161: 0.1290138119 | V161: 0.3229966838 | W161: 0.4949425787 | X161: 0.7477657657 | Y161: 0.4571243359 | Z161: 0.5276792105 | AA161: 0.4311109604 | AB161: 0.9495767729 | AC161: 0.6377101293 | AD161: 0.4022834304 | AE161: 0.9448043729 | AF161: 0.7703698433 | AG161: 0.5823516946
A162: 152 | B162: 1429.05 | C162: 36.853 | D162: 1.4 | E162: 113.379 | F162: 0.179 | G162: 0.153 | H162: 0.048 | I162: 0.381 | J162: -0.345 | K162: 0 | L162: 0 | M162: 0 | N162: 0 | O162: 0 | P162: 0 | Q162: 0 | R162: 0.1290503774 | S162: 0.421312995 | T162: 0.8747824776 | U162: 0.0334468484 | V162: 0.3957508818 | W162: 0.8827881264 | X162: 0.6200809278 | Y162: 0.9813900112 | Z162: 0.1551129834 | AA162: 0.1840275857 | AB162: 0.2159658555 | AC162: 0.3007991782 | AD162: 0.4990058813 | AE162: 0.8508592601 | AF162: 0.8316557664 | AG162: 0.0130820443
A163: 153 | B163: 1735.282 | C163: 51.202 | D163: 0.967 | E163: 471.061 | F163: 0.27 | G163: 0.141 | H163: 0.018 | I163: 0.16 | J163: -0.354 | K163: 0 | L163: 0 | M163: 0 | N163: 0 | O163: 0 | P163: 0 | Q163: 0 | R163: 0.4352815796 | S163: 0.7800607655 | T163: 0.334104121 | U163: 0.9276518192 | V163: 0.851364029 | W163: 0.8524095184 | X163: 0.545113599 | Y163: 0.7604867897 | Z163: 0.1458893272 | AA163: 0.4334748639 | AB163: 0.9379530203 | AC163: 0.2739463017 | AD163: 0.8133481553 | AE163: 0.6661655591 | AF163: 0.07949467266 | AG163: 0.2502906062
A164: 154 | B164: 1376.401 | C164: 56.117 | D164: 1.5 | E164: 485.993 | F164: 0.12 | G164: -0.101 | H164: 0.183 | I164: 0.255 | J164: 0.412 | K164: 0 | L164: 0 | M164: 0 | N164: 0 | O164: 0 | P164: 0 | Q164: 0 | R164: 0.07640134619 | S164: 0.9029143067 | T164: 0.9996555532 | U164: 0.9649834202 | V164: 0.1010541224 | W164: 0.247377252 | X164: 0.9580683261 | Y164: 0.8551307666 | Z164: 0.9118700748 | AA164: 0.8648181055 | AB164: 0.8827051227 | AC164: 0.6635129803 | AD164: 0.5120750954 | AE164: 0.394912859 | AF164: 0.2332607101 | AG164: 0.9766006078
A165: 155 | B165: 1475.732 | C165: 56.166 | D165: 0.801 | E165: 425.515 | F165: 0.271 | G165: 0.037 | H165: -0.096 | I165: 0.04 | J165: 0.244 | K165: 0 | L165: 0 | M165: 0 | N165: 0 | O165: 0 | P165: 0 | Q165: 0 | R165: 0.1757324577 | S165: 0.9041593129 | T165: 0.1260828144 | U165: 0.8137865764 | V165: 0.8566120152 | W165: 0.5918931108 | X165: 0.2590387346 | Y165: 0.6396159706 | Z165: 0.7436240324 | AA165: 0.9135303128 | AB165: 0.8320750536 | AC165: 0.6607247043 | AD165: 0.901803765 | AE165: 0.03223369566 | AF165: 0.7825394862 | AG165: 0.3075260581
A166: 156 | B166: 1655.357 | C166: 33.358 | D166: 1.112 | E166: 165.984 | F166: 0.195 | G166: -0.125 | H166: -0.168 | I166: -0.595 | J166: 0.068 | K166: 0 | L166: 0 | M166: 0 | N166: 0 | O166: 0 | P166: 0 | Q166: 0 | R166: 0.3553574567 | S166: 0.3339442426 | T166: 0.5146925796 | U166: 0.1649596228 | V166: 0.4755666182 | W166: 0.1883230485 | X166: 0.08049056343 | Y166: 0.004504554746 | Z166: 0.5684529663 | AA166: 0.4665496887 | AB166: 0.6451784632 | AC166: 0.8006806791 | AD166: 0.9263377269 | AE166: 0.690655406 | AF166: 0.7885421053 | AG166: 0.9791396935
A167: 157 | B167: 1713.606 | C167: 44.654 | D167: 1.116 | E167: 116.348 | F167: 0.152 | G167: -0.056 | H167: 0.169 | I167: 0.368 | J167: -0.234 | K167: 0 | L167: 0 | M167: 0 | N167: 0 | O167: 0 | P167: 0 | Q167: 0 | R167: 0.4136059972 | S167: 0.6163467803 | T167: 0.5199724963 | U167: 0.04086922502 | V167: 0.2621487165 | W167: 0.3608056442 | X167: 0.9222286861 | Y167: 0.9682822689 | Z167: 0.2663834815 | AA167: 0.21520668 | AB167: 0.265868955 | AC167: 0.7825024694 | AD167: 0.009197270055 | AE167: 0.6559542349 | AF167: 0.01866525581 | AG167: 0.02470781163
A168: 158 | B168: 1657.063 | C168: 47.524 | D168: 1.141 | E168: 153.995 | F168: 0.267 | G168: 0.154 | H168: -0.098 | I168: -0.243 | J168: -0.463 | K168: 0 | L168: 0 | M168: 0 | N168: 0 | O168: 0 | P168: 0 | Q168: 0 | R168: 0.357063443 | S168: 0.6880903736 | T168: 0.5507667406 | U168: 0.1349869962 | V168: 0.8328253413 | W168: 0.8847299963 | X168: 0.2556558729 | Y168: 0.3569863544 | Z168: 0.03654541087 | AA168: 0.6776480964 | AB168: 0.8245316545 | AC168: 0.4888713247 | AD168: 0.4866462194 | AE168: 0.7870020533 | AF168: 0.1577380748 | AG168: 0.5826150627
A169: 159 | B169: 1917.205 | C169: 45.523 | D169: 1.11 | E169: 139.001 | F169: 0.144 | G169: 0.167 | H169: -0.14 | I169: -0.276 | J169: 0.304 | K169: 0 | L169: 0 | M169: 0 | N169: 0 | O169: 0 | P169: 0 | Q169: 0 | R169: 0.6172046828 | S169: 0.6380726016 | T169: 0.5127621348 | U169: 0.09750200601 | V169: 0.2197636852 | W169: 0.9163294965 | X169: 0.1495690373 | Y169: 0.3241718685 | Z169: 0.8042438998 | AA169: 0.5799339273 | AB169: 0.06262720431 | AC169: 0.2488839658 | AD169: 0.1616571274 | AE169: 0.3825502506 | AF169: 0.168029484 | AG169: 0.5056958199
A170: 160 | B170: 1743.899 | C170: 44.867 | D170: 0.821 | E170: 126.871 | F170: 0.163 | G170: 0.153 | H170: 0.12 | I170: -0.552 | J170: 0.025 | K170: 0 | L170: 0 | M170: 0 | N170: 0 | O170: 0 | P170: 0 | Q170: 0 | R170: 0.443898637 | S170: 0.6216713518 | T170: 0.150819041 | U170: 0.06717851936 | V170: 0.3174101481 | W170: 0.8815849933 | X170: 0.8003050667 | Y170: 0.0479969648 | Z170: 0.5254753633 | AA170: 0.8338467046 | AB170: 0.5680176169 | AC170: 0.1213210913 | AD170: 0.8940825049 | AE170: 0.4530794955 | AF170: 0.1035750791 | AG170: 0.6665525576
A171: 161 | B171: 2101.644 | C171: 34.088 | D171: 1.328 | E171: 170.649 | F171: 0.206 | G171: 0.043 | H171: 0.157 | I171: -0.212 | J171: 0.257 | K171: 0 | L171: 0 | M171: 0 | N171: 0 | O171: 0 | P171: 0 | Q171: 0 | R171: 0.8016435986 | S171: 0.3522011693 | T171: 0.7849694603 | U171: 0.1766227099 | V171: 0.5322601085 | W171: 0.6080785409 | X171: 0.892528166 | Y171: 0.3875591326 | Z171: 0.7568407611 | AA171: 0.2631601389 | AB171: 0.5359081346 | AC171: 0.6841506485 | AD171: 0.4550390486 | AE171: 0.27432735 | AF171: 0.22041162 | AG171: 0.01361711839
A172: 162 | B172: 1358.342 | C172: 43.534 | D172: 1.106 | E172: 352.791 | F172: 0.236 | G172: -0.171 | H172: 0.018 | I172: -0.046 | J172: 0.204 | K172: 0 | L172: 0 | M172: 0 | N172: 0 | O172: 0 | P172: 0 | Q172: 0 | R172: 0.05834201348 | S172: 0.588361685 | T172: 0.5077809522 | U172: 0.631977671 | V172: 0.6820580548 | W172: 0.07356335738 | X172: 0.5438014735 | Y172: 0.5538259462 | Z172: 0.7042118668 | AA172: 0.1067948287 | AB172: 0.05528951202 | AC172: 0.2951986192 | AD172: 0.6861684593 | AE172: 0.7204757905 | AF172: 0.7043740618 | AG172: 0.8760859009
A173: 163 | B173: 2298.91 | C173: 39.073 | D173: 1.398 | E173: 498.675 | F173: 0.208 | G173: 0.139 | H173: -0.173 | I173: -0.284 | J173: 0.211 | K173: 0 | L173: 0 | M173: 0 | N173: 0 | O173: 0 | P173: 0 | Q173: 0 | R173: 0.9989095334 | S173: 0.4768138546 | T173: 0.8719979034 | U173: 0.9966873326 | V173: 0.5417282696 | W173: 0.8472408142 | X173: 0.06659444918 | Y173: 0.3155773498 | Z173: 0.7114136931 | AA173: 0.800615461 | AB173: 0.9680746106 | AC173: 0.7673535438 | AD173: 0.7830939561 | AE173: 0.2092906782 | AF173: 0.670579904 | AG173: 0.1493629172
A174: 164 | B174: 2040.138 | C174: 31.551 | D174: 0.984 | E174: 498.937 | F174: 0.278 | G174: -0.176 | H174: 0.015 | I174: -0.467 | J174: -0.103 | K174: 0 | L174: 0 | M174: 0 | N174: 0 | O174: 0 | P174: 0 | Q174: 0 | R174: 0.7401375131 | S174: 0.2887625295 | T174: 0.3552250884 | U174: 0.9973418127 | V174: 0.89004602 | W174: 0.06012865268 | X174: 0.5363750805 | Y174: 0.1332001943 | Z174: 0.3972071952 | AA174: 0.2491345392 | AB174: 0.6371232197 | AC174: 0.8441626026 | AD174: 0.4969984266 | AE174: 0.5964598034 | AF174: 0.4409526005 | AG174: 0.7258629557
A175: 165 | B175: 1853.519 | C175: 51.646 | D175: 1.256 | E175: 386.85 | F175: 0.188 | G175: 0.172 | H175: 0.115 | I175: 0.314 | J175: -0.153 | K175: 0 | L175: 0 | M175: 0 | N175: 0 | O175: 0 | P175: 0 | Q175: 0 | R175: 0.5535187685 | S175: 0.7911482584 | T175: 0.6946734175 | U175: 0.7171241289 | V175: 0.441520568 | W175: 0.9290459538 | X175: 0.7885184028 | Y175: 0.9144359383 | Z175: 0.3466362587 | AA175: 0.8025264173 | AB175: 0.3374939934 | AC175: 0.6566140364 | AD175: 0.3985815146 | AE175: 0.2014097274 | AF175: 0.4896986075 | AG175: 0.3087462218
A176: 166 | B176: 1584.963 | C176: 57.535 | D176: 1.104 | E176: 484.221 | F176: 0.128 | G176: 0.199 | H176: -0.13 | I176: 0.03 | J176: 0.052 | K176: 0 | L176: 0 | M176: 0 | N176: 0 | O176: 0 | P176: 0 | Q176: 0 | R176: 0.2849633361 | S176: 0.938385833 | T176: 0.5050730758 | U176: 0.9605531249 | V176: 0.1387513626 | W176: 0.9978162028 | X176: 0.1756321687 | Y176: 0.630481292 | Z176: 0.5522599815 | AA176: 0.9750873792 | AB176: 0.5018136502 | AC176: 0.5805433709 | AD176: 0.3007990928 | AE176: 0.2821682454 | AF176: 0.4852139761 | AG176: 0.01142240023
A177: 167 | B177: 2264.937 | C177: 41.261 | D177: 0.946 | E177: 140.158 | F177: 0.262 | G177: 0.025 | H177: 0.128 | I177: 0.018 | J177: -0.22 | K177: 0 | L177: 0 | M177: 0 | N177: 0 | O177: 0 | P177: 0 | Q177: 0 | R177: 0.9649372366 | S177: 0.5315216312 | T177: 0.3071188763 | U177: 0.1003961767 | V177: 0.8100572602 | W177: 0.5617311182 | X177: 0.8187853911 | Y177: 0.618273036 | Z177: 0.2797030827 | AA177: 0.5072145527 | AB177: 0.1027145531 | AC177: 0.9094360164 | AD177: 0.5867243212 | AE177: 0.9789480369 | AF177: 0.3315726316 | AG177: 0.9355347697
A178: 168 | B178: 1624.244 | C178: 46.339 | D178: 1.454 | E178: 338.474 | F178: 0.28 | G178: 0.187 | H178: -0.171 | I178: -0.558 | J178: 0.49 | K178: 0 | L178: 0 | M178: 0 | N178: 0 | O178: 0 | P178: 0 | Q178: 0 | R178: 0.3242443235 | S178: 0.6584781444 | T178: 0.9430023478 | U178: 0.5961838542 | V178: 0.9020337827 | W178: 0.9665493615 | X178: 0.07182182562 | Y178: 0.04230409032 | Z178: 0.9895876917 | AA178: 0.8890454852 | AB178: 0.8876558702 | AC178: 0.05271713622 | AD178: 0.5772163625 | AE178: 0.1344981738 | AF178: 0.3476118418 | AG178: 0.8337579682
A179: 169 | B179: 1636.678 | C179: 50.773 | D179: 1.305 | E179: 447.186 | F179: 0.108 | G179: -0.03 | H179: 0.051 | I179: -0.48 | J179: 0.282 | K179: 0 | L179: 0 | M179: 0 | N179: 0 | O179: 0 | P179: 0 | Q179: 0 | R179: 0.3366776536 | S179: 0.7693162781 | T179: 0.7560381199 | U179: 0.8679649797 | V179: 0.03920227708 | W179: 0.4245415219 | X179: 0.6266307064 | Y179: 0.1203398116 | Z179: 0.7819904118 | AA179: 0.3866479697 | AB179: 0.3453373872 | AC179: 0.673191379 | AD179: 0.4814793459 | AE179: 0.7738140249 | AF179: 0.7130568134 | AG179: 0.8310725765
A180: 170 | B180: 2261.801 | C180: 23.315 | D180: 0.939 | E180: 277.298 | F180: 0.158 | G180: 0.17 | H180: -0.04 | I180: 0.194 | J180: 0.498 | K180: 0 | L180: 0 | M180: 0 | N180: 0 | O180: 0 | P180: 0 | Q180: 0 | R180: 0.9618008868 | S180: 0.08288524253 | T180: 0.2982114932 | U180: 0.4432446273 | V180: 0.2901849431 | W180: 0.9250438439 | X180: 0.400968487 | Y180: 0.7943029987 | Z180: 0.9976753396 | AA180: 0.4020982492 | AB180: 0.7444265436 | AC180: 0.05382733743 | AD180: 0.3087690666 | AE180: 0.862867122 | AF180: 0.1698597675 | AG180: 0.2312545988
A181: 171 | B181: 1846.32 | C181: 55.667 | D181: 1.336 | E181: 274.855 | F181: 0.188 | G181: -0.022 | H181: 0 | I181: 0.194 | J181: 0.024 | K181: 0 | L181: 0 | M181: 0 | N181: 0 | O181: 0 | P181: 0 | Q181: 0 | R181: 0.5463198908 | S181: 0.8916633189 | T181: 0.7950643148 | U181: 0.4371386315 | V181: 0.4380013575 | W181: 0.4439086593 | X181: 0.4999768503 | Y181: 0.7938837149 | Z181: 0.524469799 | AA181: 0.7403229889 | AB181: 0.7516333685 | AC181: 0.1037516372 | AD181: 0.4747779493 | AE181: 0.8953183829 | AF181: 0.3746853834 | AG181: 0.02578046639
A182: 172 | B182: 2035.947 | C182: 59.405 | D182: 1.018 | E182: 215.296 | F182: 0.201 | G182: 0.179 | H182: 0.151 | I182: 0.254 | J182: -0.016 | K182: 0 | L182: 0 | M182: 0 | N182: 0 | O182: 0 | P182: 0 | Q182: 0 | R182: 0.7359473476 | S182: 0.9851338563 | T182: 0.3971143534 | U182: 0.2882396787 | V182: 0.507247665 | W182: 0.9474683696 | X182: 0.8780266738 | Y182: 0.8536065214 | Z182: 0.4837652404 | AA182: 0.658572838 | AB182: 0.650800286 | AC182: 0.2483126611 | AD182: 0.5838466954 | AE182: 0.4728207223 | AF182: 0.533585908 | AG182: 0.5391481506
A183: 173 | B183: 1636.446 | C183: 27.193 | D183: 0.827 | E183: 163.486 | F183: 0.202 | G183: -0.103 | H183: 0.021 | I183: -0.391 | J183: 0.376 | K183: 0 | L183: 0 | M183: 0 | N183: 0 | O183: 0 | P183: 0 | Q183: 0 | R183: 0.3364458448 | S183: 0.1798296597 | T183: 0.1589252821 | U183: 0.1587151316 | V183: 0.5082517767 | W183: 0.2413142995 | X183: 0.5516064026 | Y183: 0.2085396354 | Z183: 0.8757124093 | AA183: 0.7303561252 | AB183: 0.9547123574 | AC183: 0.5076830593 | AD183: 0.2263851118 | AE183: 0.9154925451 | AF183: 0.3895394529 | AG183: 0.0570022021
A184: 174 | B184: 2048.903 | C184: 53.79 | D184: 1.448 | E184: 354.055 | F184: 0.194 | G184: 0.032 | H184: -0.007 | I184: 0.084 | J184: 0.278 | K184: 0 | L184: 0 | M184: 0 | N184: 0 | O184: 0 | P184: 0 | Q184: 0 | R184: 0.7489031667 | S184: 0.844745448 | T184: 0.9347311239 | U184: 0.6351363655 | V184: 0.4715248695 | W184: 0.5793340388 | X184: 0.4823411858 | Y184: 0.6842119491 | Z184: 0.7782494383 | AA184: 0.5033781344 | AB184: 0.9874586332 | AC184: 0.9397969824 | AD184: 0.08598719641 | AE184: 0.3908103923 | AF184: 0.5910257526 | AG184: 0.4611885306
A185: 175 | B185: 1936.811 | C185: 36.569 | D185: 0.83 | E185: 298.431 | F185: 0.244 | G185: 0.028 | H185: 0.052 | I185: -0.316 | J185: -0.192 | K185: 0 | L185: 0 | M185: 0 | N185: 0 | O185: 0 | P185: 0 | Q185: 0 | R185: 0.6368106562 | S185: 0.4142276415 | T185: 0.1623862685 | U185: 0.496076781 | V185: 0.7220365535 | W185: 0.5696737992 | X185: 0.6310605394 | Y185: 0.2836523048 | Z185: 0.3075505799 | AA185: 0.07751427566 | AB185: 0.2909894975 | AC185: 0.8190923741 | AD185: 0.7646559951 | AE185: 0.4525309073 | AF185: 0.8676682017 | AG185: 0.7029785753
A186: 176 | B186: 1619.338 | C186: 51.035 | D186: 1.354 | E186: 275.316 | F186: 0.108 | G186: 0.136 | H186: 0.179 | I186: -0.087 | J186: 0.235 | K186: 0 | L186: 0 | M186: 0 | N186: 0 | O186: 0 | P186: 0 | Q186: 0 | R186: 0.3193382283 | S186: 0.7758653465 | T186: 0.8172108013 | U186: 0.4382889754 | V186: 0.03943278157 | W186: 0.8398878394 | X186: 0.9470461621 | Y186: 0.5131992988 | Z186: 0.735399087 | AA186: 0.4995369999 | AB186: 0.3406472643 | AC186: 0.7270687817 | AD186: 0.7457256016 | AE186: 0.929828664 | AF186: 0.7755963809 | AG186: 0.6139368176
A187: 177 | B187: 1491.329 | C187: 35.029 | D187: 0.735 | E187: 321.172 | F187: 0.26 | G187: -0.082 | H187: 0.089 | I187: -0.163 | J187: 0.499 | K187: 0 | L187: 0 | M187: 0 | N187: 0 | O187: 0 | P187: 0 | Q187: 0 | R187: 0.1913293259 | S187: 0.3757179653 | T187: 0.04368024775 | U187: 0.5529299326 | V187: 0.7993490685 | W187: 0.2961128877 | X187: 0.7213557268 | Y187: 0.4371683041 | Z187: 0.9990657707 | AA187: 0.7851823537 | AB187: 0.7371503046 | AC187: 0.1192683292 | AD187: 0.4745944161 | AE187: 0.001948837536 | AF187: 0.2255030887 | AG187: 0.3288334911
A188: 178 | B188: 1717.89 | C188: 30.023 | D188: 1.161 | E188: 277.836 | F188: 0.236 | G188: -0.092 | H188: 0.173 | I188: -0.184 | J188: -0.148 | K188: 0 | L188: 0 | M188: 0 | N188: 0 | O188: 0 | P188: 0 | Q188: 0 | R188: 0.4178897805 | S188: 0.250565518 | T188: 0.5758533013 | U188: 0.4445891953 | V188: 0.6797125676 | W188: 0.2701770639 | X188: 0.9337201075 | Y188: 0.4161379765 | Z188: 0.3519934311 | AA188: 0.8381369093 | AB188: 0.6201991829 | AC188: 0.537541046 | AD188: 0.5690471136 | AE188: 0.06310561053 | AF188: 0.4973612753 | AG188: 0.510234384
A189: 179 | B189: 2245.713 | C189: 48.975 | D189: 1.054 | E189: 257.407 | F189: 0.239 | G189: 0.166 | H189: -0.084 | I189: 0.367 | J189: -0.144 | K189: 0 | L189: 0 | M189: 0 | N189: 0 | O189: 0 | P189: 0 | Q189: 0 | R189: 0.9457132709 | S189: 0.7243760479 | T189: 0.4421997917 | U189: 0.3935179413 | V189: 0.6964673588 | W189: 0.9160649463 | X189: 0.2889955443 | Y189: 0.9666316865 | Z189: 0.3555415749 | AA189: 0.6516824315 | AB189: 0.8696847619 | AC189: 0.2848728789 | AD189: 0.5739240352 | AE189: 0.325092243 | AF189: 0.142444963 | AG189: 0.3550221748
A190: 180 | B190: 2288.263 | C190: 50.546 | D190: 1.277 | E190: 384.554 | F190: 0.131 | G190: -0.012 | H190: -0.107 | I190: -0.268 | J190: 0.483 | K190: 0 | L190: 0 | M190: 0 | N190: 0 | O190: 0 | P190: 0 | Q190: 0 | R190: 0.988262626 | S190: 0.7636589642 | T190: 0.7209171315 | U190: 0.7113850713 | V190: 0.1561087283 | W190: 0.4695040998 | X190: 0.2329902258 | Y190: 0.3321332129 | Z190: 0.9834870587 | AA190: 0.1858084106 | AB190: 0.4724319877 | AC190: 0.3933537742 | AD190: 0.4065525151 | AE190: 0.9382048845 | AF190: 0.2639771549 | AG190: 0.7454196467
A191: 181 | B191: 1571.258 | C191: 23.091 | D191: 1.201 | E191: 228.571 | F191: 0.241 | G191: -0.02 | H191: -0.099 | I191: -0.147 | J191: 0.038 | K191: 0 | L191: 0 | M191: 0 | N191: 0 | O191: 0 | P191: 0 | Q191: 0 | R191: 0.2712579689 | S191: 0.07728664286 | T191: 0.625669721 | U191: 0.3214281829 | V191: 0.7036570707 | W191: 0.4493652194 | X191: 0.2513789775 | Y191: 0.4533946986 | Z191: 0.5381289902 | AA191: 0.1172792168 | AB191: 0.2407049478 | AC191: 0.1022224056 | AD191: 0.5540283913 | AE191: 0.1566720337 | AF191: 0.1923364855 | AG191: 0.784758698
A192: 182 | B192: 1814.927 | C192: 35.802 | D192: 1.114 | E192: 489.976 | F192: 0.187 | G192: -0.096 | H192: 0.064 | I192: -0.163 | J192: 0.21 | K192: 0 | L192: 0 | M192: 0 | N192: 0 | O192: 0 | P192: 0 | Q192: 0 | R192: 0.5149265128 | S192: 0.3950532617 | T192: 0.5170697635 | U192: 0.9749404239 | V192: 0.4347536794 | W192: 0.2599884968 | X192: 0.6611520913 | Y192: 0.4371182084 | Z192: 0.7104843027 | AA192: 0.6072201275 | AB192: 0.6802405763 | AC192: 0.3633487376 | AD192: 0.4371659434 | AE192: 0.4814498857 | AF192: 0.2555581625 | AG192: 0.9468373292
A193: 183 | B193: 1754.012 | C193: 32.43 | D193: 1.16 | E193: 439.65 | F193: 0.191 | G193: -0.004 | H193: 0.077 | I193: 0.228 | J193: 0.041 | K193: 0 | L193: 0 | M193: 0 | N193: 0 | O193: 0 | P193: 0 | Q193: 0 | R193: 0.454012278 | S193: 0.310744948 | T193: 0.5749467328 | U193: 0.8491256385 | V193: 0.4565005682 | W193: 0.4897668902 | X193: 0.6917635281 | Y193: 0.8280968056 | Z193: 0.5414921076 | AA193: 0.7405581693 | AB193: 0.1223262146 | AC193: 0.6355940656 | AD193: 0.6391001185 | AE193: 0.06239704262 | AF193: 0.1835981441 | AG193: 0.6053874246
A194: 184 | B194: 1824.764 | C194: 40.927 | D194: 1.23 | E194: 437.621 | F194: 0.155 | G194: -0.107 | H194: -0.123 | I194: -0.379 | J194: 0.49 | K194: 0 | L194: 0 | M194: 0 | N194: 0 | O194: 0 | P194: 0 | Q194: 0 | R194: 0.5247644051 | S194: 0.523169716 | T194: 0.6621115837 | U194: 0.8440513533 | V194: 0.2738649347 | W194: 0.2321316271 | X194: 0.1929009131 | Y194: 0.221056177 | Z194: 0.9898200294 | AA194: 0.3210656477 | AB194: 0.9675350027 | AC194: 0.6780973435 | AD194: 0.6735106354 | AE194: 0.3448242654 | AF194: 0.4307939491 | AG194: 0.4599221019
A195: 185 | B195: 1506.19 | C195: 56.085 | D195: 0.784 | E195: 385.954 | F195: 0.211 | G195: 0.055 | H195: 0.191 | I195: -0.121 | J195: 0.455 | K195: 0 | L195: 0 | M195: 0 | N195: 0 | O195: 0 | P195: 0 | Q195: 0 | R195: 0.206190253 | S195: 0.9021212249 | T195: 0.1053658552 | U195: 0.7148849563 | V195: 0.5530553083 | W195: 0.6366407135 | X195: 0.9775681271 | Y195: 0.4790946246 | Z195: 0.9546862509 | AA195: 0.8384681008 | AB195: 0.6674265664 | AC195: 0.2564052 | AD195: 0.9702301262 | AE195: 0.5677777124 | AF195: 0.9679994614 | AG195: 0.8235122623
A196: 186 | B196: 1686.682 | C196: 20.918 | D196: 1.214 | E196: 482.722 | F196: 0.172 | G196: -0.061 | H196: 0.128 | I196: -0.045 | J196: 0.462 | K196: 0 | L196: 0 | M196: 0 | N196: 0 | O196: 0 | P196: 0 | Q196: 0 | R196: 0.386681927 | S196: 0.02294190572 | T196: 0.6427786827 | U196: 0.9568053586 | V196: 0.3603259308 | W196: 0.3484731158 | X196: 0.819559406 | Y196: 0.5545157609 | Z196: 0.962433113 | AA196: 0.7557354866 | AB196: 0.3339976497 | AC196: 0.2694190837 | AD196: 0.4940437655 | AE196: 0.005747036102 | AF196: 0.6445548961 | AG196: 0.92813948
A197: 187 | B197: 1549.182 | C197: 21.883 | D197: 1.338 | E197: 402.198 | F197: 0.245 | G197: 0.011 | H197: -0.179 | I197: 0.101 | J197: -0.19 | K197: 0 | L197: 0 | M197: 0 | N197: 0 | O197: 0 | P197: 0 | Q197: 0 | R197: 0.2491824998 | S197: 0.04708359636 | T197: 0.7977028473 | U197: 0.7554958875 | V197: 0.7260080387 | W197: 0.5268273406 | X197: 0.05205897 | Y197: 0.7008057047 | Z197: 0.3100374864 | AA197: 0.819285397 | AB197: 0.7297947797 | AC197: 0.4093274337 | AD197: 0.8538328249 | AE197: 0.1829646393 | AF197: 0.4128343199 | AG197: 0.3730899682
A198: 188 | B198: 1861.003 | C198: 56.605 | D198: 1.02 | E198: 292.248 | F198: 0.12 | G198: -0.089 | H198: -0.073 | I198: -0.531 | J198: 0.089 | K198: 0 | L198: 0 | M198: 0 | N198: 0 | O198: 0 | P198: 0 | Q198: 0 | R198: 0.5610026925 | S198: 0.9151352537 | T198: 0.4000070131 | U198: 0.4806187946 | V198: 0.1019177675 | W198: 0.2785665589 | X198: 0.3182768048 | Y198: 0.06924297564 | Z198: 0.5889881631 | AA198: 0.9174525924 | AB198: 0.3058188929 | AC198: 0.8057373189 | AD198: 0.6099457387 | AE198: 0.9231381934 | AF198: 0.8920067052 | AG198: 0.2901277468
A199: 189 | B199: 1641.995 | C199: 40.534 | D199: 0.709 | E199: 311.066 | F199: 0.208 | G199: 0.066 | H199: 0.039 | I199: 0.22 | J199: -0.232 | K199: 0 | L199: 0 | M199: 0 | N199: 0 | O199: 0 | P199: 0 | Q199: 0 | R199: 0.3419953281 | S199: 0.5133391721 | T199: 0.01062755409 | U199: 0.5276644272 | V199: 0.5424864978 | W199: 0.6643649328 | X199: 0.5973546496 | Y199: 0.8197377646 | Z199: 0.2678025732 | AA199: 0.593068378 | AB199: 0.3555192736 | AC199: 0.2928236113 | AD199: 0.1055896977 | AE199: 0.9252009939 | AF199: 0.8167454794 | AG199: 0.07496058512
A200: 190 | B200: 1870.783 | C200: 39.204 | D200: 0.845 | E200: 312.442 | F200: 0.273 | G200: 0.096 | H200: -0.064 | I200: -0.167 | J200: 0.341 | K200: 0 | L200: 0 | M200: 0 | N200: 0 | O200: 0 | P200: 0 | Q200: 0 | R200: 0.5707827824 | S200: 0.4801025843 | T200: 0.1809238166 | U200: 0.5311041317 | V200: 0.8643242183 | W200: 0.741180173 | X200: 0.3410734019 | Y200: 0.4329525998 | Z200: 0.84135428 | AA200: 0.1425895026 | AB200: 0.8960208568 | AC200: 0.6631516333 | AD200: 0.9093285986 | AE200: 0.964677884 | AF200: 0.1603547605 | AG200: 0.3127525566
A201: 191 | B201: 1941.765 | C201: 44.605 | D201: 0.981 | E201: 160.35 | F201: 0.133 | G201: -0.176 | H201: 0.037 | I201: -0.532 | J201: 0.316 | K201: 0 | L201: 0 | M201: 0 | N201: 0 | O201: 0 | P201: 0 | Q201: 0 | R201: 0.6417646876 | S201: 0.6151335023 | T201: 0.3506766083 | U201: 0.1508751273 | V201: 0.1663722818 | W201: 0.05899518542 | X201: 0.5913258033 | Y201: 0.06837337556 | Z201: 0.8156910428 | AA201: 0.1447247377 | AB201: 0.2811440812 | AC201: 0.5835978111 | AD201: 0.025763923 | AE201: 0.6934810971 | AF201: 0.6944258113 | AG201: 0.9133357943
... 374 more rows

Sheet welcome
OYM1: 0
E2: DairyVIP | OYM2: 0
E3: version 2.1 (6 JANUARY 2015)
E4: Evaluation of consequences of changes in | I4: Copyright © Albert De Vries | OYM4: 0
E5: herd management and prices on dairy farms | I5: Financial support was received from the | P5: ENABLE MACROS to RUN DAIRYVIP | OYM5: 0
I6: Southeast Milk Inc. Dairy Check-off program, and | OYM6: 0
C7: developed by | I7: IFAFS grant no. 2001-52101-11318 from USDA-CSREES, and | OYM7: 0
... 7 more rows

Sheet misc
B1: MISCELLANEOUS | J1: =milk!L1 -> v.dairyvip 2.1
AC2: =IF(UNITS="kg",1,2.20462262) -> 2.20462262 | AJ2: calculate | AK2: 0
I3: General | K3: Culling policy | T3: this area not locked: | AC3: LBS | AD3: KG | AG3: JAN | AH3: 1
H4: Units | I4: LBS | K4: OPTIMAL | L4: Policy | AC4: YES | AD4: NO | AG4: FEB | AH4: 2
H5: Annual interest rate | I5: 0 | K5: junk.pol | M5: Use previously saved POL file | AC5: =LBM -> 16 | AD5: LBM | AG5: MAR | AH5: 3
H6: First calendar month | I6: JAN | K6: 12 | L6: Maximum lactation number | AC6: =CONCATENATE("Milk yield below which to cull nonpregnant cow (lbs/day)") -> Milk yield below which to cull nonpregnant cow (lbs/day) | AG6: APR | AH6: 4 | AJ6: OPTIMAL
H7: Save MKV file? | I7: NO | K7: 24 | L7: =CONCATENATE("Maximum months open (at least ",AC5+1," months)") -> Maximum months open (at least 17 months) | AC7: =CONCATENATE("Milk yield below which to cull nonpregnant cows (kg/day)") -> Milk yield below which to cull nonpregnant cows (kg/day) | AG7: MAY | AH7: 5 | AJ7: KEEPPREG
H8: Save RPO and DEL files? | I8: YES | K8: 10 | L8: =IF(UNITS="kg",AC7,AC6) -> Milk yield below which to cull nonpregnant cow (lbs/day) | AG8: JUN | AH8: 6 | AJ8: KEEPALL
H9: Save POL file? | I9: YES | K9: -999 | L9: Margin below which to cull nonpregnant cows ($/day) | AG9: JUL | AH9: 7 | AJ9: Use_POL
K10: 0 | L10: Additional loss involuntary culling ($/cow) | AG10: AUG | AH10: 8
I11: Other | K11: 0.8 | L11: Price involuntary culled cows as % of price voluntary culled cows | AG11: SEP | AH11: 9
H12: Percent fat in milk | I12: 3.5 | AG12: OCT | AH12: 10
H13: CV milk yield (std/average x 100) | I13: 12 | K13: Labor | AG13: NOV | AH13: 11
H14: Effect of previous days open on milk yield? | I14: YES | K14: 1 | L14: Fixed labor cost ($/slot/day) | AG14: DEC | AH14: 12
H15: Repeatability of milk yield | I15: 0.6 | K15: 0 | L15: Variable labor cost ($/hour)
H16: Price calf at birth ($/calf) | I16: 300 | K16: 0 | L16: Extra time first month after calving (minutes/month)
H17: Fixed other cost ($/slot/day) | I17: 2 | K17: 0 | L17: Time per lactating cow (minutes/month)
H18: Feed cost dry cow (% of wet cow feed cost) | I18: 0.8333 | K18: 0 | L18: Time per dry cow (minutes/month)
I20: Other variable cost | K20: Veterinary cost
H21: Other variable cost dry cows ($/cow/day) | I21: 1.65 | K21: 39 | L21: 1st month in lactation ($/cow)
H22: Other variable cost lactating cows ($/cow/day) | I22: 1.65 | K22: 23 | L22: 2nd month in lactation ($/cow)
K23: 8 | L23: 3rd month in lactation ($/cow)
K24: 1 | L24: ³ 4th month in lactation ($/cow)

Sheet price
B1: PRICE & DECISIONS | K1: =milk!L1 -> v.dairyvip 2.1
AD2: NO | AX2: pchart | AZ2: Hide charts
U3: this area not locked: | AD3: YES | AZ3: Heifer price
F4: Breed | H4: Enter | J4: Heifer | L4: Cull price | N4: Milk price | P4: Feed price | AD4: DECIDE | AZ4: Cull price
F5: cows? | H5: heifers? | J5: price ($) | L5: =IF(UNITS="kg","($/kg)","($/lbs)") -> ($/lbs) | N5: =IF(UNITS="kg","($/100kg)","($/cwt)") -> ($/cwt) | P5: =IF(UNITS="kg","($/kg)","($/lbs)") -> ($/lbs) | AZ5: Milk price
C6: Year 1 | D6: =AG11 -> 1 | E6: =CHOOSE(AG11,"Jan","Feb","Mar","Apr","May","Jun","Jul","Aug","Sep","Oct","Nov","Dec") -> Jan | F6: DECIDE | H6: DECIDE | J6: 2000 | L6: 0.6 | N6: 25 | P6: 0.18 | R6: =E6 -> Jan | S6: =C6 -> Year 1
D7: 2 | E7: Feb | F7: DECIDE | H7: DECIDE | J7: 2000 | L7: 0.6 | N7: 25 | P7: 0.18 | R7: Feb
D8: 3 | E8: Mar | F8: DECIDE | H8: DECIDE | J8: 2000 | L8: 0.6 | N8: 25 | P8: 0.18 | R8: Mar
D9: 4 | E9: Apr | F9: DECIDE | H9: DECIDE | J9: 2000 | L9: 0.6 | N9: 25 | P9: 0.18 | R9: Apr
D10: 5 | E10: May | F10: DECIDE | H10: DECIDE | J10: 2000 | L10: 0.6 | N10: 25 | P10: 0.18 | R10: May | AG10: =STARTSEA -> JAN | AH10: Jan | AI10: 1
D11: 6 | E11: Jun | F11: DECIDE | H11: DECIDE | J11: 2000 | L11: 0.6 | N11: 25 | P11: 0.18 | R11: Jun | AF11: 1 | AG11: =VLOOKUP(AG10,AH10:AI21,2,FALSE) -> 1 | AH11: Feb | AI11: 2
D12: 7 | E12: Jul | F12: DECIDE | H12: DECIDE | J12: 2000 | L12: 0.6 | N12: 25 | P12: 0.18 | R12: Jul | AF12: 2 | AG12: =IF(AG11<12,AG11+1,1) -> 2 | AH12: Mar | AI12: 3
D13: 8 | E13: Aug | F13: DECIDE | H13: DECIDE | J13: 2000 | L13: 0.6 | N13: 25 | P13: 0.18 | R13: Aug | AF13: 3 | AG13: =IF(AG12<12,AG12+1,1) -> 3 | AH13: Apr | AI13: 4
D14: 9 | E14: Sep | F14: DECIDE | H14: DECIDE | J14: 2000 | L14: 0.6 | N14: 25 | P14: 0.18 | R14: Sep | AF14: 4 | AG14: 4 | AH14: May | AI14: 5
D15: 10 | E15: Oct | F15: DECIDE | H15: DECIDE | J15: 2000 | L15: 0.6 | N15: 25 | P15: 0.18 | R15: Oct | AF15: 5 | AG15: 5 | AH15: Jun | AI15: 6
D16: 11 | E16: Nov | F16: DECIDE | H16: DECIDE | J16: 2000 | L16: 0.6 | N16: 25 | P16: 0.18 | R16: Nov | AF16: 6 | AG16: 6 | AH16: Jul | AI16: 7
D17: 12 | E17: Dec | F17: DECIDE | H17: DECIDE | J17: 2000 | L17: 0.6 | N17: 25 | P17: 0.18 | R17: Dec | AF17: 7 | AG17: 7 | AH17: Aug | AI17: 8
C18: Year 2 | D18: 1 | E18: Jan | F18: DECIDE | H18: DECIDE | J18: 2000 | L18: 0.6 | N18: 25 | P18: 0.18 | R18: Jan | S18: =C18 -> Year 2 | AF18: 8 | AG18: 8 | AH18: Sep | AI18: 9
C19: and later | D19: 2 | E19: Feb | F19: DECIDE | H19: DECIDE | J19: 2000 | L19: 0.6 | N19: 25 | P19: 0.18 | R19: Feb | S19: =C19 -> and later | AF19: 9 | AG19: 9 | AH19: Oct | AI19: 10
D20: 3 | E20: Mar | F20: DECIDE | H20: DECIDE | J20: 2000 | L20: 0.6 | N20: 25 | P20: 0.18 | R20: Mar | AF20: 10 | AG20: 10 | AH20: Nov | AI20: 11
D21: 4 | E21: Apr | F21: DECIDE | H21: DECIDE | J21: 2000 | L21: 0.6 | N21: 25 | P21: 0.18 | R21: Apr | AF21: 11 | AG21: 11 | AH21: Dec | AI21: 12
D22: 5 | E22: May | F22: DECIDE | H22: DECIDE | J22: 2000 | L22: 0.6 | N22: 25 | P22: 0.18 | R22: May | AF22: 12 | AG22: 12
D23: 6 | E23: Jun | F23: DECIDE | H23: DECIDE | J23: 2000 | L23: 0.6 | N23: 25 | P23: 0.18 | R23: Jun | AF23: 13 | AG23: 1
D24: 7 | E24: Jul | F24: DECIDE | H24: DECIDE | J24: 2000 | L24: 0.6 | N24: 25 | P24: 0.18 | R24: Jul | AF24: 14 | AG24: 2
D25: 8 | E25: Aug | F25: DECIDE | H25: DECIDE | J25: 2000 | L25: 0.6 | N25: 25 | P25: 0.18 | R25: Aug | AF25: 15 | AG25: 3
D26: 9 | E26: Sep | F26: DECIDE | H26: DECIDE | J26: 2000 | L26: 0.6 | N26: 25 | P26: 0.18 | R26: Sep | AF26: 16 | AG26: 4
D27: 10 | E27: Oct | F27: DECIDE | H27: DECIDE | J27: 2000 | L27: 0.6 | N27: 25 | P27: 0.18 | R27: Oct | AF27: 17 | AG27: 5
D28: 11 | E28: Nov | F28: DECIDE | H28: DECIDE | J28: 2000 | L28: 0.6 | N28: 25 | P28: 0.18 | R28: Nov | AF28: 18 | AG28: 6
D29: 12 | E29: Dec | F29: DECIDE | H29: DECIDE | J29: 2000 | L29: 0.6 | N29: 25 | P29: 0.18 | R29: Dec | AF29: 19 | AG29: 7
AF30: 20 | AG30: 8
AF31: 21 | AG31: 9
AF32: 22 | AG32: 10
AF33: 23 | AG33: 11
AF34: 24 | AG34: 12

Sheet repro
B1: REPRODUCTION | L1: =milk!L1 -> v.dairyvip 2.1
N3: Risk of abortion (%) per month of pregnancy | V3: this area not locked:
I4: First breeding month | J4: 3 | K4: 3 | L4: 3 | O4: 2 | P4: 0.035 | Q4: 0.0025 | R4: 6
I5: lactation number | J5: 1 | K5: 2 | L5: 3+ | O5: 3 | P5: 0.025 | Q5: 0.001 | R5: 7
I6: Last breeding month | J6: 16 | O6: 4 | P6: 0.015 | Q6: 0.001 | R6: 8
I7: Minutes labor / cow | J7: 0 | O7: 5 | P7: 0.005
I8: Cost per breeding ($) | J8: 20 | Q8: =1-(1-P4)*(1-P5)*(1-P6)*(1-P7)*(1-Q4)*(1-Q5)*(1-Q6)*(1-Q7) -> 0.08201598021 | R8: total risk of abortion
D10: Update
G11: Probability of service per 21 days | AG11: functionheat
D12: Service | F12: month | G12: Jan | H12: Feb | I12: Mar | J12: Apr | K12: May | L12: Jun | M12: Jul | N12: Aug | O12: Sep | P12: Oct | Q12: Nov | R12: Dec | S12: day | T12: Default | AF12: mim | AG12: Jan | AH12: Feb | AI12: Mar | AJ12: Apr | AK12: May | AL12: Jun | AM12: Jul | AN12: Aug | AO12: Sep | AP12: Oct | AQ12: Nov | AR12: Dec
C13: +/- (%) | D13: 0 | E13: heatabs | F13: 3 | G13: 0.5 | H13: 0.5 | I13: 0.55 | J13: 0.5 | K13: 0.475 | L13: 0.45 | M13: 0.425 | N13: 0.4 | O13: 0.425 | P13: 0.45 | Q13: 0.5 | R13: 0.5 | S13: 60.8 | T13: 0.5 | AF13: 1 | AG13: =$T13*$D$15*$D$14+$T13*$D$27*(1-$D$14)+$D$13 -> 0.5 | AH13: =$T13*$D$16*$D$14+$T13*$D$27*(1-$D$14)+$D$13 -> 0.5 | AI13: =$T13*$D$17*$D$14+$T13*$D$27*(1-$D$14)+$D$13 -> 0.5 | AJ13: =$T13*$D$18*$D$14+$T13*$D$27*(1-$D$14)+$D$13 -> 0.5 | AK13: =$T13*$D$19*$D$14+$T13*$D$27*(1-$D$14)+$D$13 -> 0.475 | AL13: =$T13*$D$20*$D$14+$T13*$D$27*(1-$D$14)+$D$13 -> 0.45 | AM13: =$T13*$D$21*$D$14+$T13*$D$27*(1-$D$14)+$D$13 -> 0.425 | AN13: =$T13*$D$22*$D$14+$T13*$D$27*(1-$D$14)+$D$13 -> 0.4 | AO13: =$T13*$D$23*$D$14+$T13*$D$27*(1-$D$14)+$D$13 -> 0.425 | AP13: =$T13*$D$24*$D$14+$T13*$D$27*(1-$D$14)+$D$13 -> 0.45 | AQ13: =$T13*$D$25*$D$14+$T13*$D$27*(1-$D$14)+$D$13 -> 0.5 | AR13: =$T13*$D$26*$D$14+$T13*$D$27*(1-$D$14)+$D$13 -> 0.5
C14: seasonality | D14: 1 | E14: heatseapct | F14: 4 | G14: 0.5 | H14: 0.5 | I14: 0.55 | J14: 0.5 | K14: 0.475 | L14: 0.45 | M14: 0.425 | N14: 0.4 | O14: 0.425 | P14: 0.45 | Q14: 0.5 | R14: 0.5 | S14: 91.2 | T14: 0.5 | AF14: 2 | AG14: 0.5 | AH14: 0.5 | AI14: 0.5 | AJ14: 0.5 | AK14: 0.475 | AL14: 0.45 | AM14: 0.425 | AN14: 0.4 | AO14: 0.425 | AP14: 0.45 | AQ14: 0.5 | AR14: 0.5
C15: Jan | D15: 1 | E15: heatsea1 | F15: 5 | G15: 0.5 | H15: 0.5 | I15: 0.55 | J15: 0.5 | K15: 0.475 | L15: 0.45 | M15: 0.425 | N15: 0.4 | O15: 0.425 | P15: 0.45 | Q15: 0.5 | R15: 0.5 | S15: 121.6 | T15: 0.5 | AF15: 3 | AG15: 0.5 | AH15: 0.5 | AI15: 0.5 | AJ15: 0.5 | AK15: 0.475 | AL15: 0.45 | AM15: 0.425 | AN15: 0.4 | AO15: 0.425 | AP15: 0.45 | AQ15: 0.5 | AR15: 0.5
C16: Feb | D16: 1 | E16: heatsea2 | F16: 6 | G16: 0.5 | H16: 0.5 | I16: 0.55 | J16: 0.5 | K16: 0.475 | L16: 0.45 | M16: 0.425 | N16: 0.4 | O16: 0.425 | P16: 0.45 | Q16: 0.5 | R16: 0.5 | S16: 152 | T16: 0.5 | AF16: 4 | AG16: 0.5 | AH16: 0.5 | AI16: 0.5 | AJ16: 0.5 | AK16: 0.475 | AL16: 0.45 | AM16: 0.425 | AN16: 0.4 | AO16: 0.425 | AP16: 0.45 | AQ16: 0.5 | AR16: 0.5
C17: Mar | D17: 1 | E17: heatsea3 | F17: 7 | G17: 0.5 | H17: 0.5 | I17: 0.55 | J17: 0.5 | K17: 0.475 | L17: 0.45 | M17: 0.425 | N17: 0.4 | O17: 0.425 | P17: 0.45 | Q17: 0.5 | R17: 0.5 | S17: 182.4 | T17: 0.5 | AF17: 5 | AG17: 0.5 | AH17: 0.5 | AI17: 0.5 | AJ17: 0.5 | AK17: 0.475 | AL17: 0.45 | AM17: 0.425 | AN17: 0.4 | AO17: 0.425 | AP17: 0.45 | AQ17: 0.5 | AR17: 0.5
C18: Apr | D18: 1 | E18: heatsea4 | F18: 8 | G18: 0.5 | H18: 0.5 | I18: 0.55 | J18: 0.5 | K18: 0.475 | L18: 0.45 | M18: 0.425 | N18: 0.4 | O18: 0.425 | P18: 0.45 | Q18: 0.5 | R18: 0.5 | S18: 212.8 | T18: 0.5 | AF18: 6 | AG18: 0.5 | AH18: 0.5 | AI18: 0.5 | AJ18: 0.5 | AK18: 0.475 | AL18: 0.45 | AM18: 0.425 | AN18: 0.4 | AO18: 0.425 | AP18: 0.45 | AQ18: 0.5 | AR18: 0.5
C19: May | D19: 0.95 | E19: heatsea5 | F19: 9 | G19: 0.5 | H19: 0.5 | I19: 0.55 | J19: 0.5 | K19: 0.475 | L19: 0.45 | M19: 0.425 | N19: 0.4 | O19: 0.425 | P19: 0.45 | Q19: 0.5 | R19: 0.5 | S19: 243.2 | T19: 0.5 | AF19: 7 | AG19: 0.5 | AH19: 0.5 | AI19: 0.5 | AJ19: 0.5 | AK19: 0.475 | AL19: 0.45 | AM19: 0.425 | AN19: 0.4 | AO19: 0.425 | AP19: 0.45 | AQ19: 0.5 | AR19: 0.5
C20: Jun | D20: 0.9 | E20: heatsea6 | F20: 10 | G20: 0.5 | H20: 0.5 | I20: 0.55 | J20: 0.5 | K20: 0.475 | L20: 0.45 | M20: 0.425 | N20: 0.4 | O20: 0.425 | P20: 0.45 | Q20: 0.5 | R20: 0.5 | S20: 273.6 | T20: 0.5 | AF20: 8 | AG20: 0.5 | AH20: 0.5 | AI20: 0.5 | AJ20: 0.5 | AK20: 0.475 | AL20: 0.45 | AM20: 0.425 | AN20: 0.4 | AO20: 0.425 | AP20: 0.45 | AQ20: 0.5 | AR20: 0.5
C21: Jul | D21: 0.85 | E21: heatsea7 | F21: 11 | G21: 0.5 | H21: 0.5 | I21: 0.55 | J21: 0.5 | K21: 0.475 | L21: 0.45 | M21: 0.425 | N21: 0.4 | O21: 0.425 | P21: 0.45 | Q21: 0.5 | R21: 0.5 | S21: 304 | T21: 0.5 | AF21: 9 | AG21: 0.5 | AH21: 0.5 | AI21: 0.5 | AJ21: 0.5 | AK21: 0.475 | AL21: 0.45 | AM21: 0.425 | AN21: 0.4 | AO21: 0.425 | AP21: 0.45 | AQ21: 0.5 | AR21: 0.5
C22: Aug | D22: 0.8 | E22: heatsea8 | F22: 12 | G22: 0.5 | H22: 0.5 | I22: 0.55 | J22: 0.5 | K22: 0.475 | L22: 0.45 | M22: 0.425 | N22: 0.4 | O22: 0.425 | P22: 0.45 | Q22: 0.5 | R22: 0.5 | S22: 334.4 | T22: 0.5 | AF22: 10 | AG22: 0.5 | AH22: 0.5 | AI22: 0.5 | AJ22: 0.5 | AK22: 0.475 | AL22: 0.45 | AM22: 0.425 | AN22: 0.4 | AO22: 0.425 | AP22: 0.45 | AQ22: 0.5 | AR22: 0.5
C23: Sep | D23: 0.85 | E23: heatsea9 | F23: 13 | G23: 0.5 | H23: 0.5 | I23: 0.55 | J23: 0.5 | K23: 0.475 | L23: 0.45 | M23: 0.425 | N23: 0.4 | O23: 0.425 | P23: 0.45 | Q23: 0.5 | R23: 0.5 | S23: 364.8 | T23: 0.5 | AF23: 11 | AG23: 0.5 | AH23: 0.5 | AI23: 0.5 | AJ23: 0.5 | AK23: 0.475 | AL23: 0.45 | AM23: 0.425 | AN23: 0.4 | AO23: 0.425 | AP23: 0.45 | AQ23: 0.5 | AR23: 0.5
C24: Oct | D24: 0.9 | E24: heatsea10 | F24: 14 | G24: 0.5 | H24: 0.5 | I24: 0.55 | J24: 0.5 | K24: 0.475 | L24: 0.45 | M24: 0.425 | N24: 0.4 | O24: 0.425 | P24: 0.45 | Q24: 0.5 | R24: 0.5 | S24: 395.2 | T24: 0.5 | AF24: 12 | AG24: 0.5 | AH24: 0.5 | AI24: 0.5 | AJ24: 0.5 | AK24: 0.475 | AL24: 0.45 | AM24: 0.425 | AN24: 0.4 | AO24: 0.425 | AP24: 0.45 | AQ24: 0.5 | AR24: 0.5
C25: Nov | D25: 1 | E25: heatsea11 | F25: 15 | G25: 0.5 | H25: 0.5 | I25: 0.55 | J25: 0.5 | K25: 0.475 | L25: 0.45 | M25: 0.425 | N25: 0.4 | O25: 0.425 | P25: 0.45 | Q25: 0.5 | R25: 0.5 | S25: 425.6 | T25: 0.5 | AF25: 13 | AG25: 0.5 | AH25: 0.5 | AI25: 0.5 | AJ25: 0.5 | AK25: 0.475 | AL25: 0.45 | AM25: 0.425 | AN25: 0.4 | AO25: 0.425 | AP25: 0.45 | AQ25: 0.5 | AR25: 0.5
C26: Dec | D26: 1 | E26: heatsea12 | F26: 16 | G26: 0.5 | H26: 0.5 | I26: 0.55 | J26: 0.5 | K26: 0.475 | L26: 0.45 | M26: 0.425 | N26: 0.4 | O26: 0.425 | P26: 0.45 | Q26: 0.5 | R26: 0.5 | S26: 456 | T26: 0.5 | AF26: 14 | AG26: 0.5 | AH26: 0.5 | AI26: 0.5 | AJ26: 0.5 | AK26: 0.475 | AL26: 0.45 | AM26: 0.425 | AN26: 0.4 | AO26: 0.425 | AP26: 0.45 | AQ26: 0.5 | AR26: 0.5
D27: =AVERAGE(D15:D26) -> 0.9375 | R27: heatrange | T27: concmim
G28: Probability of service in lactations 4+ compared to lactation 3
G29: 1 | H29: 1 | I29: 1 | J29: 1 | K29: 1 | L29: 1 | M29: 1 | N29: 1 | O29: 1
G30: 4 | H30: 5 | I30: 6 | J30: 7 | K30: 8 | L30: 9 | M30: 10 | N30: 11 | O30: 12 | P30: lactatation number
G33: Probability of conception | AG33: functionconc
D34: Conception | F34: month | G34: Jan | H34: Feb | I34: Mar | J34: Apr | K34: May | L34: Jun | M34: Jul | N34: Aug | O34: Sep | P34: Oct | Q34: Nov | R34: Dec | S34: day | T34: Default | AF34: mim | AG34: Jan | AH34: Feb | AI34: Mar | AJ34: Apr | AK34: May | AL34: Jun | AM34: Jul | AN34: Aug | AO34: Sep | AP34: Oct | AQ34: Nov | AR34: Dec
C35: +/- (%) | D35: 0 | E35: concabs | F35: 3 | G35: 0.39 | H35: 0.39 | I35: 0.39 | J35: 0.3705 | K35: 0.3315 | L35: 0.2925 | M35: 0.2535 | N35: 0.234 | O35: 0.2535 | P35: 0.2925 | Q35: 0.351 | R35: 0.39 | S35: 60.8 | T35: 0.39 | AF35: 1 | AG35: =$T35*$D$37*$D$36+$T35*$D$49*(1-$D$36)+$D$35 -> 0.39 | AH35: =$T35*$D$38*$D$36+$T35*$D$49*(1-$D$36)+$D$35 -> 0.39 | AI35: =$T35*$D$39*$D$36+$T35*$D$49*(1-$D$36)+$D$35 -> 0.39 | AJ35: =$T35*$D$40*$D$36+$T35*$D$49*(1-$D$36)+$D$35 -> 0.3705 | AK35: =$T35*$D$41*$D$36+$T35*$D$49*(1-$D$36)+$D$35 -> 0.3315 | AL35: =$T35*$D$42*$D$36+$T35*$D$49*(1-$D$36)+$D$35 -> 0.2925 | AM35: =$T35*$D$43*$D$36+$T35*$D$49*(1-$D$36)+$D$35 -> 0.2535 | AN35: =$T35*$D$44*$D$36+$T35*$D$49*(1-$D$36)+$D$35 -> 0.234 | AO35: =$T35*$D$45*$D$36+$T35*$D$49*(1-$D$36)+$D$35 -> 0.2535 | AP35: =$T35*$D$46*$D$36+$T35*$D$49*(1-$D$36)+$D$35 -> 0.2925 | AQ35: =$T35*$D$47*$D$36+$T35*$D$49*(1-$D$36)+$D$35 -> 0.351 | AR35: =$T35*$D$48*$D$36+$T35*$D$49*(1-$D$36)+$D$35 -> 0.39
C36: Seasonality | D36: 1 | E36: concseaspct | F36: 4 | G36: 0.41 | H36: 0.41 | I36: 0.41 | J36: 0.3895 | K36: 0.3485 | L36: 0.3075 | M36: 0.2665 | N36: 0.246 | O36: 0.2665 | P36: 0.3075 | Q36: 0.369 | R36: 0.41 | S36: 91.2 | T36: 0.41 | AF36: 2 | AG36: 0.41 | AH36: 0.41 | AI36: 0.41 | AJ36: 0.3895 | AK36: 0.3485 | AL36: 0.3075 | AM36: 0.2665 | AN36: 0.246 | AO36: 0.2665 | AP36: 0.3075 | AQ36: 0.369 | AR36: 0.41
C37: Jan | D37: 1 | E37: concsea1 | F37: 5 | G37: 0.39 | H37: 0.39 | I37: 0.39 | J37: 0.3705 | K37: 0.3315 | L37: 0.2925 | M37: 0.2535 | N37: 0.234 | O37: 0.2535 | P37: 0.2925 | Q37: 0.351 | R37: 0.39 | S37: 121.6 | T37: 0.39 | AF37: 3 | AG37: 0.39 | AH37: 0.39 | AI37: 0.39 | AJ37: 0.3705 | AK37: 0.3315 | AL37: 0.2925 | AM37: 0.2535 | AN37: 0.234 | AO37: 0.2535 | AP37: 0.2925 | AQ37: 0.351 | AR37: 0.39
C38: Feb | D38: 1 | E38: concsea2 | F38: 6 | G38: 0.37 | H38: 0.37 | I38: 0.37 | J38: 0.3515 | K38: 0.3145 | L38: 0.2775 | M38: 0.2405 | N38: 0.222 | O38: 0.2405 | P38: 0.2775 | Q38: 0.333 | R38: 0.37 | S38: 152 | T38: 0.37 | AF38: 4 | AG38: 0.37 | AH38: 0.37 | AI38: 0.37 | AJ38: 0.3515 | AK38: 0.3145 | AL38: 0.2775 | AM38: 0.2405 | AN38: 0.222 | AO38: 0.2405 | AP38: 0.2775 | AQ38: 0.333 | AR38: 0.37
C39: Mar | D39: 1 | E39: concsea3 | F39: 7 | G39: 0.35 | H39: 0.35 | I39: 0.35 | J39: 0.3325 | K39: 0.2975 | L39: 0.2625 | M39: 0.2275 | N39: 0.21 | O39: 0.2275 | P39: 0.2625 | Q39: 0.315 | R39: 0.35 | S39: 182.4 | T39: 0.35 | AF39: 5 | AG39: 0.35 | AH39: 0.35 | AI39: 0.35 | AJ39: 0.3325 | AK39: 0.2975 | AL39: 0.2625 | AM39: 0.2275 | AN39: 0.21 | AO39: 0.2275 | AP39: 0.2625 | AQ39: 0.315 | AR39: 0.35
C40: Apr | D40: 0.95 | E40: concsea4 | F40: 8 | G40: 0.33 | H40: 0.33 | I40: 0.33 | J40: 0.3135 | K40: 0.2805 | L40: 0.2475 | M40: 0.2145 | N40: 0.198 | O40: 0.2145 | P40: 0.2475 | Q40: 0.297 | R40: 0.33 | S40: 212.8 | T40: 0.33 | AF40: 6 | AG40: 0.33 | AH40: 0.33 | AI40: 0.33 | AJ40: 0.3135 | AK40: 0.2805 | AL40: 0.2475 | AM40: 0.2145 | AN40: 0.198 | AO40: 0.2145 | AP40: 0.2475 | AQ40: 0.297 | AR40: 0.33
C41: May | D41: 0.85 | E41: concsea5 | F41: 9 | G41: 0.31 | H41: 0.31 | I41: 0.31 | J41: 0.2945 | K41: 0.2635 | L41: 0.2325 | M41: 0.2015 | N41: 0.186 | O41: 0.2015 | P41: 0.2325 | Q41: 0.279 | R41: 0.31 | S41: 243.2 | T41: 0.31 | AF41: 7 | AG41: 0.31 | AH41: 0.31 | AI41: 0.31 | AJ41: 0.2945 | AK41: 0.2635 | AL41: 0.2325 | AM41: 0.2015 | AN41: 0.186 | AO41: 0.2015 | AP41: 0.2325 | AQ41: 0.279 | AR41: 0.31
C42: Jun | D42: 0.75 | E42: concsea6 | F42: 10 | G42: 0.29 | H42: 0.29 | I42: 0.29 | J42: 0.2755 | K42: 0.2465 | L42: 0.2175 | M42: 0.1885 | N42: 0.174 | O42: 0.1885 | P42: 0.2175 | Q42: 0.261 | R42: 0.29 | S42: 273.6 | T42: 0.29 | AF42: 8 | AG42: 0.29 | AH42: 0.29 | AI42: 0.29 | AJ42: 0.2755 | AK42: 0.2465 | AL42: 0.2175 | AM42: 0.1885 | AN42: 0.174 | AO42: 0.1885 | AP42: 0.2175 | AQ42: 0.261 | AR42: 0.29
C43: Jul | D43: 0.65 | E43: concsea7 | F43: 11 | G43: 0.27 | H43: 0.27 | I43: 0.27 | J43: 0.2565 | K43: 0.2295 | L43: 0.2025 | M43: 0.1755 | N43: 0.162 | O43: 0.1755 | P43: 0.2025 | Q43: 0.243 | R43: 0.27 | S43: 304 | T43: 0.27 | AF43: 9 | AG43: 0.27 | AH43: 0.27 | AI43: 0.27 | AJ43: 0.2565 | AK43: 0.2295 | AL43: 0.2025 | AM43: 0.1755 | AN43: 0.162 | AO43: 0.1755 | AP43: 0.2025 | AQ43: 0.243 | AR43: 0.27
C44: Aug | D44: 0.6 | E44: concsea8 | F44: 12 | G44: 0.25 | H44: 0.25 | I44: 0.25 | J44: 0.2375 | K44: 0.2125 | L44: 0.1875 | M44: 0.1625 | N44: 0.15 | O44: 0.1625 | P44: 0.1875 | Q44: 0.225 | R44: 0.25 | S44: 334.4 | T44: 0.25 | AF44: 10 | AG44: 0.25 | AH44: 0.25 | AI44: 0.25 | AJ44: 0.2375 | AK44: 0.2125 | AL44: 0.1875 | AM44: 0.1625 | AN44: 0.15 | AO44: 0.1625 | AP44: 0.1875 | AQ44: 0.225 | AR44: 0.25
C45: Sep | D45: 0.65 | E45: concsea9 | F45: 13 | G45: 0.23 | H45: 0.23 | I45: 0.23 | J45: 0.2185 | K45: 0.1955 | L45: 0.1725 | M45: 0.1495 | N45: 0.138 | O45: 0.1495 | P45: 0.1725 | Q45: 0.207 | R45: 0.23 | S45: 364.8 | T45: 0.23 | AF45: 11 | AG45: 0.23 | AH45: 0.23 | AI45: 0.23 | AJ45: 0.2185 | AK45: 0.1955 | AL45: 0.1725 | AM45: 0.1495 | AN45: 0.138 | AO45: 0.1495 | AP45: 0.1725 | AQ45: 0.207 | AR45: 0.23
C46: Oct | D46: 0.75 | E46: concsea10 | F46: 14 | G46: 0.21 | H46: 0.21 | I46: 0.21 | J46: 0.1995 | K46: 0.1785 | L46: 0.1575 | M46: 0.1365 | N46: 0.126 | O46: 0.1365 | P46: 0.1575 | Q46: 0.189 | R46: 0.21 | S46: 395.2 | T46: 0.21 | AF46: 12 | AG46: 0.21 | AH46: 0.21 | AI46: 0.21 | AJ46: 0.1995 | AK46: 0.1785 | AL46: 0.1575 | AM46: 0.1365 | AN46: 0.126 | AO46: 0.1365 | AP46: 0.1575 | AQ46: 0.189 | AR46: 0.21
C47: Nov | D47: 0.9 | E47: concsea11 | F47: 15 | G47: 0.19 | H47: 0.19 | I47: 0.19 | J47: 0.1805 | K47: 0.1615 | L47: 0.1425 | M47: 0.1235 | N47: 0.114 | O47: 0.1235 | P47: 0.1425 | Q47: 0.171 | R47: 0.19 | S47: 425.6 | T47: 0.19 | AF47: 13 | AG47: 0.19 | AH47: 0.19 | AI47: 0.19 | AJ47: 0.1805 | AK47: 0.1615 | AL47: 0.1425 | AM47: 0.1235 | AN47: 0.114 | AO47: 0.1235 | AP47: 0.1425 | AQ47: 0.171 | AR47: 0.19
C48: Dec | D48: 1 | E48: concsea12 | F48: 16 | G48: 0.17 | H48: 0.17 | I48: 0.17 | J48: 0.1615 | K48: 0.1445 | L48: 0.1275 | M48: 0.1105 | N48: 0.102 | O48: 0.1105 | P48: 0.1275 | Q48: 0.153 | R48: 0.17 | S48: 456 | T48: 0.17 | AF48: 14 | AG48: 0.17 | AH48: 0.17 | AI48: 0.17 | AJ48: 0.1615 | AK48: 0.1445 | AL48: 0.1275 | AM48: 0.1105 | AN48: 0.102 | AO48: 0.1105 | AP48: 0.1275 | AQ48: 0.153 | AR48: 0.17
D49: =AVERAGE(D37:D48) -> 0.8416666667 | R49: concrange | T49: concmim
R50: concrange | T50: concmim
G51: Relative probability of conception per lactation
G52: 1 | H52: 1 | I52: 1 | J52: 1 | K52: 1 | L52: 1 | M52: 1 | N52: 1 | O52: 1 | P52: 1 | Q52: 1 | R52: 1
G53: 1 | H53: 2 | I53: 3 | J53: 4 | K53: 5 | L53: 6 | M53: 7 | N53: 8 | O53: 9 | P53: 10 | Q53: 11 | R53: 12 | S53: lactatation number
G57: Additional breeding cost per month
F58: month | G58: Jan | H58: Feb | I58: Mar | J58: Apr | K58: May | L58: Jun | M58: Jul | N58: Aug | O58: Sep | P58: Oct | Q58: Nov | R58: Dec | S58: day
F59: 3 | G59: 0 | H59: 0 | I59: 0 | J59: 0 | K59: 0 | L59: 0 | M59: 0 | N59: 0 | O59: 0 | P59: 0 | Q59: 0 | R59: 0 | S59: 60.8
F60: 4 | G60: 0 | H60: 0 | I60: 0 | J60: 0 | K60: 0 | L60: 0 | M60: 0 | N60: 0 | O60: 0 | P60: 0 | Q60: 0 | R60: 0 | S60: 91.2
F61: 5 | G61: 0 | H61: 0 | I61: 0 | J61: 0 | K61: 0 | L61: 0 | M61: 0 | N61: 0 | O61: 0 | P61: 0 | Q61: 0 | R61: 0 | S61: 121.6
F62: 6 | G62: 0 | H62: 0 | I62: 0 | J62: 0 | K62: 0 | L62: 0 | M62: 0 | N62: 0 | O62: 0 | P62: 0 | Q62: 0 | R62: 0 | S62: 152
F63: 7 | G63: 0 | H63: 0 | I63: 0 | J63: 0 | K63: 0 | L63: 0 | M63: 0 | N63: 0 | O63: 0 | P63: 0 | Q63: 0 | R63: 0 | S63: 182.4
F64: 8 | G64: 0 | H64: 0 | I64: 0 | J64: 0 | K64: 0 | L64: 0 | M64: 0 | N64: 0 | O64: 0 | P64: 0 | Q64: 0 | R64: 0 | S64: 212.8
F65: 9 | G65: 0 | H65: 0 | I65: 0 | J65: 0 | K65: 0 | L65: 0 | M65: 0 | N65: 0 | O65: 0 | P65: 0 | Q65: 0 | R65: 0 | S65: 243.2
F66: 10 | G66: 0 | H66: 0 | I66: 0 | J66: 0 | K66: 0 | L66: 0 | M66: 0 | N66: 0 | O66: 0 | P66: 0 | Q66: 0 | R66: 0 | S66: 273.6
F67: 11 | G67: 0 | H67: 0 | I67: 0 | J67: 0 | K67: 0 | L67: 0 | M67: 0 | N67: 0 | O67: 0 | P67: 0 | Q67: 0 | R67: 0 | S67: 304
F68: 12 | G68: 0 | H68: 0 | I68: 0 | J68: 0 | K68: 0 | L68: 0 | M68: 0 | N68: 0 | O68: 0 | P68: 0 | Q68: 0 | R68: 0 | S68: 334.4
F69: 13 | G69: 0 | H69: 0 | I69: 0 | J69: 0 | K69: 0 | L69: 0 | M69: 0 | N69: 0 | O69: 0 | P69: 0 | Q69: 0 | R69: 0 | S69: 364.8
F70: 14 | G70: 0 | H70: 0 | I70: 0 | J70: 0 | K70: 0 | L70: 0 | M70: 0 | N70: 0 | O70: 0 | P70: 0 | Q70: 0 | R70: 0 | S70: 395.2
F71: 15 | G71: 0 | H71: 0 | I71: 0 | J71: 0 | K71: 0 | L71: 0 | M71: 0 | N71: 0 | O71: 0 | P71: 0 | Q71: 0 | R71: 0 | S71: 425.6
F72: 16 | G72: 0 | H72: 0 | I72: 0 | J72: 0 | K72: 0 | L72: 0 | M72: 0 | N72: 0 | O72: 0 | P72: 0 | Q72: 0 | R72: 0 | S72: 456
R73: reprocostrange
F74: 12 | G74: =G44*G22 -> 0.125 | H74: 0.125 | I74: 0.1375 | J74: 0.11875 | K74: 0.1009375 | L74: 0.084375 | M74: 0.0690625 | N74: 0.06 | O74: 0.0690625 | P74: 0.084375 | Q74: 0.1125 | R74: 0.125
F75: 13 | G75: =G45*G23 -> 0.115 | H75: 0.115 | I75: 0.1265 | J75: 0.10925 | K75: 0.0928625 | L75: 0.077625 | M75: 0.0635375 | N75: 0.0552 | O75: 0.0635375 | P75: 0.077625 | Q75: 0.1035 | R75: 0.115
F76: 14 | G76: =G46*G24 -> 0.105 | H76: 0.105 | I76: 0.1155 | J76: 0.09975 | K76: 0.0847875 | L76: 0.070875 | M76: 0.0580125 | N76: 0.0504 | O76: 0.0580125 | P76: 0.070875 | Q76: 0.0945 | R76: 0.105
F77: 15 | G77: =G47*G25 -> 0.095 | H77: 0.095 | I77: 0.1045 | J77: 0.09025 | K77: 0.0767125 | L77: 0.064125 | M77: 0.0524875 | N77: 0.0456 | O77: 0.0524875 | P77: 0.064125 | Q77: 0.0855 | R77: 0.095
F78: 16 | G78: =G48*G26 -> 0.085 | H78: 0.085 | I78: 0.0935 | J78: 0.08075 | K78: 0.0686375 | L78: 0.057375 | M78: 0.0469625 | N78: 0.0408 | O78: 0.0469625 | P78: 0.057375 | Q78: 0.0765 | R78: 0.085

Sheet milk
B1: MILK YIELD | L1: =run!$M$1 -> v.dairyvip 2.1 | WC1: -335544.32
BD2: mfunction | BE2: 2 | BG2: Wood's curves | CB2: Greg Bethard formula | CD2: peak | CE2: peak | CF2: rate | CG2: days | WC2: -335544.32
G3: Milk yield pregnant cow relative to non-pregnant cow | U3: this area not locked: | BG3: Fit curves | CD3: yield | CE3: dim | CF3: decline | CG3: in milk | CH3: a | CI3: b | CJ3: c | WC3: -335544.32
G4: 1 | H4: 1 | I4: 1 | J4: 1 | K4: 0.95 | L4: 0.9 | M4: 0.85 | N4: 0 | O4: 0 | BG4: Florida curves | CB4: woods1 | CC4: lact 1 | CD4: =D43 -> 70 | CE4: =D44 -> 60 | CF4: =D45 -> 0.05 | CG4: 305 | CH4: =CD4*(CJ4/CI4)^CI4*EXP(CI4) -> 73.37298702 | CI4: =CJ4*CE4/30.4 -> 0.147019334 | CJ4: =-CF4*(CE4+CG4)/(CE4-CG4) -> 0.07448979592 | DI4: Jan | DJ4: Feb | DK4: Mar | DL4: Apr | DM4: May | DN4: Jun | DO4: Jul | DP4: Aug | DQ4: Sep | DR4: Oct | DS4: Nov | DT4: Dec
B5: January | C5: 305-day | D5: peak | E5: peak | G5: 1 | H5: 2 | I5: 3 | J5: 4 | K5: 5 | L5: 6 | M5: 7 | N5: 8 | O5: 9 | P5: month of pregnancy | BG5: Diphasic curves | CB5: woods2 | CC5: lact 2 | CD5: =D46 -> 90 | CE5: =D47 -> 45 | CF5: =D48 -> 0.07 | CG5: 305 | CH5: =CD5*(CJ5/CI5)^CI5*EXP(CI5) -> 97.96269003 | CI5: =CJ5*CE5/30.4 -> 0.139486336 | CJ5: =-CF5*(CE5+CG5)/(CE5-CG5) -> 0.09423076923
C6: yield | D6: yield | E6: DIM | CB6: woods3 | CC6: lact 3 | CD6: =D49 -> 95 | CE6: =D50 -> 45 | CF6: =D51 -> 0.07 | CG6: 305 | CH6: =CD6*(CJ6/CI6)^CI6*EXP(CI6) -> 103.4050617 | CI6: =CJ6*CE6/30.4 -> 0.139486336 | CJ6: =-CF6*(CE6+CG6)/(CE6-CG6) -> 0.09423076923
B7: lact 1 | C7: =SUM(G9:G18)*30.4 -> 18813.44496 | D7: =MAX(G9:G32) -> 69.68909206 | E7: =(MATCH(D7,G9:G32,0)-1)*30.4+15 -> 75.8 | G7: Lactation 1 | I7: =IF(MIN(milkcurves1,milkcurves2,milkcurves3)<0,"Error: minimum milk yield < 0 !","") ->  | DI7: 305-day milk
B8: lact 2 | C8: =SUM(H36:H45)*30.4 -> 22701.352 | D8: =MAX(G36:G59) -> 89.99889394 | E8: =(MATCH(D8,G36:G59,0)-1)*30.4+15 -> 45.4 | F8: month | G8: Jan | H8: Feb | I8: Mar | J8: Apr | K8: May | L8: Jun | M8: Jul | N8: Aug | O8: Sep | P8: Oct | Q8: Nov | R8: Dec | S8: day | DI8: =SUM(DI15:DI24)*30.4 -> 17239.68856 | DJ8: =SUM(DJ16:DJ25)*30.4 -> 17082.31994 | DK8: =SUM(DK17:DK26)*30.4 -> 17002.29435 | DL8: =SUM(DL18:DL27)*30.4 -> 16936.7582 | DM8: =SUM(DM19:DM28)*30.4 -> 16942.67449 | DN8: =SUM(DN20:DN29)*30.4 -> 17071.14929 | DO8: =SUM(DO21:DO30)*30.4 -> 17283.57155 | DP8: =SUM(DP22:DP31)*30.4 -> 17531.3032 | DQ8: =SUM(DQ23:DQ32)*30.4 -> 17747.36731 | DR8: =SUM(DR24:DR33)*30.4 -> 17820.47074 | DS8: =SUM(DS25:DS34)*30.4 -> 17728.68713 | DT8: =SUM(DT26:DT35)*30.4 -> 17502.28202 | DU8: lact 1
B9: lact 3+ | C9: =SUM(I63:I72)*30.4 -> 23962.53822 | D9: =MAX(G63:G86) -> 94.99883249 | E9: =(MATCH(D9,G63:G86,0)-1)*30.4+15 -> 45.4 | F9: 1 | G9: 63.84159319 | H9: 63.84159319 | I9: 63.84159319 | J9: 62.24555336 | K9: 59.0534737 | L9: 55.86139404 | M9: 52.66931438 | N9: 51.07327455 | O9: 52.66931438 | P9: 55.86139404 | Q9: 60.64951353 | R9: 63.84159319 | S9: 15.2 | DI9: =SUM(DI51:DI60)*30.4 -> 20896.72246 | DJ9: =SUM(DJ52:DJ61)*30.4 -> 20680.94283 | DK9: =SUM(DK53:DK62)*30.4 -> 20542.99467 | DL9: =SUM(DL54:DL63)*30.4 -> 20417.45878 | DM9: =SUM(DM55:DM64)*30.4 -> 20381.28777 | DN9: =SUM(DN56:DN65)*30.4 -> 20506.13967 | DO9: =SUM(DO57:DO66)*30.4 -> 20754.27133 | DP9: =SUM(DP58:DP67)*30.4 -> 21075.02185 | DQ9: =SUM(DQ59:DQ68)*30.4 -> 21382.3431 | DR9: =SUM(DR60:DR69)*30.4 -> 21527.15043 | DS9: =SUM(DS61:DS70)*30.4 -> 21467.35047 | DT9: =SUM(DT62:DT71)*30.4 -> 21218.25625 | DU9: lact 2
F10: 2 | G10: 69.64649389 | H10: 69.64649389 | I10: 69.64649389 | J10: 67.90533154 | K10: 64.42300684 | L10: 60.94068215 | M10: 57.45835746 | N10: 55.71719511 | O10: 57.45835746 | P10: 60.94068215 | Q10: 66.16416919 | R10: 69.64649389 | S10: 45.6 | DI10: =SUM(DI87:DI96)*30.4 -> 22057.65149 | DJ10: =SUM(DJ88:DJ97)*30.4 -> 21829.8841 | DK10: =SUM(DK89:DK98)*30.4 -> 21684.27215 | DL10: =SUM(DL90:DL99)*30.4 -> 21551.76204 | DM10: =SUM(DM91:DM100)*30.4 -> 21513.58154 | DN10: =SUM(DN92:DN101)*30.4 -> 21645.36965 | DO10: =SUM(DO93:DO102)*30.4 -> 21907.2864 | DP10: =SUM(DP94:DP103)*30.4 -> 22245.85639 | DQ10: =SUM(DQ95:DQ104)*30.4 -> 22570.25105 | DR10: =SUM(DR96:DR105)*30.4 -> 22723.10324 | DS10: =SUM(DS97:DS106)*30.4 -> 22659.98105 | DT10: =SUM(DT98:DT107)*30.4 -> 22397.04827 | DU10: lact 3+
F11: 3 | G11: 69.68909206 | H11: 69.68909206 | I11: 69.68909206 | J11: 67.94686475 | K11: 64.46241015 | L11: 60.97795555 | M11: 57.49350095 | N11: 55.75127364 | O11: 57.49350095 | P11: 60.97795555 | Q11: 66.20463745 | R11: 69.68909206 | S11: 76
F12: 4 | G12: 67.96697567 | H12: 67.96697567 | I12: 67.96697567 | J12: 66.26780128 | K12: 62.86945249 | L12: 59.47110371 | M12: 56.07275493 | N12: 54.37358053 | O12: 56.07275493 | P12: 59.47110371 | Q12: 64.56862688 | R12: 67.96697567 | S12: 106.4 | AE12: Curves fitted from original florida curves by Florida lactation curves.sas. Months 23+24 are an extension of 21+22 (dragged) | DI12: f | DJ12: g | DK12: h | DL12: i | DM12: j | DN12: k | DO12: l | DP12: m | DQ12: n | DR12: o | DS12: p | DT12: q
D13: Update | F13: 5 | G13: 65.46268065 | H13: 65.46268065 | I13: 65.46268065 | J13: 63.82611364 | K13: 60.5529796 | L13: 57.27984557 | M13: 54.00671154 | N13: 52.37014452 | O13: 54.00671154 | P13: 57.27984557 | Q13: 62.18954662 | R13: 65.46268065 | S13: 136.8 | AE13: Florida curves (default) | AS13: Florida curves | AU13: floridacurves1 | BJ13: Woods curves | BL13: woodscurves1 | CA13: Fit curves | CC13: peakmilkcurves1 | CT13: diphasiccurves1 | DI13: chartmilk1
F14: 6 | G14: 62.58295116 | H14: 62.58295116 | I14: 62.58295116 | J14: 61.01837738 | K14: 57.88922982 | L14: 54.76008226 | M14: 51.63093471 | N14: 50.06636093 | O14: 51.63093471 | P14: 54.76008226 | Q14: 59.4538036 | R14: 62.58295116 | S14: 167.2 | AE14: Jan | AF14: Feb | AG14: Mar | AH14: Apr | AI14: May | AJ14: Jun | AK14: Jul | AL14: Aug | AM14: Sep | AN14: Oct | AO14: Nov | AP14: Dec | AQ14: Avg | AS14: mim | AT14: Jan | AU14: Feb | AV14: Mar | AW14: Apr | AX14: May | AY14: Jun | AZ14: Jul | BA14: Aug | BB14: Sep | BC14: Oct | BD14: Nov | BE14: Dec | BI14: mim | BJ14: day | BK14: Jan | BL14: Feb | BM14: Mar | BN14: Apr | BO14: May | BP14: Jun | BQ14: Jul | BR14: Aug | BS14: Sep | BT14: Oct | BU14: Nov | BV14: Dec | CB14: Jan | CC14: Feb | CD14: Mar | CE14: Apr | CF14: May | CG14: Jun | CH14: Jul | CI14: Aug | CJ14: Sep | CK14: Oct | CL14: Nov | CM14: Dec | CQ14: mim | CR14: day | CT14: Jan | CU14: Feb | CV14: Mar | CW14: Apr | CX14: May | CY14: Jun | CZ14: Jul | DA14: Aug | DB14: Sep | DC14: Oct | DD14: Nov | DE14: Dec | DI14: Jan | DJ14: Feb | DK14: Mar | DL14: Apr | DM14: May | DN14: Jun | DO14: Jul | DP14: Aug | DQ14: Sep | DR14: Oct | DS14: Nov | DT14: Dec
C15: +/- (abs) | D15: 0 | F15: 7 | G15: 59.5349348 | H15: 59.5349348 | I15: 59.5349348 | J15: 58.04656143 | K15: 55.06981469 | L15: 52.09306795 | M15: 49.11632121 | N15: 47.62794784 | O15: 49.11632121 | P15: 52.09306795 | Q15: 56.55818806 | R15: 59.5349348 | S15: 197.6 | AE15: 24.30257083 | AF15: 24.38905973 | AG15: 24.53762989 | AH15: 24.02049096 | AI15: 23.53101363 | AJ15: 22.53543426 | AK15: 21.36670078 | AL15: 21.71561294 | AM15: 22.51551724 | AN15: 23.37440434 | AO15: 23.73132482 | AP15: 24.35248907 | AQ15: 23.36435404 | AS15: 1 | AT15: =((mseasonality*AE15*msea1+(1-mseasonality)*$AQ15)+mabs)*(1+pct)*lbs -> 53.57799738 | AU15: =((mseasonality*AF15*msea2+(1-mseasonality)*$AQ15)+mabs)*(1+pct)*lbs -> 53.76867277 | AV15: =((mseasonality*AG15*msea3+(1-mseasonality)*$AQ15)+mabs)*(1+pct)*lbs -> 54.09621389 | AW15: =((mseasonality*AH15*msea4+(1-mseasonality)*$AQ15)+mabs)*(1+pct)*lbs -> 51.63221478 | AX15: =((mseasonality*AI15*msea5+(1-mseasonality)*$AQ15)+mabs)*(1+pct)*lbs -> 47.98622955 | AY15: =((mseasonality*AJ15*msea6+(1-mseasonality)*$AQ15)+mabs)*(1+pct)*lbs -> 43.4718621 | AZ15: =((mseasonality*AK15*msea7+(1-mseasonality)*$AQ15)+mabs)*(1+pct)*lbs -> 38.86204728 | BA15: =((mseasonality*AL15*msea8+(1-mseasonality)*$AQ15)+mabs)*(1+pct)*lbs -> 38.2997852 | BB15: =((mseasonality*AM15*msea9+(1-mseasonality)*$AQ15)+mabs)*(1+pct)*lbs -> 40.95153036 | BC15: =((mseasonality*AN15*msea10+(1-mseasonality)*$AQ15)+mabs)*(1+pct)*lbs -> 45.09027296 | BD15: =((mseasonality*AO15*msea11+(1-mseasonality)*$AQ15)+mabs)*(1+pct)*lbs -> 49.70268473 | BE15: =((mseasonality*AP15*msea12+(1-mseasonality)*$AQ15)+mabs)*(1+pct)*lbs -> 53.68804827 | BI15: 1 | BJ15: =(BI15-1)*30.4+15.2 -> 15.2 | BK15: =((mseasonality*($D$32*($BJ15)^$D$33*EXP(-$D$34*$BJ15)*msea1) +(1-mseasonality)*($D$32*($BJ15)^$D$33*EXP(-$D$34*$BJ15)*mseaavg)))*(1+pct)*lbs+mabs -> 59.10049325 | BL15: =((mseasonality*($D$32*($BJ15)^$D$33*EXP(-$D$34*$BJ15)*msea2) +(1-mseasonality)*($D$32*($BJ15)^$D$33*EXP(-$D$34*$BJ15)*mseaavg)))*(1+pct)*lbs+mabs -> 59.10049325 | BM15: =((mseasonality*($D$32*($BJ15)^$D$33*EXP(-$D$34*$BJ15)*msea3) +(1-mseasonality)*($D$32*($BJ15)^$D$33*EXP(-$D$34*$BJ15)*mseaavg)))*(1+pct)*lbs+mabs -> 59.10049325 | BN15: =((mseasonality*($D$32*($BJ15)^$D$33*EXP(-$D$34*$BJ15)*msea4) +(1-mseasonality)*($D$32*($BJ15)^$D$33*EXP(-$D$34*$BJ15)*mseaavg)))*(1+pct)*lbs+mabs -> 57.62298091 | BO15: =((mseasonality*($D$32*($BJ15)^$D$33*EXP(-$D$34*$BJ15)*msea5) +(1-mseasonality)*($D$32*($BJ15)^$D$33*EXP(-$D$34*$BJ15)*mseaavg)))*(1+pct)*lbs+mabs -> 54.66795625 | BP15: =((mseasonality*($D$32*($BJ15)^$D$33*EXP(-$D$34*$BJ15)*msea6) +(1-mseasonality)*($D$32*($BJ15)^$D$33*EXP(-$D$34*$BJ15)*mseaavg)))*(1+pct)*lbs+mabs -> 51.71293159 | BQ15: =((mseasonality*($D$32*($BJ15)^$D$33*EXP(-$D$34*$BJ15)*msea7) +(1-mseasonality)*($D$32*($BJ15)^$D$33*EXP(-$D$34*$BJ15)*mseaavg)))*(1+pct)*lbs+mabs -> 48.75790693 | BR15: =((mseasonality*($D$32*($BJ15)^$D$33*EXP(-$D$34*$BJ15)*msea8) +(1-mseasonality)*($D$32*($BJ15)^$D$33*EXP(-$D$34*$BJ15)*mseaavg)))*(1+pct)*lbs+mabs -> 47.2803946 | BS15: =((mseasonality*($D$32*($BJ15)^$D$33*EXP(-$D$34*$BJ15)*msea9) +(1-mseasonality)*($D$32*($BJ15)^$D$33*EXP(-$D$34*$BJ15)*mseaavg)))*(1+pct)*lbs+mabs -> 48.75790693 | BT15: =((mseasonality*($D$32*($BJ15)^$D$33*EXP(-$D$34*$BJ15)*msea10) +(1-mseasonality)*($D$32*($BJ15)^$D$33*EXP(-$D$34*$BJ15)*mseaavg)))*(1+pct)*lbs+mabs -> 51.71293159 | BU15: =((mseasonality*($D$32*($BJ15)^$D$33*EXP(-$D$34*$BJ15)*msea11) +(1-mseasonality)*($D$32*($BJ15)^$D$33*EXP(-$D$34*$BJ15)*mseaavg)))*(1+pct)*lbs+mabs -> 56.14546858 | BV15: =((mseasonality*($D$32*($BJ15)^$D$33*EXP(-$D$34*$BJ15)*msea12) +(1-mseasonality)*($D$32*($BJ15)^$D$33*EXP(-$D$34*$BJ15)*mseaavg)))*(1+pct)*lbs+mabs -> 59.10049325 | BY15: =BJ15/30.4 -> 0.5 | BZ15: =CA15*30.4 -> 1940.784433 | CA15: =($CH$4*($BY15)^$CI$4*EXP(-$CJ$4*$BY15)) -> 63.84159319 | CB15: =((mseasonality*$CA15*msea1+(1-mseasonality)*$CA15*mseaavg))*(1+pct)+mabs -> 63.84159319 | CC15: =((mseasonality*$CA15*msea2+(1-mseasonality)*$CA15*mseaavg))*(1+pct)+mabs -> 63.84159319 | CD15: =((mseasonality*$CA15*msea3+(1-mseasonality)*$CA15*mseaavg))*(1+pct)+mabs -> 63.84159319 | CE15: =((mseasonality*$CA15*msea4+(1-mseasonality)*$CA15*mseaavg))*(1+pct)+mabs -> 62.24555336 | CF15: =((mseasonality*$CA15*msea5+(1-mseasonality)*$CA15*mseaavg))*(1+pct)+mabs -> 59.0534737 | CG15: =((mseasonality*$CA15*msea6+(1-mseasonality)*$CA15*mseaavg))*(1+pct)+mabs -> 55.86139404 | CH15: =((mseasonality*$CA15*msea7+(1-mseasonality)*$CA15*mseaavg))*(1+pct)+mabs -> 52.66931438 | CI15: =((mseasonality*$CA15*msea8+(1-mseasonality)*$CA15*mseaavg))*(1+pct)+mabs -> 51.07327455 | CJ15: =((mseasonality*$CA15*msea9+(1-mseasonality)*$CA15*mseaavg))*(1+pct)+mabs -> 52.66931438 | CK15: =((mseasonality*$CA15*msea10+(1-mseasonality)*$CA15*mseaavg))*(1+pct)+mabs -> 55.86139404 | CL15: =((mseasonality*$CA15*msea11+(1-mseasonality)*$CA15*mseaavg))*(1+pct)+mabs -> 60.64951353 | CM15: =((mseasonality*$CA15*msea12+(1-mseasonality)*$CA15*mseaavg))*(1+pct)+mabs -> 63.84159319 | CQ15: 1 | CR15: =(CQ15-1)*30.4+15.2 -> 15.2 | CS15: =dp1_1a*dp1_1b*(1-(TANH(dp1_1b*($CR15-dp1_1c)))^2)+dp1_2a*dp1_2b*(1-(TANH(dp1_2b*($CR15-dp1_2c)))^2) -> 34.95492642 | CT15: =((mseasonality*$CS15*msea1+(1-mseasonality)*$CS15*mseaavg)*(1+pct)*lbs)+mabs -> 77.06242146 | CU15: =((mseasonality*$CS15*msea2+(1-mseasonality)*$CS15*mseaavg)*(1+pct)*lbs)+mabs -> 77.06242146 | CV15: =((mseasonality*$CS15*msea3+(1-mseasonality)*$CS15*mseaavg)*(1+pct)*lbs)+mabs -> 77.06242146 | CW15: =((mseasonality*$CS15*msea4+(1-mseasonality)*$CS15*mseaavg)*(1+pct)*lbs)+mabs -> 75.13586092 | CX15: =((mseasonality*$CS15*msea5+(1-mseasonality)*$CS15*mseaavg)*(1+pct)*lbs)+mabs -> 71.28273985 | CY15: =((mseasonality*$CS15*msea6+(1-mseasonality)*$CS15*mseaavg)*(1+pct)*lbs)+mabs -> 67.42961877 | CZ15: =((mseasonality*$CS15*msea7+(1-mseasonality)*$CS15*mseaavg)*(1+pct)*lbs)+mabs -> 63.5764977 | DA15: =((mseasonality*$CS15*msea8+(1-mseasonality)*$CS15*mseaavg)*(1+pct)*lbs)+mabs -> 61.64993716 | DB15: =((mseasonality*$CS15*msea9+(1-mseasonality)*$CS15*mseaavg)*(1+pct)*lbs)+mabs -> 63.5764977 | DC15: =((mseasonality*$CS15*msea10+(1-mseasonality)*$CS15*mseaavg)*(1+pct)*lbs)+mabs -> 67.42961877 | DD15: =((mseasonality*$CS15*msea11+(1-mseasonality)*$CS15*mseaavg)*(1+pct)*lbs)+mabs -> 73.20930038 | DE15: =((mseasonality*$CS15*msea12+(1-mseasonality)*$CS15*mseaavg)*(1+pct)*lbs)+mabs -> 77.06242146 | DH15: Jan | DI15: =G9 -> 63.84159319
C16: +/- (%) | D16: 0 | F16: 8 | G16: 56.43627212 | H16: 56.43627212 | I16: 56.43627212 | J16: 55.02536532 | K16: 52.20355171 | L16: 49.38173811 | M16: 46.5599245 | N16: 45.1490177 | O16: 46.5599245 | P16: 49.38173811 | Q16: 53.61445851 | R16: 56.43627212 | S16: 228 | AE16: 27.89607925 | AF16: 28.16873913 | AG16: 28.17584314 | AH16: 27.6665854 | AI16: 26.87459579 | AJ16: 25.89957025 | AK16: 24.73424444 | AL16: 24.36234502 | AM16: 24.70407675 | AN16: 25.5628899 | AO16: 26.4881392 | AP16: 27.35711075 | AQ16: 26.49085158 | AS16: 2 | AT16: =((mseasonality*AE16*msea1+(1-mseasonality)*$AQ16)+mabs)*(1+pct)*lbs -> 61.50032733 | AU16: 62.10143947 | AV16: 62.11710112 | AW16: 59.46952049 | AX16: 54.80471614 | AY16: 49.96143112 | AZ16: 44.9869817 | BA16: 42.96782152 | BB16: 44.93211229 | BC16: 49.31195964 | BD16: 55.47653329 | BE16: 60.31210517 | BI16: 2 | BJ16: =(BI16-1)*30.4+15.2 -> 45.6 | BK16: 69.8996392 | BL16: 69.8996392 | BM16: 69.8996392 | BN16: 68.15214822 | BO16: 64.65716626 | BP16: 61.1621843 | BQ16: 57.66720234 | BR16: 55.91971136 | BS16: 57.66720234 | BT16: 61.1621843 | BU16: 66.40465724 | BV16: 69.8996392 | BY16: =BJ16/30.4 -> 1.5 | BZ16: =CA16*30.4+BZ15 -> 4058.037847 | CA16: =($CH$4*($BY16)^$CI$4*EXP(-$CJ$4*$BY16)) -> 69.64649389 | CB16: =((mseasonality*$CA16*msea1+(1-mseasonality)*$CA16*mseaavg))*(1+pct)+mabs -> 69.64649389 | CC16: 69.64649389 | CD16: 69.64649389 | CE16: 67.90533154 | CF16: 64.42300684 | CG16: 60.94068215 | CH16: 57.45835746 | CI16: 55.71719511 | CJ16: 57.45835746 | CK16: 60.94068215 | CL16: 66.16416919 | CM16: 69.64649389 | CQ16: 2 | CR16: =(CQ16-1)*30.4+15.2 -> 45.6 | CS16: 35.77205606 | CT16: 78.86388395 | CU16: 78.86388395 | CV16: 78.86388395 | CW16: 76.89228685 | CX16: 72.94909265 | CY16: 69.00589845 | CZ16: 65.06270426 | DA16: 63.09110716 | DB16: 65.06270426 | DC16: 69.00589845 | DD16: 74.92068975 | DE16: 78.86388395 | DH16: Feb | DI16: =H10 -> 69.64649389 | DJ16: =H9 -> 63.84159319
C17: Seasonality | D17: 1 | F17: 9 | G17: 53.35798724 | H17: 53.35798724 | I17: 53.35798724 | J17: 52.02403756 | K17: 49.3561382 | L17: 46.68823883 | M17: 44.02033947 | N17: 42.68638979 | O17: 44.02033947 | P17: 46.68823883 | Q17: 50.69008788 | R17: 53.35798724 | S17: 258.4 | AE17: 29.68071375 | AF17: 30.07788163 | AG17: 30.02846042 | AH17: 29.5350425 | AI17: 28.60807829 | AJ17: 27.636566 | AK17: 26.54633532 | AL17: 25.83442871 | AM17: 25.90171012 | AN17: 26.67342921 | AO17: 27.80838063 | AP17: 28.82179779 | AQ17: 28.0960687 | AS17: 3 | AT17: 65.4347729 | AU17: 66.31037821 | AV17: 66.20142309 | AW17: 63.4857822 | AX17: 58.33976528 | AY17: 53.31217373 | AZ17: 48.28283734 | BA17: 45.56413273 | BB17: 47.11038423 | BC17: 51.45423971 | BD17: 58.24163572 | BE17: 63.54118735 | BI17: 3 | BJ17: 76 | BK17: 73.15374336 | BL17: 73.15374336 | BM17: 73.15374336 | BN17: 71.32489978 | BO17: 67.66721261 | BP17: 64.00952544 | BQ17: 60.35183827 | BR17: 58.52299469 | BS17: 60.35183827 | BT17: 64.00952544 | BU17: 69.49605619 | BV17: 73.15374336 | BY17: 2.5 | BZ17: =CA17*30.4+BZ16 -> 6176.586246 | CA17: =($CH$4*($BY17)^$CI$4*EXP(-$CJ$4*$BY17)) -> 69.68909206 | CB17: 69.68909206 | CC17: 69.68909206 | CD17: 69.68909206 | CE17: 67.94686475 | CF17: 64.46241015 | CG17: 60.97795555 | CH17: 57.49350095 | CI17: 55.75127364 | CJ17: 57.49350095 | CK17: 60.97795555 | CL17: 66.20463745 | CM17: 69.68909206 | CQ17: 3 | CR17: 76 | CS17: 36.24825104 | CT17: 79.91371418 | CU17: 79.91371418 | CV17: 79.91371418 | CW17: 77.91587133 | CX17: 73.92018562 | CY17: 69.92449991 | CZ17: 65.9288142 | DA17: 63.93097134 | DB17: 65.9288142 | DC17: 69.92449991 | DD17: 75.91802847 | DE17: 79.91371418 | DH17: Mar | DI17: =I11 -> 69.68909206 | DJ17: =I10 -> 69.64649389 | DK17: =I9 -> 63.84159319
C18: Jan | D18: 1 | F18: 10 | G18: 50.34434018 | H18: 50.34434018 | I18: 50.34434018 | J18: 49.08573168 | K18: 46.56851467 | L18: 44.05129766 | M18: 41.53408065 | N18: 40.27547215 | O18: 41.53408065 | P18: 44.05129766 | Q18: 47.82712317 | R18: 50.34434018 | S18: 288.8 | AE18: 30.16580063 | AF18: 30.64381696 | AG18: 30.59772786 | AH18: 30.13064943 | AI18: 29.18311728 | AJ18: 28.21110397 | AK18: 27.22655286 | AL18: 26.42110721 | AM18: 26.34034632 | AN18: 26.97987997 | AO18: 28.0969873 | AP18: 29.17378773 | AQ18: 28.59757313 | AS18: 4 | AT18: 66.50420643 | AU18: 67.55805202 | AV18: 67.45644297 | AW18: 64.76604351 | AX18: 59.51242845 | AY18: 54.4204832 | AZ18: 49.5200263 | BA18: 46.59885649 | BB18: 47.90818173 | BC18: 52.04539695 | BD18: 58.84609106 | BE18: 64.31719234 | BI18: 4 | BJ18: 106.4 | BK18: 73.83133038 | BL18: 73.83133038 | BM18: 73.83133038 | BN18: 71.98554712 | BO18: 68.2939806 | BP18: 64.60241408 | BQ18: 60.91084756 | BR18: 59.0650643 | BS18: 60.91084756 | BT18: 64.60241408 | BU18: 70.13976386 | BV18: 73.83133038 | BY18: 3.5 | BZ18: 8242.782306 | CA18: 67.96697567 | CB18: 67.96697567 | CC18: 67.96697567 | CD18: 67.96697567 | CE18: 66.26780128 | CF18: 62.86945249 | CG18: 59.47110371 | CH18: 56.07275493 | CI18: 54.37358053 | CJ18: 56.07275493 | CK18: 59.47110371 | CL18: 64.56862688 | CM18: 67.96697567 | CQ18: 4 | CR18: 106.4 | CS18: 36.36276798 | CT18: 80.16618083 | CU18: 80.16618083 | CV18: 80.16618083 | CW18: 78.1620263 | CX18: 74.15371726 | CY18: 70.14540822 | CZ18: 66.13709918 | DA18: 64.13294466 | DB18: 66.13709918 | DC18: 70.14540822 | DD18: 76.15787178 | DE18: 80.16618083 | DH18: Apr | DI18: =J12 -> 66.26780128 | DJ18: =J11 -> 67.94686475 | DK18: =J10 -> 67.90533154 | DL18: =J9 -> 62.24555336
C19: Feb | D19: 1 | F19: 11 | G19: 47.42315497 | H19: 47.42315497 | I19: 47.42315497 | J19: 46.2375761 | K19: 43.86641835 | L19: 41.4952606 | M19: 39.12410285 | N19: 37.93852398 | O19: 39.12410285 | P19: 41.4952606 | Q19: 45.05199722 | R19: 47.42315497 | S19: 319.2 | AE19: 29.76756213 | AF19: 30.2966706 | AG19: 30.29321624 | AH19: 29.86430948 | AI19: 28.96848721 | AJ19: 28.0011673 | AK19: 27.12342239 | AL19: 26.36548576 | AM19: 26.21711828 | AN19: 26.71070511 | AO19: 27.68487027 | AP19: 28.76382344 | AQ19: 28.33806985 | AS19: 5 | AT19: 65.6262408 | AU19: 66.79272532 | AV19: 66.78510975 | AW19: 64.1935439 | AX19: 59.07473851 | AY19: 54.01550597 | AZ19: 49.33245118 | BA19: 46.50075704 | BB19: 47.6840529 | BC19: 51.5261466 | BD19: 57.98295666 | BE19: 63.4133758 | BI19: 5 | BJ19: 136.8 | BK19: 73.20631625 | BL19: 73.20631625 | BM19: 73.20631625 | BN19: 71.37615835 | BO19: 67.71584254 | BP19: 64.05552672 | BQ19: 60.39521091 | BR19: 58.565053 | BS19: 60.39521091 | BT19: 64.05552672 | BU19: 69.54600044 | BV19: 73.20631625 | BY19: 4.5 | BZ19: 10232.8478 | CA19: 65.46268065 | CB19: 65.46268065 | CC19: 65.46268065 | CD19: 65.46268065 | CE19: 63.82611364 | CF19: 60.5529796 | CG19: 57.27984557 | CH19: 54.00671154 | CI19: 52.37014452 | CJ19: 54.00671154 | CK19: 57.27984557 | CL19: 62.18954662 | CM19: 65.46268065 | CQ19: 5 | CR19: 136.8 | CS19: 36.10929681 | CT19: 79.60737253 | CU19: 79.60737253 | CV19: 79.60737253 | CW19: 77.61718822 | CX19: 73.63681959 | CY19: 69.65645097 | CZ19: 65.67608234 | DA19: 63.68589803 | DB19: 65.67608234 | DC19: 69.65645097 | DD19: 75.62700391 | DE19: 79.60737253 | DH19: May | DI19: =K13 -> 60.5529796 | DJ19: =K12 -> 62.86945249 | DK19: =K11 -> 64.46241015 | DL19: =K10 -> 64.42300684 | DM19: =K9 -> 59.0534737
C20: Mar | D20: 1 | F20: 12 | G20: 44.61166738 | H20: 44.61166738 | I20: 44.61166738 | J20: 43.49637569 | K20: 41.26579233 | L20: 39.03520896 | M20: 36.80462559 | N20: 35.6893339 | O20: 36.80462559 | P20: 39.03520896 | Q20: 42.38108401 | R20: 44.61166738 | S20: 349.6 | AE20: 28.81758162 | AF20: 29.37829352 | AG20: 29.44032073 | AH20: 29.06167354 | AI20: 28.25757301 | AJ20: 27.30601805 | AK20: 26.51697216 | AL20: 25.86816597 | AM20: 25.69694171 | AN20: 26.05277336 | AO20: 26.83565424 | AP20: 27.8729332 | AQ20: 27.59207509 | AS20: 6 | AT20: 63.53189229 | AU20: 64.76805042 | AV20: 64.90479703 | AW20: 62.46827228 | AX20: 57.62498829 | AY20: 52.67453192 | AZ20: 48.22943123 | BA20: 45.62363506 | BB20: 46.73794863 | BC20: 50.25696678 | BD20: 56.20436584 | BE20: 61.44929902 | BI20: 6 | BJ20: 167.2 | BK20: 71.82562285 | BL20: 71.82562285 | BM20: 71.82562285 | BN20: 70.02998228 | BO20: 66.43870114 | BP20: 62.84741999 | BQ20: 59.25613885 | BR20: 57.46049828 | BS20: 59.25613885 | BT20: 62.84741999 | BU20: 68.23434171 | BV20: 71.82562285 | BY20: 5.5 | BZ20: 12135.36951 | CA20: 62.58295116 | CB20: 62.58295116 | CC20: 62.58295116 | CD20: 62.58295116 | CE20: 61.01837738 | CF20: 57.88922982 | CG20: 54.76008226 | CH20: 51.63093471 | CI20: 50.06636093 | CJ20: 51.63093471 | CK20: 54.76008226 | CL20: 59.4538036 | CM20: 62.58295116 | CQ20: 6 | CR20: 167.2 | CS20: 35.49666059 | CT20: 78.25674087 | CU20: 78.25674087 | CV20: 78.25674087 | CW20: 76.30032234 | CX20: 72.3874853 | CY20: 68.47464826 | CZ20: 64.56181121 | DA20: 62.60539269 | DB20: 64.56181121 | DC20: 68.47464826 | DD20: 74.34390382 | DE20: 78.25674087 | DH20: Jun | DI20: =L14 -> 54.76008226 | DJ20: =L13 -> 57.27984557 | DK20: =L12 -> 59.47110371 | DL20: =L11 -> 60.97795555 | DM20: =L10 -> 60.94068215 | DN20: =L9 -> 55.86139404
C21: Apr | D21: 0.975 | F21: 13 | G21: 41.92005441 | H21: 41.92005441 | I21: 41.92005441 | J21: 40.87205305 | K21: 38.77605033 | L21: 36.68004761 | M21: 34.58404489 | N21: 33.53604353 | O21: 34.58404489 | P21: 36.68004761 | Q21: 39.82405169 | R21: 41.92005441 | S21: 380 | AE21: 27.57126898 | AF21: 28.15119173 | AG21: 28.28876071 | AH21: 27.97177168 | AI21: 27.2758622 | AJ21: 26.35417536 | AK21: 25.62529054 | AL21: 25.09088014 | AM21: 24.91509375 | AN21: 25.15515975 | AO21: 25.75241826 | AP21: 26.71921072 | AQ21: 26.57259032 | AS21: 7 | AT21: 60.78424325 | AU21: 62.06275407 | AV21: 62.36604175 | AW21: 60.12552055 | AX21: 55.62300908 | AY21: 50.83838473 | AZ21: 46.60762851 | BA21: 44.25273753 | BB21: 45.31591289 | BC21: 48.52542991 | BD21: 53.93564562 | BE21: 58.90577634 | BI21: 7 | BJ21: 197.6 | BK21: 69.97970221 | BL21: 69.97970221 | BM21: 69.97970221 | BN21: 68.23020966 | BO21: 64.73122455 | BP21: 61.23223944 | BQ21: 57.73325433 | BR21: 55.98376177 | BS21: 57.73325433 | BT21: 61.23223944 | BU21: 66.4807171 | BV21: 69.97970221 | BY21: 6.5 | BZ21: 13945.23153 | CA21: 59.5349348 | CB21: 59.5349348 | CC21: 59.5349348 | CD21: 59.5349348 | CE21: 58.04656143 | CF21: 55.06981469 | CG21: 52.09306795 | CH21: 49.11632121 | CI21: 47.62794784 | CJ21: 49.11632121 | CK21: 52.09306795 | CL21: 56.55818806 | CM21: 59.5349348 | CQ21: 7 | CR21: 197.6 | CS21: 34.54817718 | CT21: 76.1656929 | CU21: 76.1656929 | CV21: 76.1656929 | CW21: 74.26155057 | CX21: 70.45326593 | CY21: 66.64498128 | CZ21: 62.83669664 | DA21: 60.93255432 | DB21: 62.83669664 | DC21: 66.64498128 | DD21: 72.35740825 | DE21: 76.1656929 | DH21: Jul | DI21: =M15 -> 49.11632121 | DJ21: =M14 -> 51.63093471 | DK21: =M13 -> 54.00671154 | DL21: =M12 -> 56.07275493 | DM21: =M11 -> 57.49350095 | DN21: =M10 -> 57.45835746 | DO21: =M9 -> 52.66931438
C22: May | D22: 0.925 | F22: 14 | G22: 39.35367263 | H22: 39.35367263 | I22: 39.35367263 | J22: 38.36983082 | K22: 36.40214719 | L22: 34.43446356 | M22: 32.46677992 | N22: 31.48293811 | O22: 32.46677992 | P22: 34.43446356 | Q22: 37.385989 | R22: 39.35367263 | S22: 410.4 | AE22: 26.21632583 | AF22: 26.80745604 | AG22: 27.02107942 | AH22: 26.77564466 | AI22: 26.18843708 | AJ22: 25.31139369 | AK22: 24.611083 | AL22: 24.16012562 | AM22: 23.9797918 | AN22: 24.13294617 | AO22: 24.58443642 | AP22: 25.4645952 | AQ22: 25.43777624 | AS22: 8 | AT22: 57.79710494 | AU22: 59.10032398 | AV22: 59.57128291 | AW22: 57.55443708 | AX22: 53.40544922 | AY22: 48.82681219 | AZ22: 44.76297398 | BA22: 42.61116756 | BB22: 43.61477292 | BC22: 46.55353415 | BD22: 51.48943439 | BE22: 56.13982259 | BI22: 8 | BJ22: 228 | BK22: 67.84220658 | BL22: 67.84220658 | BM22: 67.84220658 | BN22: 66.14615141 | BO22: 62.75404109 | BP22: 59.36193076 | BQ22: 55.96982043 | BR22: 54.27376526 | BS22: 55.96982043 | BT22: 59.36193076 | BU22: 64.45009625 | BV22: 67.84220658 | BY22: 7.5 | BZ22: 15660.8942 | CA22: 56.43627212 | CB22: 56.43627212 | CC22: 56.43627212 | CD22: 56.43627212 | CE22: 55.02536532 | CF22: 52.20355171 | CG22: 49.38173811 | CH22: 46.5599245 | CI22: 45.1490177 | CJ22: 46.5599245 | CK22: 49.38173811 | CL22: 53.61445851 | CM22: 56.43627212 | CQ22: 8 | CR22: 228 | CS22: 33.29975957 | CT22: 73.41340318 | CU22: 73.41340318 | CV22: 73.41340318 | CW22: 71.57806811 | CX22: 67.90739795 | CY22: 64.23672779 | CZ22: 60.56605763 | DA22: 58.73072255 | DB22: 60.56605763 | DC22: 64.23672779 | DD22: 69.74273303 | DE22: 73.41340318 | DH22: Aug | DI22: =N16 -> 45.1490177 | DJ22: =N15 -> 47.62794784 | DK22: =N14 -> 50.06636093 | DL22: =N13 -> 52.37014452 | DM22: =N12 -> 54.37358053 | DN22: =N11 -> 55.75127364 | DO22: =N10 -> 55.71719511 | DP22: =N9 -> 51.07327455
C23: Jun | D23: 0.875 | F23: 15 | G23: 36.91453428 | H23: 36.91453428 | I23: 36.91453428 | J23: 35.99167092 | K23: 34.14594421 | L23: 32.30021749 | M23: 30.45449078 | N23: 29.53162742 | O23: 30.45449078 | P23: 32.30021749 | Q23: 35.06880757 | R23: 36.91453428 | S23: 440.8 | AE23: 24.88121084 | AF23: 25.47769166 | AG23: 25.7611438 | AH23: 25.59497546 | AI23: 25.10746682 | AJ23: 24.28864104 | AK23: 23.58822931 | AL23: 23.17079907 | AM23: 22.97477219 | AN23: 23.07102194 | AO23: 23.43391861 | AP23: 24.2216514 | AQ23: 24.29762685 | AS23: 9 | AT23: 54.85368024 | AU23: 56.16869534 | AV23: 56.79360033 | AW23: 55.01658032 | AX23: 51.20105259 | AY23: 46.85387651 | AZ23: 42.90259371 | BA23: 40.86629421 | BB23: 41.78682952 | BC23: 44.50503472 | BD23: 49.07979969 | BE23: 53.39960056 | BI23: 9 | BJ23: 258.4 | BK23: 65.52494876 | BL23: 65.52494876 | BM23: 65.52494876 | BN23: 63.88682504 | BO23: 60.6105776 | BP23: 57.33433017 | BQ23: 54.05808273 | BR23: 52.41995901 | BS23: 54.05808273 | BT23: 57.33433017 | BU23: 62.24870132 | BV23: 65.52494876 | BY23: 8.5 | BZ23: 17282.97702 | CA23: 53.35798724 | CB23: 53.35798724 | CC23: 53.35798724 | CD23: 53.35798724 | CE23: 52.02403756 | CF23: 49.3561382 | CG23: 46.68823883 | CH23: 44.02033947 | CI23: 42.68638979 | CJ23: 44.02033947 | CK23: 46.68823883 | CL23: 50.69008788 | CM23: 53.35798724 | CQ23: 9 | CR23: 258.4 | CS23: 31.7970226 | CT23: 70.10043527 | CU23: 70.10043527 | CV23: 70.10043527 | CW23: 68.34792439 | CX23: 64.84290262 | CY23: 61.33788086 | CZ23: 57.8328591 | DA23: 56.08034822 | DB23: 57.8328591 | DC23: 61.33788086 | DD23: 66.59541351 | DE23: 70.10043527 | DH23: Sep | DI23: =O17 -> 44.02033947 | DJ23: =O16 -> 46.5599245 | DK23: =O15 -> 49.11632121 | DL23: =O14 -> 51.63093471 | DM23: =O13 -> 54.00671154 | DN23: =O12 -> 56.07275493 | DO23: =O11 -> 57.49350095 | DP23: =O10 -> 57.45835746 | DQ23: =O9 -> 52.66931438
C24: Jul | D24: 0.825 | F24: 16 | G24: 34.60231135 | H24: 34.60231135 | I24: 34.60231135 | J24: 33.73725357 | K24: 32.007138 | L24: 30.27702243 | M24: 28.54690687 | N24: 27.68184908 | O24: 28.54690687 | P24: 30.27702243 | Q24: 32.87219579 | R24: 34.60231135 | S24: 471.2 | AE24: 23.64360501 | AF24: 24.23994787 | AG24: 24.58264418 | AH24: 24.50072084 | AI24: 24.09969963 | AJ24: 23.35007714 | AK24: 22.62834058 | AL24: 22.18983084 | AM24: 21.96186898 | AN24: 22.02788427 | AO24: 22.36275123 | AP24: 23.06034963 | AQ24: 23.22064335 | AS24: 10 | AT24: 52.12522643 | AU24: 53.43993738 | AV24: 54.19545342 | AW24: 52.66447228 | AX24: 49.14593722 | AY24: 45.04334471 | AZ24: 41.15673498 | BA24: 39.1361624 | BB24: 39.94454733 | BC24: 42.49277544 | BD24: 46.83635584 | BE24: 50.83936841 | BI24: 10 | BJ24: 288.8 | BK24: 63.10354962 | BL24: 63.10354962 | BM24: 63.10354962 | BN24: 61.52596088 | BO24: 58.3707834 | BP24: 55.21560592 | BQ24: 52.06042844 | BR24: 50.4828397 | BS24: 52.06042844 | BT24: 55.21560592 | BU24: 59.94837214 | BV24: 63.10354962 | BY24: 9.5 | BZ24: 18813.44496 | CA24: 50.34434018 | CB24: 50.34434018 | CC24: 50.34434018 | CD24: 50.34434018 | CE24: 49.08573168 | CF24: 46.56851467 | CG24: 44.05129766 | CH24: 41.53408065 | CI24: 40.27547215 | CJ24: 41.53408065 | CK24: 44.05129766 | CL24: 47.82712317 | CM24: 50.34434018 | CQ24: 10 | CR24: 288.8 | CS24: 30.09179661 | CT24: 66.34105547 | CU24: 66.34105547 | CV24: 66.34105547 | CW24: 64.68252909 | CX24: 61.36547631 | CY24: 58.04842354 | CZ24: 54.73137077 | DA24: 53.07284438 | DB24: 54.73137077 | DC24: 58.04842354 | DD24: 63.0240027 | DE24: 66.34105547 | DH24: Oct | DI24: =P18 -> 44.05129766 | DJ24: =P17 -> 46.68823883 | DK24: =P16 -> 49.38173811 | DL24: =P15 -> 52.09306795 | DM24: =P14 -> 54.76008226 | DN24: =P13 -> 57.27984557 | DO24: =P12 -> 59.47110371 | DP24: =P11 -> 60.97795555 | DQ24: =P10 -> 60.94068215 | DR24: =P9 -> 55.86139404
C25: Aug | D25: 0.8 | F25: 17 | G25: 32.41503594 | H25: 32.41503594 | I25: 32.41503594 | J25: 31.60466004 | K25: 29.98390824 | L25: 28.36315644 | M25: 26.74240465 | N25: 25.93202875 | O25: 26.74240465 | P25: 28.36315644 | Q25: 30.79428414 | R25: 32.41503594 | S25: 501.6 | AE25: 22.53887695 | AF25: 23.12864768 | AG25: 23.51759408 | AH25: 23.52174281 | AI25: 23.19395489 | AJ25: 22.52103166 | AK25: 21.76731638 | AL25: 21.25981923 | AM25: 20.98359267 | AN25: 21.0394389 | AO25: 21.39923788 | AP25: 22.01484585 | AQ25: 22.24050825 | AS25: 11 | AT25: 49.68971796 | AU25: 50.98993985 | AV25: 51.84741988 | AW25: 50.56015209 | AX25: 47.29887378 | AY25: 43.44407885 | AZ25: 39.5906924 | BA25: 37.4959027 | BB25: 38.16524501 | BC25: 40.58602004 | BD25: 44.81838168 | BE25: 48.53442714 | BI25: 11 | BJ25: 319.2 | BK25: 60.63088336 | BL25: 60.63088336 | BM25: 60.63088336 | BN25: 59.11511127 | BO25: 56.08356711 | BP25: 53.05202294 | BQ25: 50.02047877 | BR25: 48.50470669 | BS25: 50.02047877 | BT25: 53.05202294 | BU25: 57.59933919 | BV25: 60.63088336 | BY25: 10.5 | BZ25: 20255.10887 | CA25: 47.42315497 | CB25: 47.42315497 | CC25: 47.42315497 | CD25: 47.42315497 | CE25: 46.2375761 | CF25: 43.86641835 | CG25: 41.4952606 | CH25: 39.12410285 | CI25: 37.93852398 | CJ25: 39.12410285 | CK25: 41.4952606 | CL25: 45.05199722 | CM25: 47.42315497 | CQ25: 11 | CR25: 319.2 | CS25: 28.23849643 | CT25: 62.25522799 | CU25: 62.25522799 | CV25: 62.25522799 | CW25: 60.69884729 | CX25: 57.58608589 | CY25: 54.47332449 | CZ25: 51.36056309 | DA25: 49.80418239 | DB25: 51.36056309 | DC25: 54.47332449 | DD25: 59.14246659 | DE25: 62.25522799 | DH25: Nov | DI25: =Q19 -> 45.05199722 | DJ25: =Q18 -> 47.82712317 | DK25: =Q17 -> 50.69008788 | DL25: =Q16 -> 53.61445851 | DM25: =Q15 -> 56.55818806 | DN25: =Q14 -> 59.4538036 | DO25: =Q13 -> 62.18954662 | DP25: =Q12 -> 64.56862688 | DQ25: =Q11 -> 66.20463745 | DR25: =Q10 -> 66.16416919 | DS25: =Q9 -> 60.64951353
C26: Sep | D26: 0.825 | F26: 18 | G26: 30.34959832 | H26: 30.34959832 | I26: 30.34959832 | J26: 29.59085836 | K26: 28.07337845 | L26: 26.55589853 | M26: 25.03841861 | N26: 24.27967866 | O26: 25.03841861 | P26: 26.55589853 | Q26: 28.8321184 | R26: 30.34959832 | S26: 532 | AE26: 21.56854819 | AF26: 22.14351751 | AG26: 22.56482992 | AH26: 22.65344023 | AI26: 22.3886153 | AJ26: 21.79598245 | AK26: 21.01190183 | AL26: 20.40266487 | AM26: 20.06570895 | AN26: 20.12280055 | AO26: 20.54484011 | AP26: 21.09026171 | AQ26: 21.3627593 | AS26: 12 | AT26: 47.55050921 | AU26: 48.81809958 | AV26: 49.74693446 | AW26: 48.69372958 | AX26: 45.65656414 | AY26: 42.04542643 | AZ26: 38.21673411 | BA26: 35.98414118 | BB26: 36.49578557 | BC26: 38.8177836 | BD26: 43.02893827 | BE26: 46.49606802 | BI26: 12 | BJ26: 349.6 | BK26: 58.14475148 | BL26: 58.14475148 | BM26: 58.14475148 | BN26: 56.6911327 | BO26: 53.78389512 | BP26: 50.87665755 | BQ26: 47.96941997 | BR26: 46.51580119 | BS26: 47.96941997 | BT26: 50.87665755 | BU26: 55.23751391 | BV26: 58.14475148 | BY26: 11.5 | BZ26: 21611.30356 | CA26: 44.61166738 | CB26: 44.61166738 | CC26: 44.61166738 | CD26: 44.61166738 | CE26: 43.49637569 | CF26: 41.26579233 | CG26: 39.03520896 | CH26: 36.80462559 | CI26: 35.6893339 | CJ26: 36.80462559 | CK26: 39.03520896 | CL26: 42.38108401 | CM26: 44.61166738 | CQ26: 12 | CR26: 349.6 | CS26: 26.29075673 | CT26: 57.96119698 | CU26: 57.96119698 | CV26: 57.96119698 | CW26: 56.51216705 | CX26: 53.61410721 | CY26: 50.71604736 | CZ26: 47.81798751 | DA26: 46.36895758 | DB26: 47.81798751 | DC26: 50.71604736 | DD26: 55.06313713 | DE26: 57.96119698 | DH26: Dec | DI26: =R20 -> 44.61166738 | DJ26: =R19 -> 47.42315497 | DK26: =R18 -> 50.34434018 | DL26: =R17 -> 53.35798724 | DM26: =R16 -> 56.43627212 | DN26: =R15 -> 59.5349348 | DO26: =R14 -> 62.58295116 | DP26: =R13 -> 65.46268065 | DQ26: =R12 -> 67.96697567 | DR26: =R11 -> 69.68909206 | DS26: =R10 -> 69.64649389 | DT26: =R9 -> 63.84159319
C27: Oct | D27: 0.875 | F27: 19 | G27: 28.4021069 | H27: 28.4021069 | I27: 28.4021069 | J27: 27.69205423 | K27: 26.27194888 | L27: 24.85184354 | M27: 23.43173819 | N27: 22.72168552 | O27: 23.43173819 | P27: 24.85184354 | Q27: 26.98200156 | R27: 28.4021069 | S27: 562.4 | AE27: 20.70875842 | AF27: 21.2585168 | AG27: 21.6985108 | AH27: 21.8663803 | AI27: 21.65911901 | AJ27: 21.1465337 | AK27: 20.34624472 | AL27: 19.623205 | AM27: 19.21981747 | AN27: 19.28009352 | AO27: 19.78091814 | AP27: 20.26946456 | AQ27: 20.57146354 | AS27: 13 | AT27: 45.65499726 | AU27: 46.867007 | AV27: 47.83702773 | AW27: 47.00193872 | AX27: 44.16891992 | AY27: 40.79261071 | AZ27: 37.00602787 | BA27: 34.60940929 | BB27: 34.95726658 | BC27: 37.192164 | BD27: 41.4289866 | BE27: 44.68652006 | BI27: 13 | BJ27: 380 | BK27: 55.67255683 | BL27: 55.67255683 | BM27: 55.67255683 | BN27: 54.28074291 | BO27: 51.49711507 | BP27: 48.71348723 | BQ27: 45.92985939 | BR27: 44.53804546 | BS27: 45.92985939 | BT27: 48.71348723 | BU27: 52.88892899 | BV27: 55.67255683 | BY27: 12.5 | BZ27: 22885.67321 | CA27: 41.92005441 | CB27: 41.92005441 | CC27: 41.92005441 | CD27: 41.92005441 | CE27: 40.87205305 | CF27: 38.77605033 | CG27: 36.68004761 | CH27: 34.58404489 | CI27: 33.53604353 | CJ27: 34.58404489 | CK27: 36.68004761 | CL27: 39.82405169 | CM27: 41.92005441 | CQ27: 13 | CR27: 380 | CS27: 24.29864182 | CT27: 53.56933539 | CU27: 53.56933539 | CV27: 53.56933539 | CW27: 52.230102 | CX27: 49.55163524 | CY27: 46.87316847 | CZ27: 44.1947017 | DA27: 42.85546831 | DB27: 44.1947017 | DC27: 46.87316847 | DD27: 50.89086862 | DE27: 53.56933539 | DH27: Jan | DI27: =G21 -> 41.92005441 | DJ27: =G20 -> 44.61166738 | DK27: =G19 -> 47.42315497 | DL27: =G18 -> 50.34434018 | DM27: =G17 -> 53.35798724 | DN27: =G16 -> 56.43627212 | DO27: =G15 -> 59.5349348 | DP27: =G14 -> 62.58295116 | DQ27: =G13 -> 65.46268065 | DR27: =G12 -> 67.96697567 | DS27: =G11 -> 69.68909206 | DT27: =G10 -> 69.64649389
C28: Nov | D28: 0.95 | F28: 20 | G28: 26.56815132 | H28: 26.56815132 | I28: 26.56815132 | J28: 25.90394754 | K28: 24.57553998 | L28: 23.24713241 | M28: 21.91872484 | N28: 21.25452106 | O28: 21.91872484 | P28: 23.24713241 | Q28: 25.23974376 | R28: 26.56815132 | S28: 592.8 | AE28: 19.91873086 | AF28: 20.43076772 | AG28: 20.87661823 | AH28: 21.11493013 | AI28: 20.96545177 | AJ28: 20.52939421 | AK28: 19.73845258 | AL28: 18.91284782 | AM28: 18.44593053 | AN28: 18.50225222 | AO28: 19.07547156 | AP28: 19.51984754 | AQ28: 19.83589127 | AS28: 14 | AT28: 43.91328461 | AU28: 45.04213267 | AV28: 46.02506478 | AW28: 45.38669127 | AX28: 42.75434101 | AY28: 39.602121 | AZ28: 35.90056722 | BA28: 33.35655369 | BB28: 33.54971045 | BC28: 35.69167329 | BD28: 39.95150529 | BE28: 43.03389743 | BI28: 14 | BJ28: 410.4 | BK28: 53.23429982 | BL28: 53.23429982 | BM28: 53.23429982 | BN28: 51.90344233 | BO28: 49.24172734 | BP28: 46.58001235 | BQ28: 43.91829736 | BR28: 42.58743986 | BS28: 43.91829736 | BT28: 46.58001235 | BU28: 50.57258483 | BV28: 53.23429982 | BY28: 13.5 | BZ28: 24082.02486 | CA28: 39.35367263 | CB28: 39.35367263 | CC28: 39.35367263 | CD28: 39.35367263 | CE28: 38.36983082 | CF28: 36.40214719 | CG28: 34.43446356 | CH28: 32.46677992 | CI28: 31.48293811 | CJ28: 32.46677992 | CK28: 34.43446356 | CL28: 37.385989 | CM28: 39.35367263 | CQ28: 14 | CR28: 410.4 | CS28: 22.30660455 | CT28: 49.17764497 | CU28: 49.17764497 | CV28: 49.17764497 | CW28: 47.94820384 | CX28: 45.4893216 | CY28: 43.03043935 | CZ28: 40.5715571 | DA28: 39.34211598 | DB28: 40.5715571 | DC28: 43.03043935 | DD28: 46.71876272 | DE28: 49.17764497 | DH28: Feb | DI28: =H22 -> 39.35367263 | DJ28: =H21 -> 41.92005441 | DK28: =H20 -> 44.61166738 | DL28: =H19 -> 47.42315497 | DM28: =H18 -> 50.34434018 | DN28: =H17 -> 53.35798724 | DO28: =H16 -> 56.43627212 | DP28: =H15 -> 59.5349348 | DQ28: =H14 -> 62.58295116 | DR28: =H13 -> 65.46268065 | DS28: =H12 -> 67.96697567 | DT28: =H11 -> 69.68909206
C29: Dec | D29: 1 | F29: 21 | G29: 24.84299652 | H29: 24.84299652 | I29: 24.84299652 | J29: 24.22192161 | K29: 22.97977178 | L29: 21.73762195 | M29: 20.49547213 | N29: 19.87439722 | O29: 20.49547213 | P29: 21.73762195 | Q29: 23.60084669 | R29: 24.84299652 | S29: 623.2 | AE29: 19.14923744 | AF29: 19.60948482 | AG29: 20.04945591 | AH29: 20.34588822 | AI29: 20.25963906 | AJ29: 19.89435556 | AK29: 19.1471498 | AL29: 18.25320678 | AM29: 17.73505188 | AN29: 17.77282168 | AO29: 18.38988007 | AP29: 18.80010962 | AQ29: 19.11719007 | AS29: 15 | AT29: 42.21684202 | AU29: 43.2315138 | AV29: 44.20148402 | AW29: 43.73363026 | AX29: 41.31499416 | AY29: 38.37710299 | AZ29: 34.82509763 | BA29: 32.19314605 | BB29: 32.25675465 | BC29: 34.28456911 | BD29: 38.5156083 | BE29: 41.44714692 | BI29: 15 | BJ29: 440.8 | BK29: 50.84458019 | BL29: 50.84458019 | BM29: 50.84458019 | BN29: 49.57346569 | BO29: 47.03123668 | BP29: 44.48900767 | BQ29: 41.94677866 | BR29: 40.67566415 | BS29: 41.94677866 | BT29: 44.48900767 | BU29: 48.30235118 | BV29: 50.84458019 | BY29: 14.5 | BZ29: 25204.2267 | CA29: 36.91453428 | CB29: 36.91453428 | CC29: 36.91453428 | CD29: 36.91453428 | CE29: 35.99167092 | CF29: 34.14594421 | CG29: 32.30021749 | CH29: 30.45449078 | CI29: 29.53162742 | CJ29: 30.45449078 | CK29: 32.30021749 | CL29: 35.06880757 | CM29: 36.91453428 | CQ29: 15 | CR29: 440.8 | CS29: 20.35223662 | CT29: 44.86900121 | CU29: 44.86900121 | CV29: 44.86900121 | CW29: 43.74727618 | CX29: 41.50382612 | CY29: 39.26037606 | CZ29: 37.016926 | DA29: 35.89520097 | DB29: 37.016926 | DC29: 39.26037606 | DD29: 42.62555115 | DE29: 44.86900121 | DH29: Mar | DI29: =I23 -> 36.91453428 | DJ29: =I22 -> 39.35367263 | DK29: =I21 -> 41.92005441 | DL29: =I20 -> 44.61166738 | DM29: =I19 -> 47.42315497 | DN29: =I18 -> 50.34434018 | DO29: =I17 -> 53.35798724 | DP29: =I16 -> 56.43627212 | DQ29: =I15 -> 59.5349348 | DR29: =I14 -> 62.58295116 | DS29: =I13 -> 65.46268065 | DT29: =I12 -> 67.96697567
D30: =AVERAGE(D18:D29) -> 0.9208333333 | F30: 22 | G30: 23.22172657 | H30: 23.22172657 | I30: 23.22172657 | J30: 22.64118341 | K30: 21.48009708 | L30: 20.31901075 | M30: 19.15792442 | N30: 18.57738126 | O30: 19.15792442 | P30: 20.31901075 | Q30: 22.06064025 | R30: 23.22172657 | S30: 653.6 | AE30: 18.35106418 | AF30: 18.74490465 | AG30: 19.16814945 | AH30: 19.50711602 | AI30: 19.49323826 | AJ30: 19.19227033 | AK30: 18.5280347 | AL30: 17.61973495 | AM30: 17.07175542 | AN30: 17.07175812 | AO30: 17.68564417 | AP30: 18.0670356 | AQ30: 18.37505882 | AS30: 16 | AT30: 40.45717119 | AU30: 41.32544079 | AV30: 42.25853586 | AW30: 41.9306835 | AX30: 39.75209146 | AY30: 37.02274913 | AZ30: 33.69904263 | BA30: 31.07589298 | BB30: 31.05034198 | BC30: 32.9321861 | BD30: 37.04066262 | BE30: 39.83099537 | BI30: 16 | BJ30: 471.2 | BK30: 48.51398018 | BL30: 48.51398018 | BM30: 48.51398018 | BN30: 47.30113068 | BO30: 44.87543167 | BP30: 42.44973266 | BQ30: 40.02403365 | BR30: 38.81118415 | BS30: 40.02403365 | BT30: 42.44973266 | BU30: 46.08828117 | BV30: 48.51398018 | BY30: 15.5 | BZ30: 26256.13697 | CA30: 34.60231135 | CB30: 34.60231135 | CC30: 34.60231135 | CD30: 34.60231135 | CE30: 33.73725357 | CF30: 32.007138 | CG30: 30.27702243 | CH30: 28.54690687 | CI30: 27.68184908 | CJ30: 28.54690687 | CK30: 30.27702243 | CL30: 32.87219579 | CM30: 34.60231135 | CQ30: 16 | CR30: 471.2 | CS30: 18.46574748 | CT30: 40.7100046 | CU30: 40.7100046 | CV30: 40.7100046 | CW30: 39.69225448 | CX30: 37.65675425 | CY30: 35.62125402 | CZ30: 33.58575379 | DA30: 32.56800368 | DB30: 33.58575379 | DC30: 35.62125402 | DD30: 38.67450437 | DE30: 40.7100046 | DH30: Apr | DI30: =J24 -> 33.73725357 | DJ30: =J23 -> 35.99167092 | DK30: =J22 -> 38.36983082 | DL30: =J21 -> 40.87205305 | DM30: =J20 -> 43.49637569 | DN30: =J19 -> 46.2375761 | DO30: =J18 -> 49.08573168 | DP30: =J17 -> 52.02403756 | DQ30: =J16 -> 55.02536532 | DR30: =J15 -> 58.04656143 | DS30: =J14 -> 61.01837738 | DT30: =J13 -> 63.82611364
D31: Wood's curves | F31: 23 | G31: 21.69935166 | H31: 21.69935166 | I31: 21.69935166 | J31: 21.15686787 | K31: 20.07190029 | L31: 18.9869327 | M31: 17.90196512 | N31: 17.35948133 | O31: 17.90196512 | P31: 18.9869327 | Q31: 20.61438408 | R31: 21.69935166 | S31: 684 | AE31: 17.48347642 | AF31: 17.79721545 | AG31: 18.19314613 | AH31: 18.55616948 | AI31: 18.62483075 | AJ31: 18.38303031 | AK31: 17.84043667 | AL31: 16.98535927 | AM31: 16.43676397 | AN31: 16.37922949 | AO31: 16.93112592 | AP31: 17.28227624 | AQ31: 17.57442168 | AS31: 17 | AT31: 38.5444676 | AU31: 39.23614376 | AV31: 40.1090215 | AW31: 39.88661721 | AX31: 37.98116894 | AY31: 35.46168888 | AZ31: 32.44842994 | BA31: 29.9570458 | BB31: 29.89541086 | BC31: 31.59626735 | BD31: 35.46040602 | BE31: 38.10089712 | BI31: 17 | BJ31: 501.6 | BK31: 46.25004763 | BL31: 46.25004763 | BM31: 46.25004763 | BN31: 45.09379644 | BO31: 42.78129406 | BP31: 40.46879168 | BQ31: 38.1562893 | BR31: 37.00003811 | BS31: 38.1562893 | BT31: 40.46879168 | BU31: 43.93754525 | BV31: 46.25004763 | BY31: 16.5 | BZ31: 27241.55406 | CA31: 32.41503594 | CB31: 32.41503594 | CC31: 32.41503594 | CD31: 32.41503594 | CE31: 31.60466004 | CF31: 29.98390824 | CG31: 28.36315644 | CH31: 26.74240465 | CI31: 25.93202875 | CJ31: 26.74240465 | CK31: 28.36315644 | CL31: 30.79428414 | CM31: 32.41503594 | CQ31: 17 | CR31: 501.6 | CS31: 16.67004149 | CT31: 36.75115054 | CU31: 36.75115054 | CV31: 36.75115054 | CW31: 35.83237178 | CX31: 33.99481425 | CY31: 32.15725673 | CZ31: 30.3196992 | DA31: 29.40092044 | DB31: 30.3196992 | DC31: 32.15725673 | DD31: 34.91359302 | DE31: 36.75115054 | DH31: May | DI31: =K25 -> 29.98390824 | DJ31: =K24 -> 32.007138 | DK31: =K23 -> 34.14594421 | DL31: =K22 -> 36.40214719 | DM31: =K21 -> 38.77605033 | DN31: =K20 -> 41.26579233 | DO31: =K19 -> 43.86641835 | DP31: =K18 -> 46.56851467 | DQ31: =K17 -> 49.3561382 | DR31: =K16 -> 52.20355171 | DS31: =K15 -> 55.06981469 | DT31: =K14 -> 57.88922982
C32: lact 1, a | D32: 15.6862 | F32: 24 | G32: 20.27088741 | H32: 20.27088741 | I32: 20.27088741 | J32: 19.76411523 | K32: 18.75057086 | L32: 17.73702649 | M32: 16.72348211 | N32: 16.21670993 | O32: 16.72348211 | P32: 17.73702649 | Q32: 19.25734304 | R32: 20.27088741 | S32: 714.4 | AE32: 16.52268415 | AF32: 16.74548683 | AG32: 17.10271469 | AH32: 17.46893056 | AI32: 17.62751409 | AJ32: 17.44354472 | AK32: 17.05387324 | AL32: 16.32411494 | AM32: 15.80952801 | AN32: 15.67941598 | AO32: 16.10828963 | AP32: 16.41912823 | AQ32: 16.69210209 | AS32: 18 | AT32: 36.42628321 | AU32: 36.91747904 | AV32: 37.70503166 | AW32: 37.54958947 | AX32: 35.94736507 | AY32: 33.6493791 | AZ32: 31.01781764 | BA32: 28.79081044 | BB32: 28.75458552 | BC32: 30.24629574 | BD32: 33.7370647 | BE32: 36.19798149 | BI32: 18 | BJ32: 532 | BK32: 44.0580112 | BL32: 44.0580112 | BM32: 44.0580112 | BN32: 42.95656092 | BO32: 40.75366036 | BP32: 38.5507598 | BQ32: 36.34785924 | BR32: 35.24640896 | BS32: 36.34785924 | BT32: 38.5507598 | BU32: 41.85511064 | BV32: 44.0580112 | BY32: 17.5 | BZ32: 28164.18185 | CA32: 30.34959832 | CB32: 30.34959832 | CC32: 30.34959832 | CD32: 30.34959832 | CE32: 29.59085836 | CF32: 28.07337845 | CG32: 26.55589853 | CH32: 25.03841861 | CI32: 24.27967866 | CJ32: 25.03841861 | CK32: 26.55589853 | CL32: 28.8321184 | CM32: 30.34959832 | CQ32: 18 | CR32: 532 | CS32: 14.98123315 | CT32: 33.02796548 | CU32: 33.02796548 | CV32: 33.02796548 | CW32: 32.20226634 | CX32: 30.55086807 | CY32: 28.8994698 | CZ32: 27.24807152 | DA32: 26.42237238 | DB32: 27.24807152 | DC32: 28.8994698 | DD32: 31.37656721 | DE32: 33.02796548 | DH32: Jun | DI32: =L26 -> 26.55589853 | DJ32: =L25 -> 28.36315644 | DK32: =L24 -> 30.27702243 | DL32: =L23 -> 32.30021749 | DM32: =L22 -> 34.43446356 | DN32: =L21 -> 36.68004761 | DO32: =L20 -> 39.03520896 | DP32: =L19 -> 41.4952606 | DQ32: =L18 -> 44.05129766 | DR32: =L17 -> 46.68823883 | DS32: =L16 -> 49.38173811 | DT32: =L15 -> 52.09306795
C33: lact 1, b | D33: 0.2081 | AE33: 15.47030723 | AF33: 15.59659937 | AG33: 15.901445 | AH33: 16.24823874 | AI33: 16.49639411 | AJ33: 16.37571842 | AK33: 16.1546072 | AL33: 15.6147797 | AM33: 15.1708044 | AN33: 14.9643106 | AO33: 15.21944258 | AP33: 15.46931427 | AQ33: 15.7234968 | AS33: 19 | AT33: 34.10618926 | AU33: 34.38461577 | AV33: 35.05668534 | AW33: 34.9257038 | AX33: 33.64069934 | AY33: 31.58949433 | AZ33: 29.38222028 | BA33: 27.53975723 | BB33: 27.59286629 | BC33: 28.86682543 | BD33: 31.87547101 | BE33: 34.10400016 | BI33: 19 | BJ33: 562.4 | BK33: 41.94131117 | BL33: 41.94131117 | BM33: 41.94131117 | BN33: 40.89277839 | BO33: 38.79571283 | BP33: 36.69864727 | BQ33: 34.60158171 | BR33: 33.55304893 | BS33: 34.60158171 | BT33: 36.69864727 | BU33: 39.84424561 | BV33: 41.94131117 | BY33: 18.5 | BZ33: 29027.6059 | CA33: 28.4021069 | CB33: 28.4021069 | CC33: 28.4021069 | CD33: 28.4021069 | CE33: 27.69205423 | CF33: 26.27194888 | CG33: 24.85184354 | CH33: 23.43173819 | CI33: 22.72168552 | CJ33: 23.43173819 | CK33: 24.85184354 | CL33: 26.98200156 | CM33: 28.4021069 | CQ33: 19 | CR33: 562.4 | CS33: 13.4094414 | CT33: 29.56275783 | CU33: 29.56275783 | CV33: 29.56275783 | CW33: 28.82368888 | CX33: 27.34555099 | CY33: 25.8674131 | CZ33: 24.38927521 | DA33: 23.65020626 | DB33: 24.38927521 | DC33: 25.8674131 | DD33: 28.08461994 | DE33: 29.56275783 | DH33: Jul | DI33: =M27 -> 23.43173819 | DJ33: =M26 -> 25.03841861 | DK33: =M25 -> 26.74240465 | DL33: =M24 -> 28.54690687 | DM33: =M23 -> 30.45449078 | DN33: =M22 -> 32.46677992 | DO33: =M21 -> 34.58404489 | DP33: =M20 -> 36.80462559 | DQ33: =M19 -> 39.12410285 | DR33: =M18 -> 41.53408065 | DS33: =M17 -> 44.02033947 | DT33: =M16 -> 46.5599245
C34: lact 1, c | D34: 0.002 | G34: Lactation 2 | AE34: 14.36184076 | AF34: 14.39417434 | AG34: 14.6287479 | AH34: 14.93252262 | AI34: 15.25607713 | AJ34: 15.2144301 | AK34: 15.15220368 | AL34: 14.84450817 | AM34: 14.50523516 | AN34: 14.23751969 | AO34: 14.29397577 | AP34: 14.44976314 | AQ34: 14.68924987 | AS34: 20 | AT34: 31.66243901 | AU34: 31.73372234 | AV34: 32.25086853 | AW34: 32.0975627 | AX34: 31.11135078 | AY34: 29.34931715 | AZ34: 27.55903505 | BA34: 26.18123079 | BB34: 26.38231987 | BC34: 27.46481321 | BD34: 29.9371812 | BE34: 31.85627468 | BI34: 20 | BJ34: 592.8 | BK34: 39.90200004 | BL34: 39.90200004 | BM34: 39.90200004 | BN34: 38.90445004 | BO34: 36.90935003 | BP34: 34.91425003 | BQ34: 32.91915003 | BR34: 31.92160003 | BS34: 32.91915003 | BT34: 34.91425003 | BU34: 37.90690004 | BV34: 39.90200004 | BY34: 19.5 | BZ34: 29835.2777 | CA34: 26.56815132 | CB34: 26.56815132 | CC34: 26.56815132 | CD34: 26.56815132 | CE34: 25.90394754 | CF34: 24.57553998 | CG34: 23.24713241 | CH34: 21.91872484 | CI34: 21.25452106 | CJ34: 21.91872484 | CK34: 23.24713241 | CL34: 25.23974376 | CM34: 26.56815132 | CQ34: 20 | CR34: 592.8 | CS34: 11.95972412 | CT34: 26.36667832 | CU34: 26.36667832 | CV34: 26.36667832 | CW34: 25.70751136 | CX34: 24.38917745 | CY34: 23.07084353 | CZ34: 21.75250961 | DA34: 21.09334266 | DB34: 21.75250961 | DC34: 23.07084353 | DD34: 25.0483444 | DE34: 26.36667832 | DH34: Aug | DI34: =N28 -> 21.25452106 | DJ34: =N27 -> 22.72168552 | DK34: =N26 -> 24.27967866 | DL34: =N25 -> 25.93202875 | DM34: =N24 -> 27.68184908 | DN34: =N23 -> 29.53162742 | DO34: =N22 -> 31.48293811 | DP34: =N21 -> 33.53604353 | DQ34: =N20 -> 35.6893339 | DR34: =N19 -> 37.93852398 | DS34: =N18 -> 40.27547215 | DT34: =N17 -> 42.68638979
C35: lact 2, a | D35: 19.3877 | F35: month | G35: Jan | H35: Feb | I35: Mar | J35: Apr | K35: May | L35: Jun | M35: Jul | N35: Aug | O35: Sep | P35: Oct | Q35: Nov | R35: Dec | S35: day | AE35: 13.27512031 | AF35: 13.22750331 | AG35: 13.3673549 | AH35: 13.60443136 | AI35: 13.96816202 | AJ35: 14.03551052 | AK35: 14.08608723 | AL35: 14.01246616 | AM35: 13.80392618 | AN35: 13.51806348 | AO35: 13.3951046 | AP35: 13.4093897 | AQ35: 13.64192665 | AS35: 21 | AT35: 29.26663052 | AU35: 29.16165299 | AV35: 29.46997298 | AW35: 29.24282118 | AX35: 28.4849365 | AY35: 27.07512848 | AZ35: 25.61996789 | BA35: 24.71375989 | BB35: 25.10676952 | BC35: 26.07694996 | BD35: 28.05459307 | BE35: 29.56264386 | BI35: 21 | BJ35: 623.2 | BK35: 37.94104917 | BL35: 37.94104917 | BM35: 37.94104917 | BN35: 36.99252294 | BO35: 35.09547048 | BP35: 33.19841802 | BQ35: 31.30136556 | BR35: 30.35283933 | BS35: 31.30136556 | BT35: 33.19841802 | BU35: 36.04399671 | BV35: 37.94104917 | BY35: 20.5 | BZ35: 30590.50479 | CA35: 24.84299652 | CB35: 24.84299652 | CC35: 24.84299652 | CD35: 24.84299652 | CE35: 24.22192161 | CF35: 22.97977178 | CG35: 21.73762195 | CH35: 20.49547213 | CI35: 19.87439722 | CJ35: 20.49547213 | CK35: 21.73762195 | CL35: 23.60084669 | CM35: 24.84299652 | CQ35: 21 | CR35: 623.2 | CS35: 10.63304453 | CT35: 23.44185049 | CU35: 23.44185049 | CV35: 23.44185049 | CW35: 22.85580423 | CX35: 21.68371171 | CY35: 20.51161918 | CZ35: 19.33952666 | DA35: 18.75348039 | DB35: 19.33952666 | DC35: 20.51161918 | DD35: 22.26975797 | DE35: 23.44185049 | DH35: Sep | DI35: =O29 -> 20.49547213 | DJ35: =O28 -> 21.91872484 | DK35: =O27 -> 23.43173819 | DL35: =O26 -> 25.03841861 | DM35: =O25 -> 26.74240465 | DN35: =O24 -> 28.54690687 | DO35: =O23 -> 30.45449078 | DP35: =O22 -> 32.46677992 | DQ35: =O21 -> 34.58404489 | DR35: =O20 -> 36.80462559 | DS35: =O19 -> 39.12410285 | DT35: =O18 -> 41.53408065
C36: lact 2, b | D36: 0.2088 | F36: 1 | G36: 84.84166435 | H36: 84.84166435 | I36: 84.84166435 | J36: 82.72062274 | K36: 78.47853952 | L36: 74.23645631 | M36: 69.99437309 | N36: 67.87333148 | O36: 69.99437309 | P36: 74.23645631 | Q36: 80.59958113 | R36: 84.84166435 | S36: 15.2 | AE36: 12.33878723 | AF36: 12.24047784 | AG36: 12.25181793 | AH36: 12.39946631 | AI36: 12.73873239 | AJ36: 12.9637207 | AK36: 13.03209898 | AL36: 13.133465 | AM36: 13.067026 | AN36: 12.84417662 | AO36: 12.62660961 | AP36: 12.43587497 | AQ36: 12.6726878 | AS36: 22 | AT36: 27.20236943 | AU36: 26.98563432 | AV36: 27.01063494 | AW36: 26.6527403 | AX36: 25.97779025 | AY36: 25.00759791 | AZ36: 23.70295967 | BA36: 23.16346722 | BB36: 23.76648541 | BC36: 24.77699202 | BD36: 26.4450637 | BE36: 27.41641125 | BI36: 22 | BJ36: 653.6 | BK36: 36.05858635 | BL36: 36.05858635 | BM36: 36.05858635 | BN36: 35.1571217 | BO36: 33.35419238 | BP36: 31.55126306 | BQ36: 29.74833374 | BR36: 28.84686908 | BS36: 29.74833374 | BT36: 31.55126306 | BU36: 34.25565704 | BV36: 36.05858635 | BY36: 21.5 | BZ36: 31296.44528 | CA36: 23.22172657 | CB36: 23.22172657 | CC36: 23.22172657 | CD36: 23.22172657 | CE36: 22.64118341 | CF36: 21.48009708 | CG36: 20.31901075 | CH36: 19.15792442 | CI36: 18.57738126 | CJ36: 19.15792442 | CK36: 20.31901075 | CL36: 22.06064025 | CM36: 23.22172657 | CQ36: 22 | CR36: 653.6 | CS36: 9.427193013 | CT36: 20.78340296 | CU36: 20.78340296 | CV36: 20.78340296 | CW36: 20.26381788 | CX36: 19.22464774 | CY36: 18.18547759 | CZ36: 17.14630744 | DA36: 16.62672237 | DB36: 17.14630744 | DC36: 18.18547759 | DD36: 19.74423281 | DE36: 20.78340296 | DH36: Oct | DI36: =P30 -> 20.31901075 | DJ36: =P29 -> 21.73762195 | DK36: =P28 -> 23.24713241 | DL36: =P27 -> 24.85184354 | DM36: =P26 -> 26.55589853 | DN36: =P25 -> 28.36315644 | DO36: =P24 -> 30.27702243 | DP36: =P23 -> 32.30021749 | DQ36: =P22 -> 34.43446356 | DR36: =P21 -> 36.68004761 | DS36: =P20 -> 39.03520896 | DT36: =P19 -> 41.4952606
C37: lact 2, c | D37: 0.00279 | F37: 2 | G37: 89.99889394 | H37: 89.99889394 | I37: 89.99889394 | J37: 87.74892159 | K37: 83.24897689 | L37: 78.74903219 | M37: 74.2490875 | N37: 71.99911515 | O37: 74.2490875 | P37: 78.74903219 | Q37: 85.49894924 | R37: 89.99889394 | S37: 45.6 | AE37: 11.40245414 | AF37: 11.25345237 | AG37: 11.13628096 | AH37: 11.19450125 | AI37: 11.50930275 | AJ37: 11.89193089 | AK37: 11.97811074 | AL37: 12.25446385 | AM37: 12.33012583 | AN37: 12.17028976 | AO37: 11.85811462 | AP37: 11.46236023 | AQ37: 11.70344895 | AS37: 23 | AT37: 25.13810833 | AU37: 24.80961565 | AV37: 24.5512969 | AW37: 24.06265942 | AX37: 23.470644 | AY37: 22.94006735 | AZ37: 21.78595144 | BA37: 21.61317455 | BB37: 22.4262013 | BC37: 23.47703408 | BD37: 24.83553433 | BE37: 25.27017865 | BI37: 23 | BJ37: 684 | BK37: 34.25408181 | BL37: 34.25408181 | BM37: 34.25408181 | BN37: 33.39772976 | BO37: 31.68502567 | BP37: 29.97232158 | BQ37: 28.25961749 | BR37: 27.40326545 | BS37: 28.25961749 | BT37: 29.97232158 | BU37: 32.54137772 | BV37: 34.25408181 | BY37: 22.5 | BZ37: 31956.10557 | CA37: 21.69935166 | CB37: 21.69935166 | CC37: 21.69935166 | CD37: 21.69935166 | CE37: 21.15686787 | CF37: 20.07190029 | CG37: 18.9869327 | CH37: 17.90196512 | CI37: 17.35948133 | CJ37: 17.90196512 | CK37: 18.9869327 | CL37: 20.61438408 | CM37: 21.69935166 | CQ37: 23 | CR37: 684 | CS37: 8.337616874 | CT37: 18.38129876 | CU37: 18.38129876 | CV37: 18.38129876 | CW37: 17.92176629 | CX37: 17.00270135 | CY37: 16.08363641 | CZ37: 15.16457148 | DA37: 14.70503901 | DB37: 15.16457148 | DC37: 16.08363641 | DD37: 17.46223382 | DE37: 18.38129876 | DH37: Nov | DI37: =Q31 -> 20.61438408 | DJ37: =Q30 -> 22.06064025 | DK37: =Q29 -> 23.60084669 | DL37: =Q28 -> 25.23974376 | DM37: =Q27 -> 26.98200156 | DN37: =Q26 -> 28.8321184 | DO37: =Q25 -> 30.79428414 | DP37: =Q24 -> 32.87219579 | DQ37: =Q23 -> 35.06880757 | DR37: =Q22 -> 37.385989 | DS37: =Q21 -> 39.82405169 | DT37: =Q20 -> 42.38108401
C38: lact 3+, a | D38: 23.0892 | F38: 3 | G38: 87.95451502 | H38: 87.95451502 | I38: 87.95451502 | J38: 85.75565214 | K38: 81.35792639 | L38: 76.96020064 | M38: 72.56247489 | N38: 70.36361201 | O38: 72.56247489 | P38: 76.96020064 | Q38: 83.55678927 | R38: 87.95451502 | S38: 76 | AE38: 10.46612106 | AF38: 10.2664269 | AG38: 10.02074398 | AH38: 9.989536201 | AI38: 10.27987312 | AJ38: 10.82014107 | AK38: 10.92412249 | AL38: 11.37546269 | AM38: 11.59322565 | AN38: 11.49640289 | AO38: 11.08961963 | AP38: 10.4888455 | AQ38: 10.7342101 | AS38: 24 | AT38: 23.07384723 | AU38: 22.63359698 | AV38: 22.09195886 | AW38: 21.47257854 | AX38: 20.96349775 | AY38: 20.87253678 | AZ38: 19.86894322 | BA38: 20.06288188 | BB38: 21.08591719 | BC38: 22.17707613 | BD38: 23.22600496 | BE38: 23.12394604 | BI38: 24 | BJ38: 714.4 | BK38: 32.52649494 | BL38: 32.52649494 | BM38: 32.52649494 | BN38: 31.71333257 | BO38: 30.08700782 | BP38: 28.46068308 | BQ38: 26.83435833 | BR38: 26.02119595 | BS38: 26.83435833 | BT38: 28.46068308 | BU38: 30.9001702 | BV38: 32.52649494 | BY38: 23.5 | BZ38: 32572.34055 | CA38: 20.27088741 | CB38: 20.27088741 | CC38: 20.27088741 | CD38: 20.27088741 | CE38: 19.76411523 | CF38: 18.75057086 | CG38: 17.73702649 | CH38: 16.72348211 | CI38: 16.21670993 | CJ38: 16.72348211 | CK38: 17.73702649 | CL38: 19.25734304 | CM38: 20.27088741 | CQ38: 24 | CR38: 714.4 | CS38: 7.358133952 | CT38: 16.22190855 | CU38: 16.22190855 | CV38: 16.22190855 | CW38: 15.81636084 | CX38: 15.00526541 | CY38: 14.19416998 | CZ38: 13.38307455 | DA38: 12.97752684 | DB38: 13.38307455 | DC38: 14.19416998 | DD38: 15.41081312 | DE38: 16.22190855 | DH38: Dec | DI38: =R32 -> 20.27088741 | DJ38: =R31 -> 21.69935166 | DK38: =R30 -> 23.22172657 | DL38: =R29 -> 24.84299652 | DM38: =R28 -> 26.56815132 | DN38: =R27 -> 28.4021069 | DO38: =R26 -> 30.34959832 | DP38: =R25 -> 32.41503594 | DQ38: =R24 -> 34.60231135 | DR38: =R23 -> 36.91453428 | DS38: =R22 -> 39.35367263 | DT38: =R21 -> 41.92005441
C39: lact 3+, b | D39: 0.2094 | F39: 4 | G39: 83.89133381 | H39: 83.89133381 | I39: 83.89133381 | J39: 81.79405047 | K39: 77.59948378 | L39: 73.40491709 | M39: 69.2103504 | N39: 67.11306705 | O39: 69.2103504 | P39: 73.40491709 | Q39: 79.69676712 | R39: 83.89133381 | S39: 106.4 | DH39: Jan | DJ39: =G32 -> 20.27088741 | DK39: =G31 -> 21.69935166 | DL39: =G30 -> 23.22172657 | DM39: =G29 -> 24.84299652 | DN39: =G28 -> 26.56815132 | DO39: =G27 -> 28.4021069 | DP39: =G26 -> 30.34959832 | DQ39: =G25 -> 32.41503594 | DR39: =G24 -> 34.60231135 | DS39: =G23 -> 36.91453428 | DT39: =G22 -> 39.35367263
C40: lact 3+, c | D40: 0.00357 | F40: 5 | G40: 79.07102315 | H40: 79.07102315 | I40: 79.07102315 | J40: 77.09424757 | K40: 73.14069642 | L40: 69.18714526 | M40: 65.2335941 | N40: 63.25681852 | O40: 65.2335941 | P40: 69.18714526 | Q40: 75.117472 | R40: 79.07102315 | S40: 136.8 | BL40: woodscurves2 | CC40: peakmilkcurves2 | DH40: Feb | DK40: =H32 -> 20.27088741 | DL40: =H31 -> 21.69935166 | DM40: =H30 -> 23.22172657 | DN40: =H29 -> 24.84299652 | DO40: =H28 -> 26.56815132 | DP40: =H27 -> 28.4021069 | DQ40: =H26 -> 30.34959832 | DR40: =H25 -> 32.41503594 | DS40: =H24 -> 34.60231135 | DT40: =H23 -> 36.91453428
F41: 6 | G41: 74.00306614 | H41: 74.00306614 | I41: 74.00306614 | J41: 72.15298949 | K41: 68.45283618 | L41: 64.75268287 | M41: 61.05252957 | N41: 59.20245291 | O41: 61.05252957 | P41: 64.75268287 | Q41: 70.30291283 | R41: 74.00306614 | S41: 167.2 | AE41: Jan | AF41: Feb | AG41: Mar | AH41: Apr | AI41: May | AJ41: Jun | AK41: Jul | AL41: Aug | AM41: Sep | AN41: Oct | AO41: Nov | AP41: Dec | AQ41: Avg | AS41: mim | AU41: floridacurves2 | BI41: mim | BK41: Jan | BL41: Feb | BM41: Mar | BN41: Apr | BO41: May | BP41: Jun | BQ41: Jul | BR41: Aug | BS41: Sep | BT41: Oct | BU41: Nov | BV41: Dec | CB41: Jan | CC41: Feb | CD41: Mar | CE41: Apr | CF41: May | CG41: Jun | CH41: Jul | CI41: Aug | CJ41: Sep | CK41: Oct | CL41: Nov | CM41: Dec | CT41: diphasiccurves2 | DH41: Mar | DL41: =I32 -> 20.27088741 | DM41: =I31 -> 21.69935166 | DN41: =I30 -> 23.22172657 | DO41: =I29 -> 24.84299652 | DP41: =I28 -> 26.56815132 | DQ41: =I27 -> 28.4021069 | DR41: =I26 -> 30.34959832 | DS41: =I25 -> 32.41503594 | DT41: =I24 -> 34.60231135
D42: Fit curves | F42: 7 | G42: 68.9359298 | H42: 68.9359298 | I42: 68.9359298 | J42: 67.21253156 | K42: 63.76573507 | L42: 60.31893858 | M42: 56.87214209 | N42: 55.14874384 | O42: 56.87214209 | P42: 60.31893858 | Q42: 65.48913331 | R42: 68.9359298 | S42: 197.6 | AE42: 34.54885221 | AF42: 35.23538981 | AG42: 35.51229956 | AH42: 33.9604468 | AI42: 31.51122482 | AJ42: 28.9051945 | AK42: 26.6873652 | AL42: 26.26958996 | AM42: 27.59263736 | AN42: 29.78686227 | AO42: 31.5916812 | AP42: 32.97281652 | AQ42: 31.21453002 | AS42: 1 | AT42: =((mseasonality*AE42*msea1+(1-mseasonality)*$AQ42)+mabs)*(1+pct)*lbs -> 76.16718107 | AU42: =((mseasonality*AF42*msea2+(1-mseasonality)*$AQ42)+mabs)*(1+pct)*lbs -> 77.68073739 | AV42: =((mseasonality*AG42*msea3+(1-mseasonality)*$AQ42)+mabs)*(1+pct)*lbs -> 78.29121889 | AW42: =((mseasonality*AH42*msea4+(1-mseasonality)*$AQ42)+mabs)*(1+pct)*lbs -> 72.99821997 | AX42: =((mseasonality*AI42*msea5+(1-mseasonality)*$AQ42)+mabs)*(1+pct)*lbs -> 64.26008209 | AY42: =((mseasonality*AJ42*msea6+(1-mseasonality)*$AQ42)+mabs)*(1+pct)*lbs -> 55.75941493 | AZ42: =((mseasonality*AK42*msea7+(1-mseasonality)*$AQ42)+mabs)*(1+pct)*lbs -> 48.53934442 | BA42: =((mseasonality*AL42*msea8+(1-mseasonality)*$AQ42)+mabs)*(1+pct)*lbs -> 46.33162579 | BB42: =((mseasonality*AM42*msea9+(1-mseasonality)*$AQ42)+mabs)*(1+pct)*lbs -> 50.18586578 | BC42: =((mseasonality*AN42*msea10+(1-mseasonality)*$AQ42)+mabs)*(1+pct)*lbs -> 57.46019154 | BD42: =((mseasonality*AO42*msea11+(1-mseasonality)*$AQ42)+mabs)*(1+pct)*lbs -> 66.16534823 | BE42: =((mseasonality*AP42*msea12+(1-mseasonality)*$AQ42)+mabs)*(1+pct)*lbs -> 72.69261714 | BI42: 1 | BJ42: =(BI42-1)*30.4+15.2 -> 15.2 | BK42: =((mseasonality*($D$35*($BJ42)^$D$36*EXP(-$D$37*$BJ42)*msea1) +(1-mseasonality)*($D$35*($BJ42)^$D$36*EXP(-$D$37*$BJ42)*mseaavg)))*(1+pct)*lbs+mabs -> 72.31225932 | BL42: =((mseasonality*($D$35*($BJ42)^$D$36*EXP(-$D$37*$BJ42)*msea2) +(1-mseasonality)*($D$35*($BJ42)^$D$36*EXP(-$D$37*$BJ42)*mseaavg)))*(1+pct)*lbs+mabs -> 72.31225932 | BM42: =((mseasonality*($D$35*($BJ42)^$D$36*EXP(-$D$37*$BJ42)*msea3) +(1-mseasonality)*($D$35*($BJ42)^$D$36*EXP(-$D$37*$BJ42)*mseaavg)))*(1+pct)*lbs+mabs -> 72.31225932 | BN42: =((mseasonality*($D$35*($BJ42)^$D$36*EXP(-$D$37*$BJ42)*msea4) +(1-mseasonality)*($D$35*($BJ42)^$D$36*EXP(-$D$37*$BJ42)*mseaavg)))*(1+pct)*lbs+mabs -> 70.50445283 | BO42: =((mseasonality*($D$35*($BJ42)^$D$36*EXP(-$D$37*$BJ42)*msea5) +(1-mseasonality)*($D$35*($BJ42)^$D$36*EXP(-$D$37*$BJ42)*mseaavg)))*(1+pct)*lbs+mabs -> 66.88883987 | BP42: =((mseasonality*($D$35*($BJ42)^$D$36*EXP(-$D$37*$BJ42)*msea6) +(1-mseasonality)*($D$35*($BJ42)^$D$36*EXP(-$D$37*$BJ42)*mseaavg)))*(1+pct)*lbs+mabs -> 63.2732269 | BQ42: =((mseasonality*($D$35*($BJ42)^$D$36*EXP(-$D$37*$BJ42)*msea7) +(1-mseasonality)*($D$35*($BJ42)^$D$36*EXP(-$D$37*$BJ42)*mseaavg)))*(1+pct)*lbs+mabs -> 59.65761394 | BR42: =((mseasonality*($D$35*($BJ42)^$D$36*EXP(-$D$37*$BJ42)*msea8) +(1-mseasonality)*($D$35*($BJ42)^$D$36*EXP(-$D$37*$BJ42)*mseaavg)))*(1+pct)*lbs+mabs -> 57.84980745 | BS42: =((mseasonality*($D$35*($BJ42)^$D$36*EXP(-$D$37*$BJ42)*msea9) +(1-mseasonality)*($D$35*($BJ42)^$D$36*EXP(-$D$37*$BJ42)*mseaavg)))*(1+pct)*lbs+mabs -> 59.65761394 | BT42: =((mseasonality*($D$35*($BJ42)^$D$36*EXP(-$D$37*$BJ42)*msea10) +(1-mseasonality)*($D$35*($BJ42)^$D$36*EXP(-$D$37*$BJ42)*mseaavg)))*(1+pct)*lbs+mabs -> 63.2732269 | BU42: =((mseasonality*($D$35*($BJ42)^$D$36*EXP(-$D$37*$BJ42)*msea11) +(1-mseasonality)*($D$35*($BJ42)^$D$36*EXP(-$D$37*$BJ42)*mseaavg)))*(1+pct)*lbs+mabs -> 68.69664635 | BV42: =((mseasonality*($D$35*($BJ42)^$D$36*EXP(-$D$37*$BJ42)*msea12) +(1-mseasonality)*($D$35*($BJ42)^$D$36*EXP(-$D$37*$BJ42)*mseaavg)))*(1+pct)*lbs+mabs -> 72.31225932 | BY42: =BJ42/30.4 -> 0.5 | BZ42: =CA42*30.4 -> 2579.186596 | CA42: =($CH$5*($BY42)^$CI$5*EXP(-$CJ$5*$BY42)) -> 84.84166435 | CB42: =((mseasonality*$CA42*msea1+(1-mseasonality)*$CA42*mseaavg))*(1+pct)+mabs -> 84.84166435 | CC42: =((mseasonality*$CA42*msea2+(1-mseasonality)*$CA42*mseaavg))*(1+pct)+mabs -> 84.84166435 | CD42: =((mseasonality*$CA42*msea3+(1-mseasonality)*$CA42*mseaavg))*(1+pct)+mabs -> 84.84166435 | CE42: =((mseasonality*$CA42*msea4+(1-mseasonality)*$CA42*mseaavg))*(1+pct)+mabs -> 82.72062274 | CF42: =((mseasonality*$CA42*msea5+(1-mseasonality)*$CA42*mseaavg))*(1+pct)+mabs -> 78.47853952 | CG42: =((mseasonality*$CA42*msea6+(1-mseasonality)*$CA42*mseaavg))*(1+pct)+mabs -> 74.23645631 | CH42: =((mseasonality*$CA42*msea7+(1-mseasonality)*$CA42*mseaavg))*(1+pct)+mabs -> 69.99437309 | CI42: =((mseasonality*$CA42*msea8+(1-mseasonality)*$CA42*mseaavg))*(1+pct)+mabs -> 67.87333148 | CJ42: =((mseasonality*$CA42*msea9+(1-mseasonality)*$CA42*mseaavg))*(1+pct)+mabs -> 69.99437309 | CK42: =((mseasonality*$CA42*msea10+(1-mseasonality)*$CA42*mseaavg))*(1+pct)+mabs -> 74.23645631 | CL42: =((mseasonality*$CA42*msea11+(1-mseasonality)*$CA42*mseaavg))*(1+pct)+mabs -> 80.59958113 | CM42: =((mseasonality*$CA42*msea12+(1-mseasonality)*$CA42*mseaavg))*(1+pct)+mabs -> 84.84166435 | CQ42: 1 | CR42: =(CQ42-1)*30.4+15.2 -> 15.2 | CS42: =dp2_1a*dp2_1b*(1-(TANH(dp2_1b*($CR42-dp2_1c)))^2)+dp2_2a*dp2_2b*(1-(TANH(dp2_2b*($CR42-dp2_2c)))^2) -> 41.80710234 | CT42: =((mseasonality*$CS42*msea1+(1-mseasonality)*$CS42*mseaavg)*(1+pct)*lbs)+mabs -> 92.16888349 | CU42: =((mseasonality*$CS42*msea2+(1-mseasonality)*$CS42*mseaavg)*(1+pct)*lbs)+mabs -> 92.16888349 | CV42: =((mseasonality*$CS42*msea3+(1-mseasonality)*$CS42*mseaavg)*(1+pct)*lbs)+mabs -> 92.16888349 | CW42: =((mseasonality*$CS42*msea4+(1-mseasonality)*$CS42*mseaavg)*(1+pct)*lbs)+mabs -> 89.8646614 | CX42: =((mseasonality*$CS42*msea5+(1-mseasonality)*$CS42*mseaavg)*(1+pct)*lbs)+mabs -> 85.25621722 | CY42: =((mseasonality*$CS42*msea6+(1-mseasonality)*$CS42*mseaavg)*(1+pct)*lbs)+mabs -> 80.64777305 | CZ42: =((mseasonality*$CS42*msea7+(1-mseasonality)*$CS42*mseaavg)*(1+pct)*lbs)+mabs -> 76.03932888 | DA42: =((mseasonality*$CS42*msea8+(1-mseasonality)*$CS42*mseaavg)*(1+pct)*lbs)+mabs -> 73.73510679 | DB42: =((mseasonality*$CS42*msea9+(1-mseasonality)*$CS42*mseaavg)*(1+pct)*lbs)+mabs -> 76.03932888 | DC42: =((mseasonality*$CS42*msea10+(1-mseasonality)*$CS42*mseaavg)*(1+pct)*lbs)+mabs -> 80.64777305 | DD42: =((mseasonality*$CS42*msea11+(1-mseasonality)*$CS42*mseaavg)*(1+pct)*lbs)+mabs -> 87.56043931 | DE42: =((mseasonality*$CS42*msea12+(1-mseasonality)*$CS42*mseaavg)*(1+pct)*lbs)+mabs -> 92.16888349 | DH42: Apr | DM42: =J32 -> 19.76411523 | DN42: =J31 -> 21.15686787 | DO42: =J30 -> 22.64118341 | DP42: =J29 -> 24.22192161 | DQ42: =J28 -> 25.90394754 | DR42: =J27 -> 27.69205423 | DS42: =J26 -> 29.59085836 | DT42: =J25 -> 31.60466004
C43: lact 1, peak yield | D43: 70 | F43: 8 | G43: 64.0015539 | H43: 64.0015539 | I43: 64.0015539 | J43: 62.40151505 | K43: 59.20143736 | L43: 56.00135966 | M43: 52.80128197 | N43: 51.20124312 | O43: 52.80128197 | P43: 56.00135966 | Q43: 60.80147621 | R43: 64.0015539 | S43: 228 | AE43: 35.05035228 | AF43: 35.91599742 | AG43: 36.62918983 | AH43: 36.28131231 | AI43: 35.12530125 | AJ43: 33.40521114 | AK43: 31.63684783 | AL43: 30.45308931 | AM43: 30.40645557 | AN43: 31.17836016 | AO43: 32.42241383 | AP43: 33.87445307 | AQ43: 33.531582 | AS43: 2 | AT43: 77.27279948 | AU43: 79.18122032 | AV43: 80.75354046 | AW43: 77.98693675 | AX43: 71.63018115 | AY43: 64.4401486 | AZ43: 57.54153103 | BA43: 53.71005563 | BB43: 55.30367679 | BC43: 60.14445331 | BD43: 67.90522759 | BE43: 74.68038548 | BI43: 2 | BJ43: =(BI43-1)*30.4+15.2 -> 45.6 | BK43: 83.56024949 | BL43: 83.56024949 | BM43: 83.56024949 | BN43: 81.47124325 | BO43: 77.29323078 | BP43: 73.1152183 | BQ43: 68.93720583 | BR43: 66.84819959 | BS43: 68.93720583 | BT43: 73.1152183 | BU43: 79.38223702 | BV43: 83.56024949 | BY43: =BJ43/30.4 -> 1.5 | BZ43: 5315.152972 | CA43: =($CH$5*($BY43)^$CI$5*EXP(-$CJ$5*$BY43)) -> 89.99889394 | CB43: 89.99889394 | CC43: 89.99889394 | CD43: 89.99889394 | CE43: 87.74892159 | CF43: 83.24897689 | CG43: 78.74903219 | CH43: 74.2490875 | CI43: 71.99911515 | CJ43: 74.2490875 | CK43: 78.74903219 | CL43: 85.49894924 | CM43: 89.99889394 | CQ43: 2 | CR43: =(CQ43-1)*30.4+15.2 -> 45.6 | CS43: =dp2_1a*dp2_1b*(1-(TANH(dp2_1b*($CR43-dp2_1c)))^2)+dp2_2a*dp2_2b*(1-(TANH(dp2_2b*($CR43-dp2_2c)))^2) -> 42.95772808 | CT43: 94.70557903 | CU43: 94.70557903 | CV43: 94.70557903 | CW43: 92.33793956 | CX43: 87.60266061 | CY43: 82.86738165 | CZ43: 78.1321027 | DA43: 75.76446323 | DB43: 78.1321027 | DC43: 82.86738165 | DD43: 89.97030008 | DE43: 94.70557903 | DH43: May | DN43: =K32 -> 18.75057086 | DO43: =K31 -> 20.07190029 | DP43: =K30 -> 21.48009708 | DQ43: =K29 -> 22.97977178 | DR43: =K28 -> 24.57553998 | DS43: =K27 -> 26.27194888 | DT43: =K26 -> 28.07337845
C44: lact 1, dim@peak | D44: 60 | F44: 9 | G44: 59.27188872 | H44: 59.27188872 | I44: 59.27188872 | J44: 57.79009151 | K44: 54.82649707 | L44: 51.86290263 | M44: 48.8993082 | N44: 47.41751098 | O44: 48.8993082 | P44: 51.86290263 | Q44: 56.30829429 | R44: 59.27188872 | S44: 258.4 | AE44: 34.6681142 | AF44: 35.55510539 | AG44: 36.30659618 | AH44: 36.45954827 | AI44: 35.93332124 | AJ44: 34.76724736 | AK44: 33.39323714 | AL44: 32.04061992 | AM44: 31.40579001 | AN44: 31.503559 | AO44: 32.38162437 | AP44: 33.7021458 | AQ44: 34.00974241 | AS44: 3 | AT44: 76.43010876 | AU44: 78.3855896 | AV44: 80.04234319 | AW44: 78.37005621 | AX44: 73.27795685 | AY44: 67.06757748 | AZ44: 60.73607592 | BA44: 56.50998034 | BB44: 57.12127993 | BC44: 60.77177643 | BD44: 67.81979849 | BE44: 74.30051297 | BI44: 3 | BJ44: 76 | BK44: 85.40565468 | BL44: 85.40565468 | BM44: 85.40565468 | BN44: 83.27051332 | BO44: 79.00023058 | BP44: 74.72994785 | BQ44: 70.45966511 | BR44: 68.32452375 | BS44: 70.45966511 | BT44: 74.72994785 | BU44: 81.13537195 | BV44: 85.40565468 | BY44: 2.5 | BZ44: 7988.970228 | CA44: 87.95451502 | CB44: 87.95451502 | CC44: 87.95451502 | CD44: 87.95451502 | CE44: 85.75565214 | CF44: 81.35792639 | CG44: 76.96020064 | CH44: 72.56247489 | CI44: 70.36361201 | CJ44: 72.56247489 | CK44: 76.96020064 | CL44: 83.55678927 | CM44: 87.95451502 | CQ44: 3 | CR44: 76 | CS44: 43.11074876 | CT44: 95.04293188 | CU44: 95.04293188 | CV44: 95.04293188 | CW44: 92.66685858 | CX44: 87.91471199 | CY44: 83.1625654 | CZ44: 78.4104188 | DA44: 76.0343455 | DB44: 78.4104188 | DC44: 83.1625654 | DD44: 90.29078529 | DE44: 95.04293188 | DH44: Jun | DO44: =L32 -> 17.73702649 | DP44: =L31 -> 18.9869327 | DQ44: =L30 -> 20.31901075 | DR44: =L29 -> 21.73762195 | DS44: =L28 -> 23.24713241 | DT44: =L27 -> 24.85184354
C45: lact 1, decline | D45: 0.05 | F45: 10 | G45: 54.78513121 | H45: 54.78513121 | I45: 54.78513121 | J45: 53.41550293 | K45: 50.67624637 | L45: 47.93698981 | M45: 45.19773325 | N45: 43.82810497 | O45: 45.19773325 | P45: 47.93698981 | Q45: 52.04587465 | R45: 54.78513121 | S45: 288.8 | AE45: 33.63661175 | AF45: 34.45975231 | AG45: 35.03758153 | AH45: 35.25532033 | AI45: 34.92691964 | AJ45: 34.06664484 | AK45: 33.00771472 | AL45: 31.82426407 | AM45: 31.0909496 | AN45: 30.99483096 | AO45: 31.65810253 | AP45: 32.75832561 | AQ45: 33.22641816 | AS45: 4 | AT45: 74.15603512 | AU45: 75.97074943 | AV45: 77.24464479 | AW45: 75.78155976 | AX45: 71.22562631 | AY45: 65.71608382 | AZ45: 60.03488247 | BA45: 56.12839395 | BB45: 56.54864389 | BC45: 59.79041726 | BD45: 66.30446049 | BE45: 72.21974564 | BI45: 4 | BJ45: 106.4 | BK45: 84.17110705 | BL45: 84.17110705 | BM45: 84.17110705 | BN45: 82.06682937 | BO45: 77.85827402 | BP45: 73.64971867 | BQ45: 69.44116332 | BR45: 67.33688564 | BS45: 69.44116332 | BT45: 73.64971867 | BU45: 79.9625517 | BV45: 84.17110705 | BY45: 3.5 | BZ45: 10539.26678 | CA45: 83.89133381 | CB45: 83.89133381 | CC45: 83.89133381 | CD45: 83.89133381 | CE45: 81.79405047 | CF45: 77.59948378 | CG45: 73.40491709 | CH45: 69.2103504 | CI45: 67.11306705 | CJ45: 69.2103504 | CK45: 73.40491709 | CL45: 79.69676712 | CM45: 83.89133381 | CQ45: 4 | CR45: 106.4 | CS45: 42.25912843 | CT45: 93.16543045 | CU45: 93.16543045 | CV45: 93.16543045 | CW45: 90.83629468 | CX45: 86.17802316 | CY45: 81.51975164 | CZ45: 76.86148012 | DA45: 74.53234436 | DB45: 76.86148012 | DC45: 81.51975164 | DD45: 88.50715892 | DE45: 93.16543045 | DH45: Jul | DP45: =M32 -> 16.72348211 | DQ45: =M31 -> 17.90196512 | DR45: =M30 -> 19.15792442 | DS45: =M29 -> 20.49547213 | DT45: =M28 -> 21.91872484
C46: lact 2, peak yield | D46: 90 | F46: 11 | G46: 50.55937229 | H46: 50.55937229 | I46: 50.55937229 | J46: 49.29538798 | K46: 46.76741936 | L46: 44.23945075 | M46: 41.71148214 | N46: 40.44749783 | O46: 41.71148214 | P46: 44.23945075 | Q46: 48.03140367 | R46: 50.55937229 | S46: 319.2 | AE46: 32.15469237 | AF46: 32.88204284 | AG46: 33.21221412 | AH46: 33.2655456 | AI46: 32.88592804 | AJ46: 32.15573576 | AK46: 31.32143899 | AL46: 30.4507546 | AM46: 29.88275875 | AN46: 29.86373223 | AO46: 30.42403321 | AP46: 31.29534129 | AQ46: 31.64951815 | AS46: 5 | AT46: 70.88896213 | AU46: 72.49249543 | AV46: 73.22039852 | AW46: 71.50452493 | AX46: 67.06348128 | AY46: 62.02985461 | AZ46: 56.96786113 | BA46: 53.70593791 | BB46: 54.35116987 | BC46: 57.60847715 | BD46: 63.71983621 | BE46: 68.99441732 | BI46: 5 | BJ46: 136.8 | BK46: 81.49243292 | BL46: 81.49243292 | BM46: 81.49243292 | BN46: 79.4551221 | BO46: 75.38050045 | BP46: 71.3058788 | BQ46: 67.23125716 | BR46: 65.19394634 | BS46: 67.23125716 | BT46: 71.3058788 | BU46: 77.41781127 | BV46: 81.49243292 | BY46: 4.5 | BZ46: 12943.02588 | CA46: 79.07102315 | CB46: 79.07102315 | CC46: 79.07102315 | CD46: 79.07102315 | CE46: 77.09424757 | CF46: 73.14069642 | CG46: 69.18714526 | CH46: 65.2335941 | CI46: 63.25681852 | CJ46: 65.2335941 | CK46: 69.18714526 | CL46: 75.117472 | CM46: 79.07102315 | CQ46: 5 | CR46: 136.8 | CS46: 40.48921489 | CT46: 89.26343902 | CU46: 89.26343902 | CV46: 89.26343902 | CW46: 87.03185305 | CX46: 82.56868109 | CY46: 78.10550914 | CZ46: 73.64233719 | DA46: 71.41075122 | DB46: 73.64233719 | DC46: 78.10550914 | DD46: 84.80026707 | DE46: 89.26343902 | DH46: Aug | DQ46: =N32 -> 16.21670993 | DR46: =N31 -> 17.35948133 | DS46: =N30 -> 18.57738126 | DT46: =N29 -> 19.87439722
C47: lact 2, dim@peak | D47: 45 | F47: 12 | G47: 46.60029564 | H47: 46.60029564 | I47: 46.60029564 | J47: 45.43528825 | K47: 43.10527347 | L47: 40.77525869 | M47: 38.4452439 | N47: 37.28023651 | O47: 38.4452439 | P47: 40.77525869 | Q47: 44.27028086 | R47: 46.60029564 | S47: 349.6 | AE47: 30.38815042 | AF47: 31.02403263 | AG47: 31.12802755 | AH47: 30.94065915 | AI47: 30.39989611 | AJ47: 29.68582721 | AK47: 28.98552594 | AL47: 28.43406381 | AM47: 28.12818433 | AN47: 28.30057613 | AO47: 28.83468368 | AP47: 29.51949591 | AQ47: 29.64742691 | AS47: 6 | AT47: 66.99440379 | AU47: 68.39628409 | AV47: 68.62555365 | AW47: 66.50716512 | AX47: 61.99377622 | AY47: 57.26529039 | AZ47: 52.71927056 | BA47: 50.1491042 | BB47: 51.15992593 | BC47: 54.59307901 | BD47: 60.39111609 | BE47: 65.07934841 | BI47: 6 | BJ47: 167.2 | BK47: 78.06909044 | BL47: 78.06909044 | BM47: 78.06909044 | BN47: 76.11736318 | BO47: 72.21390866 | BP47: 68.31045414 | BQ47: 64.40699962 | BR47: 62.45527235 | BS47: 64.40699962 | BT47: 68.31045414 | BU47: 74.16563592 | BV47: 78.06909044 | BY47: 5.5 | BZ47: 15192.71909 | CA47: 74.00306614 | CB47: 74.00306614 | CC47: 74.00306614 | CD47: 74.00306614 | CE47: 72.15298949 | CF47: 68.45283618 | CG47: 64.75268287 | CH47: 61.05252957 | CI47: 59.20245291 | CJ47: 61.05252957 | CK47: 64.75268287 | CL47: 70.30291283 | CM47: 74.00306614 | CQ47: 6 | CR47: 167.2 | CS47: 37.96281499 | CT47: 83.69368065 | CU47: 83.69368065 | CV47: 83.69368065 | CW47: 81.60133863 | CX47: 77.4166546 | CY47: 73.23197057 | CZ47: 69.04728654 | DA47: 66.95494452 | DB47: 69.04728654 | DC47: 73.23197057 | DD47: 79.50899662 | DE47: 83.69368065 | DH47: Sep | DR47: =O32 -> 16.72348211 | DS47: =O31 -> 17.90196512 | DT47: =O30 -> 19.15792442
C48: lact 2, decline | D48: 0.07 | F48: 13 | G48: 42.90578697 | H48: 42.90578697 | I48: 42.90578697 | J48: 41.83314229 | K48: 39.68785295 | L48: 37.5425636 | M48: 35.39727425 | N48: 34.32462958 | O48: 35.39727425 | P48: 37.5425636 | Q48: 40.76049762 | R48: 42.90578697 | S48: 380 | AE48: 28.47230043 | AF48: 29.04261329 | AG48: 29.00048076 | AH48: 28.6013806 | AI48: 27.88961301 | AJ48: 27.1291855 | AK48: 26.4810298 | AL48: 26.1679924 | AM48: 26.10596261 | AN48: 26.47400626 | AO48: 27.02809076 | AP48: 27.59508325 | AQ48: 27.49897822 | AS48: 7 | AT48: 62.77067757 | AU48: 64.0280022 | AV48: 63.93511588 | AW48: 61.47886937 | AX48: 56.87461634 | AY48: 52.33341402 | AZ48: 48.16405877 | BA48: 46.15243838 | BB48: 47.48188144 | BC48: 51.06954391 | BD48: 56.60740325 | BE48: 60.83674472 | BI48: 7 | BJ48: 197.6 | BK48: 74.26643518 | BL48: 74.26643518 | BM48: 74.26643518 | BN48: 72.4097743 | BO48: 68.69645254 | BP48: 64.98313078 | BQ48: 61.26980902 | BR48: 59.41314814 | BS48: 61.26980902 | BT48: 64.98313078 | BU48: 70.55311342 | BV48: 74.26643518 | BY48: 6.5 | BZ48: 17288.37136 | CA48: 68.9359298 | CB48: 68.9359298 | CC48: 68.9359298 | CD48: 68.9359298 | CE48: 67.21253156 | CF48: 63.76573507 | CG48: 60.31893858 | CH48: 56.87214209 | CI48: 55.14874384 | CJ48: 56.87214209 | CK48: 60.31893858 | CL48: 65.48913331 | CM48: 68.9359298 | CQ48: 7 | CR48: 197.6 | CS48: 34.88724508 | CT48: 76.91320964 | CU48: 76.91320964 | CV48: 76.91320964 | CW48: 74.9903794 | CX48: 71.14471892 | CY48: 67.29905844 | CZ48: 63.45339796 | DA48: 61.53056771 | DB48: 63.45339796 | DC48: 67.29905844 | DD48: 73.06754916 | DE48: 76.91320964 | DH48: Oct | DS48: =P32 -> 17.73702649 | DT48: =P31 -> 18.9869327
C49: lact 3+, peak yield | D49: 95 | F49: 14 | G49: 39.46881852 | H49: 39.46881852 | I49: 39.46881852 | J49: 38.48209806 | K49: 36.50865713 | L49: 34.53521621 | M49: 32.56177528 | N49: 31.57505482 | O49: 32.56177528 | P49: 34.53521621 | Q49: 37.49537759 | R49: 39.46881852 | S49: 410.4 | AE49: 26.51455039 | AF49: 27.05439732 | AG49: 26.97341815 | AH49: 26.45548056 | AI49: 25.62862879 | AJ49: 24.8010205 | AK49: 24.13892376 | AL49: 23.93875845 | AM49: 24.03222626 | AN49: 24.53056965 | AO49: 25.12474795 | AP49: 25.64842423 | AQ49: 25.40342883 | AS49: 8 | AT49: 58.45457754 | AU49: 59.64473629 | AV49: 59.46620779 | AW49: 56.8662421 | AX49: 52.26384564 | AY49: 47.84227945 | AZ49: 43.90420432 | BA49: 42.2207427 | BB49: 43.71014144 | BC49: 47.32056764 | BD49: 52.62105828 | BE49: 56.54509623 | BI49: 8 | BJ49: 228 | BK49: 70.2965385 | BL49: 70.2965385 | BM49: 70.2965385 | BN49: 68.53912503 | BO49: 65.02429811 | BP49: 61.50947118 | BQ49: 57.99464426 | BR49: 56.2372308 | BS49: 57.99464426 | BT49: 61.50947118 | BU49: 66.78171157 | BV49: 70.2965385 | BY49: 7.5 | BZ49: 19234.0186 | CA49: 64.0015539 | CB49: 64.0015539 | CC49: 64.0015539 | CD49: 64.0015539 | CE49: 62.40151505 | CF49: 59.20143736 | CG49: 56.00135966 | CH49: 52.80128197 | CI49: 51.20124312 | CJ49: 52.80128197 | CK49: 56.00135966 | CL49: 60.80147621 | CM49: 64.0015539 | CQ49: 8 | CR49: 228 | CS49: 31.48230417 | CT49: 69.4065999 | CU49: 69.4065999 | CV49: 69.4065999 | CW49: 67.6714349 | CX49: 64.20110491 | CY49: 60.73077491 | CZ49: 57.26044492 | DA49: 55.52527992 | DB49: 57.26044492 | DC49: 60.73077491 | DD49: 65.93626991 | DE49: 69.4065999 | DH49: Nov | DT49: =Q32 -> 19.25734304
C50: lact 3+, dim@peak | D50: 45 | F50: 15 | G50: 36.27931469 | H50: 36.27931469 | I50: 36.27931469 | J50: 35.37233182 | K50: 33.55836608 | L50: 31.74440035 | M50: 29.93043462 | N50: 29.02345175 | O50: 29.93043462 | P50: 31.74440035 | Q50: 34.46534895 | R50: 36.27931469 | S50: 440.8 | AE50: 24.59697497 | AF50: 25.14060301 | AG50: 25.12952956 | AH50: 24.61454723 | AI50: 23.76477576 | AJ50: 22.88147 | AK50: 22.16008066 | AL50: 21.9375863 | AM50: 22.0661313 | AN50: 22.59428991 | AO50: 23.22729263 | AP50: 23.77190337 | AQ50: 23.49043206 | AS50: 9 | AT50: 54.2270474 | AU50: 55.42554208 | AV50: 55.4011293 | AW50: 52.90914291 | AX50: 48.46293503 | AY50: 44.13938056 | AZ50: 40.30505745 | BA50: 38.69127919 | BB50: 40.13418107 | BC50: 43.58539729 | BD50: 48.64704399 | BE50: 52.40807589 | BI50: 9 | BJ50: 258.4 | BK50: 66.29010385 | BL50: 66.29010385 | BM50: 66.29010385 | BN50: 64.63285125 | BO50: 61.31834606 | BP50: 58.00384087 | BQ50: 54.68933567 | BR50: 53.03208308 | BS50: 54.68933567 | BT50: 58.00384087 | BU50: 62.97559865 | BV50: 66.29010385 | BY50: 8.5 | BZ50: 21035.88401 | CA50: 59.27188872 | CB50: 59.27188872 | CC50: 59.27188872 | CD50: 59.27188872 | CE50: 57.79009151 | CF50: 54.82649707 | CG50: 51.86290263 | CH50: 48.8993082 | CI50: 47.41751098 | CJ50: 48.8993082 | CK50: 51.86290263 | CL50: 56.30829429 | CM50: 59.27188872 | CQ50: 9 | CR50: 258.4 | CS50: 27.95216576 | CT50: 61.62397691 | CU50: 61.62397691 | CV50: 61.62397691 | CW50: 60.08337748 | CX50: 57.00217864 | CY50: 53.92097979 | CZ50: 50.83978095 | DA50: 49.29918152 | DB50: 50.83978095 | DC50: 53.92097979 | DD50: 58.54277806 | DE50: 61.62397691 | DI50: chartmilk2
C51: lact 3+, decline | D51: 0.07 | F51: 16 | G51: 33.32538776 | H51: 33.32538776 | I51: 33.32538776 | J51: 32.49225307 | K51: 30.82598368 | L51: 29.15971429 | M51: 27.4934449 | N51: 26.66031021 | O51: 27.4934449 | P51: 29.15971429 | Q51: 31.65911837 | R51: 33.32538776 | S51: 471.2 | AE51: 22.77888883 | AF51: 23.35193943 | AG51: 23.50081035 | AH51: 23.11075286 | AI51: 22.34168991 | AJ51: 21.43758405 | AK51: 20.63525367 | AL51: 20.27329552 | AM51: 20.31548405 | AN51: 20.76624039 | AO51: 21.42019319 | AP51: 22.02800515 | AQ51: 21.83001145 | AS51: 10 | AT51: 50.21885357 | AU51: 51.4822139 | AV51: 51.81041808 | AW51: 49.6767263 | AX51: 45.56087032 | AY51: 41.35405987 | AZ51: 37.53168128 | BA51: 35.7559727 | BB51: 36.95007993 | BC51: 40.05900788 | BD51: 44.86227031 | BE51: 48.56343843 | BI51: 10 | BJ51: 288.8 | BK51: 62.33035432 | BL51: 62.33035432 | BM51: 62.33035432 | BN51: 60.77209546 | BO51: 57.65557775 | BP51: 54.53906003 | BQ51: 51.42254232 | BR51: 49.86428346 | BS51: 51.42254232 | BT51: 54.53906003 | BU51: 59.21383661 | BV51: 62.33035432 | BY51: 9.5 | BZ51: 22701.352 | CA51: 54.78513121 | CB51: 54.78513121 | CC51: 54.78513121 | CD51: 54.78513121 | CE51: 53.41550293 | CF51: 50.67624637 | CG51: 47.93698981 | CH51: 45.19773325 | CI51: 43.82810497 | CJ51: 45.19773325 | CK51: 47.93698981 | CL51: 52.04587465 | CM51: 54.78513121 | CQ51: 10 | CR51: 288.8 | CS51: 24.46675097 | CT51: 53.93995262 | CU51: 53.93995262 | CV51: 53.93995262 | CW51: 52.5914538 | CX51: 49.89445617 | CY51: 47.19745854 | CZ51: 44.50046091 | DA51: 43.15196209 | DB51: 44.50046091 | DC51: 47.19745854 | DD51: 51.24295499 | DE51: 53.93995262 | DH51: Jan | DI51: =G36 -> 84.84166435
F52: 17 | G52: 30.59417 | H52: 30.59417 | I52: 30.59417 | J52: 29.82931575 | K52: 28.29960725 | L52: 26.76989875 | M52: 25.24019025 | N52: 24.475336 | O52: 25.24019025 | P52: 26.76989875 | Q52: 29.0644615 | R52: 30.59417 | S52: 501.6 | AE52: 21.09941984 | AF52: 21.71349132 | AG52: 22.07902141 | AH52: 21.91362032 | AI52: 21.32033229 | AJ52: 20.44530928 | AK52: 19.56505699 | AL52: 18.98488983 | AM52: 18.8423681 | AN52: 19.12411729 | AO52: 19.76943623 | AP52: 20.4533505 | AQ52: 20.44253445 | AS52: 11 | AT52: 46.51625825 | AU52: 47.87005412 | AV52: 48.67591003 | AW52: 47.10348147 | AX52: 43.47804032 | AY52: 39.43991741 | AZ52: 35.58519294 | BA52: 33.48361405 | BB52: 34.27075652 | BC52: 36.89127886 | BD52: 41.40493898 | BE52: 45.09191918 | BI52: 11 | BJ52: 319.2 | BK52: 58.47094485 | BL52: 58.47094485 | BM52: 58.47094485 | BN52: 57.00917123 | BO52: 54.08562398 | BP52: 51.16207674 | BQ52: 48.2385295 | BR52: 46.77675588 | BS52: 48.2385295 | BT52: 51.16207674 | BU52: 55.5473976 | BV52: 58.47094485 | BY52: 10.5 | BZ52: 24238.35692 | CA52: 50.55937229 | CB52: 50.55937229 | CC52: 50.55937229 | CD52: 50.55937229 | CE52: 49.29538798 | CF52: 46.76741936 | CG52: 44.23945075 | CH52: 41.71148214 | CI52: 40.44749783 | CJ52: 41.71148214 | CK52: 44.23945075 | CL52: 48.03140367 | CM52: 50.55937229 | CQ52: 11 | CR52: 319.2 | CS52: 21.1533384 | CT52: 46.63512832 | CU52: 46.63512832 | CV52: 46.63512832 | CW52: 45.46925011 | CX52: 43.1374937 | CY52: 40.80573728 | CZ52: 38.47398086 | DA52: 37.30810266 | DB52: 38.47398086 | DC52: 40.80573728 | DD52: 44.3033719 | DE52: 46.63512832 | DH52: Feb | DI52: =H37 -> 89.99889394 | DJ52: =H36 -> 84.84166435
D53: Florida curves | F53: 18 | G53: 28.07237915 | H53: 28.07237915 | I53: 28.07237915 | J53: 27.37056967 | K53: 25.96695071 | L53: 24.56333176 | M53: 23.1597128 | N53: 22.45790332 | O53: 23.1597128 | P53: 24.56333176 | Q53: 26.66876019 | R53: 28.07237915 | S53: 532 | AE53: 19.58008238 | AF53: 20.22960403 | AG53: 20.82614923 | AH53: 20.94678961 | AI53: 20.60051041 | AJ53: 19.81147331 | AK53: 18.87994658 | AL53: 18.05414607 | AM53: 17.66877129 | AN53: 17.72181284 | AO53: 18.32221371 | AP53: 19.0627332 | AQ53: 19.30868605 | AS53: 12 | AT53: 43.16669251 | AU53: 44.59864265 | AV53: 45.91379967 | AW53: 45.02527204 | AX53: 42.01012488 | AY53: 38.21721942 | AZ53: 34.33910476 | BA53: 31.84206305 | BB53: 32.1362026 | BC53: 34.18617076 | BD53: 38.37388844 | BE53: 42.02613281 | BI53: 12 | BJ53: 349.6 | BK53: 54.74624976 | BL53: 54.74624976 | BM53: 54.74624976 | BN53: 53.37759352 | BO53: 50.64028103 | BP53: 47.90296854 | BQ53: 45.16565605 | BR53: 43.79699981 | BS53: 45.16565605 | BT53: 47.90296854 | BU53: 52.00893727 | BV53: 54.74624976 | BY53: 11.5 | BZ53: 25655.00591 | CA53: 46.60029564 | CB53: 46.60029564 | CC53: 46.60029564 | CD53: 46.60029564 | CE53: 45.43528825 | CF53: 43.10527347 | CG53: 40.77525869 | CH53: 38.4452439 | CI53: 37.28023651 | CJ53: 38.4452439 | CK53: 40.77525869 | CL53: 44.27028086 | CM53: 46.60029564 | CQ53: 12 | CR53: 349.6 | CS53: 18.09650597 | CT53: 39.8959664 | CU53: 39.8959664 | CV53: 39.8959664 | CW53: 38.89856724 | CX53: 36.90376892 | CY53: 34.9089706 | CZ53: 32.91417228 | DA53: 31.91677312 | DB53: 32.91417228 | DC53: 34.9089706 | DD53: 37.90116808 | DE53: 39.8959664 | DH53: Mar | DI53: =I38 -> 87.95451502 | DJ53: =I37 -> 89.99889394 | DK53: =I36 -> 84.84166435
F54: 19 | G54: 25.74670378 | H54: 25.74670378 | I54: 25.74670378 | J54: 25.10303618 | K54: 23.81570099 | L54: 22.5283658 | M54: 21.24103062 | N54: 20.59736302 | O54: 21.24103062 | P54: 22.5283658 | Q54: 24.45936859 | R54: 25.74670378 | S54: 562.4 | AE54: 18.22735057 | AF54: 18.88876849 | AG54: 19.68486591 | AH54: 20.10478438 | AI54: 20.0423996 | AJ54: 19.39576902 | AK54: 18.46020081 | AL54: 17.41820309 | AM54: 16.78221263 | AN54: 16.58898843 | AO54: 17.1066101 | AP54: 17.85315628 | AQ54: 18.37944244 | AS54: 13 | AT54: 40.18442937 | AU54: 41.64260628 | AV54: 43.39770065 | AW54: 43.21537586 | AX54: 40.87198296 | AY54: 37.41530722 | AZ54: 33.57566543 | BA54: 30.72045162 | BB54: 30.52371761 | BC54: 32.00090175 | BD54: 35.82793861 | BE54: 39.35947218 | BI54: 13 | BJ54: 380 | BK54: 51.17765182 | BL54: 51.17765182 | BM54: 51.17765182 | BN54: 49.89821052 | BO54: 47.33932793 | BP54: 44.78044534 | BQ54: 42.22156275 | BR54: 40.94212145 | BS54: 42.22156275 | BT54: 44.78044534 | BU54: 48.61876923 | BV54: 51.17765182 | BY54: 12.5 | BZ54: 26959.34183 | CA54: 42.90578697 | CB54: 42.90578697 | CC54: 42.90578697 | CD54: 42.90578697 | CE54: 41.83314229 | CF54: 39.68785295 | CG54: 37.5425636 | CH54: 35.39727425 | CI54: 34.32462958 | CJ54: 35.39727425 | CK54: 37.5425636 | CL54: 40.76049762 | CM54: 42.90578697 | CQ54: 13 | CR54: 380 | CS54: 15.34341937 | CT54: 33.82644941 | CU54: 33.82644941 | CV54: 33.82644941 | CW54: 32.98078817 | CX54: 31.2894657 | CY54: 29.59814323 | CZ54: 27.90682076 | DA54: 27.06115953 | DB54: 27.90682076 | DC54: 29.59814323 | DD54: 32.13512694 | DE54: 33.82644941 | DH54: Apr | DI54: =J39 -> 81.79405047 | DJ54: =J38 -> 85.75565214 | DK54: =J37 -> 87.74892159 | DL54: =J36 -> 82.72062274
D55: Diphasic curves | F55: 20 | G55: 23.60406452 | H55: 23.60406452 | I55: 23.60406452 | J55: 23.0139629 | K55: 21.83375968 | L55: 20.65355645 | M55: 19.47335323 | N55: 18.88325161 | O55: 19.47335323 | P55: 20.65355645 | Q55: 22.42386129 | R55: 23.60406452 | S55: 592.8 | AE55: 17.03523155 | AF55: 17.6685061 | AG55: 18.58898923 | AH55: 19.26977845 | AI55: 19.48806447 | AJ55: 19.03273893 | AK55: 18.1559012 | AL55: 16.98215071 | AM55: 16.14136934 | AN55: 15.73064779 | AO55: 16.1312896 | AP55: 16.80786851 | AQ55: 17.58604466 | AS55: 14 | AT55: 37.55625682 | AU55: 38.95238821 | AV55: 40.98170614 | AW55: 41.42052471 | AX55: 39.74154067 | AY55: 36.71500591 | AZ55: 33.02220114 | BA55: 29.95138688 | BB55: 29.35814307 | BC55: 30.34512419 | BD55: 33.78523565 | BE55: 37.05500711 | BI55: 14 | BJ55: 410.4 | BK55: 47.77757629 | BL55: 47.77757629 | BM55: 47.77757629 | BN55: 46.58313688 | BO55: 44.19425807 | BP55: 41.80537926 | BQ55: 39.41650044 | BR55: 38.22206103 | BS55: 39.41650044 | BT55: 41.80537926 | BU55: 45.38869748 | BV55: 47.77757629 | BY55: 13.5 | BZ55: 28159.19391 | CA55: 39.46881852 | CB55: 39.46881852 | CC55: 39.46881852 | CD55: 39.46881852 | CE55: 38.48209806 | CF55: 36.50865713 | CG55: 34.53521621 | CH55: 32.56177528 | CI55: 31.57505482 | CJ55: 32.56177528 | CK55: 34.53521621 | CL55: 37.49537759 | CM55: 39.46881852 | CQ55: 14 | CR55: 410.4 | CS55: 12.9116193 | CT55: 28.46524798 | CU55: 28.46524798 | CV55: 28.46524798 | CW55: 27.75361678 | CX55: 26.33035438 | CY55: 24.90709198 | CZ55: 23.48382958 | DA55: 22.77219838 | DB55: 23.48382958 | DC55: 24.90709198 | DD55: 27.04198558 | DE55: 28.46524798 | DH55: May | DI55: =K40 -> 73.14069642 | DJ55: =K39 -> 77.59948378 | DK55: =K38 -> 81.35792639 | DL55: =K37 -> 83.24897689 | DM55: =K36 -> 78.47853952
C56: lact 1, phase 1, a | D56: 11111.91439 | F56: 21 | G56: 21.63178852 | H56: 21.63178852 | I56: 21.63178852 | J56: 21.09099381 | K56: 20.00940438 | L56: 18.92781496 | M56: 17.84622553 | N56: 17.30543082 | O56: 17.84622553 | P56: 18.92781496 | Q56: 20.55019909 | R56: 21.63178852 | S56: 623.2 | AE56: 15.98783876 | AF56: 16.5402537 | AG56: 17.47394267 | AH56: 18.32836233 | AI56: 18.78298023 | AJ56: 18.55375955 | AK56: 17.80691308 | AL56: 16.63161869 | AM56: 15.68170373 | AN56: 15.12671006 | AO56: 15.38518323 | AP56: 15.90040076 | AQ56: 16.84997223 | AS56: 15 | AT56: 35.24715098 | AU56: 36.46501745 | AV56: 38.52344928 | AW56: 39.39694412 | AX56: 38.30367936 | AY56: 35.79103324 | AZ56: 32.38745677 | BA56: 29.33315421 | BB56: 28.52209697 | BC56: 29.18010127 | BD56: 32.22259682 | BE56: 35.05438318 | BI56: 15 | BJ56: 440.8 | BK56: 44.55217819 | BL56: 44.55217819 | BM56: 44.55217819 | BN56: 43.43837374 | BO56: 41.21076483 | BP56: 38.98315592 | BQ56: 36.75554701 | BR56: 35.64174255 | BS56: 36.75554701 | BT56: 38.98315592 | BU56: 42.32456928 | BV56: 44.55217819 | BY56: 14.5 | BZ56: 29262.08508 | CA56: 36.27931469 | CB56: 36.27931469 | CC56: 36.27931469 | CD56: 36.27931469 | CE56: 35.37233182 | CF56: 33.55836608 | CG56: 31.74440035 | CH56: 29.93043462 | CI56: 29.02345175 | CJ56: 29.93043462 | CK56: 31.74440035 | CL56: 34.46534895 | CM56: 36.27931469 | CQ56: 15 | CR56: 440.8 | CS56: 10.79720273 | CT56: 23.80375737 | CU56: 23.80375737 | CV56: 23.80375737 | CW56: 23.20866344 | CX56: 22.01847557 | CY56: 20.8282877 | CZ56: 19.63809983 | DA56: 19.0430059 | DB56: 19.63809983 | DC56: 20.8282877 | DD56: 22.6135695 | DE56: 23.80375737 | DH56: Jun | DI56: =L41 -> 64.75268287 | DJ56: =L40 -> 69.18714526 | DK56: =L39 -> 73.40491709 | DL56: =L38 -> 76.96020064 | DM56: =L37 -> 78.74903219 | DN56: =L36 -> 74.23645631
C57: lact 1, phase 1, b | D57: 0.002211920845 | F57: 22 | G57: 19.81772257 | H57: 19.81772257 | I57: 19.81772257 | J57: 19.3222795 | K57: 18.33139337 | L57: 17.34050724 | M57: 16.34962112 | N57: 15.85417805 | O57: 16.34962112 | P57: 17.34050724 | Q57: 18.82683644 | R57: 19.81772257 | S57: 653.6 | AE57: 15.06196516 | AF57: 15.47424848 | AG57: 16.28721547 | AH57: 17.18830976 | AI57: 17.79755414 | AJ57: 17.80902573 | AK57: 17.2628663 | AL57: 16.24536558 | AM57: 15.3210902 | AN57: 14.73158304 | AO57: 14.83717605 | AP57: 15.09860248 | AQ57: 16.09291687 | AS57: 16 | AT57: 33.20594909 | AU57: 34.11487823 | AV57: 35.90716364 | AW57: 36.94639309 | AX57: 36.29412365 | AY57: 34.35440834 | AZ57: 31.39793706 | BA57: 28.65192034 | BB57: 27.86620817 | BC57: 28.41788355 | BD57: 31.07485525 | BE57: 33.28672056 | BI57: 16 | BJ57: 471.2 | BK57: 41.50318639 | BL57: 41.50318639 | BM57: 41.50318639 | BN57: 40.46560673 | BO57: 38.39044741 | BP57: 36.31528809 | BQ57: 34.24012877 | BR57: 33.20254912 | BS57: 34.24012877 | BT57: 36.31528809 | BU57: 39.42802707 | BV57: 41.50318639 | BY57: 15.5 | BZ57: 30275.17687 | CA57: 33.32538776 | CB57: 33.32538776 | CC57: 33.32538776 | CD57: 33.32538776 | CE57: 32.49225307 | CF57: 30.82598368 | CG57: 29.15971429 | CH57: 27.4934449 | CI57: 26.66031021 | CJ57: 27.4934449 | CK57: 29.15971429 | CL57: 31.65911837 | CM57: 33.32538776 | CQ57: 16 | CR57: 471.2 | CS57: 8.982145936 | CT57: 19.80224211 | CU57: 19.80224211 | CV57: 19.80224211 | CW57: 19.30718605 | CX57: 18.31707395 | CY57: 17.32696184 | CZ57: 16.33684974 | DA57: 15.84179368 | DB57: 16.33684974 | DC57: 17.32696184 | DD57: 18.81213 | DE57: 19.80224211 | DH57: Jul | DI57: =M42 -> 56.87214209 | DJ57: =M41 -> 61.05252957 | DK57: =M40 -> 65.2335941 | DL57: =M39 -> 69.2103504 | DM57: =M38 -> 72.56247489 | DN57: =M37 -> 74.2490875 | DO57: =M36 -> 69.99437309
C58: lact 1, phase 1, c | D58: 84.8372778 | F58: 23 | G58: 18.1503025 | H58: 18.1503025 | I58: 18.1503025 | J58: 17.69654494 | K58: 16.78902981 | L58: 15.88151469 | M58: 14.97399956 | N58: 14.520242 | O58: 14.97399956 | P58: 15.88151469 | Q58: 17.24278737 | R58: 18.1503025 | S58: 684 | AE58: 14.22965652 | AF58: 14.44441294 | AG58: 14.99882263 | AH58: 15.79534425 | AI58: 16.44864685 | AJ58: 16.68953496 | AK58: 16.40313594 | AL58: 15.70786775 | AM58: 14.96544223 | AN58: 14.47373625 | AO58: 14.43579431 | AP58: 14.3686781 | AQ58: 15.24675606 | AS58: 17 | AT58: 31.37102264 | AU58: 31.8444795 | AV58: 33.06674364 | AW58: 33.95220389 | AX58: 33.54332949 | AY58: 32.19486051 | AZ58: 29.83424773 | BA58: 27.70393644 | BB58: 27.21935078 | BC58: 27.92048554 | BD58: 30.23420475 | BE58: 31.67751276 | BI58: 17 | BJ58: 501.6 | BK58: 38.62919955 | BL58: 38.62919955 | BM58: 38.62919955 | BN58: 37.66346956 | BO58: 35.73200958 | BP58: 33.8005496 | BQ58: 31.86908962 | BR58: 30.90335964 | BS58: 31.86908962 | BT58: 33.8005496 | BU58: 36.69773957 | BV58: 38.62919955 | BY58: 16.5 | BZ58: 31205.23964 | CA58: 30.59417 | CB58: 30.59417 | CC58: 30.59417 | CD58: 30.59417 | CE58: 29.82931575 | CF58: 28.29960725 | CG58: 26.76989875 | CH58: 25.24019025 | CI58: 24.475336 | CJ58: 25.24019025 | CK58: 26.76989875 | CL58: 29.0644615 | CM58: 30.59417 | CQ58: 17 | CR58: 501.6 | CS58: 7.440213359 | CT58: 16.40286267 | CU58: 16.40286267 | CV58: 16.40286267 | CW58: 15.9927911 | CX58: 15.17264797 | CY58: 14.35250483 | CZ58: 13.5323617 | DA58: 13.12229013 | DB58: 13.5323617 | DC58: 14.35250483 | DD58: 15.58271953 | DE58: 16.40286267 | DH58: Aug | DI58: =N43 -> 51.20124312 | DJ58: =N42 -> 55.14874384 | DK58: =N41 -> 59.20245291 | DL58: =N40 -> 63.25681852 | DM58: =N39 -> 67.11306705 | DN58: =N38 -> 70.36361201 | DO58: =N37 -> 71.99911515 | DP58: =N36 -> 67.87333148
C59: lact 1, phase 2, a | D59: 4532.390574 | F59: 24 | G59: 16.61859147 | H59: 16.61859147 | I59: 16.61859147 | J59: 16.20312669 | K59: 15.37219711 | L59: 14.54126754 | M59: 13.71033796 | N59: 13.29487318 | O59: 13.71033796 | P59: 14.54126754 | Q59: 15.7876619 | R59: 16.61859147 | S59: 714.4 | AE59: 13.46078469 | AF59: 13.4332398 | AG59: 13.61176501 | AH59: 14.14990554 | AI59: 14.72109384 | AJ59: 15.14907178 | AK59: 15.15682299 | AL59: 14.92190828 | AM59: 14.5143393 | AN59: 14.25527412 | AO59: 14.10889261 | AP59: 13.67922345 | AQ59: 14.26352678 | AS59: 18 | AT59: 29.67595041 | AU59: 29.61522432 | AV59: 30.00880504 | AW59: 30.41532178 | AX59: 30.02037223 | AY59: 29.22323802 | AZ59: 27.56743671 | BA59: 26.31774122 | BB59: 26.39887861 | BC59: 27.49906231 | BD59: 29.54954461 | BE59: 30.15752544 | BI59: 18 | BJ59: 532 | BK59: 35.92661378 | BL59: 35.92661378 | BM59: 35.92661378 | BN59: 35.02844844 | BO59: 33.23211775 | BP59: 31.43578706 | BQ59: 29.63945637 | BR59: 28.74129103 | BS59: 29.63945637 | BT59: 31.43578706 | BU59: 34.13028309 | BV59: 35.92661378 | BY59: 17.5 | BZ59: 32058.63996 | CA59: 28.07237915 | CB59: 28.07237915 | CC59: 28.07237915 | CD59: 28.07237915 | CE59: 27.37056967 | CF59: 25.96695071 | CG59: 24.56333176 | CH59: 23.1597128 | CI59: 22.45790332 | CJ59: 23.1597128 | CK59: 24.56333176 | CL59: 26.66876019 | CM59: 28.07237915 | CQ59: 18 | CR59: 532 | CS59: 6.141357206 | CT59: 13.53937501 | CU59: 13.53937501 | CV59: 13.53937501 | CW59: 13.20089064 | CX59: 12.52392189 | CY59: 11.84695314 | CZ59: 11.16998439 | DA59: 10.83150001 | DB59: 11.16998439 | DC59: 11.84695314 | DD59: 12.86240626 | DE59: 13.53937501 | DH59: Sep | DI59: =O44 -> 48.8993082 | DJ59: =O43 -> 52.80128197 | DK59: =O42 -> 56.87214209 | DL59: =O41 -> 61.05252957 | DM59: =O40 -> 65.2335941 | DN59: =O39 -> 69.2103504 | DO59: =O38 -> 72.56247489 | DP59: =O37 -> 74.2490875 | DQ59: =O36 -> 69.99437309
C60: lact 1, phase 2, b | D60: 0.002617932805 | AE60: 12.72562084 | AF60: 12.43667695 | AG60: 12.17248932 | AH60: 12.3239162 | AI60: 12.68922679 | AJ60: 13.22619206 | AK60: 13.52273505 | AL60: 13.82116589 | AM60: 13.86665387 | AN60: 13.95150914 | AO60: 13.76334108 | AP60: 13.0052622 | AQ60: 13.12539911 | AS60: 19 | AT60: 28.05519156 | AU60: 27.41817931 | AV60: 26.8357453 | AW60: 26.4903448 | AX60: 25.87683468 | AY60: 25.51391691 | AZ60: 24.59533525 | BA60: 24.37636396 | BB60: 25.22085951 | BC60: 26.91308605 | BD60: 28.82582442 | BE60: 28.67169523 | BI60: 19 | BJ60: 562.4 | BK60: 33.3902966 | BL60: 33.3902966 | BM60: 33.3902966 | BN60: 32.55553918 | BO60: 30.88602435 | BP60: 29.21650952 | BQ60: 27.54699469 | BR60: 26.71223728 | BS60: 27.54699469 | BT60: 29.21650952 | BU60: 31.72078177 | BV60: 33.3902966 | BY60: 18.5 | BZ60: 32841.33976 | CA60: 25.74670378 | CB60: 25.74670378 | CC60: 25.74670378 | CD60: 25.74670378 | CE60: 25.10303618 | CF60: 23.81570099 | CG60: 22.5283658 | CH60: 21.24103062 | CI60: 20.59736302 | CJ60: 21.24103062 | CK60: 22.5283658 | CL60: 24.45936859 | CM60: 25.74670378 | CQ60: 19 | CR60: 562.4 | CS60: 5.054764433 | CT60: 11.14384801 | CU60: 11.14384801 | CV60: 11.14384801 | CW60: 10.86525181 | CX60: 10.30805941 | CY60: 9.750867007 | CZ60: 9.193674607 | DA60: 8.915078407 | DB60: 9.193674607 | DC60: 9.750867007 | DD60: 10.58665561 | DE60: 11.14384801 | DH60: Oct | DI60: =P45 -> 47.93698981 | DJ60: =P44 -> 51.86290263 | DK60: =P43 -> 56.00135966 | DL60: =P42 -> 60.31893858 | DM60: =P41 -> 64.75268287 | DN60: =P40 -> 69.18714526 | DO60: =P39 -> 73.40491709 | DP60: =P38 -> 76.96020064 | DQ60: =P37 -> 78.74903219 | DR60: =P36 -> 74.23645631
C61: lact 1, phase 2, c | D61: 124.1463133 | G61: Lactation 3 | AE61: 11.99740874 | AF61: 11.46901238 | AG61: 10.78134819 | AH61: 10.47754808 | AI61: 10.53839498 | AJ61: 11.06620739 | AK61: 11.58936703 | AL61: 12.38280391 | AM61: 12.92617835 | AN61: 13.41053497 | AO61: 13.28471252 | AP61: 12.3322823 | AQ61: 11.8546499 | AS61: 20 | AT61: 26.4497587 | AU61: 25.28484411 | AV61: 23.7688041 | AW61: 22.52156351 | AX61: 21.49069516 | AY61: 21.34720975 | AZ61: 21.07889909 | BA61: 21.83952768 | BB61: 23.51030978 | BC61: 25.86952264 | BD61: 27.82338884 | BE61: 27.18802851 | BI61: 20 | BJ61: 592.8 | BK61: 31.01408165 | BL61: 31.01408165 | BM61: 31.01408165 | BN61: 30.23872961 | BO61: 28.68802553 | BP61: 27.13732145 | BQ61: 25.58661737 | BR61: 24.81126532 | BS61: 25.58661737 | BT61: 27.13732145 | BU61: 29.46337757 | BV61: 31.01408165 | BY61: 19.5 | BZ61: 33558.90332 | CA61: 23.60406452 | CB61: 23.60406452 | CC61: 23.60406452 | CD61: 23.60406452 | CE61: 23.0139629 | CF61: 21.83375968 | CG61: 20.65355645 | CH61: 19.47335323 | CI61: 18.88325161 | CJ61: 19.47335323 | CK61: 20.65355645 | CL61: 22.42386129 | CM61: 23.60406452 | CQ61: 20 | CR61: 592.8 | CS61: 4.150810171 | CT61: 9.150969995 | CU61: 9.150969995 | CV61: 9.150969995 | CW61: 8.922195745 | CX61: 8.464647245 | CY61: 8.007098745 | CZ61: 7.549550246 | DA61: 7.320775996 | DB61: 7.549550246 | DC61: 8.007098745 | DD61: 8.693421495 | DE61: 9.150969995 | DH61: Nov | DI61: =Q46 -> 48.03140367 | DJ61: =Q45 -> 52.04587465 | DK61: =Q44 -> 56.30829429 | DL61: =Q43 -> 60.80147621 | DM61: =Q42 -> 65.48913331 | DN61: =Q41 -> 70.30291283 | DO61: =Q40 -> 75.117472 | DP61: =Q39 -> 79.69676712 | DQ61: =Q38 -> 83.55678927 | DR61: =Q37 -> 85.49894924 | DS61: =Q36 -> 80.59958113
C62: lact 2, phase 1, a | D62: 7573.87818 | F62: month | G62: Jan | H62: Feb | I62: Mar | J62: Apr | K62: May | L62: Jun | M62: Jul | N62: Aug | O62: Sep | P62: Oct | Q62: Nov | R62: Dec | S62: day | AE62: 11.25493802 | AF62: 10.56775912 | AG62: 9.603060198 | AH62: 8.875988905 | AI62: 8.586486682 | AJ62: 8.943169429 | AK62: 9.554881862 | AL62: 10.64005918 | AM62: 11.60725206 | AN62: 12.45279963 | AO62: 12.53696959 | AP62: 11.66027237 | AQ62: 10.52363642 | AS62: 21 | AT62: 24.81289095 | AU62: 23.2979208 | AV62: 21.17112373 | AW62: 19.07900077 | AX62: 17.51021556 | AY62: 17.25177442 | AZ62: 17.37854967 | BA62: 18.76585212 | BB62: 21.11142862 | BC62: 24.02200827 | BD62: 26.25732242 | BE62: 25.70650022 | BI62: 21 | BJ62: 623.2 | BK62: 28.79113491 | BL62: 28.79113491 | BM62: 28.79113491 | BN62: 28.07135654 | BO62: 26.63179979 | BP62: 25.19224305 | BQ62: 23.7526863 | BR62: 23.03290793 | BS62: 23.7526863 | BT62: 25.19224305 | BU62: 27.35157816 | BV62: 28.79113491 | BY62: 20.5 | BZ62: 34216.50969 | CA62: 21.63178852 | CB62: 21.63178852 | CC62: 21.63178852 | CD62: 21.63178852 | CE62: 21.09099381 | CF62: 20.00940438 | CG62: 18.92781496 | CH62: 17.84622553 | CI62: 17.30543082 | CJ62: 17.84622553 | CK62: 18.92781496 | CL62: 20.55019909 | CM62: 21.63178852 | CQ62: 21 | CR62: 623.2 | CS62: 3.40219 | CT62: 7.500545032 | CU62: 7.500545032 | CV62: 7.500545032 | CW62: 7.313031406 | CX62: 6.938004155 | CY62: 6.562976903 | CZ62: 6.187949651 | DA62: 6.000436026 | DB62: 6.187949651 | DC62: 6.562976903 | DD62: 7.12551778 | DE62: 7.500545032 | DH62: Dec | DI62: =R47 -> 46.60029564 | DJ62: =R46 -> 50.55937229 | DK62: =R45 -> 54.78513121 | DL62: =R44 -> 59.27188872 | DM62: =R43 -> 64.0015539 | DN62: =R42 -> 68.9359298 | DO62: =R41 -> 74.00306614 | DP62: =R40 -> 79.07102315 | DQ62: =R39 -> 83.89133381 | DR62: =R38 -> 87.95451502 | DS62: =R37 -> 89.99889394 | DT62: =R36 -> 84.84166435
C63: lact 2, phase 1, b | D63: 0.003789143843 | F63: 1 | G63: 89.55509015 | H63: 89.55509015 | I63: 89.55509015 | J63: 87.31621289 | K63: 82.83845839 | L63: 78.36070388 | M63: 73.88294937 | N63: 71.64407212 | O63: 73.88294937 | P63: 78.36070388 | Q63: 85.07733564 | R63: 89.55509015 | S63: 15.2 | AE63: 10.48511743 | AF63: 9.798540176 | AG63: 8.877169912 | AH63: 7.906208754 | AI63: 7.305450535 | AJ63: 7.281854199 | AK63: 7.747091153 | AL63: 8.694831029 | AM63: 9.840388173 | AN63: 10.87067863 | AO63: 11.36215198 | AP63: 11.00775816 | AQ63: 9.264770011 | AS63: 22 | AT63: 23.11572705 | AU63: 21.60208331 | AV63: 19.57080959 | AW63: 16.99445149 | AX63: 14.89782939 | AY63: 14.04702292 | AZ63: 14.09051523 | BA63: 15.33505693 | BB63: 17.89783244 | BC63: 20.970026 | BD63: 23.79679441 | BE63: 24.26795263 | BI63: 22 | BJ63: 653.6 | BK63: 26.71422675 | BL63: 26.71422675 | BM63: 26.71422675 | BN63: 26.04637109 | BO63: 24.71065975 | BP63: 23.37494841 | BQ63: 22.03923707 | BR63: 21.3713814 | BS63: 22.03923707 | BT63: 23.37494841 | BU63: 25.37851542 | BV63: 26.71422675 | BY63: 21.5 | BZ63: 34818.96845 | CA63: 19.81772257 | CB63: 19.81772257 | CC63: 19.81772257 | CD63: 19.81772257 | CE63: 19.3222795 | CF63: 18.33139337 | CG63: 17.34050724 | CH63: 16.34962112 | CI63: 15.85417805 | CJ63: 16.34962112 | CK63: 17.34050724 | CL63: 18.82683644 | CM63: 19.81772257 | CQ63: 22 | CR63: 653.6 | CS63: 2.784472194 | CT63: 6.138710383 | CU63: 6.138710383 | CV63: 6.138710383 | CW63: 5.985242624 | CX63: 5.678307104 | CY63: 5.371371585 | CZ63: 5.064436066 | DA63: 4.910968307 | DB63: 5.064436066 | DC63: 5.371371585 | DD63: 5.831774864 | DE63: 6.138710383 | DH63: Jan | DI63: =G48 -> 42.90578697 | DJ63: =G47 -> 46.60029564 | DK63: =G46 -> 50.55937229 | DL63: =G45 -> 54.78513121 | DM63: =G44 -> 59.27188872 | DN63: =G43 -> 64.0015539 | DO63: =G42 -> 68.9359298 | DP63: =G41 -> 74.00306614 | DQ63: =G40 -> 79.07102315 | DR63: =G39 -> 83.89133381 | DS63: =G38 -> 87.95451502 | DT63: =G37 -> 89.99889394
